Workbook

Sheet Inputs and Totals
A1: SIMULATION PROTOTYPE V3 | D1: Legend | E1: Inputs
A2: Initial Battery Storage | B2: 1 | H2: Nichols, IA avg kWh a day for each month
H3: 1 | I3: 6943.225806
A4: Month | B4: 1 | C4: =IF(B4=1,"January", IF(B4=2, "February", IF(B4=3, "March", IF(B4=4, "April", IF(B4=5, "May", IF(B4=6, "June", IF(B4=7, "July", IF(B4=8, "August", IF(B4=9, "September", IF(B4=10, "October", IF(B4=11, "November",IF(B4=12,"December", "Error, Enter Number Between 1 and 12")))))))))))) -> January | H4: 2 | I4: 6636.357143
H5: 3 | I5: 4947.967742
A6: Average Daily Usage | B6: 6943 | C6: kWh | H6: 4 | I6: 6056.233333
H7: 5 | I7: 4225.806452
A8: Solar Panel Wattage | B8: 360 | C8: W | H8: 6 | I8: 5204.233333
A9: Number of Panels | B9: 5555 | H9: 7 | I9: 6509.290323
A10: Total Solar Generation Power | B10: =B9*B8*10^(-6) -> 1.9998 | C10: MW | H10: 8 | I10: 7382.064516
H11: 9 | I11: 6169.666667
A12: Number of Batteries | B12: 200 | H12: 10 | I12: 5465.483871
A13: Single Battery Capacity | B13: 30 | C13: kWh | H13: 11 | I13: 6533.2
A14: Capacity of Battery Storage | B14: =B13*B12 -> 6000 | C14: kWh | H14: 12 | I14: 7308.354839
A15: Total Initial Battery Charge | B15: =B14*B2 -> 6000 | C15: kWh
A17: Supplemental Generator Capacity | B17: 0 | C17: kWh
A19: Day Totals | B19: Usage (kWh) | C19: High, Med, Low Solar Day (1-3) | D19: Total Solar Power Gen. (kWh) | E19: Battery Power Consumed (kWh) | F19: Supplemental Power Gen. (kWh) | G19: Excess Battery (kWh) | H19: Excess Demand (kWh) | I19: Excess Demand (%)
A20: Day 1 | B20: 7290.149669 | C20: 2 | D20: ='Hourly Data'!Z35 -> 9199.08 | E20: ='Hourly Data'!Z68 -> 4940.57202 | F20: ='Hourly Data'!Z101 -> 0 | G20: ='Hourly Data'!Y134 -> 3409.270341 | H20: ='Hourly Data'!Z167 -> 0 | I20: =H20/B20 -> 0
A21: Day 2 | B21: 7290.149669 | C21: 3 | D21: ='Hourly Data'!Z36 -> 5799.42 | E21: ='Hourly Data'!Z69 -> 5268.019919 | F21: ='Hourly Data'!Z102 -> 0 | G21: ='Hourly Data'!Y135 -> 1118.620672 | H21: ='Hourly Data'!Z168 -> 0 | I21: =H21/B21 -> 0
A22: Day 3 | B22: 6804.140132 | C22: 2 | D22: ='Hourly Data'!Z37 -> 9199.08 | E22: ='Hourly Data'!Z70 -> 3536.635177 | F22: ='Hourly Data'!Z103 -> 0 | G22: ='Hourly Data'!Y136 -> 3581.985495 | H22: ='Hourly Data'!Z169 -> 674.6056735 | I22: 0.09914635213
A23: Day 4 | B23: 7498.440298 | C23: 1 | D23: ='Hourly Data'!Z38 -> 11598.84 | E23: ='Hourly Data'!Z71 -> 4729.680698 | F23: ='Hourly Data'!Z104 -> 0 | G23: ='Hourly Data'!Y137 -> 3335.249267 | H23: ='Hourly Data'!Z170 -> 0 | I23: 0
A24: Day 5 | B24: 7290.149669 | C24: 3 | D24: ='Hourly Data'!Z39 -> 5799.42 | E24: ='Hourly Data'!Z72 -> 5268.019919 | F24: ='Hourly Data'!Z105 -> 0 | G24: ='Hourly Data'!Y138 -> 1044.599598 | H24: ='Hourly Data'!Z171 -> 0 | I24: 0
A25: Day 6 | B25: 6318.130182 | C25: 1 | D25: ='Hourly Data'!Z40 -> 11598.84 | E25: ='Hourly Data'!Z73 -> 2939.120986 | F25: ='Hourly Data'!Z106 -> 0 | G25: ='Hourly Data'!Y139 -> 4105.478611 | H25: ='Hourly Data'!Z172 -> 495.3150755 | I25: 0.07839583251
A26: Day 7 | B26: 7151.289801 | C26: 2 | D26: ='Hourly Data'!Z41 -> 9199.08 | E26: ='Hourly Data'!Z74 -> 4846.465971 | F26: ='Hourly Data'!Z107 -> 0 | G26: ='Hourly Data'!Y140 -> 3458.617528 | H26: ='Hourly Data'!Z173 -> 0 | I26: 0
A27: Day 8 | B27: 7220.719735 | C27: 3 | D27: ='Hourly Data'!Z42 -> 5799.42 | E27: ='Hourly Data'!Z75 -> 5217.848346 | F27: ='Hourly Data'!Z108 -> 0 | G27: ='Hourly Data'!Y141 -> 1237.397793 | H27: ='Hourly Data'!Z174 -> 0 | I27: 0
A28: Day 9 | B28: 6248.699834 | C28: 1 | D28: ='Hourly Data'!Z43 -> 11598.84 | E28: ='Hourly Data'!Z76 -> 3111.100161 | F28: ='Hourly Data'!Z109 -> 0 | G28: ='Hourly Data'!Y142 -> 4126.297631 | H28: ='Hourly Data'!Z175 -> 283.3970638 | I28: 0.04535296482
A29: Day 10 | B29: 6873.570066 | C29: 2 | D29: ='Hourly Data'!Z44 -> 9199.08 | E29: ='Hourly Data'!Z77 -> 4658.253875 | F29: ='Hourly Data'!Z110 -> 0 | G29: ='Hourly Data'!Y143 -> 3557.311901 | H29: ='Hourly Data'!Z176 -> 0 | I29: 0
A30: Day 11 | B30: 6804.140132 | C30: 2 | D30: ='Hourly Data'!Z45 -> 9199.08 | E30: ='Hourly Data'!Z78 -> 4611.200851 | F30: ='Hourly Data'!Z111 -> 0 | G30: ='Hourly Data'!Y144 -> 3581.985495 | H30: ='Hourly Data'!Z177 -> 0 | I30: 0
A31: Day 12 | B31: 6595.849917 | C31: 2 | D31: ='Hourly Data'!Z46 -> 9199.08 | E31: ='Hourly Data'!Z79 -> 4470.041498 | F31: ='Hourly Data'!Z112 -> 0 | G31: ='Hourly Data'!Y145 -> 3656.006422 | H31: ='Hourly Data'!Z178 -> 0 | I31: 0
A32: Day 13 | B32: 7637.300166 | C32: 1 | D32: ='Hourly Data'!Z47 -> 11598.84 | E32: ='Hourly Data'!Z80 -> 4817.26729 | F32: ='Hourly Data'!Z113 -> 0 | G32: ='Hourly Data'!Y146 -> 3285.90208 | H32: ='Hourly Data'!Z179 -> 0 | I32: 0
A33: Day 14 | B33: 7359.579603 | C33: 2 | D33: ='Hourly Data'!Z48 -> 9199.08 | E33: ='Hourly Data'!Z81 -> 4987.625044 | F33: ='Hourly Data'!Z114 -> 0 | G33: ='Hourly Data'!Y147 -> 3384.596748 | H33: ='Hourly Data'!Z180 -> 0 | I33: =H33/B33 -> 0
A34: Day 15 | B34: 7220.719735 | C34: 1 | D34: ='Hourly Data'!Z49 -> 11598.84 | E34: ='Hourly Data'!Z82 -> 4554.506991 | F34: ='Hourly Data'!Z115 -> 0 | G34: ='Hourly Data'!Y148 -> 3433.943934 | H34: ='Hourly Data'!Z181 -> 0 | I34: 0
A35: Day 16 | B35: 6804.140132 | C35: 1 | D35: ='Hourly Data'!Z50 -> 11598.84 | E35: ='Hourly Data'!Z83 -> 3913.986492 | F35: ='Hourly Data'!Z116 -> 0 | G35: ='Hourly Data'!Y149 -> 3959.746216 | H35: ='Hourly Data'!Z182 -> 0 | I35: 0
A36: Day 17 | B36: 7290.149669 | C36: 3 | D36: ='Hourly Data'!Z51 -> 5799.42 | E36: ='Hourly Data'!Z84 -> 5268.019919 | F36: ='Hourly Data'!Z117 -> 0 | G36: ='Hourly Data'!Y150 -> 1669.096547 | H36: ='Hourly Data'!Z183 -> 0 | I36: 0
A37: Day 18 | B37: 6595.849917 | C37: 1 | D37: ='Hourly Data'!Z52 -> 11598.84 | E37: ='Hourly Data'!Z85 -> 3646.893519 | F37: ='Hourly Data'!Z118 -> 0 | G37: ='Hourly Data'!Y151 -> 4022.203028 | H37: ='Hourly Data'!Z184 -> 0 | I37: 0
A38: Day 19 | B38: 6734.710199 | C38: 2 | D38: ='Hourly Data'!Z53 -> 9199.08 | E38: ='Hourly Data'!Z86 -> 4564.147827 | F38: ='Hourly Data'!Z119 -> 0 | G38: ='Hourly Data'!Y152 -> 3606.659088 | H38: ='Hourly Data'!Z185 -> 0 | I38: 0
A39: Day 20 | B39: 6873.570066 | C39: 2 | D39: ='Hourly Data'!Z54 -> 9199.08 | E39: ='Hourly Data'!Z87 -> 4658.253875 | F39: ='Hourly Data'!Z120 -> 0 | G39: ='Hourly Data'!Y153 -> 3557.311901 | H39: ='Hourly Data'!Z186 -> 0 | I39: 0
A40: Day 21 | B40: 7567.870232 | C40: 1 | D40: ='Hourly Data'!Z55 -> 11598.84 | E40: ='Hourly Data'!Z88 -> 4773.473994 | F40: ='Hourly Data'!Z121 -> 0 | G40: ='Hourly Data'!Y154 -> 3310.575673 | H40: ='Hourly Data'!Z187 -> 0 | I40: 0
A41: Day 22 | B41: 6387.560116 | C41: 2 | D41: ='Hourly Data'!Z56 -> 9199.08 | E41: ='Hourly Data'!Z89 -> 4328.882426 | F41: ='Hourly Data'!Z122 -> 0 | G41: ='Hourly Data'!Y155 -> 3730.027202 | H41: ='Hourly Data'!Z188 -> 0 | I41: 0
A42: Day 23 | B42: 7151.289801 | C42: 3 | D42: ='Hourly Data'!Z57 -> 5799.42 | E42: ='Hourly Data'!Z90 -> 5167.676773 | F42: ='Hourly Data'!Z123 -> 0 | G42: ='Hourly Data'!Y156 -> 1578.237401 | H42: ='Hourly Data'!Z189 -> 0 | I42: 0
A43: Day 24 | B43: 6734.710199 | C43: 1 | D43: ='Hourly Data'!Z58 -> 11598.84 | E43: ='Hourly Data'!Z91 -> 3597.672289 | F43: ='Hourly Data'!Z124 -> 0 | G43: ='Hourly Data'!Y157 -> 3980.565112 | H43: ='Hourly Data'!Z190 -> 76.39560385 | I43: 0.01134356217
A44: Day 25 | B44: 6387.560116 | C44: 2 | D44: ='Hourly Data'!Z59 -> 9199.08 | E44: ='Hourly Data'!Z92 -> 4328.882426 | F44: ='Hourly Data'!Z125 -> 0 | G44: ='Hourly Data'!Y158 -> 3730.027202 | H44: ='Hourly Data'!Z191 -> 0 | I44: 0
A45: Day 26 | B45: 6456.99005 | C45: 3 | D45: ='Hourly Data'!Z60 -> 5799.42 | E45: ='Hourly Data'!Z93 -> 4375.93545 | F45: ='Hourly Data'!Z126 -> 0 | G45: ='Hourly Data'!Y159 -> 2572.507152 | H45: ='Hourly Data'!Z192 -> 0 | I45: 0
A46: Day 27 | B46: 6318.130182 | C46: 3 | D46: ='Hourly Data'!Z61 -> 5799.42 | E46: ='Hourly Data'!Z94 -> 4281.829402 | F46: ='Hourly Data'!Z127 -> 0 | G46: ='Hourly Data'!Y160 -> 1553.84697 | H46: ='Hourly Data'!Z193 -> 0 | I46: 0
A47: Day 28 | B47: 6873.570066 | C47: 2 | D47: ='Hourly Data'!Z62 -> 9199.08 | E47: ='Hourly Data'!Z95 -> 3996.535069 | F47: ='Hourly Data'!Z128 -> 0 | G47: ='Hourly Data'!Y161 -> 3557.311901 | H47: ='Hourly Data'!Z194 -> 261.7588059 | I47: 0.0380819288
A48: Day 29 | B48: 7637.300166 | C48: 1 | D48: =IF($B$4=2,0,'Hourly Data'!Z63) -> 11598.84 | E48: =IF($B$4=2,0,'Hourly Data'!Z96) -> 4817.26729 | F48: =IF($B$4=2,0,'Hourly Data'!Z129) -> 0 | G48: =IF($B$4=2,0,'Hourly Data'!Y162) -> 3285.90208 | H48: =IF($B$4=2,0,'Hourly Data'!Z195) -> 0 | I48: =IF($B$4=2,0,H48/B48) -> 0
A49: Day 30 | B49: 7012.429934 | C49: 1 | D49: =IF($B$4=2,0,'Hourly Data'!Z64) -> 11598.84 | E49: =IF($B$4=2,0,'Hourly Data'!Z97) -> 4033.802288 | F49: =IF($B$4=2,0,'Hourly Data'!Z130) -> 0 | G49: =IF($B$4=2,0,'Hourly Data'!Y163) -> 3897.289528 | H49: =IF($B$4=2,0,'Hourly Data'!Z196) -> 0 | I49: =IF($B$4=2,0,H49/B49) -> 0
A50: Day 31 | B50: 6943 | C50: 2 | D50: =IF(OR($B$4=11,$B$4=9, $B$4=6, $B$4=4, $B$4=2),0,'Hourly Data'!Z65) -> 9199.08 | E50: =IF(OR($B$4=11,$B$4=9, $B$4=6, $B$4=4, $B$4=2),0,'Hourly Data'!Z98) -> 4705.306899 | F50: =IF(OR($B$4=11,$B$4=9, $B$4=6, $B$4=4, $B$4=2),0,'Hourly Data'!Z131) -> 0 | G50: =IF(OR($B$4=11,$B$4=9, $B$4=6, $B$4=4, $B$4=2),0,'Hourly Data'!Y164) -> 3532.638308 | H50: =IF(OR($B$4=11,$B$4=9, $B$4=6, $B$4=4, $B$4=2),0,'Hourly Data'!Z197) -> 0 | I50: =IF(OR($B$4=11,$B$4=9, $B$4=6, $B$4=4, $B$4=2),0,H50/B50) -> 0

Sheet Hourly Data
A1: Load (kWh) | B1: Hour 0 | C1: Hour 1 | D1: Hour 2 | E1: Hour 3 | F1: Hour 4 | G1: Hour 5 | H1: Hour 6 | I1: Hour 7 | J1: Hour 8 | K1: Hour 9 | L1: Hour 10 | M1: Hour 11 | N1: Hour 12 | O1: Hour 13 | P1: Hour 14 | Q1: Hour 15 | R1: Hour 16 | S1: Hour 17 | T1: Hour 18 | U1: Hour 19 | V1: Hour 20 | W1: Hour 21 | X1: Hour 22 | Y1: Hour 23 | Z1: TOTALS
A2: Day 1 | B2: ='Inputs and Totals'!B20*'Load Profiles'!$C$16 -> 282.1822639 | C2: ='Inputs and Totals'!$B$20*'Load Profiles'!D16 -> 196.9452198 | D2: ='Inputs and Totals'!$B$20*'Load Profiles'!E16 -> 194.562818 | E2: ='Inputs and Totals'!$B$20*'Load Profiles'!F16 -> 196.1510859 | F2: ='Inputs and Totals'!$B$20*'Load Profiles'!G16 -> 201.1806009 | G2: ='Inputs and Totals'!$B$20*'Load Profiles'!H16 -> 232.151825 | H2: ='Inputs and Totals'!$B$20*'Load Profiles'!I16 -> 315.0064672 | I2: ='Inputs and Totals'!$B$20*'Load Profiles'!J16 -> 389.3903472 | J2: ='Inputs and Totals'!$B$20*'Load Profiles'!K16 -> 342.2717328 | K2: ='Inputs and Totals'!$B$20*'Load Profiles'!L16 -> 327.4478991 | L2: ='Inputs and Totals'!$B$20*'Load Profiles'!M16 -> 305.4768598 | M2: ='Inputs and Totals'!$B$20*'Load Profiles'!N16 -> 301.50619 | N2: ='Inputs and Totals'!$B$20*'Load Profiles'!O16 -> 285.3587997 | O2: ='Inputs and Totals'!$B$20*'Load Profiles'!P16 -> 269.2114093 | P2: ='Inputs and Totals'!$B$20*'Load Profiles'!Q16 -> 259.1523793 | Q2: ='Inputs and Totals'!$B$20*'Load Profiles'!R16 -> 276.8880375 | R2: ='Inputs and Totals'!$B$20*'Load Profiles'!S16 -> 324.5360746 | S2: ='Inputs and Totals'!$B$20*'Load Profiles'!T16 -> 404.7436036 | T2: ='Inputs and Totals'!$B$20*'Load Profiles'!U16 -> 424.0675298 | U2: ='Inputs and Totals'!$B$20*'Load Profiles'!V16 -> 419.0380147 | V2: ='Inputs and Totals'!$B$20*'Load Profiles'!W16 -> 412.4202318 | W2: ='Inputs and Totals'!$B$20*'Load Profiles'!X16 -> 387.2726567 | X2: ='Inputs and Totals'!$B$20*'Load Profiles'!Y16 -> 332.7421254 | Y2: ='Inputs and Totals'!$B$20*'Load Profiles'!Z16 -> 210.445497 | Z2: =SUM(B2:Y2) -> 7290.149669
A3: Day 2 | B3: ='Inputs and Totals'!$B$21*'Load Profiles'!C16 -> 282.1822639 | C3: ='Inputs and Totals'!$B$21*'Load Profiles'!D16 -> 196.9452198 | D3: ='Inputs and Totals'!$B$21*'Load Profiles'!E16 -> 194.562818 | E3: ='Inputs and Totals'!$B$21*'Load Profiles'!F16 -> 196.1510859 | F3: ='Inputs and Totals'!$B$21*'Load Profiles'!G16 -> 201.1806009 | G3: ='Inputs and Totals'!$B$21*'Load Profiles'!H16 -> 232.151825 | H3: ='Inputs and Totals'!$B$21*'Load Profiles'!I16 -> 315.0064672 | I3: ='Inputs and Totals'!$B$21*'Load Profiles'!J16 -> 389.3903472 | J3: ='Inputs and Totals'!$B$21*'Load Profiles'!K16 -> 342.2717328 | K3: ='Inputs and Totals'!$B$21*'Load Profiles'!L16 -> 327.4478991 | L3: ='Inputs and Totals'!$B$21*'Load Profiles'!M16 -> 305.4768598 | M3: ='Inputs and Totals'!$B$21*'Load Profiles'!N16 -> 301.50619 | N3: ='Inputs and Totals'!$B$21*'Load Profiles'!O16 -> 285.3587997 | O3: ='Inputs and Totals'!$B$21*'Load Profiles'!P16 -> 269.2114093 | P3: ='Inputs and Totals'!$B$21*'Load Profiles'!Q16 -> 259.1523793 | Q3: ='Inputs and Totals'!$B$21*'Load Profiles'!R16 -> 276.8880375 | R3: ='Inputs and Totals'!$B$21*'Load Profiles'!S16 -> 324.5360746 | S3: ='Inputs and Totals'!$B$21*'Load Profiles'!T16 -> 404.7436036 | T3: ='Inputs and Totals'!$B$21*'Load Profiles'!U16 -> 424.0675298 | U3: ='Inputs and Totals'!$B$21*'Load Profiles'!V16 -> 419.0380147 | V3: ='Inputs and Totals'!$B$21*'Load Profiles'!W16 -> 412.4202318 | W3: ='Inputs and Totals'!$B$21*'Load Profiles'!X16 -> 387.2726567 | X3: ='Inputs and Totals'!$B$21*'Load Profiles'!Y16 -> 332.7421254 | Y3: ='Inputs and Totals'!$B$21*'Load Profiles'!Z16 -> 210.445497 | Z3: =SUM(B3:Y3) -> 7290.149669
A4: Day 3 | B4: ='Inputs and Totals'!$B$22*'Load Profiles'!C16 -> 263.37013 | C4: ='Inputs and Totals'!$B$22*'Load Profiles'!D16 -> 183.8155504 | D4: ='Inputs and Totals'!$B$22*'Load Profiles'!E16 -> 181.5919752 | E4: ='Inputs and Totals'!$B$22*'Load Profiles'!F16 -> 183.0743587 | F4: ='Inputs and Totals'!$B$22*'Load Profiles'!G16 -> 187.768573 | G4: ='Inputs and Totals'!$B$22*'Load Profiles'!H16 -> 216.6750507 | H4: ='Inputs and Totals'!$B$22*'Load Profiles'!I16 -> 294.0060551 | I4: ='Inputs and Totals'!$B$22*'Load Profiles'!J16 -> 363.4310143 | J4: ='Inputs and Totals'!$B$22*'Load Profiles'!K16 -> 319.453638 | K4: ='Inputs and Totals'!$B$22*'Load Profiles'!L16 -> 305.618059 | L4: ='Inputs and Totals'!$B$22*'Load Profiles'!M16 -> 285.1117543 | M4: ='Inputs and Totals'!$B$22*'Load Profiles'!N16 -> 281.4057956 | N4: ='Inputs and Totals'!$B$22*'Load Profiles'!O16 -> 266.334897 | O4: ='Inputs and Totals'!$B$22*'Load Profiles'!P16 -> 251.2639984 | P4: ='Inputs and Totals'!$B$22*'Load Profiles'!Q16 -> 241.8755697 | Q4: ='Inputs and Totals'!$B$22*'Load Profiles'!R16 -> 258.4288518 | R4: ='Inputs and Totals'!$B$22*'Load Profiles'!S16 -> 302.9003559 | S4: ='Inputs and Totals'!$B$22*'Load Profiles'!T16 -> 377.7607212 | T4: ='Inputs and Totals'!$B$22*'Load Profiles'!U16 -> 395.7963868 | U4: ='Inputs and Totals'!$B$22*'Load Profiles'!V16 -> 391.1021725 | V4: ='Inputs and Totals'!$B$22*'Load Profiles'!W16 -> 384.9255747 | W4: ='Inputs and Totals'!$B$22*'Load Profiles'!X16 -> 361.454503 | X4: ='Inputs and Totals'!$B$22*'Load Profiles'!Y16 -> 310.5593372 | Y4: ='Inputs and Totals'!$B$22*'Load Profiles'!Z16 -> 196.4158099 | Z4: 6804.140132
A5: Day 4 | B5: ='Inputs and Totals'!$B$23*'Load Profiles'!C16 -> 290.244639 | C5: ='Inputs and Totals'!$B$23*'Load Profiles'!D16 -> 202.5722433 | D5: ='Inputs and Totals'!$B$23*'Load Profiles'!E16 -> 200.1217727 | E5: ='Inputs and Totals'!$B$23*'Load Profiles'!F16 -> 201.7554198 | F5: ='Inputs and Totals'!$B$23*'Load Profiles'!G16 -> 206.9286357 | G5: ='Inputs and Totals'!$B$23*'Load Profiles'!H16 -> 238.7847546 | H5: ='Inputs and Totals'!$B$23*'Load Profiles'!I16 -> 324.0066795 | I5: ='Inputs and Totals'!$B$23*'Load Profiles'!J16 -> 400.5158198 | J5: ='Inputs and Totals'!$B$23*'Load Profiles'!K16 -> 352.0509552 | K5: ='Inputs and Totals'!$B$23*'Load Profiles'!L16 -> 336.803582 | L5: ='Inputs and Totals'!$B$23*'Load Profiles'!M16 -> 314.2047968 | M5: ='Inputs and Totals'!$B$23*'Load Profiles'!N16 -> 310.120679 | N5: ='Inputs and Totals'!$B$23*'Load Profiles'!O16 -> 293.5119332 | O5: ='Inputs and Totals'!$B$23*'Load Profiles'!P16 -> 276.9031875 | P5: ='Inputs and Totals'!$B$23*'Load Profiles'!Q16 -> 266.5567557 | Q5: ='Inputs and Totals'!$B$23*'Load Profiles'!R16 -> 284.7991486 | R5: ='Inputs and Totals'!$B$23*'Load Profiles'!S16 -> 333.8085623 | S5: ='Inputs and Totals'!$B$23*'Load Profiles'!T16 -> 416.307742 | T5: ='Inputs and Totals'!$B$23*'Load Profiles'!U16 -> 436.183782 | U5: ='Inputs and Totals'!$B$23*'Load Profiles'!V16 -> 431.0105661 | V5: ='Inputs and Totals'!$B$23*'Load Profiles'!W16 -> 424.2037031 | W5: ='Inputs and Totals'!$B$23*'Load Profiles'!X16 -> 398.3376237 | X5: ='Inputs and Totals'!$B$23*'Load Profiles'!Y16 -> 342.2490724 | Y5: ='Inputs and Totals'!$B$23*'Load Profiles'!Z16 -> 216.4582439 | Z5: 7498.440298
A6: Day 5 | B6: ='Inputs and Totals'!$B$24*'Load Profiles'!C16 -> 282.1822639 | C6: ='Inputs and Totals'!$B$24*'Load Profiles'!D16 -> 196.9452198 | D6: ='Inputs and Totals'!$B$24*'Load Profiles'!E16 -> 194.562818 | E6: ='Inputs and Totals'!$B$24*'Load Profiles'!F16 -> 196.1510859 | F6: ='Inputs and Totals'!$B$24*'Load Profiles'!G16 -> 201.1806009 | G6: ='Inputs and Totals'!$B$24*'Load Profiles'!H16 -> 232.151825 | H6: ='Inputs and Totals'!$B$24*'Load Profiles'!I16 -> 315.0064672 | I6: ='Inputs and Totals'!$B$24*'Load Profiles'!J16 -> 389.3903472 | J6: ='Inputs and Totals'!$B$24*'Load Profiles'!K16 -> 342.2717328 | K6: ='Inputs and Totals'!$B$24*'Load Profiles'!L16 -> 327.4478991 | L6: ='Inputs and Totals'!$B$24*'Load Profiles'!M16 -> 305.4768598 | M6: ='Inputs and Totals'!$B$24*'Load Profiles'!N16 -> 301.50619 | N6: ='Inputs and Totals'!$B$24*'Load Profiles'!O16 -> 285.3587997 | O6: ='Inputs and Totals'!$B$24*'Load Profiles'!P16 -> 269.2114093 | P6: ='Inputs and Totals'!$B$24*'Load Profiles'!Q16 -> 259.1523793 | Q6: ='Inputs and Totals'!$B$24*'Load Profiles'!R16 -> 276.8880375 | R6: ='Inputs and Totals'!$B$24*'Load Profiles'!S16 -> 324.5360746 | S6: ='Inputs and Totals'!$B$24*'Load Profiles'!T16 -> 404.7436036 | T6: ='Inputs and Totals'!$B$24*'Load Profiles'!U16 -> 424.0675298 | U6: ='Inputs and Totals'!$B$24*'Load Profiles'!V16 -> 419.0380147 | V6: ='Inputs and Totals'!$B$24*'Load Profiles'!W16 -> 412.4202318 | W6: ='Inputs and Totals'!$B$24*'Load Profiles'!X16 -> 387.2726567 | X6: ='Inputs and Totals'!$B$24*'Load Profiles'!Y16 -> 332.7421254 | Y6: ='Inputs and Totals'!$B$24*'Load Profiles'!Z16 -> 210.445497 | Z6: 7290.149669
A7: Day 6 | B7: ='Inputs and Totals'!B25*'Load Profiles'!$C$16 -> 244.5579802 | C7: ='Inputs and Totals'!B25*'Load Profiles'!$D$16 -> 170.6858698 | D7: ='Inputs and Totals'!B25*'Load Profiles'!$E$16 -> 168.6211214 | E7: ='Inputs and Totals'!B25*'Load Profiles'!$F$16 -> 169.9976204 | F7: ='Inputs and Totals'!B25*'Load Profiles'!$G$16 -> 174.3565337 | G7: ='Inputs and Totals'!B25*'Load Profiles'!$H$16 -> 201.1982632 | H7: ='Inputs and Totals'!B25*'Load Profiles'!$I$16 -> 273.0056252 | I7: ='Inputs and Totals'!B25*'Load Profiles'!$J$16 -> 337.4716593 | J7: ='Inputs and Totals'!B25*'Load Profiles'!$K$16 -> 296.6355238 | K7: ='Inputs and Totals'!B25*'Load Profiles'!$L$16 -> 283.7882003 | L7: ='Inputs and Totals'!B25*'Load Profiles'!$M$16 -> 264.7466314 | M7: ='Inputs and Totals'!B25*'Load Profiles'!$N$16 -> 261.3053841 | N7: ='Inputs and Totals'!B25*'Load Profiles'!$O$16 -> 247.3109781 | O7: ='Inputs and Totals'!B25*'Load Profiles'!$P$16 -> 233.3165721 | P7: ='Inputs and Totals'!B25*'Load Profiles'!$Q$16 -> 224.5987454 | Q7: ='Inputs and Totals'!B25*'Load Profiles'!$R$16 -> 239.9696503 | R7: ='Inputs and Totals'!B25*'Load Profiles'!$S$16 -> 281.2646189 | S7: ='Inputs and Totals'!B25*'Load Profiles'!$T$16 -> 350.7778158 | T7: ='Inputs and Totals'!B25*'Load Profiles'!$U$16 -> 367.5252197 | U7: ='Inputs and Totals'!B25*'Load Profiles'!$V$16 -> 363.1663064 | V7: ='Inputs and Totals'!B25*'Load Profiles'!$W$16 -> 357.4308941 | W7: ='Inputs and Totals'!B25*'Load Profiles'!$X$16 -> 335.6363274 | X7: ='Inputs and Totals'!B25*'Load Profiles'!$Y$16 -> 288.3765301 | Y7: ='Inputs and Totals'!B25*'Load Profiles'!$Z$16 -> 182.3861109 | Z7: 6318.130182
A8: Day 7 | B8: ='Inputs and Totals'!B26*'Load Profiles'!$C$16 -> 276.8073685 | C8: ='Inputs and Totals'!B26*'Load Profiles'!$D$16 -> 193.1938857 | D8: ='Inputs and Totals'!B26*'Load Profiles'!$E$16 -> 190.8568629 | E8: ='Inputs and Totals'!B26*'Load Profiles'!$F$16 -> 192.4148781 | F8: ='Inputs and Totals'!B26*'Load Profiles'!$G$16 -> 197.3485929 | G8: ='Inputs and Totals'!B26*'Load Profiles'!$H$16 -> 227.7298895 | H8: ='Inputs and Totals'!B26*'Load Profiles'!$I$16 -> 309.0063494 | I8: ='Inputs and Totals'!B26*'Load Profiles'!$J$16 -> 381.973395 | J8: ='Inputs and Totals'!B26*'Load Profiles'!$K$16 -> 335.7522772 | K8: ='Inputs and Totals'!B26*'Load Profiles'!$L$16 -> 321.2108019 | L8: ='Inputs and Totals'!B26*'Load Profiles'!$M$16 -> 299.6582582 | M8: ='Inputs and Totals'!B26*'Load Profiles'!$N$16 -> 295.7632202 | N8: ='Inputs and Totals'!B26*'Load Profiles'!$O$16 -> 279.9233989 | O8: ='Inputs and Totals'!B26*'Load Profiles'!$P$16 -> 264.0835776 | P8: ='Inputs and Totals'!B26*'Load Profiles'!$Q$16 -> 254.216148 | Q8: ='Inputs and Totals'!B26*'Load Profiles'!$R$16 -> 271.6139845 | R8: ='Inputs and Totals'!B26*'Load Profiles'!$S$16 -> 318.3544407 | S8: ='Inputs and Totals'!B26*'Load Profiles'!$T$16 -> 397.0342087 | T8: ='Inputs and Totals'!B26*'Load Profiles'!$U$16 -> 415.9900603 | U8: ='Inputs and Totals'!B26*'Load Profiles'!$V$16 -> 411.0563455 | V8: ='Inputs and Totals'!B26*'Load Profiles'!$W$16 -> 404.5646155 | W8: ='Inputs and Totals'!B26*'Load Profiles'!$X$16 -> 379.8960414 | X8: ='Inputs and Totals'!B26*'Load Profiles'!$Y$16 -> 326.4041859 | Y8: ='Inputs and Totals'!B26*'Load Profiles'!$Z$16 -> 206.437015 | Z8: 7151.289801
A9: Day 8 | B9: ='Inputs and Totals'!B27*'Load Profiles'!$C$16 -> 279.4948162 | C9: ='Inputs and Totals'!B27*'Load Profiles'!$D$16 -> 195.0695528 | D9: ='Inputs and Totals'!B27*'Load Profiles'!$E$16 -> 192.7098404 | E9: ='Inputs and Totals'!B27*'Load Profiles'!$F$16 -> 194.282982 | F9: ='Inputs and Totals'!B27*'Load Profiles'!$G$16 -> 199.2645969 | G9: ='Inputs and Totals'!B27*'Load Profiles'!$H$16 -> 229.9408572 | H9: ='Inputs and Totals'!B27*'Load Profiles'!$I$16 -> 312.0064083 | I9: ='Inputs and Totals'!B27*'Load Profiles'!$J$16 -> 385.6818711 | J9: ='Inputs and Totals'!B27*'Load Profiles'!$K$16 -> 339.012005 | K9: ='Inputs and Totals'!B27*'Load Profiles'!$L$16 -> 324.3293505 | L9: ='Inputs and Totals'!B27*'Load Profiles'!$M$16 -> 302.567559 | M9: ='Inputs and Totals'!B27*'Load Profiles'!$N$16 -> 298.6347051 | N9: ='Inputs and Totals'!B27*'Load Profiles'!$O$16 -> 282.6410993 | O9: ='Inputs and Totals'!B27*'Load Profiles'!$P$16 -> 266.6474935 | P9: ='Inputs and Totals'!B27*'Load Profiles'!$Q$16 -> 256.6842636 | Q9: ='Inputs and Totals'!B27*'Load Profiles'!$R$16 -> 274.251011 | R9: ='Inputs and Totals'!B27*'Load Profiles'!$S$16 -> 321.4452576 | S9: ='Inputs and Totals'!B27*'Load Profiles'!$T$16 -> 400.8889061 | T9: ='Inputs and Totals'!B27*'Load Profiles'!$U$16 -> 420.0287951 | U9: ='Inputs and Totals'!B27*'Load Profiles'!$V$16 -> 415.0471801 | V9: ='Inputs and Totals'!B27*'Load Profiles'!$W$16 -> 408.4924237 | W9: ='Inputs and Totals'!B27*'Load Profiles'!$X$16 -> 383.584349 | X9: ='Inputs and Totals'!B27*'Load Profiles'!$Y$16 -> 329.5731557 | Y9: ='Inputs and Totals'!B27*'Load Profiles'!$Z$16 -> 208.441256 | Z9: 7220.719735
A10: Day 9 | B10: ='Inputs and Totals'!B28*'Load Profiles'!$C$16 -> 241.8705165 | C10: ='Inputs and Totals'!B28*'Load Profiles'!$D$16 -> 168.8101916 | D10: ='Inputs and Totals'!B28*'Load Profiles'!$E$16 -> 166.7681328 | E10: ='Inputs and Totals'!B28*'Load Profiles'!$F$16 -> 168.1295054 | F10: ='Inputs and Totals'!B28*'Load Profiles'!$G$16 -> 172.4405183 | G10: ='Inputs and Totals'!B28*'Load Profiles'!$H$16 -> 198.9872823 | H10: ='Inputs and Totals'!B28*'Load Profiles'!$I$16 -> 270.0055484 | I10: ='Inputs and Totals'!B28*'Load Profiles'!$J$16 -> 333.7631611 | J10: ='Inputs and Totals'!B28*'Load Profiles'!$K$16 -> 293.3757765 | K10: ='Inputs and Totals'!B28*'Load Profiles'!$L$16 -> 280.6696331 | L10: ='Inputs and Totals'!B28*'Load Profiles'!$M$16 -> 261.8373133 | M10: ='Inputs and Totals'!B28*'Load Profiles'!$N$16 -> 258.433882 | N10: ='Inputs and Totals'!B28*'Load Profiles'!$O$16 -> 244.5932615 | O10: ='Inputs and Totals'!B28*'Load Profiles'!$P$16 -> 230.7526409 | P10: ='Inputs and Totals'!B28*'Load Profiles'!$Q$16 -> 222.130615 | Q10: ='Inputs and Totals'!B28*'Load Profiles'!$R$16 -> 237.3326081 | R10: ='Inputs and Totals'!B28*'Load Profiles'!$S$16 -> 278.1737835 | S10: ='Inputs and Totals'!B28*'Load Profiles'!$T$16 -> 346.9230954 | T10: ='Inputs and Totals'!B28*'Load Profiles'!$U$16 -> 363.486461 | U10: ='Inputs and Totals'!B28*'Load Profiles'!$V$16 -> 359.175448 | V10: ='Inputs and Totals'!B28*'Load Profiles'!$W$16 -> 353.5030625 | W10: ='Inputs and Totals'!B28*'Load Profiles'!$X$16 -> 331.9479977 | X10: ='Inputs and Totals'!B28*'Load Profiles'!$Y$16 -> 285.2075415 | Y10: ='Inputs and Totals'!B28*'Load Profiles'!$Z$16 -> 180.381858 | Z10: 6248.699834
A11: Day 10 | B11: ='Inputs and Totals'!B29*'Load Profiles'!$C$16 -> 266.0575777 | C11: ='Inputs and Totals'!B29*'Load Profiles'!$D$16 -> 185.6912175 | D11: ='Inputs and Totals'!B29*'Load Profiles'!$E$16 -> 183.4449527 | E11: ='Inputs and Totals'!B29*'Load Profiles'!$F$16 -> 184.9424626 | F11: ='Inputs and Totals'!B29*'Load Profiles'!$G$16 -> 189.684577 | G11: ='Inputs and Totals'!B29*'Load Profiles'!$H$16 -> 218.8860184 | H11: ='Inputs and Totals'!B29*'Load Profiles'!$I$16 -> 297.006114 | I11: ='Inputs and Totals'!B29*'Load Profiles'!$J$16 -> 367.1394905 | J11: ='Inputs and Totals'!B29*'Load Profiles'!$K$16 -> 322.7133659 | K11: ='Inputs and Totals'!B29*'Load Profiles'!$L$16 -> 308.7366075 | L11: ='Inputs and Totals'!B29*'Load Profiles'!$M$16 -> 288.0210551 | M11: ='Inputs and Totals'!B29*'Load Profiles'!$N$16 -> 284.2772805 | N11: ='Inputs and Totals'!B29*'Load Profiles'!$O$16 -> 269.0525974 | O11: ='Inputs and Totals'!B29*'Load Profiles'!$P$16 -> 253.8279142 | P11: ='Inputs and Totals'!B29*'Load Profiles'!$Q$16 -> 244.3436854 | Q11: ='Inputs and Totals'!B29*'Load Profiles'!$R$16 -> 261.0658783 | R11: ='Inputs and Totals'!B29*'Load Profiles'!$S$16 -> 305.9911729 | S11: ='Inputs and Totals'!B29*'Load Profiles'!$T$16 -> 381.6154187 | T11: ='Inputs and Totals'!B29*'Load Profiles'!$U$16 -> 399.8351215 | U11: ='Inputs and Totals'!B29*'Load Profiles'!$V$16 -> 395.0930071 | V11: ='Inputs and Totals'!B29*'Load Profiles'!$W$16 -> 388.8533828 | W11: ='Inputs and Totals'!B29*'Load Profiles'!$X$16 -> 365.1428107 | X11: ='Inputs and Totals'!B29*'Load Profiles'!$Y$16 -> 313.7283069 | Y11: ='Inputs and Totals'!B29*'Load Profiles'!$Z$16 -> 198.4200509 | Z11: 6873.570066
A12: Day 11 | B12: ='Inputs and Totals'!B30*'Load Profiles'!$C$16 -> 263.37013 | C12: ='Inputs and Totals'!B30*'Load Profiles'!$D$16 -> 183.8155504 | D12: ='Inputs and Totals'!B30*'Load Profiles'!$E$16 -> 181.5919752 | E12: ='Inputs and Totals'!B30*'Load Profiles'!$F$16 -> 183.0743587 | F12: ='Inputs and Totals'!B30*'Load Profiles'!$G$16 -> 187.768573 | G12: ='Inputs and Totals'!B30*'Load Profiles'!$H$16 -> 216.6750507 | H12: ='Inputs and Totals'!B30*'Load Profiles'!$I$16 -> 294.0060551 | I12: ='Inputs and Totals'!B30*'Load Profiles'!$J$16 -> 363.4310143 | J12: ='Inputs and Totals'!B30*'Load Profiles'!$K$16 -> 319.453638 | K12: ='Inputs and Totals'!B30*'Load Profiles'!$L$16 -> 305.618059 | L12: ='Inputs and Totals'!B30*'Load Profiles'!$M$16 -> 285.1117543 | M12: ='Inputs and Totals'!B30*'Load Profiles'!$N$16 -> 281.4057956 | N12: ='Inputs and Totals'!B30*'Load Profiles'!$O$16 -> 266.334897 | O12: ='Inputs and Totals'!B30*'Load Profiles'!$P$16 -> 251.2639984 | P12: ='Inputs and Totals'!B30*'Load Profiles'!$Q$16 -> 241.8755697 | Q12: ='Inputs and Totals'!B30*'Load Profiles'!$R$16 -> 258.4288518 | R12: ='Inputs and Totals'!B30*'Load Profiles'!$S$16 -> 302.9003559 | S12: ='Inputs and Totals'!B30*'Load Profiles'!$T$16 -> 377.7607212 | T12: ='Inputs and Totals'!B30*'Load Profiles'!$U$16 -> 395.7963868 | U12: ='Inputs and Totals'!B30*'Load Profiles'!$V$16 -> 391.1021725 | V12: ='Inputs and Totals'!B30*'Load Profiles'!$W$16 -> 384.9255747 | W12: ='Inputs and Totals'!B30*'Load Profiles'!$X$16 -> 361.454503 | X12: ='Inputs and Totals'!B30*'Load Profiles'!$Y$16 -> 310.5593372 | Y12: ='Inputs and Totals'!B30*'Load Profiles'!$Z$16 -> 196.4158099 | Z12: 6804.140132
A13: Day 12 | B13: ='Inputs and Totals'!B31*'Load Profiles'!$C$16 -> 255.3077709 | C13: ='Inputs and Totals'!B31*'Load Profiles'!$D$16 -> 178.1885381 | D13: ='Inputs and Totals'!B31*'Load Profiles'!$E$16 -> 176.0330316 | E13: ='Inputs and Totals'!B31*'Load Profiles'!$F$16 -> 177.4700359 | F13: ='Inputs and Totals'!B31*'Load Profiles'!$G$16 -> 182.0205496 | G13: ='Inputs and Totals'!B31*'Load Profiles'!$H$16 -> 210.0421343 | H13: ='Inputs and Totals'!B31*'Load Profiles'!$I$16 -> 285.0058606 | I13: ='Inputs and Totals'!B31*'Load Profiles'!$J$16 -> 352.3055638 | J13: ='Inputs and Totals'!B31*'Load Profiles'!$K$16 -> 309.6744351 | K13: ='Inputs and Totals'!B31*'Load Profiles'!$L$16 -> 296.2623946 | L13: ='Inputs and Totals'!B31*'Load Profiles'!$M$16 -> 276.3838346 | M13: ='Inputs and Totals'!B31*'Load Profiles'!$N$16 -> 272.7913237 | N13: ='Inputs and Totals'!B31*'Load Profiles'!$O$16 -> 258.1817796 | O13: ='Inputs and Totals'!B31*'Load Profiles'!$P$16 -> 243.5722355 | P13: ='Inputs and Totals'!B31*'Load Profiles'!$Q$16 -> 234.471208 | Q13: ='Inputs and Totals'!B31*'Load Profiles'!$R$16 -> 250.5177565 | R13: ='Inputs and Totals'!B31*'Load Profiles'!$S$16 -> 293.6278867 | S13: ='Inputs and Totals'!B31*'Load Profiles'!$T$16 -> 366.1966058 | T13: ='Inputs and Totals'!B31*'Load Profiles'!$U$16 -> 383.6801586 | U13: ='Inputs and Totals'!B31*'Load Profiles'!$V$16 -> 379.1296448 | V13: ='Inputs and Totals'!B31*'Load Profiles'!$W$16 -> 373.1421268 | W13: ='Inputs and Totals'!B31*'Load Profiles'!$X$16 -> 350.3895581 | X13: ='Inputs and Totals'!B31*'Load Profiles'!$Y$16 -> 301.0524091 | Y13: ='Inputs and Totals'!B31*'Load Profiles'!$Z$16 -> 190.403075 | Z13: 6595.849917
A14: Day 13 | B14: ='Inputs and Totals'!B32*'Load Profiles'!$C$16 -> 295.6195344 | C14: ='Inputs and Totals'!B32*'Load Profiles'!$D$16 -> 206.3235775 | D14: ='Inputs and Totals'!B32*'Load Profiles'!$E$16 -> 203.8277277 | E14: ='Inputs and Totals'!B32*'Load Profiles'!$F$16 -> 205.4916275 | F14: ='Inputs and Totals'!B32*'Load Profiles'!$G$16 -> 210.7606436 | G14: ='Inputs and Totals'!B32*'Load Profiles'!$H$16 -> 243.2066901 | H14: ='Inputs and Totals'!B32*'Load Profiles'!$I$16 -> 330.0067973 | I14: ='Inputs and Totals'!B32*'Load Profiles'!$J$16 -> 407.9327721 | J14: ='Inputs and Totals'!B32*'Load Profiles'!$K$16 -> 358.5704108 | K14: ='Inputs and Totals'!B32*'Load Profiles'!$L$16 -> 343.0406792 | L14: ='Inputs and Totals'!B32*'Load Profiles'!$M$16 -> 320.0233984 | M14: ='Inputs and Totals'!B32*'Load Profiles'!$N$16 -> 315.8636488 | N14: ='Inputs and Totals'!B32*'Load Profiles'!$O$16 -> 298.947334 | O14: ='Inputs and Totals'!B32*'Load Profiles'!$P$16 -> 282.0310192 | P14: ='Inputs and Totals'!B32*'Load Profiles'!$Q$16 -> 271.492987 | Q14: ='Inputs and Totals'!B32*'Load Profiles'!$R$16 -> 290.0732016 | R14: ='Inputs and Totals'!B32*'Load Profiles'!$S$16 -> 339.9901962 | S14: ='Inputs and Totals'!B32*'Load Profiles'!$T$16 -> 424.017137 | T14: ='Inputs and Totals'!B32*'Load Profiles'!$U$16 -> 444.2612515 | U14: ='Inputs and Totals'!B32*'Load Profiles'!$V$16 -> 438.9922354 | V14: ='Inputs and Totals'!B32*'Load Profiles'!$W$16 -> 432.0593195 | W14: ='Inputs and Totals'!B32*'Load Profiles'!$X$16 -> 405.714239 | X14: ='Inputs and Totals'!B32*'Load Profiles'!$Y$16 -> 348.5870119 | Y14: ='Inputs and Totals'!B32*'Load Profiles'!$Z$16 -> 220.4667259 | Z14: 7637.300166
A15: Day 14 | B15: ='Inputs and Totals'!B33*'Load Profiles'!$C$16 -> 284.8697116 | C15: ='Inputs and Totals'!B33*'Load Profiles'!$D$16 -> 198.8208869 | D15: ='Inputs and Totals'!B33*'Load Profiles'!$E$16 -> 196.4157955 | E15: ='Inputs and Totals'!B33*'Load Profiles'!$F$16 -> 198.0191897 | F15: ='Inputs and Totals'!B33*'Load Profiles'!$G$16 -> 203.0966049 | G15: ='Inputs and Totals'!B33*'Load Profiles'!$H$16 -> 234.3627927 | H15: ='Inputs and Totals'!B33*'Load Profiles'!$I$16 -> 318.006526 | I15: ='Inputs and Totals'!B33*'Load Profiles'!$J$16 -> 393.0988234 | J15: ='Inputs and Totals'!B33*'Load Profiles'!$K$16 -> 345.5314607 | K15: ='Inputs and Totals'!B33*'Load Profiles'!$L$16 -> 330.5664477 | L15: ='Inputs and Totals'!B33*'Load Profiles'!$M$16 -> 308.3861605 | M15: ='Inputs and Totals'!B33*'Load Profiles'!$N$16 -> 304.3776749 | N15: ='Inputs and Totals'!B33*'Load Profiles'!$O$16 -> 288.0765001 | O15: ='Inputs and Totals'!B33*'Load Profiles'!$P$16 -> 271.7753252 | P15: ='Inputs and Totals'!B33*'Load Profiles'!$Q$16 -> 261.620495 | Q15: ='Inputs and Totals'!B33*'Load Profiles'!$R$16 -> 279.5250641 | R15: ='Inputs and Totals'!B33*'Load Profiles'!$S$16 -> 327.6268915 | S15: ='Inputs and Totals'!B33*'Load Profiles'!$T$16 -> 408.5983011 | T15: ='Inputs and Totals'!B33*'Load Profiles'!$U$16 -> 428.1062645 | U15: ='Inputs and Totals'!B33*'Load Profiles'!$V$16 -> 423.0288494 | V15: ='Inputs and Totals'!B33*'Load Profiles'!$W$16 -> 416.34804 | W15: ='Inputs and Totals'!B33*'Load Profiles'!$X$16 -> 390.9609644 | X15: ='Inputs and Totals'!B33*'Load Profiles'!$Y$16 -> 335.9110952 | Y15: ='Inputs and Totals'!B33*'Load Profiles'!$Z$16 -> 212.449738 | Z15: 7359.579603
A16: Day 15 | B16: ='Inputs and Totals'!B34*'Load Profiles'!$C$16 -> 279.4948162 | C16: ='Inputs and Totals'!B34*'Load Profiles'!$D$16 -> 195.0695528 | D16: ='Inputs and Totals'!B34*'Load Profiles'!$E$16 -> 192.7098404 | E16: ='Inputs and Totals'!B34*'Load Profiles'!$F$16 -> 194.282982 | F16: ='Inputs and Totals'!B34*'Load Profiles'!$G$16 -> 199.2645969 | G16: ='Inputs and Totals'!B34*'Load Profiles'!$H$16 -> 229.9408572 | H16: ='Inputs and Totals'!B34*'Load Profiles'!$I$16 -> 312.0064083 | I16: ='Inputs and Totals'!B34*'Load Profiles'!$J$16 -> 385.6818711 | J16: ='Inputs and Totals'!B34*'Load Profiles'!$K$16 -> 339.012005 | K16: ='Inputs and Totals'!B34*'Load Profiles'!$L$16 -> 324.3293505 | L16: ='Inputs and Totals'!B34*'Load Profiles'!$M$16 -> 302.567559 | M16: ='Inputs and Totals'!B34*'Load Profiles'!$N$16 -> 298.6347051 | N16: ='Inputs and Totals'!B34*'Load Profiles'!$O$16 -> 282.6410993 | O16: ='Inputs and Totals'!B34*'Load Profiles'!$P$16 -> 266.6474935 | P16: ='Inputs and Totals'!B34*'Load Profiles'!$Q$16 -> 256.6842636 | Q16: ='Inputs and Totals'!B34*'Load Profiles'!$R$16 -> 274.251011 | R16: ='Inputs and Totals'!B34*'Load Profiles'!$S$16 -> 321.4452576 | S16: ='Inputs and Totals'!B34*'Load Profiles'!$T$16 -> 400.8889061 | T16: ='Inputs and Totals'!B34*'Load Profiles'!$U$16 -> 420.0287951 | U16: ='Inputs and Totals'!B34*'Load Profiles'!$V$16 -> 415.0471801 | V16: ='Inputs and Totals'!B34*'Load Profiles'!$W$16 -> 408.4924237 | W16: ='Inputs and Totals'!B34*'Load Profiles'!$X$16 -> 383.584349 | X16: ='Inputs and Totals'!B34*'Load Profiles'!$Y$16 -> 329.5731557 | Y16: ='Inputs and Totals'!B34*'Load Profiles'!$Z$16 -> 208.441256 | Z16: 7220.719735
A17: Day 16 | B17: ='Inputs and Totals'!B35*'Load Profiles'!$C$16 -> 263.37013 | C17: ='Inputs and Totals'!B35*'Load Profiles'!$D$16 -> 183.8155504 | D17: ='Inputs and Totals'!B35*'Load Profiles'!$E$16 -> 181.5919752 | E17: ='Inputs and Totals'!B35*'Load Profiles'!$F$16 -> 183.0743587 | F17: ='Inputs and Totals'!B35*'Load Profiles'!$G$16 -> 187.768573 | G17: ='Inputs and Totals'!B35*'Load Profiles'!$H$16 -> 216.6750507 | H17: ='Inputs and Totals'!B35*'Load Profiles'!$I$16 -> 294.0060551 | I17: ='Inputs and Totals'!B35*'Load Profiles'!$J$16 -> 363.4310143 | J17: ='Inputs and Totals'!B35*'Load Profiles'!$K$16 -> 319.453638 | K17: ='Inputs and Totals'!B35*'Load Profiles'!$L$16 -> 305.618059 | L17: ='Inputs and Totals'!B35*'Load Profiles'!$M$16 -> 285.1117543 | M17: ='Inputs and Totals'!B35*'Load Profiles'!$N$16 -> 281.4057956 | N17: ='Inputs and Totals'!B35*'Load Profiles'!$O$16 -> 266.334897 | O17: ='Inputs and Totals'!B35*'Load Profiles'!$P$16 -> 251.2639984 | P17: ='Inputs and Totals'!B35*'Load Profiles'!$Q$16 -> 241.8755697 | Q17: ='Inputs and Totals'!B35*'Load Profiles'!$R$16 -> 258.4288518 | R17: ='Inputs and Totals'!B35*'Load Profiles'!$S$16 -> 302.9003559 | S17: ='Inputs and Totals'!B35*'Load Profiles'!$T$16 -> 377.7607212 | T17: ='Inputs and Totals'!B35*'Load Profiles'!$U$16 -> 395.7963868 | U17: ='Inputs and Totals'!B35*'Load Profiles'!$V$16 -> 391.1021725 | V17: ='Inputs and Totals'!B35*'Load Profiles'!$W$16 -> 384.9255747 | W17: ='Inputs and Totals'!B35*'Load Profiles'!$X$16 -> 361.454503 | X17: ='Inputs and Totals'!B35*'Load Profiles'!$Y$16 -> 310.5593372 | Y17: ='Inputs and Totals'!B35*'Load Profiles'!$Z$16 -> 196.4158099 | Z17: 6804.140132
A18: Day 17 | B18: ='Inputs and Totals'!B36*'Load Profiles'!$C$16 -> 282.1822639 | C18: ='Inputs and Totals'!B36*'Load Profiles'!$D$16 -> 196.9452198 | D18: ='Inputs and Totals'!B36*'Load Profiles'!$E$16 -> 194.562818 | E18: ='Inputs and Totals'!B36*'Load Profiles'!$F$16 -> 196.1510859 | F18: ='Inputs and Totals'!B36*'Load Profiles'!$G$16 -> 201.1806009 | G18: ='Inputs and Totals'!B36*'Load Profiles'!$H$16 -> 232.151825 | H18: ='Inputs and Totals'!B36*'Load Profiles'!$I$16 -> 315.0064672 | I18: ='Inputs and Totals'!B36*'Load Profiles'!$J$16 -> 389.3903472 | J18: ='Inputs and Totals'!B36*'Load Profiles'!$K$16 -> 342.2717328 | K18: ='Inputs and Totals'!B36*'Load Profiles'!$L$16 -> 327.4478991 | L18: ='Inputs and Totals'!B36*'Load Profiles'!$M$16 -> 305.4768598 | M18: ='Inputs and Totals'!B36*'Load Profiles'!$N$16 -> 301.50619 | N18: ='Inputs and Totals'!B36*'Load Profiles'!$O$16 -> 285.3587997 | O18: ='Inputs and Totals'!B36*'Load Profiles'!$P$16 -> 269.2114093 | P18: ='Inputs and Totals'!B36*'Load Profiles'!$Q$16 -> 259.1523793 | Q18: ='Inputs and Totals'!B36*'Load Profiles'!$R$16 -> 276.8880375 | R18: ='Inputs and Totals'!B36*'Load Profiles'!$S$16 -> 324.5360746 | S18: ='Inputs and Totals'!B36*'Load Profiles'!$T$16 -> 404.7436036 | T18: ='Inputs and Totals'!B36*'Load Profiles'!$U$16 -> 424.0675298 | U18: ='Inputs and Totals'!B36*'Load Profiles'!$V$16 -> 419.0380147 | V18: ='Inputs and Totals'!B36*'Load Profiles'!$W$16 -> 412.4202318 | W18: ='Inputs and Totals'!B36*'Load Profiles'!$X$16 -> 387.2726567 | X18: ='Inputs and Totals'!B36*'Load Profiles'!$Y$16 -> 332.7421254 | Y18: ='Inputs and Totals'!B36*'Load Profiles'!$Z$16 -> 210.445497 | Z18: 7290.149669
A19: Day 18 | B19: ='Inputs and Totals'!B37*'Load Profiles'!$C$16 -> 255.3077709 | C19: ='Inputs and Totals'!B37*'Load Profiles'!$D$16 -> 178.1885381 | D19: ='Inputs and Totals'!B37*'Load Profiles'!$E$16 -> 176.0330316 | E19: ='Inputs and Totals'!B37*'Load Profiles'!$F$16 -> 177.4700359 | F19: ='Inputs and Totals'!B37*'Load Profiles'!$G$16 -> 182.0205496 | G19: ='Inputs and Totals'!B37*'Load Profiles'!$H$16 -> 210.0421343 | H19: ='Inputs and Totals'!B37*'Load Profiles'!$I$16 -> 285.0058606 | I19: ='Inputs and Totals'!B37*'Load Profiles'!$J$16 -> 352.3055638 | J19: ='Inputs and Totals'!B37*'Load Profiles'!$K$16 -> 309.6744351 | K19: ='Inputs and Totals'!B37*'Load Profiles'!$L$16 -> 296.2623946 | L19: ='Inputs and Totals'!B37*'Load Profiles'!$M$16 -> 276.3838346 | M19: ='Inputs and Totals'!B37*'Load Profiles'!$N$16 -> 272.7913237 | N19: ='Inputs and Totals'!B37*'Load Profiles'!$O$16 -> 258.1817796 | O19: ='Inputs and Totals'!B37*'Load Profiles'!$P$16 -> 243.5722355 | P19: ='Inputs and Totals'!B37*'Load Profiles'!$Q$16 -> 234.471208 | Q19: ='Inputs and Totals'!B37*'Load Profiles'!$R$16 -> 250.5177565 | R19: ='Inputs and Totals'!B37*'Load Profiles'!$S$16 -> 293.6278867 | S19: ='Inputs and Totals'!B37*'Load Profiles'!$T$16 -> 366.1966058 | T19: ='Inputs and Totals'!B37*'Load Profiles'!$U$16 -> 383.6801586 | U19: ='Inputs and Totals'!B37*'Load Profiles'!$V$16 -> 379.1296448 | V19: ='Inputs and Totals'!B37*'Load Profiles'!$W$16 -> 373.1421268 | W19: ='Inputs and Totals'!B37*'Load Profiles'!$X$16 -> 350.3895581 | X19: ='Inputs and Totals'!B37*'Load Profiles'!$Y$16 -> 301.0524091 | Y19: ='Inputs and Totals'!B37*'Load Profiles'!$Z$16 -> 190.403075 | Z19: 6595.849917
A20: Day 19 | B20: ='Inputs and Totals'!B38*'Load Profiles'!$C$16 -> 260.6826823 | C20: ='Inputs and Totals'!B38*'Load Profiles'!$D$16 -> 181.9398834 | D20: ='Inputs and Totals'!B38*'Load Profiles'!$E$16 -> 179.7389977 | E20: ='Inputs and Totals'!B38*'Load Profiles'!$F$16 -> 181.2062548 | F20: ='Inputs and Totals'!B38*'Load Profiles'!$G$16 -> 185.852569 | G20: ='Inputs and Totals'!B38*'Load Profiles'!$H$16 -> 214.4640829 | H20: ='Inputs and Totals'!B38*'Load Profiles'!$I$16 -> 291.0059962 | I20: ='Inputs and Totals'!B38*'Load Profiles'!$J$16 -> 359.7225382 | J20: ='Inputs and Totals'!B38*'Load Profiles'!$K$16 -> 316.1939102 | K20: ='Inputs and Totals'!B38*'Load Profiles'!$L$16 -> 302.4995104 | L20: ='Inputs and Totals'!B38*'Load Profiles'!$M$16 -> 282.2024535 | M20: ='Inputs and Totals'!B38*'Load Profiles'!$N$16 -> 278.5343107 | N20: ='Inputs and Totals'!B38*'Load Profiles'!$O$16 -> 263.6171966 | O20: ='Inputs and Totals'!B38*'Load Profiles'!$P$16 -> 248.7000825 | P20: ='Inputs and Totals'!B38*'Load Profiles'!$Q$16 -> 239.407454 | Q20: ='Inputs and Totals'!B38*'Load Profiles'!$R$16 -> 255.7918253 | R20: ='Inputs and Totals'!B38*'Load Profiles'!$S$16 -> 299.809539 | S20: ='Inputs and Totals'!B38*'Load Profiles'!$T$16 -> 373.9060237 | T20: ='Inputs and Totals'!B38*'Load Profiles'!$U$16 -> 391.7576521 | U20: ='Inputs and Totals'!B38*'Load Profiles'!$V$16 -> 387.1113379 | V20: ='Inputs and Totals'!B38*'Load Profiles'!$W$16 -> 380.9977665 | W20: ='Inputs and Totals'!B38*'Load Profiles'!$X$16 -> 357.7661954 | X20: ='Inputs and Totals'!B38*'Load Profiles'!$Y$16 -> 307.3903675 | Y20: ='Inputs and Totals'!B38*'Load Profiles'!$Z$16 -> 194.4115689 | Z20: 6734.710199
A21: Day 20 | B21: ='Inputs and Totals'!B39*'Load Profiles'!$C$16 -> 266.0575777 | C21: ='Inputs and Totals'!B39*'Load Profiles'!$D$16 -> 185.6912175 | D21: ='Inputs and Totals'!B39*'Load Profiles'!$E$16 -> 183.4449527 | E21: ='Inputs and Totals'!B39*'Load Profiles'!$F$16 -> 184.9424626 | F21: ='Inputs and Totals'!B39*'Load Profiles'!$G$16 -> 189.684577 | G21: ='Inputs and Totals'!B39*'Load Profiles'!$H$16 -> 218.8860184 | H21: ='Inputs and Totals'!B39*'Load Profiles'!$I$16 -> 297.006114 | I21: ='Inputs and Totals'!B39*'Load Profiles'!$J$16 -> 367.1394905 | J21: ='Inputs and Totals'!B39*'Load Profiles'!$K$16 -> 322.7133659 | K21: ='Inputs and Totals'!B39*'Load Profiles'!$L$16 -> 308.7366075 | L21: ='Inputs and Totals'!B39*'Load Profiles'!$M$16 -> 288.0210551 | M21: ='Inputs and Totals'!B39*'Load Profiles'!$N$16 -> 284.2772805 | N21: ='Inputs and Totals'!B39*'Load Profiles'!$O$16 -> 269.0525974 | O21: ='Inputs and Totals'!B39*'Load Profiles'!$P$16 -> 253.8279142 | P21: ='Inputs and Totals'!B39*'Load Profiles'!$Q$16 -> 244.3436854 | Q21: ='Inputs and Totals'!B39*'Load Profiles'!$R$16 -> 261.0658783 | R21: ='Inputs and Totals'!B39*'Load Profiles'!$S$16 -> 305.9911729 | S21: ='Inputs and Totals'!B39*'Load Profiles'!$T$16 -> 381.6154187 | T21: ='Inputs and Totals'!B39*'Load Profiles'!$U$16 -> 399.8351215 | U21: ='Inputs and Totals'!B39*'Load Profiles'!$V$16 -> 395.0930071 | V21: ='Inputs and Totals'!B39*'Load Profiles'!$W$16 -> 388.8533828 | W21: ='Inputs and Totals'!B39*'Load Profiles'!$X$16 -> 365.1428107 | X21: ='Inputs and Totals'!B39*'Load Profiles'!$Y$16 -> 313.7283069 | Y21: ='Inputs and Totals'!B39*'Load Profiles'!$Z$16 -> 198.4200509 | Z21: 6873.570066
A22: Day 21 | B22: ='Inputs and Totals'!B40*'Load Profiles'!$C$16 -> 292.9320867 | C22: ='Inputs and Totals'!B40*'Load Profiles'!$D$16 -> 204.4479104 | D22: ='Inputs and Totals'!B40*'Load Profiles'!$E$16 -> 201.9747502 | E22: ='Inputs and Totals'!B40*'Load Profiles'!$F$16 -> 203.6235237 | F22: ='Inputs and Totals'!B40*'Load Profiles'!$G$16 -> 208.8446397 | G22: ='Inputs and Totals'!B40*'Load Profiles'!$H$16 -> 240.9957223 | H22: ='Inputs and Totals'!B40*'Load Profiles'!$I$16 -> 327.0067384 | I22: ='Inputs and Totals'!B40*'Load Profiles'!$J$16 -> 404.224296 | J22: ='Inputs and Totals'!B40*'Load Profiles'!$K$16 -> 355.310683 | K22: ='Inputs and Totals'!B40*'Load Profiles'!$L$16 -> 339.9221306 | L22: ='Inputs and Totals'!B40*'Load Profiles'!$M$16 -> 317.1140976 | M22: ='Inputs and Totals'!B40*'Load Profiles'!$N$16 -> 312.9921639 | N22: ='Inputs and Totals'!B40*'Load Profiles'!$O$16 -> 296.2296336 | O22: ='Inputs and Totals'!B40*'Load Profiles'!$P$16 -> 279.4671033 | P22: ='Inputs and Totals'!B40*'Load Profiles'!$Q$16 -> 269.0248713 | Q22: ='Inputs and Totals'!B40*'Load Profiles'!$R$16 -> 287.4361751 | R22: ='Inputs and Totals'!B40*'Load Profiles'!$S$16 -> 336.8993792 | S22: ='Inputs and Totals'!B40*'Load Profiles'!$T$16 -> 420.1624395 | T22: ='Inputs and Totals'!B40*'Load Profiles'!$U$16 -> 440.2225167 | U22: ='Inputs and Totals'!B40*'Load Profiles'!$V$16 -> 435.0014008 | V22: ='Inputs and Totals'!B40*'Load Profiles'!$W$16 -> 428.1315113 | W22: ='Inputs and Totals'!B40*'Load Profiles'!$X$16 -> 402.0259313 | X22: ='Inputs and Totals'!B40*'Load Profiles'!$Y$16 -> 345.4180422 | Y22: ='Inputs and Totals'!B40*'Load Profiles'!$Z$16 -> 218.4624849 | Z22: 7567.870232
A23: Day 22 | B23: ='Inputs and Totals'!B41*'Load Profiles'!$C$16 -> 247.2454279 | C23: ='Inputs and Totals'!B41*'Load Profiles'!$D$16 -> 172.5615369 | D23: ='Inputs and Totals'!B41*'Load Profiles'!$E$16 -> 170.474099 | E23: ='Inputs and Totals'!B41*'Load Profiles'!$F$16 -> 171.8657243 | F23: ='Inputs and Totals'!B41*'Load Profiles'!$G$16 -> 176.2725377 | G23: ='Inputs and Totals'!B41*'Load Profiles'!$H$16 -> 203.409231 | H23: ='Inputs and Totals'!B41*'Load Profiles'!$I$16 -> 276.005684 | I23: ='Inputs and Totals'!B41*'Load Profiles'!$J$16 -> 341.1801355 | J23: ='Inputs and Totals'!B41*'Load Profiles'!$K$16 -> 299.8952516 | K23: ='Inputs and Totals'!B41*'Load Profiles'!$L$16 -> 286.9067489 | L23: ='Inputs and Totals'!B41*'Load Profiles'!$M$16 -> 267.6559322 | M23: ='Inputs and Totals'!B41*'Load Profiles'!$N$16 -> 264.176869 | N23: ='Inputs and Totals'!B41*'Load Profiles'!$O$16 -> 250.0286785 | O23: ='Inputs and Totals'!B41*'Load Profiles'!$P$16 -> 235.8804879 | P23: ='Inputs and Totals'!B41*'Load Profiles'!$Q$16 -> 227.0668611 | Q23: ='Inputs and Totals'!B41*'Load Profiles'!$R$16 -> 242.6066769 | R23: ='Inputs and Totals'!B41*'Load Profiles'!$S$16 -> 284.3554358 | S23: ='Inputs and Totals'!B41*'Load Profiles'!$T$16 -> 354.6325133 | T23: ='Inputs and Totals'!B41*'Load Profiles'!$U$16 -> 371.5639545 | U23: ='Inputs and Totals'!B41*'Load Profiles'!$V$16 -> 367.157141 | V23: ='Inputs and Totals'!B41*'Load Profiles'!$W$16 -> 361.3587023 | W23: ='Inputs and Totals'!B41*'Load Profiles'!$X$16 -> 339.3246351 | X23: ='Inputs and Totals'!B41*'Load Profiles'!$Y$16 -> 291.5454998 | Y23: ='Inputs and Totals'!B41*'Load Profiles'!$Z$16 -> 184.3903519 | Z23: 6387.560116
A24: Day 23 | B24: ='Inputs and Totals'!B42*'Load Profiles'!$C$16 -> 276.8073685 | C24: ='Inputs and Totals'!B42*'Load Profiles'!$D$16 -> 193.1938857 | D24: ='Inputs and Totals'!B42*'Load Profiles'!$E$16 -> 190.8568629 | E24: ='Inputs and Totals'!B42*'Load Profiles'!$F$16 -> 192.4148781 | F24: ='Inputs and Totals'!B42*'Load Profiles'!$G$16 -> 197.3485929 | G24: ='Inputs and Totals'!B42*'Load Profiles'!$H$16 -> 227.7298895 | H24: ='Inputs and Totals'!B42*'Load Profiles'!$I$16 -> 309.0063494 | I24: ='Inputs and Totals'!B42*'Load Profiles'!$J$16 -> 381.973395 | J24: ='Inputs and Totals'!B42*'Load Profiles'!$K$16 -> 335.7522772 | K24: ='Inputs and Totals'!B42*'Load Profiles'!$L$16 -> 321.2108019 | L24: ='Inputs and Totals'!B42*'Load Profiles'!$M$16 -> 299.6582582 | M24: ='Inputs and Totals'!B42*'Load Profiles'!$N$16 -> 295.7632202 | N24: ='Inputs and Totals'!B42*'Load Profiles'!$O$16 -> 279.9233989 | O24: ='Inputs and Totals'!B42*'Load Profiles'!$P$16 -> 264.0835776 | P24: ='Inputs and Totals'!B42*'Load Profiles'!$Q$16 -> 254.216148 | Q24: ='Inputs and Totals'!B42*'Load Profiles'!$R$16 -> 271.6139845 | R24: ='Inputs and Totals'!B42*'Load Profiles'!$S$16 -> 318.3544407 | S24: ='Inputs and Totals'!B42*'Load Profiles'!$T$16 -> 397.0342087 | T24: ='Inputs and Totals'!B42*'Load Profiles'!$U$16 -> 415.9900603 | U24: ='Inputs and Totals'!B42*'Load Profiles'!$V$16 -> 411.0563455 | V24: ='Inputs and Totals'!B42*'Load Profiles'!$W$16 -> 404.5646155 | W24: ='Inputs and Totals'!B42*'Load Profiles'!$X$16 -> 379.8960414 | X24: ='Inputs and Totals'!B42*'Load Profiles'!$Y$16 -> 326.4041859 | Y24: ='Inputs and Totals'!B42*'Load Profiles'!$Z$16 -> 206.437015 | Z24: 7151.289801
A25: Day 24 | B25: ='Inputs and Totals'!B43*'Load Profiles'!$C$16 -> 260.6826823 | C25: ='Inputs and Totals'!B43*'Load Profiles'!$D$16 -> 181.9398834 | D25: ='Inputs and Totals'!B43*'Load Profiles'!$E$16 -> 179.7389977 | E25: ='Inputs and Totals'!B43*'Load Profiles'!$F$16 -> 181.2062548 | F25: ='Inputs and Totals'!B43*'Load Profiles'!$G$16 -> 185.852569 | G25: ='Inputs and Totals'!B43*'Load Profiles'!$H$16 -> 214.4640829 | H25: ='Inputs and Totals'!B43*'Load Profiles'!$I$16 -> 291.0059962 | I25: ='Inputs and Totals'!B43*'Load Profiles'!$J$16 -> 359.7225382 | J25: ='Inputs and Totals'!B43*'Load Profiles'!$K$16 -> 316.1939102 | K25: ='Inputs and Totals'!B43*'Load Profiles'!$L$16 -> 302.4995104 | L25: ='Inputs and Totals'!B43*'Load Profiles'!$M$16 -> 282.2024535 | M25: ='Inputs and Totals'!B43*'Load Profiles'!$N$16 -> 278.5343107 | N25: ='Inputs and Totals'!B43*'Load Profiles'!$O$16 -> 263.6171966 | O25: ='Inputs and Totals'!B43*'Load Profiles'!$P$16 -> 248.7000825 | P25: ='Inputs and Totals'!B43*'Load Profiles'!$Q$16 -> 239.407454 | Q25: ='Inputs and Totals'!B43*'Load Profiles'!$R$16 -> 255.7918253 | R25: ='Inputs and Totals'!B43*'Load Profiles'!$S$16 -> 299.809539 | S25: ='Inputs and Totals'!B43*'Load Profiles'!$T$16 -> 373.9060237 | T25: ='Inputs and Totals'!B43*'Load Profiles'!$U$16 -> 391.7576521 | U25: ='Inputs and Totals'!B43*'Load Profiles'!$V$16 -> 387.1113379 | V25: ='Inputs and Totals'!B43*'Load Profiles'!$W$16 -> 380.9977665 | W25: ='Inputs and Totals'!B43*'Load Profiles'!$X$16 -> 357.7661954 | X25: ='Inputs and Totals'!B43*'Load Profiles'!$Y$16 -> 307.3903675 | Y25: ='Inputs and Totals'!B43*'Load Profiles'!$Z$16 -> 194.4115689 | Z25: 6734.710199
A26: Day 25 | B26: ='Inputs and Totals'!B44*'Load Profiles'!$C$16 -> 247.2454279 | C26: ='Inputs and Totals'!B44*'Load Profiles'!$D$16 -> 172.5615369 | D26: ='Inputs and Totals'!B44*'Load Profiles'!$E$16 -> 170.474099 | E26: ='Inputs and Totals'!B44*'Load Profiles'!$F$16 -> 171.8657243 | F26: ='Inputs and Totals'!B44*'Load Profiles'!$G$16 -> 176.2725377 | G26: ='Inputs and Totals'!B44*'Load Profiles'!$H$16 -> 203.409231 | H26: ='Inputs and Totals'!B44*'Load Profiles'!$I$16 -> 276.005684 | I26: ='Inputs and Totals'!B44*'Load Profiles'!$J$16 -> 341.1801355 | J26: ='Inputs and Totals'!B44*'Load Profiles'!$K$16 -> 299.8952516 | K26: ='Inputs and Totals'!B44*'Load Profiles'!$L$16 -> 286.9067489 | L26: ='Inputs and Totals'!B44*'Load Profiles'!$M$16 -> 267.6559322 | M26: ='Inputs and Totals'!B44*'Load Profiles'!$N$16 -> 264.176869 | N26: ='Inputs and Totals'!B44*'Load Profiles'!$O$16 -> 250.0286785 | O26: ='Inputs and Totals'!B44*'Load Profiles'!$P$16 -> 235.8804879 | P26: ='Inputs and Totals'!B44*'Load Profiles'!$Q$16 -> 227.0668611 | Q26: ='Inputs and Totals'!B44*'Load Profiles'!$R$16 -> 242.6066769 | R26: ='Inputs and Totals'!B44*'Load Profiles'!$S$16 -> 284.3554358 | S26: ='Inputs and Totals'!B44*'Load Profiles'!$T$16 -> 354.6325133 | T26: ='Inputs and Totals'!B44*'Load Profiles'!$U$16 -> 371.5639545 | U26: ='Inputs and Totals'!B44*'Load Profiles'!$V$16 -> 367.157141 | V26: ='Inputs and Totals'!B44*'Load Profiles'!$W$16 -> 361.3587023 | W26: ='Inputs and Totals'!B44*'Load Profiles'!$X$16 -> 339.3246351 | X26: ='Inputs and Totals'!B44*'Load Profiles'!$Y$16 -> 291.5454998 | Y26: ='Inputs and Totals'!B44*'Load Profiles'!$Z$16 -> 184.3903519 | Z26: 6387.560116
A27: Day 26 | B27: ='Inputs and Totals'!B45*'Load Profiles'!$C$16 -> 249.9328756 | C27: ='Inputs and Totals'!B45*'Load Profiles'!$D$16 -> 174.437204 | D27: ='Inputs and Totals'!B45*'Load Profiles'!$E$16 -> 172.3270765 | E27: ='Inputs and Totals'!B45*'Load Profiles'!$F$16 -> 173.7338281 | F27: ='Inputs and Totals'!B45*'Load Profiles'!$G$16 -> 178.1885417 | G27: ='Inputs and Totals'!B45*'Load Profiles'!$H$16 -> 205.6201987 | H27: ='Inputs and Totals'!B45*'Load Profiles'!$I$16 -> 279.0057429 | I27: ='Inputs and Totals'!B45*'Load Profiles'!$J$16 -> 344.8886116 | J27: ='Inputs and Totals'!B45*'Load Profiles'!$K$16 -> 303.1549795 | K27: ='Inputs and Totals'!B45*'Load Profiles'!$L$16 -> 290.0252974 | L27: ='Inputs and Totals'!B45*'Load Profiles'!$M$16 -> 270.565233 | M27: ='Inputs and Totals'!B45*'Load Profiles'!$N$16 -> 267.0483539 | N27: ='Inputs and Totals'!B45*'Load Profiles'!$O$16 -> 252.7463789 | O27: ='Inputs and Totals'!B45*'Load Profiles'!$P$16 -> 238.4444038 | P27: ='Inputs and Totals'!B45*'Load Profiles'!$Q$16 -> 229.5349767 | Q27: ='Inputs and Totals'!B45*'Load Profiles'!$R$16 -> 245.2437034 | R27: ='Inputs and Totals'!B45*'Load Profiles'!$S$16 -> 287.4462528 | S27: ='Inputs and Totals'!B45*'Load Profiles'!$T$16 -> 358.4872108 | T27: ='Inputs and Totals'!B45*'Load Profiles'!$U$16 -> 375.6026892 | U27: ='Inputs and Totals'!B45*'Load Profiles'!$V$16 -> 371.1479756 | V27: ='Inputs and Totals'!B45*'Load Profiles'!$W$16 -> 365.2865104 | W27: ='Inputs and Totals'!B45*'Load Profiles'!$X$16 -> 343.0129427 | X27: ='Inputs and Totals'!B45*'Load Profiles'!$Y$16 -> 294.7144696 | Y27: ='Inputs and Totals'!B45*'Load Profiles'!$Z$16 -> 186.3945929 | Z27: 6456.99005
A28: Day 27 | B28: ='Inputs and Totals'!B46*'Load Profiles'!$C$16 -> 244.5579802 | C28: ='Inputs and Totals'!B46*'Load Profiles'!$D$16 -> 170.6858698 | D28: ='Inputs and Totals'!B46*'Load Profiles'!$E$16 -> 168.6211214 | E28: ='Inputs and Totals'!B46*'Load Profiles'!$F$16 -> 169.9976204 | F28: ='Inputs and Totals'!B46*'Load Profiles'!$G$16 -> 174.3565337 | G28: ='Inputs and Totals'!B46*'Load Profiles'!$H$16 -> 201.1982632 | H28: ='Inputs and Totals'!B46*'Load Profiles'!$I$16 -> 273.0056252 | I28: ='Inputs and Totals'!B46*'Load Profiles'!$J$16 -> 337.4716593 | J28: ='Inputs and Totals'!B46*'Load Profiles'!$K$16 -> 296.6355238 | K28: ='Inputs and Totals'!B46*'Load Profiles'!$L$16 -> 283.7882003 | L28: ='Inputs and Totals'!B46*'Load Profiles'!$M$16 -> 264.7466314 | M28: ='Inputs and Totals'!B46*'Load Profiles'!$N$16 -> 261.3053841 | N28: ='Inputs and Totals'!B46*'Load Profiles'!$O$16 -> 247.3109781 | O28: ='Inputs and Totals'!B46*'Load Profiles'!$P$16 -> 233.3165721 | P28: ='Inputs and Totals'!B46*'Load Profiles'!$Q$16 -> 224.5987454 | Q28: ='Inputs and Totals'!B46*'Load Profiles'!$R$16 -> 239.9696503 | R28: ='Inputs and Totals'!B46*'Load Profiles'!$S$16 -> 281.2646189 | S28: ='Inputs and Totals'!B46*'Load Profiles'!$T$16 -> 350.7778158 | T28: ='Inputs and Totals'!B46*'Load Profiles'!$U$16 -> 367.5252197 | U28: ='Inputs and Totals'!B46*'Load Profiles'!$V$16 -> 363.1663064 | V28: ='Inputs and Totals'!B46*'Load Profiles'!$W$16 -> 357.4308941 | W28: ='Inputs and Totals'!B46*'Load Profiles'!$X$16 -> 335.6363274 | X28: ='Inputs and Totals'!B46*'Load Profiles'!$Y$16 -> 288.3765301 | Y28: ='Inputs and Totals'!B46*'Load Profiles'!$Z$16 -> 182.3861109 | Z28: 6318.130182
A29: Day 28 | B29: ='Inputs and Totals'!B47*'Load Profiles'!$C$16 -> 266.0575777 | C29: ='Inputs and Totals'!B47*'Load Profiles'!$D$16 -> 185.6912175 | D29: ='Inputs and Totals'!B47*'Load Profiles'!$E$16 -> 183.4449527 | E29: ='Inputs and Totals'!B47*'Load Profiles'!$F$16 -> 184.9424626 | F29: ='Inputs and Totals'!B47*'Load Profiles'!$G$16 -> 189.684577 | G29: ='Inputs and Totals'!B47*'Load Profiles'!$H$16 -> 218.8860184 | H29: ='Inputs and Totals'!B47*'Load Profiles'!$I$16 -> 297.006114 | I29: ='Inputs and Totals'!B47*'Load Profiles'!$J$16 -> 367.1394905 | J29: ='Inputs and Totals'!B47*'Load Profiles'!$K$16 -> 322.7133659 | K29: ='Inputs and Totals'!B47*'Load Profiles'!$L$16 -> 308.7366075 | L29: ='Inputs and Totals'!B47*'Load Profiles'!$M$16 -> 288.0210551 | M29: ='Inputs and Totals'!B47*'Load Profiles'!$N$16 -> 284.2772805 | N29: ='Inputs and Totals'!B47*'Load Profiles'!$O$16 -> 269.0525974 | O29: ='Inputs and Totals'!B47*'Load Profiles'!$P$16 -> 253.8279142 | P29: ='Inputs and Totals'!B47*'Load Profiles'!$Q$16 -> 244.3436854 | Q29: ='Inputs and Totals'!B47*'Load Profiles'!$R$16 -> 261.0658783 | R29: ='Inputs and Totals'!B47*'Load Profiles'!$S$16 -> 305.9911729 | S29: ='Inputs and Totals'!B47*'Load Profiles'!$T$16 -> 381.6154187 | T29: ='Inputs and Totals'!B47*'Load Profiles'!$U$16 -> 399.8351215 | U29: ='Inputs and Totals'!B47*'Load Profiles'!$V$16 -> 395.0930071 | V29: ='Inputs and Totals'!B47*'Load Profiles'!$W$16 -> 388.8533828 | W29: ='Inputs and Totals'!B47*'Load Profiles'!$X$16 -> 365.1428107 | X29: ='Inputs and Totals'!B47*'Load Profiles'!$Y$16 -> 313.7283069 | Y29: ='Inputs and Totals'!B47*'Load Profiles'!$Z$16 -> 198.4200509 | Z29: 6873.570066
A30: Day 29 | B30: ='Inputs and Totals'!B48*'Load Profiles'!$C$16 -> 295.6195344 | C30: ='Inputs and Totals'!B48*'Load Profiles'!$D$16 -> 206.3235775 | D30: ='Inputs and Totals'!B48*'Load Profiles'!$E$16 -> 203.8277277 | E30: ='Inputs and Totals'!B48*'Load Profiles'!$F$16 -> 205.4916275 | F30: ='Inputs and Totals'!B48*'Load Profiles'!$G$16 -> 210.7606436 | G30: ='Inputs and Totals'!B48*'Load Profiles'!$H$16 -> 243.2066901 | H30: ='Inputs and Totals'!B48*'Load Profiles'!$I$16 -> 330.0067973 | I30: ='Inputs and Totals'!B48*'Load Profiles'!$J$16 -> 407.9327721 | J30: ='Inputs and Totals'!B48*'Load Profiles'!$K$16 -> 358.5704108 | K30: ='Inputs and Totals'!B48*'Load Profiles'!$L$16 -> 343.0406792 | L30: ='Inputs and Totals'!B48*'Load Profiles'!$M$16 -> 320.0233984 | M30: ='Inputs and Totals'!B48*'Load Profiles'!$N$16 -> 315.8636488 | N30: ='Inputs and Totals'!B48*'Load Profiles'!$O$16 -> 298.947334 | O30: ='Inputs and Totals'!B48*'Load Profiles'!$P$16 -> 282.0310192 | P30: ='Inputs and Totals'!B48*'Load Profiles'!$Q$16 -> 271.492987 | Q30: ='Inputs and Totals'!B48*'Load Profiles'!$R$16 -> 290.0732016 | R30: ='Inputs and Totals'!B48*'Load Profiles'!$S$16 -> 339.9901962 | S30: ='Inputs and Totals'!B48*'Load Profiles'!$T$16 -> 424.017137 | T30: ='Inputs and Totals'!B48*'Load Profiles'!$U$16 -> 444.2612515 | U30: ='Inputs and Totals'!B48*'Load Profiles'!$V$16 -> 438.9922354 | V30: ='Inputs and Totals'!B48*'Load Profiles'!$W$16 -> 432.0593195 | W30: ='Inputs and Totals'!B48*'Load Profiles'!$X$16 -> 405.714239 | X30: ='Inputs and Totals'!B48*'Load Profiles'!$Y$16 -> 348.5870119 | Y30: ='Inputs and Totals'!B48*'Load Profiles'!$Z$16 -> 220.4667259 | Z30: 7637.300166
A31: Day 30 | B31: ='Inputs and Totals'!B49*'Load Profiles'!$C$16 -> 271.4324731 | C31: ='Inputs and Totals'!B49*'Load Profiles'!$D$16 -> 189.4425516 | D31: ='Inputs and Totals'!B49*'Load Profiles'!$E$16 -> 187.1509078 | E31: ='Inputs and Totals'!B49*'Load Profiles'!$F$16 -> 188.6786703 | F31: ='Inputs and Totals'!B49*'Load Profiles'!$G$16 -> 193.516585 | G31: ='Inputs and Totals'!B49*'Load Profiles'!$H$16 -> 223.307954 | H31: ='Inputs and Totals'!B49*'Load Profiles'!$I$16 -> 303.0062317 | I31: ='Inputs and Totals'!B49*'Load Profiles'!$J$16 -> 374.5564427 | J31: ='Inputs and Totals'!B49*'Load Profiles'!$K$16 -> 329.2328215 | K31: ='Inputs and Totals'!B49*'Load Profiles'!$L$16 -> 314.9737047 | L31: ='Inputs and Totals'!B49*'Load Profiles'!$M$16 -> 293.8396566 | M31: ='Inputs and Totals'!B49*'Load Profiles'!$N$16 -> 290.0202503 | N31: ='Inputs and Totals'!B49*'Load Profiles'!$O$16 -> 274.4879981 | O31: ='Inputs and Totals'!B49*'Load Profiles'!$P$16 -> 258.9557459 | P31: ='Inputs and Totals'!B49*'Load Profiles'!$Q$16 -> 249.2799167 | Q31: ='Inputs and Totals'!B49*'Load Profiles'!$R$16 -> 266.3399314 | R31: ='Inputs and Totals'!B49*'Load Profiles'!$S$16 -> 312.1728068 | S31: ='Inputs and Totals'!B49*'Load Profiles'!$T$16 -> 389.3248137 | T31: ='Inputs and Totals'!B49*'Load Profiles'!$U$16 -> 407.9125909 | U31: ='Inputs and Totals'!B49*'Load Profiles'!$V$16 -> 403.0746763 | V31: ='Inputs and Totals'!B49*'Load Profiles'!$W$16 -> 396.7089992 | W31: ='Inputs and Totals'!B49*'Load Profiles'!$X$16 -> 372.519426 | X31: ='Inputs and Totals'!B49*'Load Profiles'!$Y$16 -> 320.0662464 | Y31: ='Inputs and Totals'!B49*'Load Profiles'!$Z$16 -> 202.4285329 | Z31: 7012.429934
A32: Day 31 | B32: ='Inputs and Totals'!B50*'Load Profiles'!$C$16 -> 268.7450254 | C32: ='Inputs and Totals'!B50*'Load Profiles'!$D$16 -> 187.5668845 | D32: ='Inputs and Totals'!B50*'Load Profiles'!$E$16 -> 185.2979303 | E32: ='Inputs and Totals'!B50*'Load Profiles'!$F$16 -> 186.8105664 | F32: ='Inputs and Totals'!B50*'Load Profiles'!$G$16 -> 191.600581 | G32: ='Inputs and Totals'!B50*'Load Profiles'!$H$16 -> 221.0969862 | H32: ='Inputs and Totals'!B50*'Load Profiles'!$I$16 -> 300.0061728 | I32: ='Inputs and Totals'!B50*'Load Profiles'!$J$16 -> 370.8479666 | J32: ='Inputs and Totals'!B50*'Load Profiles'!$K$16 -> 325.9730937 | K32: ='Inputs and Totals'!B50*'Load Profiles'!$L$16 -> 311.8551561 | L32: ='Inputs and Totals'!B50*'Load Profiles'!$M$16 -> 290.9303558 | M32: ='Inputs and Totals'!B50*'Load Profiles'!$N$16 -> 287.1487654 | N32: ='Inputs and Totals'!B50*'Load Profiles'!$O$16 -> 271.7702977 | O32: ='Inputs and Totals'!B50*'Load Profiles'!$P$16 -> 256.3918301 | P32: ='Inputs and Totals'!B50*'Load Profiles'!$Q$16 -> 246.811801 | Q32: ='Inputs and Totals'!B50*'Load Profiles'!$R$16 -> 263.7029049 | R32: ='Inputs and Totals'!B50*'Load Profiles'!$S$16 -> 309.0819898 | S32: ='Inputs and Totals'!B50*'Load Profiles'!$T$16 -> 385.4701162 | T32: ='Inputs and Totals'!B50*'Load Profiles'!$U$16 -> 403.8738562 | U32: ='Inputs and Totals'!B50*'Load Profiles'!$V$16 -> 399.0838417 | V32: ='Inputs and Totals'!B50*'Load Profiles'!$W$16 -> 392.781191 | W32: ='Inputs and Totals'!B50*'Load Profiles'!$X$16 -> 368.8311184 | X32: ='Inputs and Totals'!B50*'Load Profiles'!$Y$16 -> 316.8972767 | Y32: ='Inputs and Totals'!B50*'Load Profiles'!$Z$16 -> 200.4242919 | Z32: 6943
A34: Solar Generation (kWh) | B34: Hour 0 | C34: Hour 1 | D34: Hour 2 | E34: Hour 3 | F34: Hour 4 | G34: Hour 5 | H34: Hour 6 | I34: Hour 7 | J34: Hour 8 | K34: Hour 9 | L34: Hour 10 | M34: Hour 11 | N34: Hour 12 | O34: Hour 13 | P34: Hour 14 | Q34: Hour 15 | R34: Hour 16 | S34: Hour 17 | T34: Hour 18 | U34: Hour 19 | V34: Hour 20 | W34: Hour 21 | X34: Hour 22 | Y34: Hour 23 | Z34: TOTALS
A35: Day 1 | B35: =IF('Inputs and Totals'!C20 = 1,'Solar Profiles'!$C$3*'Inputs and Totals'!$B$9*'Inputs and Totals'!$B$8*0.001, IF('Inputs and Totals'!C20 =2,'Solar Profiles'!$C$4*'Inputs and Totals'!$B$8*'Inputs and Totals'!$B$9*0.001,IF('Inputs and Totals'!C20 =3,'Solar Profiles'!$C$5*'Inputs and Totals'!$B$8*'Inputs and Totals'!$B$9*0.001,"Error"))) -> 0 | C35: =IF('Inputs and Totals'!C20 = 1,'Solar Profiles'!$D$3*'Inputs and Totals'!$B$9*'Inputs and Totals'!$B$8*0.001, IF('Inputs and Totals'!C20 =2,'Solar Profiles'!$D$4*'Inputs and Totals'!$B$8*'Inputs and Totals'!$B$9*0.001,IF('Inputs and Totals'!C20 =3,'Solar Profiles'!$D$5*'Inputs and Totals'!$B$8*'Inputs and Totals'!$B$9*0.001,"Error"))) -> 0 | D35: =IF('Inputs and Totals'!C20 = 1,'Solar Profiles'!$E$3*'Inputs and Totals'!$B$9*'Inputs and Totals'!$B$8*0.001, IF('Inputs and Totals'!C20 =2,'Solar Profiles'!$E$4*'Inputs and Totals'!$B$8*'Inputs and Totals'!$B$9*0.001,IF('Inputs and Totals'!C20 =3,'Solar Profiles'!$E$5*'Inputs and Totals'!$B$8*'Inputs and Totals'!$B$9*0.001,"Error"))) -> 0 | E35: =IF('Inputs and Totals'!C20 = 1,'Solar Profiles'!$F$3*'Inputs and Totals'!$B$9*'Inputs and Totals'!$B$8*0.001, IF('Inputs and Totals'!C20 =2,'Solar Profiles'!$F$4*'Inputs and Totals'!$B$8*'Inputs and Totals'!$B$9*0.001,IF('Inputs and Totals'!C20 =3,'Solar Profiles'!$F$5*'Inputs and Totals'!$B$8*'Inputs and Totals'!$B$9*0.001,"Error"))) -> 0 | F35: =IF('Inputs and Totals'!C20 = 1,'Solar Profiles'!$G$3*'Inputs and Totals'!$B$9*'Inputs and Totals'!$B$8*0.001, IF('Inputs and Totals'!C20 =2,'Solar Profiles'!$G$4*'Inputs and Totals'!$B$8*'Inputs and Totals'!$B$9*0.001,IF('Inputs and Totals'!C20 =3,'Solar Profiles'!$G$5*'Inputs and Totals'!$B$8*'Inputs and Totals'!$B$9*0.001,"Error"))) -> 0 | G35: =IF('Inputs and Totals'!C20 = 1,'Solar Profiles'!$H$3*'Inputs and Totals'!$B$9*'Inputs and Totals'!$B$8*0.001, IF('Inputs and Totals'!C20 =2,'Solar Profiles'!$H$4*'Inputs and Totals'!$B$8*'Inputs and Totals'!$B$9*0.001,IF('Inputs and Totals'!C20 =3,'Solar Profiles'!$H$5*'Inputs and Totals'!$B$8*'Inputs and Totals'!$B$9*0.001,"Error"))) -> 0 | H35: =IF('Inputs and Totals'!C20 = 1,'Solar Profiles'!$I$3*'Inputs and Totals'!$B$9*'Inputs and Totals'!$B$8*0.001, IF('Inputs and Totals'!C20 =2,'Solar Profiles'!$I$4*'Inputs and Totals'!$B$8*'Inputs and Totals'!$B$9*0.001,IF('Inputs and Totals'!C20 =3,'Solar Profiles'!$I$5*'Inputs and Totals'!$B$8*'Inputs and Totals'!$B$9*0.001,"Error"))) -> 0 | I35: =IF('Inputs and Totals'!C20 = 1,'Solar Profiles'!$J$3*'Inputs and Totals'!$B$9*'Inputs and Totals'!$B$8*0.001, IF('Inputs and Totals'!C20 =2,'Solar Profiles'!$J$4*'Inputs and Totals'!$B$8*'Inputs and Totals'!$B$9*0.001,IF('Inputs and Totals'!C20 =3,'Solar Profiles'!$J$5*'Inputs and Totals'!$B$8*'Inputs and Totals'!$B$9*0.001,"Error"))) -> 199.98 | J35: =IF('Inputs and Totals'!C20 = 1,'Solar Profiles'!$K$3*'Inputs and Totals'!$B$9*'Inputs and Totals'!$B$8*0.001, IF('Inputs and Totals'!C20 =2,'Solar Profiles'!$K$4*'Inputs and Totals'!$B$8*'Inputs and Totals'!$B$9*0.001,IF('Inputs and Totals'!C20 =3,'Solar Profiles'!$K$5*'Inputs and Totals'!$B$8*'Inputs and Totals'!$B$9*0.001,"Error"))) -> 199.98 | K35: =IF('Inputs and Totals'!C20 = 1,'Solar Profiles'!$L$3*'Inputs and Totals'!$B$9*'Inputs and Totals'!$B$8*0.001, IF('Inputs and Totals'!C20 =2,'Solar Profiles'!$L$4*'Inputs and Totals'!$B$8*'Inputs and Totals'!$B$9*0.001,IF('Inputs and Totals'!C20 =3,'Solar Profiles'!$L$5*'Inputs and Totals'!$B$8*'Inputs and Totals'!$B$9*0.001,"Error"))) -> 399.96 | L35: =IF('Inputs and Totals'!C20 = 1,'Solar Profiles'!$M$3*'Inputs and Totals'!$B$9*'Inputs and Totals'!$B$8*0.001, IF('Inputs and Totals'!C20 =2,'Solar Profiles'!$M$4*'Inputs and Totals'!$B$8*'Inputs and Totals'!$B$9*0.001,IF('Inputs and Totals'!C20 =3,'Solar Profiles'!$M$5*'Inputs and Totals'!$B$8*'Inputs and Totals'!$B$9*0.001,"Error"))) -> 599.94 | M35: =IF('Inputs and Totals'!C20 = 1,'Solar Profiles'!$N$3*'Inputs and Totals'!$B$9*'Inputs and Totals'!$B$8*0.001, IF('Inputs and Totals'!C20 =2,'Solar Profiles'!$N$4*'Inputs and Totals'!$B$8*'Inputs and Totals'!$B$9*0.001,IF('Inputs and Totals'!C20 =3,'Solar Profiles'!$N$5*'Inputs and Totals'!$B$8*'Inputs and Totals'!$B$9*0.001,"Error"))) -> 999.9 | N35: =IF('Inputs and Totals'!C20 = 1,'Solar Profiles'!$O$3*'Inputs and Totals'!$B$9*'Inputs and Totals'!$B$8*0.001, IF('Inputs and Totals'!C20 =2,'Solar Profiles'!$O$4*'Inputs and Totals'!$B$8*'Inputs and Totals'!$B$9*0.001,IF('Inputs and Totals'!C20 =3,'Solar Profiles'!$O$5*'Inputs and Totals'!$B$8*'Inputs and Totals'!$B$9*0.001,"Error"))) -> 1799.82 | O35: =IF('Inputs and Totals'!C20 = 1,'Solar Profiles'!$P$3*'Inputs and Totals'!$B$9*'Inputs and Totals'!$B$8*0.001, IF('Inputs and Totals'!C20 =2,'Solar Profiles'!$P$4*'Inputs and Totals'!$B$8*'Inputs and Totals'!$B$9*0.001,IF('Inputs and Totals'!C20 =3,'Solar Profiles'!$P$5*'Inputs and Totals'!$B$8*'Inputs and Totals'!$B$9*0.001,"Error"))) -> 1999.8 | P35: =IF('Inputs and Totals'!C20 = 1,'Solar Profiles'!$Q$3*'Inputs and Totals'!$B$9*'Inputs and Totals'!$B$8*0.001, IF('Inputs and Totals'!C20 =2,'Solar Profiles'!$Q$4*'Inputs and Totals'!$B$8*'Inputs and Totals'!$B$9*0.001,IF('Inputs and Totals'!C20 =3,'Solar Profiles'!$Q$5*'Inputs and Totals'!$B$8*'Inputs and Totals'!$B$9*0.001,"Error"))) -> 1199.88 | Q35: =IF('Inputs and Totals'!C20 = 1,'Solar Profiles'!$R$3*'Inputs and Totals'!$B$9*'Inputs and Totals'!$B$8*0.001, IF('Inputs and Totals'!C20 =2,'Solar Profiles'!$R$4*'Inputs and Totals'!$B$8*'Inputs and Totals'!$B$9*0.001,IF('Inputs and Totals'!C20 =3,'Solar Profiles'!$R$5*'Inputs and Totals'!$B$8*'Inputs and Totals'!$B$9*0.001,"Error"))) -> 999.9 | R35: =IF('Inputs and Totals'!C20 = 1,'Solar Profiles'!$S$3*'Inputs and Totals'!$B$9*'Inputs and Totals'!$B$8*0.001, IF('Inputs and Totals'!C20 =2,'Solar Profiles'!$S$4*'Inputs and Totals'!$B$8*'Inputs and Totals'!$B$9*0.001,IF('Inputs and Totals'!C20 =3,'Solar Profiles'!$S$5*'Inputs and Totals'!$B$8*'Inputs and Totals'!$B$9*0.001,"Error"))) -> 599.94 | S35: =IF('Inputs and Totals'!C20 = 1,'Solar Profiles'!$T$3*'Inputs and Totals'!$B$9*'Inputs and Totals'!$B$8*0.001, IF('Inputs and Totals'!C20 =2,'Solar Profiles'!$T$4*'Inputs and Totals'!$B$8*'Inputs and Totals'!$B$9*0.001,IF('Inputs and Totals'!C20 =3,'Solar Profiles'!$T$5*'Inputs and Totals'!$B$8*'Inputs and Totals'!$B$9*0.001,"Error"))) -> 199.98 | T35: =IF('Inputs and Totals'!C20 = 1,'Solar Profiles'!$U$3*'Inputs and Totals'!$B$9*'Inputs and Totals'!$B$8*0.001, IF('Inputs and Totals'!C20 =2,'Solar Profiles'!$U$4*'Inputs and Totals'!$B$8*'Inputs and Totals'!$B$9*0.001,IF('Inputs and Totals'!C20 =3,'Solar Profiles'!$U$5*'Inputs and Totals'!$B$8*'Inputs and Totals'!$B$9*0.001,"Error"))) -> 0 | U35: =IF('Inputs and Totals'!C20 = 1,'Solar Profiles'!$V$3*'Inputs and Totals'!$B$9*'Inputs and Totals'!$B$8*0.001, IF('Inputs and Totals'!C20 =2,'Solar Profiles'!$V$4*'Inputs and Totals'!$B$8*'Inputs and Totals'!$B$9*0.001,IF('Inputs and Totals'!C20 =3,'Solar Profiles'!$V$5*'Inputs and Totals'!$B$8*'Inputs and Totals'!$B$9*0.001,"Error"))) -> 0 | V35: =IF('Inputs and Totals'!C20 = 1,'Solar Profiles'!$W$3*'Inputs and Totals'!$B$9*'Inputs and Totals'!$B$8*0.001, IF('Inputs and Totals'!C20 =2,'Solar Profiles'!$W$4*'Inputs and Totals'!$B$8*'Inputs and Totals'!$B$9*0.001,IF('Inputs and Totals'!C20 =3,'Solar Profiles'!$W$5*'Inputs and Totals'!$B$8*'Inputs and Totals'!$B$9*0.001,"Error"))) -> 0 | W35: =IF('Inputs and Totals'!C20 = 1,'Solar Profiles'!$X$3*'Inputs and Totals'!$B$9*'Inputs and Totals'!$B$8*0.001, IF('Inputs and Totals'!C20 =2,'Solar Profiles'!$X$4*'Inputs and Totals'!$B$8*'Inputs and Totals'!$B$9*0.001,IF('Inputs and Totals'!C20 =3,'Solar Profiles'!$X$5*'Inputs and Totals'!$B$8*'Inputs and Totals'!$B$9*0.001,"Error"))) -> 0 | X35: =IF('Inputs and Totals'!C20 = 1,'Solar Profiles'!$Y$3*'Inputs and Totals'!$B$9*'Inputs and Totals'!$B$8*0.001, IF('Inputs and Totals'!C20 =2,'Solar Profiles'!$Y$4*'Inputs and Totals'!$B$8*'Inputs and Totals'!$B$9*0.001,IF('Inputs and Totals'!C20 =3,'Solar Profiles'!$Y$5*'Inputs and Totals'!$B$8*'Inputs and Totals'!$B$9*0.001,"Error"))) -> 0 | Y35: =IF('Inputs and Totals'!C20 = 1,'Solar Profiles'!$Z$3*'Inputs and Totals'!$B$9*'Inputs and Totals'!$B$8*0.001, IF('Inputs and Totals'!C20 =2,'Solar Profiles'!$Z$4*'Inputs and Totals'!$B$8*'Inputs and Totals'!$B$9*0.001,IF('Inputs and Totals'!C20 =3,'Solar Profiles'!$Z$5*'Inputs and Totals'!$B$8*'Inputs and Totals'!$B$9*0.001,"Error"))) -> 0 | Z35: =SUM(B35:Y35) -> 9199.08
A36: Day 2 | B36: =IF('Inputs and Totals'!C21 = 1,'Solar Profiles'!$C$3*'Inputs and Totals'!$B$9*'Inputs and Totals'!$B$8*0.001, IF('Inputs and Totals'!C21 =2,'Solar Profiles'!$C$4*'Inputs and Totals'!$B$8*'Inputs and Totals'!$B$9*0.001,IF('Inputs and Totals'!C21 =3,'Solar Profiles'!$C$5*'Inputs and Totals'!$B$8*'Inputs and Totals'!$B$9*0.001,"Error"))) -> 0 | C36: =IF('Inputs and Totals'!C21 = 1,'Solar Profiles'!$D$3*'Inputs and Totals'!$B$9*'Inputs and Totals'!$B$8*0.001, IF('Inputs and Totals'!C21 =2,'Solar Profiles'!$D$4*'Inputs and Totals'!$B$8*'Inputs and Totals'!$B$9*0.001,IF('Inputs and Totals'!C21 =3,'Solar Profiles'!$D$5*'Inputs and Totals'!$B$8*'Inputs and Totals'!$B$9*0.001,"Error"))) -> 0 | D36: =IF('Inputs and Totals'!C21 = 1,'Solar Profiles'!$E$3*'Inputs and Totals'!$B$9*'Inputs and Totals'!$B$8*0.001, IF('Inputs and Totals'!C21 =2,'Solar Profiles'!$E$4*'Inputs and Totals'!$B$8*'Inputs and Totals'!$B$9*0.001,IF('Inputs and Totals'!C21 =3,'Solar Profiles'!$E$5*'Inputs and Totals'!$B$8*'Inputs and Totals'!$B$9*0.001,"Error"))) -> 0 | E36: =IF('Inputs and Totals'!C21 = 1,'Solar Profiles'!$F$3*'Inputs and Totals'!$B$9*'Inputs and Totals'!$B$8*0.001, IF('Inputs and Totals'!C21 =2,'Solar Profiles'!$F$4*'Inputs and Totals'!$B$8*'Inputs and Totals'!$B$9*0.001,IF('Inputs and Totals'!C21 =3,'Solar Profiles'!$F$5*'Inputs and Totals'!$B$8*'Inputs and Totals'!$B$9*0.001,"Error"))) -> 0 | F36: =IF('Inputs and Totals'!C21 = 1,'Solar Profiles'!$G$3*'Inputs and Totals'!$B$9*'Inputs and Totals'!$B$8*0.001, IF('Inputs and Totals'!C21 =2,'Solar Profiles'!$G$4*'Inputs and Totals'!$B$8*'Inputs and Totals'!$B$9*0.001,IF('Inputs and Totals'!C21 =3,'Solar Profiles'!$G$5*'Inputs and Totals'!$B$8*'Inputs and Totals'!$B$9*0.001,"Error"))) -> 0 | G36: =IF('Inputs and Totals'!C21 = 1,'Solar Profiles'!$H$3*'Inputs and Totals'!$B$9*'Inputs and Totals'!$B$8*0.001, IF('Inputs and Totals'!C21 =2,'Solar Profiles'!$H$4*'Inputs and Totals'!$B$8*'Inputs and Totals'!$B$9*0.001,IF('Inputs and Totals'!C21 =3,'Solar Profiles'!$H$5*'Inputs and Totals'!$B$8*'Inputs and Totals'!$B$9*0.001,"Error"))) -> 0 | H36: =IF('Inputs and Totals'!C21 = 1,'Solar Profiles'!$I$3*'Inputs and Totals'!$B$9*'Inputs and Totals'!$B$8*0.001, IF('Inputs and Totals'!C21 =2,'Solar Profiles'!$I$4*'Inputs and Totals'!$B$8*'Inputs and Totals'!$B$9*0.001,IF('Inputs and Totals'!C21 =3,'Solar Profiles'!$I$5*'Inputs and Totals'!$B$8*'Inputs and Totals'!$B$9*0.001,"Error"))) -> 0 | I36: =IF('Inputs and Totals'!C21 = 1,'Solar Profiles'!$J$3*'Inputs and Totals'!$B$9*'Inputs and Totals'!$B$8*0.001, IF('Inputs and Totals'!C21 =2,'Solar Profiles'!$J$4*'Inputs and Totals'!$B$8*'Inputs and Totals'!$B$9*0.001,IF('Inputs and Totals'!C21 =3,'Solar Profiles'!$J$5*'Inputs and Totals'!$B$8*'Inputs and Totals'!$B$9*0.001,"Error"))) -> 99.99 | J36: =IF('Inputs and Totals'!C21 = 1,'Solar Profiles'!$K$3*'Inputs and Totals'!$B$9*'Inputs and Totals'!$B$8*0.001, IF('Inputs and Totals'!C21 =2,'Solar Profiles'!$K$4*'Inputs and Totals'!$B$8*'Inputs and Totals'!$B$9*0.001,IF('Inputs and Totals'!C21 =3,'Solar Profiles'!$K$5*'Inputs and Totals'!$B$8*'Inputs and Totals'!$B$9*0.001,"Error"))) -> 199.98 | K36: =IF('Inputs and Totals'!C21 = 1,'Solar Profiles'!$L$3*'Inputs and Totals'!$B$9*'Inputs and Totals'!$B$8*0.001, IF('Inputs and Totals'!C21 =2,'Solar Profiles'!$L$4*'Inputs and Totals'!$B$8*'Inputs and Totals'!$B$9*0.001,IF('Inputs and Totals'!C21 =3,'Solar Profiles'!$L$5*'Inputs and Totals'!$B$8*'Inputs and Totals'!$B$9*0.001,"Error"))) -> 299.97 | L36: =IF('Inputs and Totals'!C21 = 1,'Solar Profiles'!$M$3*'Inputs and Totals'!$B$9*'Inputs and Totals'!$B$8*0.001, IF('Inputs and Totals'!C21 =2,'Solar Profiles'!$M$4*'Inputs and Totals'!$B$8*'Inputs and Totals'!$B$9*0.001,IF('Inputs and Totals'!C21 =3,'Solar Profiles'!$M$5*'Inputs and Totals'!$B$8*'Inputs and Totals'!$B$9*0.001,"Error"))) -> 399.96 | M36: =IF('Inputs and Totals'!C21 = 1,'Solar Profiles'!$N$3*'Inputs and Totals'!$B$9*'Inputs and Totals'!$B$8*0.001, IF('Inputs and Totals'!C21 =2,'Solar Profiles'!$N$4*'Inputs and Totals'!$B$8*'Inputs and Totals'!$B$9*0.001,IF('Inputs and Totals'!C21 =3,'Solar Profiles'!$N$5*'Inputs and Totals'!$B$8*'Inputs and Totals'!$B$9*0.001,"Error"))) -> 799.92 | N36: =IF('Inputs and Totals'!C21 = 1,'Solar Profiles'!$O$3*'Inputs and Totals'!$B$9*'Inputs and Totals'!$B$8*0.001, IF('Inputs and Totals'!C21 =2,'Solar Profiles'!$O$4*'Inputs and Totals'!$B$8*'Inputs and Totals'!$B$9*0.001,IF('Inputs and Totals'!C21 =3,'Solar Profiles'!$O$5*'Inputs and Totals'!$B$8*'Inputs and Totals'!$B$9*0.001,"Error"))) -> 999.9 | O36: =IF('Inputs and Totals'!C21 = 1,'Solar Profiles'!$P$3*'Inputs and Totals'!$B$9*'Inputs and Totals'!$B$8*0.001, IF('Inputs and Totals'!C21 =2,'Solar Profiles'!$P$4*'Inputs and Totals'!$B$8*'Inputs and Totals'!$B$9*0.001,IF('Inputs and Totals'!C21 =3,'Solar Profiles'!$P$5*'Inputs and Totals'!$B$8*'Inputs and Totals'!$B$9*0.001,"Error"))) -> 999.9 | P36: =IF('Inputs and Totals'!C21 = 1,'Solar Profiles'!$Q$3*'Inputs and Totals'!$B$9*'Inputs and Totals'!$B$8*0.001, IF('Inputs and Totals'!C21 =2,'Solar Profiles'!$Q$4*'Inputs and Totals'!$B$8*'Inputs and Totals'!$B$9*0.001,IF('Inputs and Totals'!C21 =3,'Solar Profiles'!$Q$5*'Inputs and Totals'!$B$8*'Inputs and Totals'!$B$9*0.001,"Error"))) -> 799.92 | Q36: =IF('Inputs and Totals'!C21 = 1,'Solar Profiles'!$R$3*'Inputs and Totals'!$B$9*'Inputs and Totals'!$B$8*0.001, IF('Inputs and Totals'!C21 =2,'Solar Profiles'!$R$4*'Inputs and Totals'!$B$8*'Inputs and Totals'!$B$9*0.001,IF('Inputs and Totals'!C21 =3,'Solar Profiles'!$R$5*'Inputs and Totals'!$B$8*'Inputs and Totals'!$B$9*0.001,"Error"))) -> 599.94 | R36: =IF('Inputs and Totals'!C21 = 1,'Solar Profiles'!$S$3*'Inputs and Totals'!$B$9*'Inputs and Totals'!$B$8*0.001, IF('Inputs and Totals'!C21 =2,'Solar Profiles'!$S$4*'Inputs and Totals'!$B$8*'Inputs and Totals'!$B$9*0.001,IF('Inputs and Totals'!C21 =3,'Solar Profiles'!$S$5*'Inputs and Totals'!$B$8*'Inputs and Totals'!$B$9*0.001,"Error"))) -> 399.96 | S36: =IF('Inputs and Totals'!C21 = 1,'Solar Profiles'!$T$3*'Inputs and Totals'!$B$9*'Inputs and Totals'!$B$8*0.001, IF('Inputs and Totals'!C21 =2,'Solar Profiles'!$T$4*'Inputs and Totals'!$B$8*'Inputs and Totals'!$B$9*0.001,IF('Inputs and Totals'!C21 =3,'Solar Profiles'!$T$5*'Inputs and Totals'!$B$8*'Inputs and Totals'!$B$9*0.001,"Error"))) -> 199.98 | T36: =IF('Inputs and Totals'!C21 = 1,'Solar Profiles'!$U$3*'Inputs and Totals'!$B$9*'Inputs and Totals'!$B$8*0.001, IF('Inputs and Totals'!C21 =2,'Solar Profiles'!$U$4*'Inputs and Totals'!$B$8*'Inputs and Totals'!$B$9*0.001,IF('Inputs and Totals'!C21 =3,'Solar Profiles'!$U$5*'Inputs and Totals'!$B$8*'Inputs and Totals'!$B$9*0.001,"Error"))) -> 0 | U36: =IF('Inputs and Totals'!C21 = 1,'Solar Profiles'!$V$3*'Inputs and Totals'!$B$9*'Inputs and Totals'!$B$8*0.001, IF('Inputs and Totals'!C21 =2,'Solar Profiles'!$V$4*'Inputs and Totals'!$B$8*'Inputs and Totals'!$B$9*0.001,IF('Inputs and Totals'!C21 =3,'Solar Profiles'!$V$5*'Inputs and Totals'!$B$8*'Inputs and Totals'!$B$9*0.001,"Error"))) -> 0 | V36: =IF('Inputs and Totals'!C21 = 1,'Solar Profiles'!$W$3*'Inputs and Totals'!$B$9*'Inputs and Totals'!$B$8*0.001, IF('Inputs and Totals'!C21 =2,'Solar Profiles'!$W$4*'Inputs and Totals'!$B$8*'Inputs and Totals'!$B$9*0.001,IF('Inputs and Totals'!C21 =3,'Solar Profiles'!$W$5*'Inputs and Totals'!$B$8*'Inputs and Totals'!$B$9*0.001,"Error"))) -> 0 | W36: =IF('Inputs and Totals'!C21 = 1,'Solar Profiles'!$X$3*'Inputs and Totals'!$B$9*'Inputs and Totals'!$B$8*0.001, IF('Inputs and Totals'!C21 =2,'Solar Profiles'!$X$4*'Inputs and Totals'!$B$8*'Inputs and Totals'!$B$9*0.001,IF('Inputs and Totals'!C21 =3,'Solar Profiles'!$X$5*'Inputs and Totals'!$B$8*'Inputs and Totals'!$B$9*0.001,"Error"))) -> 0 | X36: =IF('Inputs and Totals'!C21 = 1,'Solar Profiles'!$Y$3*'Inputs and Totals'!$B$9*'Inputs and Totals'!$B$8*0.001, IF('Inputs and Totals'!C21 =2,'Solar Profiles'!$Y$4*'Inputs and Totals'!$B$8*'Inputs and Totals'!$B$9*0.001,IF('Inputs and Totals'!C21 =3,'Solar Profiles'!$Y$5*'Inputs and Totals'!$B$8*'Inputs and Totals'!$B$9*0.001,"Error"))) -> 0 | Y36: =IF('Inputs and Totals'!C21 = 1,'Solar Profiles'!$Z$3*'Inputs and Totals'!$B$9*'Inputs and Totals'!$B$8*0.001, IF('Inputs and Totals'!C21 =2,'Solar Profiles'!$Z$4*'Inputs and Totals'!$B$8*'Inputs and Totals'!$B$9*0.001,IF('Inputs and Totals'!C21 =3,'Solar Profiles'!$Z$5*'Inputs and Totals'!$B$8*'Inputs and Totals'!$B$9*0.001,"Error"))) -> 0 | Z36: =SUM(B36:Y36) -> 5799.42
A37: Day 3 | B37: =IF('Inputs and Totals'!C22 = 1,'Solar Profiles'!$C$3*'Inputs and Totals'!$B$9*'Inputs and Totals'!$B$8*0.001, IF('Inputs and Totals'!C22 =2,'Solar Profiles'!$C$4*'Inputs and Totals'!$B$8*'Inputs and Totals'!$B$9*0.001,IF('Inputs and Totals'!C22 =3,'Solar Profiles'!$C$5*'Inputs and Totals'!$B$8*'Inputs and Totals'!$B$9*0.001,"Error"))) -> 0 | C37: =IF('Inputs and Totals'!C22 = 1,'Solar Profiles'!$D$3*'Inputs and Totals'!$B$9*'Inputs and Totals'!$B$8*0.001, IF('Inputs and Totals'!C22 =2,'Solar Profiles'!$D$4*'Inputs and Totals'!$B$8*'Inputs and Totals'!$B$9*0.001,IF('Inputs and Totals'!C22 =3,'Solar Profiles'!$D$5*'Inputs and Totals'!$B$8*'Inputs and Totals'!$B$9*0.001,"Error"))) -> 0 | D37: =IF('Inputs and Totals'!C22 = 1,'Solar Profiles'!$E$3*'Inputs and Totals'!$B$9*'Inputs and Totals'!$B$8*0.001, IF('Inputs and Totals'!C22 =2,'Solar Profiles'!$E$4*'Inputs and Totals'!$B$8*'Inputs and Totals'!$B$9*0.001,IF('Inputs and Totals'!C22 =3,'Solar Profiles'!$E$5*'Inputs and Totals'!$B$8*'Inputs and Totals'!$B$9*0.001,"Error"))) -> 0 | E37: =IF('Inputs and Totals'!C22 = 1,'Solar Profiles'!$F$3*'Inputs and Totals'!$B$9*'Inputs and Totals'!$B$8*0.001, IF('Inputs and Totals'!C22 =2,'Solar Profiles'!$F$4*'Inputs and Totals'!$B$8*'Inputs and Totals'!$B$9*0.001,IF('Inputs and Totals'!C22 =3,'Solar Profiles'!$F$5*'Inputs and Totals'!$B$8*'Inputs and Totals'!$B$9*0.001,"Error"))) -> 0 | F37: =IF('Inputs and Totals'!C22 = 1,'Solar Profiles'!$G$3*'Inputs and Totals'!$B$9*'Inputs and Totals'!$B$8*0.001, IF('Inputs and Totals'!C22 =2,'Solar Profiles'!$G$4*'Inputs and Totals'!$B$8*'Inputs and Totals'!$B$9*0.001,IF('Inputs and Totals'!C22 =3,'Solar Profiles'!$G$5*'Inputs and Totals'!$B$8*'Inputs and Totals'!$B$9*0.001,"Error"))) -> 0 | G37: =IF('Inputs and Totals'!C22 = 1,'Solar Profiles'!$H$3*'Inputs and Totals'!$B$9*'Inputs and Totals'!$B$8*0.001, IF('Inputs and Totals'!C22 =2,'Solar Profiles'!$H$4*'Inputs and Totals'!$B$8*'Inputs and Totals'!$B$9*0.001,IF('Inputs and Totals'!C22 =3,'Solar Profiles'!$H$5*'Inputs and Totals'!$B$8*'Inputs and Totals'!$B$9*0.001,"Error"))) -> 0 | H37: =IF('Inputs and Totals'!C22 = 1,'Solar Profiles'!$I$3*'Inputs and Totals'!$B$9*'Inputs and Totals'!$B$8*0.001, IF('Inputs and Totals'!C22 =2,'Solar Profiles'!$I$4*'Inputs and Totals'!$B$8*'Inputs and Totals'!$B$9*0.001,IF('Inputs and Totals'!C22 =3,'Solar Profiles'!$I$5*'Inputs and Totals'!$B$8*'Inputs and Totals'!$B$9*0.001,"Error"))) -> 0 | I37: =IF('Inputs and Totals'!C22 = 1,'Solar Profiles'!$J$3*'Inputs and Totals'!$B$9*'Inputs and Totals'!$B$8*0.001, IF('Inputs and Totals'!C22 =2,'Solar Profiles'!$J$4*'Inputs and Totals'!$B$8*'Inputs and Totals'!$B$9*0.001,IF('Inputs and Totals'!C22 =3,'Solar Profiles'!$J$5*'Inputs and Totals'!$B$8*'Inputs and Totals'!$B$9*0.001,"Error"))) -> 199.98 | J37: =IF('Inputs and Totals'!C22 = 1,'Solar Profiles'!$K$3*'Inputs and Totals'!$B$9*'Inputs and Totals'!$B$8*0.001, IF('Inputs and Totals'!C22 =2,'Solar Profiles'!$K$4*'Inputs and Totals'!$B$8*'Inputs and Totals'!$B$9*0.001,IF('Inputs and Totals'!C22 =3,'Solar Profiles'!$K$5*'Inputs and Totals'!$B$8*'Inputs and Totals'!$B$9*0.001,"Error"))) -> 199.98 | K37: =IF('Inputs and Totals'!C22 = 1,'Solar Profiles'!$L$3*'Inputs and Totals'!$B$9*'Inputs and Totals'!$B$8*0.001, IF('Inputs and Totals'!C22 =2,'Solar Profiles'!$L$4*'Inputs and Totals'!$B$8*'Inputs and Totals'!$B$9*0.001,IF('Inputs and Totals'!C22 =3,'Solar Profiles'!$L$5*'Inputs and Totals'!$B$8*'Inputs and Totals'!$B$9*0.001,"Error"))) -> 399.96 | L37: =IF('Inputs and Totals'!C22 = 1,'Solar Profiles'!$M$3*'Inputs and Totals'!$B$9*'Inputs and Totals'!$B$8*0.001, IF('Inputs and Totals'!C22 =2,'Solar Profiles'!$M$4*'Inputs and Totals'!$B$8*'Inputs and Totals'!$B$9*0.001,IF('Inputs and Totals'!C22 =3,'Solar Profiles'!$M$5*'Inputs and Totals'!$B$8*'Inputs and Totals'!$B$9*0.001,"Error"))) -> 599.94 | M37: =IF('Inputs and Totals'!C22 = 1,'Solar Profiles'!$N$3*'Inputs and Totals'!$B$9*'Inputs and Totals'!$B$8*0.001, IF('Inputs and Totals'!C22 =2,'Solar Profiles'!$N$4*'Inputs and Totals'!$B$8*'Inputs and Totals'!$B$9*0.001,IF('Inputs and Totals'!C22 =3,'Solar Profiles'!$N$5*'Inputs and Totals'!$B$8*'Inputs and Totals'!$B$9*0.001,"Error"))) -> 999.9 | N37: =IF('Inputs and Totals'!C22 = 1,'Solar Profiles'!$O$3*'Inputs and Totals'!$B$9*'Inputs and Totals'!$B$8*0.001, IF('Inputs and Totals'!C22 =2,'Solar Profiles'!$O$4*'Inputs and Totals'!$B$8*'Inputs and Totals'!$B$9*0.001,IF('Inputs and Totals'!C22 =3,'Solar Profiles'!$O$5*'Inputs and Totals'!$B$8*'Inputs and Totals'!$B$9*0.001,"Error"))) -> 1799.82 | O37: =IF('Inputs and Totals'!C22 = 1,'Solar Profiles'!$P$3*'Inputs and Totals'!$B$9*'Inputs and Totals'!$B$8*0.001, IF('Inputs and Totals'!C22 =2,'Solar Profiles'!$P$4*'Inputs and Totals'!$B$8*'Inputs and Totals'!$B$9*0.001,IF('Inputs and Totals'!C22 =3,'Solar Profiles'!$P$5*'Inputs and Totals'!$B$8*'Inputs and Totals'!$B$9*0.001,"Error"))) -> 1999.8 | P37: =IF('Inputs and Totals'!C22 = 1,'Solar Profiles'!$Q$3*'Inputs and Totals'!$B$9*'Inputs and Totals'!$B$8*0.001, IF('Inputs and Totals'!C22 =2,'Solar Profiles'!$Q$4*'Inputs and Totals'!$B$8*'Inputs and Totals'!$B$9*0.001,IF('Inputs and Totals'!C22 =3,'Solar Profiles'!$Q$5*'Inputs and Totals'!$B$8*'Inputs and Totals'!$B$9*0.001,"Error"))) -> 1199.88 | Q37: =IF('Inputs and Totals'!C22 = 1,'Solar Profiles'!$R$3*'Inputs and Totals'!$B$9*'Inputs and Totals'!$B$8*0.001, IF('Inputs and Totals'!C22 =2,'Solar Profiles'!$R$4*'Inputs and Totals'!$B$8*'Inputs and Totals'!$B$9*0.001,IF('Inputs and Totals'!C22 =3,'Solar Profiles'!$R$5*'Inputs and Totals'!$B$8*'Inputs and Totals'!$B$9*0.001,"Error"))) -> 999.9 | R37: =IF('Inputs and Totals'!C22 = 1,'Solar Profiles'!$S$3*'Inputs and Totals'!$B$9*'Inputs and Totals'!$B$8*0.001, IF('Inputs and Totals'!C22 =2,'Solar Profiles'!$S$4*'Inputs and Totals'!$B$8*'Inputs and Totals'!$B$9*0.001,IF('Inputs and Totals'!C22 =3,'Solar Profiles'!$S$5*'Inputs and Totals'!$B$8*'Inputs and Totals'!$B$9*0.001,"Error"))) -> 599.94 | S37: =IF('Inputs and Totals'!C22 = 1,'Solar Profiles'!$T$3*'Inputs and Totals'!$B$9*'Inputs and Totals'!$B$8*0.001, IF('Inputs and Totals'!C22 =2,'Solar Profiles'!$T$4*'Inputs and Totals'!$B$8*'Inputs and Totals'!$B$9*0.001,IF('Inputs and Totals'!C22 =3,'Solar Profiles'!$T$5*'Inputs and Totals'!$B$8*'Inputs and Totals'!$B$9*0.001,"Error"))) -> 199.98 | T37: =IF('Inputs and Totals'!C22 = 1,'Solar Profiles'!$U$3*'Inputs and Totals'!$B$9*'Inputs and Totals'!$B$8*0.001, IF('Inputs and Totals'!C22 =2,'Solar Profiles'!$U$4*'Inputs and Totals'!$B$8*'Inputs and Totals'!$B$9*0.001,IF('Inputs and Totals'!C22 =3,'Solar Profiles'!$U$5*'Inputs and Totals'!$B$8*'Inputs and Totals'!$B$9*0.001,"Error"))) -> 0 | U37: =IF('Inputs and Totals'!C22 = 1,'Solar Profiles'!$V$3*'Inputs and Totals'!$B$9*'Inputs and Totals'!$B$8*0.001, IF('Inputs and Totals'!C22 =2,'Solar Profiles'!$V$4*'Inputs and Totals'!$B$8*'Inputs and Totals'!$B$9*0.001,IF('Inputs and Totals'!C22 =3,'Solar Profiles'!$V$5*'Inputs and Totals'!$B$8*'Inputs and Totals'!$B$9*0.001,"Error"))) -> 0 | V37: =IF('Inputs and Totals'!C22 = 1,'Solar Profiles'!$W$3*'Inputs and Totals'!$B$9*'Inputs and Totals'!$B$8*0.001, IF('Inputs and Totals'!C22 =2,'Solar Profiles'!$W$4*'Inputs and Totals'!$B$8*'Inputs and Totals'!$B$9*0.001,IF('Inputs and Totals'!C22 =3,'Solar Profiles'!$W$5*'Inputs and Totals'!$B$8*'Inputs and Totals'!$B$9*0.001,"Error"))) -> 0 | W37: =IF('Inputs and Totals'!C22 = 1,'Solar Profiles'!$X$3*'Inputs and Totals'!$B$9*'Inputs and Totals'!$B$8*0.001, IF('Inputs and Totals'!C22 =2,'Solar Profiles'!$X$4*'Inputs and Totals'!$B$8*'Inputs and Totals'!$B$9*0.001,IF('Inputs and Totals'!C22 =3,'Solar Profiles'!$X$5*'Inputs and Totals'!$B$8*'Inputs and Totals'!$B$9*0.001,"Error"))) -> 0 | X37: =IF('Inputs and Totals'!C22 = 1,'Solar Profiles'!$Y$3*'Inputs and Totals'!$B$9*'Inputs and Totals'!$B$8*0.001, IF('Inputs and Totals'!C22 =2,'Solar Profiles'!$Y$4*'Inputs and Totals'!$B$8*'Inputs and Totals'!$B$9*0.001,IF('Inputs and Totals'!C22 =3,'Solar Profiles'!$Y$5*'Inputs and Totals'!$B$8*'Inputs and Totals'!$B$9*0.001,"Error"))) -> 0 | Y37: =IF('Inputs and Totals'!C22 = 1,'Solar Profiles'!$Z$3*'Inputs and Totals'!$B$9*'Inputs and Totals'!$B$8*0.001, IF('Inputs and Totals'!C22 =2,'Solar Profiles'!$Z$4*'Inputs and Totals'!$B$8*'Inputs and Totals'!$B$9*0.001,IF('Inputs and Totals'!C22 =3,'Solar Profiles'!$Z$5*'Inputs and Totals'!$B$8*'Inputs and Totals'!$B$9*0.001,"Error"))) -> 0 | Z37: 9199.08
A38: Day 4 | B38: =IF('Inputs and Totals'!C23 = 1,'Solar Profiles'!$C$3*'Inputs and Totals'!$B$9*'Inputs and Totals'!$B$8*0.001, IF('Inputs and Totals'!C23 =2,'Solar Profiles'!$C$4*'Inputs and Totals'!$B$8*'Inputs and Totals'!$B$9*0.001,IF('Inputs and Totals'!C23 =3,'Solar Profiles'!$C$5*'Inputs and Totals'!$B$8*'Inputs and Totals'!$B$9*0.001,"Error"))) -> 0 | C38: =IF('Inputs and Totals'!C23 = 1,'Solar Profiles'!$D$3*'Inputs and Totals'!$B$9*'Inputs and Totals'!$B$8*0.001, IF('Inputs and Totals'!C23 =2,'Solar Profiles'!$D$4*'Inputs and Totals'!$B$8*'Inputs and Totals'!$B$9*0.001,IF('Inputs and Totals'!C23 =3,'Solar Profiles'!$D$5*'Inputs and Totals'!$B$8*'Inputs and Totals'!$B$9*0.001,"Error"))) -> 0 | D38: =IF('Inputs and Totals'!C23 = 1,'Solar Profiles'!$E$3*'Inputs and Totals'!$B$9*'Inputs and Totals'!$B$8*0.001, IF('Inputs and Totals'!C23 =2,'Solar Profiles'!$E$4*'Inputs and Totals'!$B$8*'Inputs and Totals'!$B$9*0.001,IF('Inputs and Totals'!C23 =3,'Solar Profiles'!$E$5*'Inputs and Totals'!$B$8*'Inputs and Totals'!$B$9*0.001,"Error"))) -> 0 | E38: =IF('Inputs and Totals'!C23 = 1,'Solar Profiles'!$F$3*'Inputs and Totals'!$B$9*'Inputs and Totals'!$B$8*0.001, IF('Inputs and Totals'!C23 =2,'Solar Profiles'!$F$4*'Inputs and Totals'!$B$8*'Inputs and Totals'!$B$9*0.001,IF('Inputs and Totals'!C23 =3,'Solar Profiles'!$F$5*'Inputs and Totals'!$B$8*'Inputs and Totals'!$B$9*0.001,"Error"))) -> 0 | F38: =IF('Inputs and Totals'!C23 = 1,'Solar Profiles'!$G$3*'Inputs and Totals'!$B$9*'Inputs and Totals'!$B$8*0.001, IF('Inputs and Totals'!C23 =2,'Solar Profiles'!$G$4*'Inputs and Totals'!$B$8*'Inputs and Totals'!$B$9*0.001,IF('Inputs and Totals'!C23 =3,'Solar Profiles'!$G$5*'Inputs and Totals'!$B$8*'Inputs and Totals'!$B$9*0.001,"Error"))) -> 0 | G38: =IF('Inputs and Totals'!C23 = 1,'Solar Profiles'!$H$3*'Inputs and Totals'!$B$9*'Inputs and Totals'!$B$8*0.001, IF('Inputs and Totals'!C23 =2,'Solar Profiles'!$H$4*'Inputs and Totals'!$B$8*'Inputs and Totals'!$B$9*0.001,IF('Inputs and Totals'!C23 =3,'Solar Profiles'!$H$5*'Inputs and Totals'!$B$8*'Inputs and Totals'!$B$9*0.001,"Error"))) -> 0 | H38: =IF('Inputs and Totals'!C23 = 1,'Solar Profiles'!$I$3*'Inputs and Totals'!$B$9*'Inputs and Totals'!$B$8*0.001, IF('Inputs and Totals'!C23 =2,'Solar Profiles'!$I$4*'Inputs and Totals'!$B$8*'Inputs and Totals'!$B$9*0.001,IF('Inputs and Totals'!C23 =3,'Solar Profiles'!$I$5*'Inputs and Totals'!$B$8*'Inputs and Totals'!$B$9*0.001,"Error"))) -> 0 | I38: =IF('Inputs and Totals'!C23 = 1,'Solar Profiles'!$J$3*'Inputs and Totals'!$B$9*'Inputs and Totals'!$B$8*0.001, IF('Inputs and Totals'!C23 =2,'Solar Profiles'!$J$4*'Inputs and Totals'!$B$8*'Inputs and Totals'!$B$9*0.001,IF('Inputs and Totals'!C23 =3,'Solar Profiles'!$J$5*'Inputs and Totals'!$B$8*'Inputs and Totals'!$B$9*0.001,"Error"))) -> 199.98 | J38: =IF('Inputs and Totals'!C23 = 1,'Solar Profiles'!$K$3*'Inputs and Totals'!$B$9*'Inputs and Totals'!$B$8*0.001, IF('Inputs and Totals'!C23 =2,'Solar Profiles'!$K$4*'Inputs and Totals'!$B$8*'Inputs and Totals'!$B$9*0.001,IF('Inputs and Totals'!C23 =3,'Solar Profiles'!$K$5*'Inputs and Totals'!$B$8*'Inputs and Totals'!$B$9*0.001,"Error"))) -> 399.96 | K38: =IF('Inputs and Totals'!C23 = 1,'Solar Profiles'!$L$3*'Inputs and Totals'!$B$9*'Inputs and Totals'!$B$8*0.001, IF('Inputs and Totals'!C23 =2,'Solar Profiles'!$L$4*'Inputs and Totals'!$B$8*'Inputs and Totals'!$B$9*0.001,IF('Inputs and Totals'!C23 =3,'Solar Profiles'!$L$5*'Inputs and Totals'!$B$8*'Inputs and Totals'!$B$9*0.001,"Error"))) -> 599.94 | L38: =IF('Inputs and Totals'!C23 = 1,'Solar Profiles'!$M$3*'Inputs and Totals'!$B$9*'Inputs and Totals'!$B$8*0.001, IF('Inputs and Totals'!C23 =2,'Solar Profiles'!$M$4*'Inputs and Totals'!$B$8*'Inputs and Totals'!$B$9*0.001,IF('Inputs and Totals'!C23 =3,'Solar Profiles'!$M$5*'Inputs and Totals'!$B$8*'Inputs and Totals'!$B$9*0.001,"Error"))) -> 799.92 | M38: =IF('Inputs and Totals'!C23 = 1,'Solar Profiles'!$N$3*'Inputs and Totals'!$B$9*'Inputs and Totals'!$B$8*0.001, IF('Inputs and Totals'!C23 =2,'Solar Profiles'!$N$4*'Inputs and Totals'!$B$8*'Inputs and Totals'!$B$9*0.001,IF('Inputs and Totals'!C23 =3,'Solar Profiles'!$N$5*'Inputs and Totals'!$B$8*'Inputs and Totals'!$B$9*0.001,"Error"))) -> 1599.84 | N38: =IF('Inputs and Totals'!C23 = 1,'Solar Profiles'!$O$3*'Inputs and Totals'!$B$9*'Inputs and Totals'!$B$8*0.001, IF('Inputs and Totals'!C23 =2,'Solar Profiles'!$O$4*'Inputs and Totals'!$B$8*'Inputs and Totals'!$B$9*0.001,IF('Inputs and Totals'!C23 =3,'Solar Profiles'!$O$5*'Inputs and Totals'!$B$8*'Inputs and Totals'!$B$9*0.001,"Error"))) -> 1999.8 | O38: =IF('Inputs and Totals'!C23 = 1,'Solar Profiles'!$P$3*'Inputs and Totals'!$B$9*'Inputs and Totals'!$B$8*0.001, IF('Inputs and Totals'!C23 =2,'Solar Profiles'!$P$4*'Inputs and Totals'!$B$8*'Inputs and Totals'!$B$9*0.001,IF('Inputs and Totals'!C23 =3,'Solar Profiles'!$P$5*'Inputs and Totals'!$B$8*'Inputs and Totals'!$B$9*0.001,"Error"))) -> 1999.8 | P38: =IF('Inputs and Totals'!C23 = 1,'Solar Profiles'!$Q$3*'Inputs and Totals'!$B$9*'Inputs and Totals'!$B$8*0.001, IF('Inputs and Totals'!C23 =2,'Solar Profiles'!$Q$4*'Inputs and Totals'!$B$8*'Inputs and Totals'!$B$9*0.001,IF('Inputs and Totals'!C23 =3,'Solar Profiles'!$Q$5*'Inputs and Totals'!$B$8*'Inputs and Totals'!$B$9*0.001,"Error"))) -> 1399.86 | Q38: =IF('Inputs and Totals'!C23 = 1,'Solar Profiles'!$R$3*'Inputs and Totals'!$B$9*'Inputs and Totals'!$B$8*0.001, IF('Inputs and Totals'!C23 =2,'Solar Profiles'!$R$4*'Inputs and Totals'!$B$8*'Inputs and Totals'!$B$9*0.001,IF('Inputs and Totals'!C23 =3,'Solar Profiles'!$R$5*'Inputs and Totals'!$B$8*'Inputs and Totals'!$B$9*0.001,"Error"))) -> 1199.88 | R38: =IF('Inputs and Totals'!C23 = 1,'Solar Profiles'!$S$3*'Inputs and Totals'!$B$9*'Inputs and Totals'!$B$8*0.001, IF('Inputs and Totals'!C23 =2,'Solar Profiles'!$S$4*'Inputs and Totals'!$B$8*'Inputs and Totals'!$B$9*0.001,IF('Inputs and Totals'!C23 =3,'Solar Profiles'!$S$5*'Inputs and Totals'!$B$8*'Inputs and Totals'!$B$9*0.001,"Error"))) -> 999.9 | S38: =IF('Inputs and Totals'!C23 = 1,'Solar Profiles'!$T$3*'Inputs and Totals'!$B$9*'Inputs and Totals'!$B$8*0.001, IF('Inputs and Totals'!C23 =2,'Solar Profiles'!$T$4*'Inputs and Totals'!$B$8*'Inputs and Totals'!$B$9*0.001,IF('Inputs and Totals'!C23 =3,'Solar Profiles'!$T$5*'Inputs and Totals'!$B$8*'Inputs and Totals'!$B$9*0.001,"Error"))) -> 399.96 | T38: =IF('Inputs and Totals'!C23 = 1,'Solar Profiles'!$U$3*'Inputs and Totals'!$B$9*'Inputs and Totals'!$B$8*0.001, IF('Inputs and Totals'!C23 =2,'Solar Profiles'!$U$4*'Inputs and Totals'!$B$8*'Inputs and Totals'!$B$9*0.001,IF('Inputs and Totals'!C23 =3,'Solar Profiles'!$U$5*'Inputs and Totals'!$B$8*'Inputs and Totals'!$B$9*0.001,"Error"))) -> 0 | U38: =IF('Inputs and Totals'!C23 = 1,'Solar Profiles'!$V$3*'Inputs and Totals'!$B$9*'Inputs and Totals'!$B$8*0.001, IF('Inputs and Totals'!C23 =2,'Solar Profiles'!$V$4*'Inputs and Totals'!$B$8*'Inputs and Totals'!$B$9*0.001,IF('Inputs and Totals'!C23 =3,'Solar Profiles'!$V$5*'Inputs and Totals'!$B$8*'Inputs and Totals'!$B$9*0.001,"Error"))) -> 0 | V38: =IF('Inputs and Totals'!C23 = 1,'Solar Profiles'!$W$3*'Inputs and Totals'!$B$9*'Inputs and Totals'!$B$8*0.001, IF('Inputs and Totals'!C23 =2,'Solar Profiles'!$W$4*'Inputs and Totals'!$B$8*'Inputs and Totals'!$B$9*0.001,IF('Inputs and Totals'!C23 =3,'Solar Profiles'!$W$5*'Inputs and Totals'!$B$8*'Inputs and Totals'!$B$9*0.001,"Error"))) -> 0 | W38: =IF('Inputs and Totals'!C23 = 1,'Solar Profiles'!$X$3*'Inputs and Totals'!$B$9*'Inputs and Totals'!$B$8*0.001, IF('Inputs and Totals'!C23 =2,'Solar Profiles'!$X$4*'Inputs and Totals'!$B$8*'Inputs and Totals'!$B$9*0.001,IF('Inputs and Totals'!C23 =3,'Solar Profiles'!$X$5*'Inputs and Totals'!$B$8*'Inputs and Totals'!$B$9*0.001,"Error"))) -> 0 | X38: =IF('Inputs and Totals'!C23 = 1,'Solar Profiles'!$Y$3*'Inputs and Totals'!$B$9*'Inputs and Totals'!$B$8*0.001, IF('Inputs and Totals'!C23 =2,'Solar Profiles'!$Y$4*'Inputs and Totals'!$B$8*'Inputs and Totals'!$B$9*0.001,IF('Inputs and Totals'!C23 =3,'Solar Profiles'!$Y$5*'Inputs and Totals'!$B$8*'Inputs and Totals'!$B$9*0.001,"Error"))) -> 0 | Y38: =IF('Inputs and Totals'!C23 = 1,'Solar Profiles'!$Z$3*'Inputs and Totals'!$B$9*'Inputs and Totals'!$B$8*0.001, IF('Inputs and Totals'!C23 =2,'Solar Profiles'!$Z$4*'Inputs and Totals'!$B$8*'Inputs and Totals'!$B$9*0.001,IF('Inputs and Totals'!C23 =3,'Solar Profiles'!$Z$5*'Inputs and Totals'!$B$8*'Inputs and Totals'!$B$9*0.001,"Error"))) -> 0 | Z38: 11598.84
A39: Day 5 | B39: =IF('Inputs and Totals'!C24 = 1,'Solar Profiles'!$C$3*'Inputs and Totals'!$B$9*'Inputs and Totals'!$B$8*0.001, IF('Inputs and Totals'!C24 =2,'Solar Profiles'!$C$4*'Inputs and Totals'!$B$8*'Inputs and Totals'!$B$9*0.001,IF('Inputs and Totals'!C24 =3,'Solar Profiles'!$C$5*'Inputs and Totals'!$B$8*'Inputs and Totals'!$B$9*0.001,"Error"))) -> 0 | C39: =IF('Inputs and Totals'!C24 = 1,'Solar Profiles'!$D$3*'Inputs and Totals'!$B$9*'Inputs and Totals'!$B$8*0.001, IF('Inputs and Totals'!C24 =2,'Solar Profiles'!$D$4*'Inputs and Totals'!$B$8*'Inputs and Totals'!$B$9*0.001,IF('Inputs and Totals'!C24 =3,'Solar Profiles'!$D$5*'Inputs and Totals'!$B$8*'Inputs and Totals'!$B$9*0.001,"Error"))) -> 0 | D39: =IF('Inputs and Totals'!C24 = 1,'Solar Profiles'!$E$3*'Inputs and Totals'!$B$9*'Inputs and Totals'!$B$8*0.001, IF('Inputs and Totals'!C24 =2,'Solar Profiles'!$E$4*'Inputs and Totals'!$B$8*'Inputs and Totals'!$B$9*0.001,IF('Inputs and Totals'!C24 =3,'Solar Profiles'!$E$5*'Inputs and Totals'!$B$8*'Inputs and Totals'!$B$9*0.001,"Error"))) -> 0 | E39: =IF('Inputs and Totals'!C24 = 1,'Solar Profiles'!$F$3*'Inputs and Totals'!$B$9*'Inputs and Totals'!$B$8*0.001, IF('Inputs and Totals'!C24 =2,'Solar Profiles'!$F$4*'Inputs and Totals'!$B$8*'Inputs and Totals'!$B$9*0.001,IF('Inputs and Totals'!C24 =3,'Solar Profiles'!$F$5*'Inputs and Totals'!$B$8*'Inputs and Totals'!$B$9*0.001,"Error"))) -> 0 | F39: =IF('Inputs and Totals'!C24 = 1,'Solar Profiles'!$G$3*'Inputs and Totals'!$B$9*'Inputs and Totals'!$B$8*0.001, IF('Inputs and Totals'!C24 =2,'Solar Profiles'!$G$4*'Inputs and Totals'!$B$8*'Inputs and Totals'!$B$9*0.001,IF('Inputs and Totals'!C24 =3,'Solar Profiles'!$G$5*'Inputs and Totals'!$B$8*'Inputs and Totals'!$B$9*0.001,"Error"))) -> 0 | G39: =IF('Inputs and Totals'!C24 = 1,'Solar Profiles'!$H$3*'Inputs and Totals'!$B$9*'Inputs and Totals'!$B$8*0.001, IF('Inputs and Totals'!C24 =2,'Solar Profiles'!$H$4*'Inputs and Totals'!$B$8*'Inputs and Totals'!$B$9*0.001,IF('Inputs and Totals'!C24 =3,'Solar Profiles'!$H$5*'Inputs and Totals'!$B$8*'Inputs and Totals'!$B$9*0.001,"Error"))) -> 0 | H39: =IF('Inputs and Totals'!C24 = 1,'Solar Profiles'!$I$3*'Inputs and Totals'!$B$9*'Inputs and Totals'!$B$8*0.001, IF('Inputs and Totals'!C24 =2,'Solar Profiles'!$I$4*'Inputs and Totals'!$B$8*'Inputs and Totals'!$B$9*0.001,IF('Inputs and Totals'!C24 =3,'Solar Profiles'!$I$5*'Inputs and Totals'!$B$8*'Inputs and Totals'!$B$9*0.001,"Error"))) -> 0 | I39: =IF('Inputs and Totals'!C24 = 1,'Solar Profiles'!$J$3*'Inputs and Totals'!$B$9*'Inputs and Totals'!$B$8*0.001, IF('Inputs and Totals'!C24 =2,'Solar Profiles'!$J$4*'Inputs and Totals'!$B$8*'Inputs and Totals'!$B$9*0.001,IF('Inputs and Totals'!C24 =3,'Solar Profiles'!$J$5*'Inputs and Totals'!$B$8*'Inputs and Totals'!$B$9*0.001,"Error"))) -> 99.99 | J39: =IF('Inputs and Totals'!C24 = 1,'Solar Profiles'!$K$3*'Inputs and Totals'!$B$9*'Inputs and Totals'!$B$8*0.001, IF('Inputs and Totals'!C24 =2,'Solar Profiles'!$K$4*'Inputs and Totals'!$B$8*'Inputs and Totals'!$B$9*0.001,IF('Inputs and Totals'!C24 =3,'Solar Profiles'!$K$5*'Inputs and Totals'!$B$8*'Inputs and Totals'!$B$9*0.001,"Error"))) -> 199.98 | K39: =IF('Inputs and Totals'!C24 = 1,'Solar Profiles'!$L$3*'Inputs and Totals'!$B$9*'Inputs and Totals'!$B$8*0.001, IF('Inputs and Totals'!C24 =2,'Solar Profiles'!$L$4*'Inputs and Totals'!$B$8*'Inputs and Totals'!$B$9*0.001,IF('Inputs and Totals'!C24 =3,'Solar Profiles'!$L$5*'Inputs and Totals'!$B$8*'Inputs and Totals'!$B$9*0.001,"Error"))) -> 299.97 | L39: =IF('Inputs and Totals'!C24 = 1,'Solar Profiles'!$M$3*'Inputs and Totals'!$B$9*'Inputs and Totals'!$B$8*0.001, IF('Inputs and Totals'!C24 =2,'Solar Profiles'!$M$4*'Inputs and Totals'!$B$8*'Inputs and Totals'!$B$9*0.001,IF('Inputs and Totals'!C24 =3,'Solar Profiles'!$M$5*'Inputs and Totals'!$B$8*'Inputs and Totals'!$B$9*0.001,"Error"))) -> 399.96 | M39: =IF('Inputs and Totals'!C24 = 1,'Solar Profiles'!$N$3*'Inputs and Totals'!$B$9*'Inputs and Totals'!$B$8*0.001, IF('Inputs and Totals'!C24 =2,'Solar Profiles'!$N$4*'Inputs and Totals'!$B$8*'Inputs and Totals'!$B$9*0.001,IF('Inputs and Totals'!C24 =3,'Solar Profiles'!$N$5*'Inputs and Totals'!$B$8*'Inputs and Totals'!$B$9*0.001,"Error"))) -> 799.92 | N39: =IF('Inputs and Totals'!C24 = 1,'Solar Profiles'!$O$3*'Inputs and Totals'!$B$9*'Inputs and Totals'!$B$8*0.001, IF('Inputs and Totals'!C24 =2,'Solar Profiles'!$O$4*'Inputs and Totals'!$B$8*'Inputs and Totals'!$B$9*0.001,IF('Inputs and Totals'!C24 =3,'Solar Profiles'!$O$5*'Inputs and Totals'!$B$8*'Inputs and Totals'!$B$9*0.001,"Error"))) -> 999.9 | O39: =IF('Inputs and Totals'!C24 = 1,'Solar Profiles'!$P$3*'Inputs and Totals'!$B$9*'Inputs and Totals'!$B$8*0.001, IF('Inputs and Totals'!C24 =2,'Solar Profiles'!$P$4*'Inputs and Totals'!$B$8*'Inputs and Totals'!$B$9*0.001,IF('Inputs and Totals'!C24 =3,'Solar Profiles'!$P$5*'Inputs and Totals'!$B$8*'Inputs and Totals'!$B$9*0.001,"Error"))) -> 999.9 | P39: =IF('Inputs and Totals'!C24 = 1,'Solar Profiles'!$Q$3*'Inputs and Totals'!$B$9*'Inputs and Totals'!$B$8*0.001, IF('Inputs and Totals'!C24 =2,'Solar Profiles'!$Q$4*'Inputs and Totals'!$B$8*'Inputs and Totals'!$B$9*0.001,IF('Inputs and Totals'!C24 =3,'Solar Profiles'!$Q$5*'Inputs and Totals'!$B$8*'Inputs and Totals'!$B$9*0.001,"Error"))) -> 799.92 | Q39: =IF('Inputs and Totals'!C24 = 1,'Solar Profiles'!$R$3*'Inputs and Totals'!$B$9*'Inputs and Totals'!$B$8*0.001, IF('Inputs and Totals'!C24 =2,'Solar Profiles'!$R$4*'Inputs and Totals'!$B$8*'Inputs and Totals'!$B$9*0.001,IF('Inputs and Totals'!C24 =3,'Solar Profiles'!$R$5*'Inputs and Totals'!$B$8*'Inputs and Totals'!$B$9*0.001,"Error"))) -> 599.94 | R39: =IF('Inputs and Totals'!C24 = 1,'Solar Profiles'!$S$3*'Inputs and Totals'!$B$9*'Inputs and Totals'!$B$8*0.001, IF('Inputs and Totals'!C24 =2,'Solar Profiles'!$S$4*'Inputs and Totals'!$B$8*'Inputs and Totals'!$B$9*0.001,IF('Inputs and Totals'!C24 =3,'Solar Profiles'!$S$5*'Inputs and Totals'!$B$8*'Inputs and Totals'!$B$9*0.001,"Error"))) -> 399.96 | S39: =IF('Inputs and Totals'!C24 = 1,'Solar Profiles'!$T$3*'Inputs and Totals'!$B$9*'Inputs and Totals'!$B$8*0.001, IF('Inputs and Totals'!C24 =2,'Solar Profiles'!$T$4*'Inputs and Totals'!$B$8*'Inputs and Totals'!$B$9*0.001,IF('Inputs and Totals'!C24 =3,'Solar Profiles'!$T$5*'Inputs and Totals'!$B$8*'Inputs and Totals'!$B$9*0.001,"Error"))) -> 199.98 | T39: =IF('Inputs and Totals'!C24 = 1,'Solar Profiles'!$U$3*'Inputs and Totals'!$B$9*'Inputs and Totals'!$B$8*0.001, IF('Inputs and Totals'!C24 =2,'Solar Profiles'!$U$4*'Inputs and Totals'!$B$8*'Inputs and Totals'!$B$9*0.001,IF('Inputs and Totals'!C24 =3,'Solar Profiles'!$U$5*'Inputs and Totals'!$B$8*'Inputs and Totals'!$B$9*0.001,"Error"))) -> 0 | U39: =IF('Inputs and Totals'!C24 = 1,'Solar Profiles'!$V$3*'Inputs and Totals'!$B$9*'Inputs and Totals'!$B$8*0.001, IF('Inputs and Totals'!C24 =2,'Solar Profiles'!$V$4*'Inputs and Totals'!$B$8*'Inputs and Totals'!$B$9*0.001,IF('Inputs and Totals'!C24 =3,'Solar Profiles'!$V$5*'Inputs and Totals'!$B$8*'Inputs and Totals'!$B$9*0.001,"Error"))) -> 0 | V39: =IF('Inputs and Totals'!C24 = 1,'Solar Profiles'!$W$3*'Inputs and Totals'!$B$9*'Inputs and Totals'!$B$8*0.001, IF('Inputs and Totals'!C24 =2,'Solar Profiles'!$W$4*'Inputs and Totals'!$B$8*'Inputs and Totals'!$B$9*0.001,IF('Inputs and Totals'!C24 =3,'Solar Profiles'!$W$5*'Inputs and Totals'!$B$8*'Inputs and Totals'!$B$9*0.001,"Error"))) -> 0 | W39: =IF('Inputs and Totals'!C24 = 1,'Solar Profiles'!$X$3*'Inputs and Totals'!$B$9*'Inputs and Totals'!$B$8*0.001, IF('Inputs and Totals'!C24 =2,'Solar Profiles'!$X$4*'Inputs and Totals'!$B$8*'Inputs and Totals'!$B$9*0.001,IF('Inputs and Totals'!C24 =3,'Solar Profiles'!$X$5*'Inputs and Totals'!$B$8*'Inputs and Totals'!$B$9*0.001,"Error"))) -> 0 | X39: =IF('Inputs and Totals'!C24 = 1,'Solar Profiles'!$Y$3*'Inputs and Totals'!$B$9*'Inputs and Totals'!$B$8*0.001, IF('Inputs and Totals'!C24 =2,'Solar Profiles'!$Y$4*'Inputs and Totals'!$B$8*'Inputs and Totals'!$B$9*0.001,IF('Inputs and Totals'!C24 =3,'Solar Profiles'!$Y$5*'Inputs and Totals'!$B$8*'Inputs and Totals'!$B$9*0.001,"Error"))) -> 0 | Y39: =IF('Inputs and Totals'!C24 = 1,'Solar Profiles'!$Z$3*'Inputs and Totals'!$B$9*'Inputs and Totals'!$B$8*0.001, IF('Inputs and Totals'!C24 =2,'Solar Profiles'!$Z$4*'Inputs and Totals'!$B$8*'Inputs and Totals'!$B$9*0.001,IF('Inputs and Totals'!C24 =3,'Solar Profiles'!$Z$5*'Inputs and Totals'!$B$8*'Inputs and Totals'!$B$9*0.001,"Error"))) -> 0 | Z39: 5799.42
A40: Day 6 | B40: =IF('Inputs and Totals'!C25 = 1,'Solar Profiles'!$C$3*'Inputs and Totals'!$B$9*'Inputs and Totals'!$B$8*0.001, IF('Inputs and Totals'!C25 =2,'Solar Profiles'!$C$4*'Inputs and Totals'!$B$8*'Inputs and Totals'!$B$9*0.001,IF('Inputs and Totals'!C25 =3,'Solar Profiles'!$C$5*'Inputs and Totals'!$B$8*'Inputs and Totals'!$B$9*0.001,"Error"))) -> 0 | C40: =IF('Inputs and Totals'!C25 = 1,'Solar Profiles'!$D$3*'Inputs and Totals'!$B$9*'Inputs and Totals'!$B$8*0.001, IF('Inputs and Totals'!C25 =2,'Solar Profiles'!$D$4*'Inputs and Totals'!$B$8*'Inputs and Totals'!$B$9*0.001,IF('Inputs and Totals'!C25 =3,'Solar Profiles'!$D$5*'Inputs and Totals'!$B$8*'Inputs and Totals'!$B$9*0.001,"Error"))) -> 0 | D40: =IF('Inputs and Totals'!C25 = 1,'Solar Profiles'!$E$3*'Inputs and Totals'!$B$9*'Inputs and Totals'!$B$8*0.001, IF('Inputs and Totals'!C25 =2,'Solar Profiles'!$E$4*'Inputs and Totals'!$B$8*'Inputs and Totals'!$B$9*0.001,IF('Inputs and Totals'!C25 =3,'Solar Profiles'!$E$5*'Inputs and Totals'!$B$8*'Inputs and Totals'!$B$9*0.001,"Error"))) -> 0 | E40: =IF('Inputs and Totals'!C25 = 1,'Solar Profiles'!$F$3*'Inputs and Totals'!$B$9*'Inputs and Totals'!$B$8*0.001, IF('Inputs and Totals'!C25 =2,'Solar Profiles'!$F$4*'Inputs and Totals'!$B$8*'Inputs and Totals'!$B$9*0.001,IF('Inputs and Totals'!C25 =3,'Solar Profiles'!$F$5*'Inputs and Totals'!$B$8*'Inputs and Totals'!$B$9*0.001,"Error"))) -> 0 | F40: =IF('Inputs and Totals'!C25 = 1,'Solar Profiles'!$G$3*'Inputs and Totals'!$B$9*'Inputs and Totals'!$B$8*0.001, IF('Inputs and Totals'!C25 =2,'Solar Profiles'!$G$4*'Inputs and Totals'!$B$8*'Inputs and Totals'!$B$9*0.001,IF('Inputs and Totals'!C25 =3,'Solar Profiles'!$G$5*'Inputs and Totals'!$B$8*'Inputs and Totals'!$B$9*0.001,"Error"))) -> 0 | G40: =IF('Inputs and Totals'!C25 = 1,'Solar Profiles'!$H$3*'Inputs and Totals'!$B$9*'Inputs and Totals'!$B$8*0.001, IF('Inputs and Totals'!C25 =2,'Solar Profiles'!$H$4*'Inputs and Totals'!$B$8*'Inputs and Totals'!$B$9*0.001,IF('Inputs and Totals'!C25 =3,'Solar Profiles'!$H$5*'Inputs and Totals'!$B$8*'Inputs and Totals'!$B$9*0.001,"Error"))) -> 0 | H40: =IF('Inputs and Totals'!C25 = 1,'Solar Profiles'!$I$3*'Inputs and Totals'!$B$9*'Inputs and Totals'!$B$8*0.001, IF('Inputs and Totals'!C25 =2,'Solar Profiles'!$I$4*'Inputs and Totals'!$B$8*'Inputs and Totals'!$B$9*0.001,IF('Inputs and Totals'!C25 =3,'Solar Profiles'!$I$5*'Inputs and Totals'!$B$8*'Inputs and Totals'!$B$9*0.001,"Error"))) -> 0 | I40: =IF('Inputs and Totals'!C25 = 1,'Solar Profiles'!$J$3*'Inputs and Totals'!$B$9*'Inputs and Totals'!$B$8*0.001, IF('Inputs and Totals'!C25 =2,'Solar Profiles'!$J$4*'Inputs and Totals'!$B$8*'Inputs and Totals'!$B$9*0.001,IF('Inputs and Totals'!C25 =3,'Solar Profiles'!$J$5*'Inputs and Totals'!$B$8*'Inputs and Totals'!$B$9*0.001,"Error"))) -> 199.98 | J40: =IF('Inputs and Totals'!C25 = 1,'Solar Profiles'!$K$3*'Inputs and Totals'!$B$9*'Inputs and Totals'!$B$8*0.001, IF('Inputs and Totals'!C25 =2,'Solar Profiles'!$K$4*'Inputs and Totals'!$B$8*'Inputs and Totals'!$B$9*0.001,IF('Inputs and Totals'!C25 =3,'Solar Profiles'!$K$5*'Inputs and Totals'!$B$8*'Inputs and Totals'!$B$9*0.001,"Error"))) -> 399.96 | K40: =IF('Inputs and Totals'!C25 = 1,'Solar Profiles'!$L$3*'Inputs and Totals'!$B$9*'Inputs and Totals'!$B$8*0.001, IF('Inputs and Totals'!C25 =2,'Solar Profiles'!$L$4*'Inputs and Totals'!$B$8*'Inputs and Totals'!$B$9*0.001,IF('Inputs and Totals'!C25 =3,'Solar Profiles'!$L$5*'Inputs and Totals'!$B$8*'Inputs and Totals'!$B$9*0.001,"Error"))) -> 599.94 | L40: =IF('Inputs and Totals'!C25 = 1,'Solar Profiles'!$M$3*'Inputs and Totals'!$B$9*'Inputs and Totals'!$B$8*0.001, IF('Inputs and Totals'!C25 =2,'Solar Profiles'!$M$4*'Inputs and Totals'!$B$8*'Inputs and Totals'!$B$9*0.001,IF('Inputs and Totals'!C25 =3,'Solar Profiles'!$M$5*'Inputs and Totals'!$B$8*'Inputs and Totals'!$B$9*0.001,"Error"))) -> 799.92 | M40: =IF('Inputs and Totals'!C25 = 1,'Solar Profiles'!$N$3*'Inputs and Totals'!$B$9*'Inputs and Totals'!$B$8*0.001, IF('Inputs and Totals'!C25 =2,'Solar Profiles'!$N$4*'Inputs and Totals'!$B$8*'Inputs and Totals'!$B$9*0.001,IF('Inputs and Totals'!C25 =3,'Solar Profiles'!$N$5*'Inputs and Totals'!$B$8*'Inputs and Totals'!$B$9*0.001,"Error"))) -> 1599.84 | N40: =IF('Inputs and Totals'!C25 = 1,'Solar Profiles'!$O$3*'Inputs and Totals'!$B$9*'Inputs and Totals'!$B$8*0.001, IF('Inputs and Totals'!C25 =2,'Solar Profiles'!$O$4*'Inputs and Totals'!$B$8*'Inputs and Totals'!$B$9*0.001,IF('Inputs and Totals'!C25 =3,'Solar Profiles'!$O$5*'Inputs and Totals'!$B$8*'Inputs and Totals'!$B$9*0.001,"Error"))) -> 1999.8 | O40: =IF('Inputs and Totals'!C25 = 1,'Solar Profiles'!$P$3*'Inputs and Totals'!$B$9*'Inputs and Totals'!$B$8*0.001, IF('Inputs and Totals'!C25 =2,'Solar Profiles'!$P$4*'Inputs and Totals'!$B$8*'Inputs and Totals'!$B$9*0.001,IF('Inputs and Totals'!C25 =3,'Solar Profiles'!$P$5*'Inputs and Totals'!$B$8*'Inputs and Totals'!$B$9*0.001,"Error"))) -> 1999.8 | P40: =IF('Inputs and Totals'!C25 = 1,'Solar Profiles'!$Q$3*'Inputs and Totals'!$B$9*'Inputs and Totals'!$B$8*0.001, IF('Inputs and Totals'!C25 =2,'Solar Profiles'!$Q$4*'Inputs and Totals'!$B$8*'Inputs and Totals'!$B$9*0.001,IF('Inputs and Totals'!C25 =3,'Solar Profiles'!$Q$5*'Inputs and Totals'!$B$8*'Inputs and Totals'!$B$9*0.001,"Error"))) -> 1399.86 | Q40: =IF('Inputs and Totals'!C25 = 1,'Solar Profiles'!$R$3*'Inputs and Totals'!$B$9*'Inputs and Totals'!$B$8*0.001, IF('Inputs and Totals'!C25 =2,'Solar Profiles'!$R$4*'Inputs and Totals'!$B$8*'Inputs and Totals'!$B$9*0.001,IF('Inputs and Totals'!C25 =3,'Solar Profiles'!$R$5*'Inputs and Totals'!$B$8*'Inputs and Totals'!$B$9*0.001,"Error"))) -> 1199.88 | R40: =IF('Inputs and Totals'!C25 = 1,'Solar Profiles'!$S$3*'Inputs and Totals'!$B$9*'Inputs and Totals'!$B$8*0.001, IF('Inputs and Totals'!C25 =2,'Solar Profiles'!$S$4*'Inputs and Totals'!$B$8*'Inputs and Totals'!$B$9*0.001,IF('Inputs and Totals'!C25 =3,'Solar Profiles'!$S$5*'Inputs and Totals'!$B$8*'Inputs and Totals'!$B$9*0.001,"Error"))) -> 999.9 | S40: =IF('Inputs and Totals'!C25 = 1,'Solar Profiles'!$T$3*'Inputs and Totals'!$B$9*'Inputs and Totals'!$B$8*0.001, IF('Inputs and Totals'!C25 =2,'Solar Profiles'!$T$4*'Inputs and Totals'!$B$8*'Inputs and Totals'!$B$9*0.001,IF('Inputs and Totals'!C25 =3,'Solar Profiles'!$T$5*'Inputs and Totals'!$B$8*'Inputs and Totals'!$B$9*0.001,"Error"))) -> 399.96 | T40: =IF('Inputs and Totals'!C25 = 1,'Solar Profiles'!$U$3*'Inputs and Totals'!$B$9*'Inputs and Totals'!$B$8*0.001, IF('Inputs and Totals'!C25 =2,'Solar Profiles'!$U$4*'Inputs and Totals'!$B$8*'Inputs and Totals'!$B$9*0.001,IF('Inputs and Totals'!C25 =3,'Solar Profiles'!$U$5*'Inputs and Totals'!$B$8*'Inputs and Totals'!$B$9*0.001,"Error"))) -> 0 | U40: =IF('Inputs and Totals'!C25 = 1,'Solar Profiles'!$V$3*'Inputs and Totals'!$B$9*'Inputs and Totals'!$B$8*0.001, IF('Inputs and Totals'!C25 =2,'Solar Profiles'!$V$4*'Inputs and Totals'!$B$8*'Inputs and Totals'!$B$9*0.001,IF('Inputs and Totals'!C25 =3,'Solar Profiles'!$V$5*'Inputs and Totals'!$B$8*'Inputs and Totals'!$B$9*0.001,"Error"))) -> 0 | V40: =IF('Inputs and Totals'!C25 = 1,'Solar Profiles'!$W$3*'Inputs and Totals'!$B$9*'Inputs and Totals'!$B$8*0.001, IF('Inputs and Totals'!C25 =2,'Solar Profiles'!$W$4*'Inputs and Totals'!$B$8*'Inputs and Totals'!$B$9*0.001,IF('Inputs and Totals'!C25 =3,'Solar Profiles'!$W$5*'Inputs and Totals'!$B$8*'Inputs and Totals'!$B$9*0.001,"Error"))) -> 0 | W40: =IF('Inputs and Totals'!C25 = 1,'Solar Profiles'!$X$3*'Inputs and Totals'!$B$9*'Inputs and Totals'!$B$8*0.001, IF('Inputs and Totals'!C25 =2,'Solar Profiles'!$X$4*'Inputs and Totals'!$B$8*'Inputs and Totals'!$B$9*0.001,IF('Inputs and Totals'!C25 =3,'Solar Profiles'!$X$5*'Inputs and Totals'!$B$8*'Inputs and Totals'!$B$9*0.001,"Error"))) -> 0 | X40: =IF('Inputs and Totals'!C25 = 1,'Solar Profiles'!$Y$3*'Inputs and Totals'!$B$9*'Inputs and Totals'!$B$8*0.001, IF('Inputs and Totals'!C25 =2,'Solar Profiles'!$Y$4*'Inputs and Totals'!$B$8*'Inputs and Totals'!$B$9*0.001,IF('Inputs and Totals'!C25 =3,'Solar Profiles'!$Y$5*'Inputs and Totals'!$B$8*'Inputs and Totals'!$B$9*0.001,"Error"))) -> 0 | Y40: =IF('Inputs and Totals'!C25 = 1,'Solar Profiles'!$Z$3*'Inputs and Totals'!$B$9*'Inputs and Totals'!$B$8*0.001, IF('Inputs and Totals'!C25 =2,'Solar Profiles'!$Z$4*'Inputs and Totals'!$B$8*'Inputs and Totals'!$B$9*0.001,IF('Inputs and Totals'!C25 =3,'Solar Profiles'!$Z$5*'Inputs and Totals'!$B$8*'Inputs and Totals'!$B$9*0.001,"Error"))) -> 0 | Z40: 11598.84
A41: Day 7 | B41: =IF('Inputs and Totals'!C26 = 1,'Solar Profiles'!$C$3*'Inputs and Totals'!$B$9*'Inputs and Totals'!$B$8*0.001, IF('Inputs and Totals'!C26 =2,'Solar Profiles'!$C$4*'Inputs and Totals'!$B$8*'Inputs and Totals'!$B$9*0.001,IF('Inputs and Totals'!C26 =3,'Solar Profiles'!$C$5*'Inputs and Totals'!$B$8*'Inputs and Totals'!$B$9*0.001,"Error"))) -> 0 | C41: =IF('Inputs and Totals'!C26 = 1,'Solar Profiles'!$D$3*'Inputs and Totals'!$B$9*'Inputs and Totals'!$B$8*0.001, IF('Inputs and Totals'!C26 =2,'Solar Profiles'!$D$4*'Inputs and Totals'!$B$8*'Inputs and Totals'!$B$9*0.001,IF('Inputs and Totals'!C26 =3,'Solar Profiles'!$D$5*'Inputs and Totals'!$B$8*'Inputs and Totals'!$B$9*0.001,"Error"))) -> 0 | D41: =IF('Inputs and Totals'!C26 = 1,'Solar Profiles'!$E$3*'Inputs and Totals'!$B$9*'Inputs and Totals'!$B$8*0.001, IF('Inputs and Totals'!C26 =2,'Solar Profiles'!$E$4*'Inputs and Totals'!$B$8*'Inputs and Totals'!$B$9*0.001,IF('Inputs and Totals'!C26 =3,'Solar Profiles'!$E$5*'Inputs and Totals'!$B$8*'Inputs and Totals'!$B$9*0.001,"Error"))) -> 0 | E41: =IF('Inputs and Totals'!C26 = 1,'Solar Profiles'!$F$3*'Inputs and Totals'!$B$9*'Inputs and Totals'!$B$8*0.001, IF('Inputs and Totals'!C26 =2,'Solar Profiles'!$F$4*'Inputs and Totals'!$B$8*'Inputs and Totals'!$B$9*0.001,IF('Inputs and Totals'!C26 =3,'Solar Profiles'!$F$5*'Inputs and Totals'!$B$8*'Inputs and Totals'!$B$9*0.001,"Error"))) -> 0 | F41: =IF('Inputs and Totals'!C26 = 1,'Solar Profiles'!$G$3*'Inputs and Totals'!$B$9*'Inputs and Totals'!$B$8*0.001, IF('Inputs and Totals'!C26 =2,'Solar Profiles'!$G$4*'Inputs and Totals'!$B$8*'Inputs and Totals'!$B$9*0.001,IF('Inputs and Totals'!C26 =3,'Solar Profiles'!$G$5*'Inputs and Totals'!$B$8*'Inputs and Totals'!$B$9*0.001,"Error"))) -> 0 | G41: =IF('Inputs and Totals'!C26 = 1,'Solar Profiles'!$H$3*'Inputs and Totals'!$B$9*'Inputs and Totals'!$B$8*0.001, IF('Inputs and Totals'!C26 =2,'Solar Profiles'!$H$4*'Inputs and Totals'!$B$8*'Inputs and Totals'!$B$9*0.001,IF('Inputs and Totals'!C26 =3,'Solar Profiles'!$H$5*'Inputs and Totals'!$B$8*'Inputs and Totals'!$B$9*0.001,"Error"))) -> 0 | H41: =IF('Inputs and Totals'!C26 = 1,'Solar Profiles'!$I$3*'Inputs and Totals'!$B$9*'Inputs and Totals'!$B$8*0.001, IF('Inputs and Totals'!C26 =2,'Solar Profiles'!$I$4*'Inputs and Totals'!$B$8*'Inputs and Totals'!$B$9*0.001,IF('Inputs and Totals'!C26 =3,'Solar Profiles'!$I$5*'Inputs and Totals'!$B$8*'Inputs and Totals'!$B$9*0.001,"Error"))) -> 0 | I41: =IF('Inputs and Totals'!C26 = 1,'Solar Profiles'!$J$3*'Inputs and Totals'!$B$9*'Inputs and Totals'!$B$8*0.001, IF('Inputs and Totals'!C26 =2,'Solar Profiles'!$J$4*'Inputs and Totals'!$B$8*'Inputs and Totals'!$B$9*0.001,IF('Inputs and Totals'!C26 =3,'Solar Profiles'!$J$5*'Inputs and Totals'!$B$8*'Inputs and Totals'!$B$9*0.001,"Error"))) -> 199.98 | J41: =IF('Inputs and Totals'!C26 = 1,'Solar Profiles'!$K$3*'Inputs and Totals'!$B$9*'Inputs and Totals'!$B$8*0.001, IF('Inputs and Totals'!C26 =2,'Solar Profiles'!$K$4*'Inputs and Totals'!$B$8*'Inputs and Totals'!$B$9*0.001,IF('Inputs and Totals'!C26 =3,'Solar Profiles'!$K$5*'Inputs and Totals'!$B$8*'Inputs and Totals'!$B$9*0.001,"Error"))) -> 199.98 | K41: =IF('Inputs and Totals'!C26 = 1,'Solar Profiles'!$L$3*'Inputs and Totals'!$B$9*'Inputs and Totals'!$B$8*0.001, IF('Inputs and Totals'!C26 =2,'Solar Profiles'!$L$4*'Inputs and Totals'!$B$8*'Inputs and Totals'!$B$9*0.001,IF('Inputs and Totals'!C26 =3,'Solar Profiles'!$L$5*'Inputs and Totals'!$B$8*'Inputs and Totals'!$B$9*0.001,"Error"))) -> 399.96 | L41: =IF('Inputs and Totals'!C26 = 1,'Solar Profiles'!$M$3*'Inputs and Totals'!$B$9*'Inputs and Totals'!$B$8*0.001, IF('Inputs and Totals'!C26 =2,'Solar Profiles'!$M$4*'Inputs and Totals'!$B$8*'Inputs and Totals'!$B$9*0.001,IF('Inputs and Totals'!C26 =3,'Solar Profiles'!$M$5*'Inputs and Totals'!$B$8*'Inputs and Totals'!$B$9*0.001,"Error"))) -> 599.94 | M41: =IF('Inputs and Totals'!C26 = 1,'Solar Profiles'!$N$3*'Inputs and Totals'!$B$9*'Inputs and Totals'!$B$8*0.001, IF('Inputs and Totals'!C26 =2,'Solar Profiles'!$N$4*'Inputs and Totals'!$B$8*'Inputs and Totals'!$B$9*0.001,IF('Inputs and Totals'!C26 =3,'Solar Profiles'!$N$5*'Inputs and Totals'!$B$8*'Inputs and Totals'!$B$9*0.001,"Error"))) -> 999.9 | N41: =IF('Inputs and Totals'!C26 = 1,'Solar Profiles'!$O$3*'Inputs and Totals'!$B$9*'Inputs and Totals'!$B$8*0.001, IF('Inputs and Totals'!C26 =2,'Solar Profiles'!$O$4*'Inputs and Totals'!$B$8*'Inputs and Totals'!$B$9*0.001,IF('Inputs and Totals'!C26 =3,'Solar Profiles'!$O$5*'Inputs and Totals'!$B$8*'Inputs and Totals'!$B$9*0.001,"Error"))) -> 1799.82 | O41: =IF('Inputs and Totals'!C26 = 1,'Solar Profiles'!$P$3*'Inputs and Totals'!$B$9*'Inputs and Totals'!$B$8*0.001, IF('Inputs and Totals'!C26 =2,'Solar Profiles'!$P$4*'Inputs and Totals'!$B$8*'Inputs and Totals'!$B$9*0.001,IF('Inputs and Totals'!C26 =3,'Solar Profiles'!$P$5*'Inputs and Totals'!$B$8*'Inputs and Totals'!$B$9*0.001,"Error"))) -> 1999.8 | P41: =IF('Inputs and Totals'!C26 = 1,'Solar Profiles'!$Q$3*'Inputs and Totals'!$B$9*'Inputs and Totals'!$B$8*0.001, IF('Inputs and Totals'!C26 =2,'Solar Profiles'!$Q$4*'Inputs and Totals'!$B$8*'Inputs and Totals'!$B$9*0.001,IF('Inputs and Totals'!C26 =3,'Solar Profiles'!$Q$5*'Inputs and Totals'!$B$8*'Inputs and Totals'!$B$9*0.001,"Error"))) -> 1199.88 | Q41: =IF('Inputs and Totals'!C26 = 1,'Solar Profiles'!$R$3*'Inputs and Totals'!$B$9*'Inputs and Totals'!$B$8*0.001, IF('Inputs and Totals'!C26 =2,'Solar Profiles'!$R$4*'Inputs and Totals'!$B$8*'Inputs and Totals'!$B$9*0.001,IF('Inputs and Totals'!C26 =3,'Solar Profiles'!$R$5*'Inputs and Totals'!$B$8*'Inputs and Totals'!$B$9*0.001,"Error"))) -> 999.9 | R41: =IF('Inputs and Totals'!C26 = 1,'Solar Profiles'!$S$3*'Inputs and Totals'!$B$9*'Inputs and Totals'!$B$8*0.001, IF('Inputs and Totals'!C26 =2,'Solar Profiles'!$S$4*'Inputs and Totals'!$B$8*'Inputs and Totals'!$B$9*0.001,IF('Inputs and Totals'!C26 =3,'Solar Profiles'!$S$5*'Inputs and Totals'!$B$8*'Inputs and Totals'!$B$9*0.001,"Error"))) -> 599.94 | S41: =IF('Inputs and Totals'!C26 = 1,'Solar Profiles'!$T$3*'Inputs and Totals'!$B$9*'Inputs and Totals'!$B$8*0.001, IF('Inputs and Totals'!C26 =2,'Solar Profiles'!$T$4*'Inputs and Totals'!$B$8*'Inputs and Totals'!$B$9*0.001,IF('Inputs and Totals'!C26 =3,'Solar Profiles'!$T$5*'Inputs and Totals'!$B$8*'Inputs and Totals'!$B$9*0.001,"Error"))) -> 199.98 | T41: =IF('Inputs and Totals'!C26 = 1,'Solar Profiles'!$U$3*'Inputs and Totals'!$B$9*'Inputs and Totals'!$B$8*0.001, IF('Inputs and Totals'!C26 =2,'Solar Profiles'!$U$4*'Inputs and Totals'!$B$8*'Inputs and Totals'!$B$9*0.001,IF('Inputs and Totals'!C26 =3,'Solar Profiles'!$U$5*'Inputs and Totals'!$B$8*'Inputs and Totals'!$B$9*0.001,"Error"))) -> 0 | U41: =IF('Inputs and Totals'!C26 = 1,'Solar Profiles'!$V$3*'Inputs and Totals'!$B$9*'Inputs and Totals'!$B$8*0.001, IF('Inputs and Totals'!C26 =2,'Solar Profiles'!$V$4*'Inputs and Totals'!$B$8*'Inputs and Totals'!$B$9*0.001,IF('Inputs and Totals'!C26 =3,'Solar Profiles'!$V$5*'Inputs and Totals'!$B$8*'Inputs and Totals'!$B$9*0.001,"Error"))) -> 0 | V41: =IF('Inputs and Totals'!C26 = 1,'Solar Profiles'!$W$3*'Inputs and Totals'!$B$9*'Inputs and Totals'!$B$8*0.001, IF('Inputs and Totals'!C26 =2,'Solar Profiles'!$W$4*'Inputs and Totals'!$B$8*'Inputs and Totals'!$B$9*0.001,IF('Inputs and Totals'!C26 =3,'Solar Profiles'!$W$5*'Inputs and Totals'!$B$8*'Inputs and Totals'!$B$9*0.001,"Error"))) -> 0 | W41: =IF('Inputs and Totals'!C26 = 1,'Solar Profiles'!$X$3*'Inputs and Totals'!$B$9*'Inputs and Totals'!$B$8*0.001, IF('Inputs and Totals'!C26 =2,'Solar Profiles'!$X$4*'Inputs and Totals'!$B$8*'Inputs and Totals'!$B$9*0.001,IF('Inputs and Totals'!C26 =3,'Solar Profiles'!$X$5*'Inputs and Totals'!$B$8*'Inputs and Totals'!$B$9*0.001,"Error"))) -> 0 | X41: =IF('Inputs and Totals'!C26 = 1,'Solar Profiles'!$Y$3*'Inputs and Totals'!$B$9*'Inputs and Totals'!$B$8*0.001, IF('Inputs and Totals'!C26 =2,'Solar Profiles'!$Y$4*'Inputs and Totals'!$B$8*'Inputs and Totals'!$B$9*0.001,IF('Inputs and Totals'!C26 =3,'Solar Profiles'!$Y$5*'Inputs and Totals'!$B$8*'Inputs and Totals'!$B$9*0.001,"Error"))) -> 0 | Y41: =IF('Inputs and Totals'!C26 = 1,'Solar Profiles'!$Z$3*'Inputs and Totals'!$B$9*'Inputs and Totals'!$B$8*0.001, IF('Inputs and Totals'!C26 =2,'Solar Profiles'!$Z$4*'Inputs and Totals'!$B$8*'Inputs and Totals'!$B$9*0.001,IF('Inputs and Totals'!C26 =3,'Solar Profiles'!$Z$5*'Inputs and Totals'!$B$8*'Inputs and Totals'!$B$9*0.001,"Error"))) -> 0 | Z41: 9199.08
A42: Day 8 | B42: =IF('Inputs and Totals'!C27 = 1,'Solar Profiles'!$C$3*'Inputs and Totals'!$B$9*'Inputs and Totals'!$B$8*0.001, IF('Inputs and Totals'!C27 =2,'Solar Profiles'!$C$4*'Inputs and Totals'!$B$8*'Inputs and Totals'!$B$9*0.001,IF('Inputs and Totals'!C27 =3,'Solar Profiles'!$C$5*'Inputs and Totals'!$B$8*'Inputs and Totals'!$B$9*0.001,"Error"))) -> 0 | C42: =IF('Inputs and Totals'!C27 = 1,'Solar Profiles'!$D$3*'Inputs and Totals'!$B$9*'Inputs and Totals'!$B$8*0.001, IF('Inputs and Totals'!C27 =2,'Solar Profiles'!$D$4*'Inputs and Totals'!$B$8*'Inputs and Totals'!$B$9*0.001,IF('Inputs and Totals'!C27 =3,'Solar Profiles'!$D$5*'Inputs and Totals'!$B$8*'Inputs and Totals'!$B$9*0.001,"Error"))) -> 0 | D42: =IF('Inputs and Totals'!C27 = 1,'Solar Profiles'!$E$3*'Inputs and Totals'!$B$9*'Inputs and Totals'!$B$8*0.001, IF('Inputs and Totals'!C27 =2,'Solar Profiles'!$E$4*'Inputs and Totals'!$B$8*'Inputs and Totals'!$B$9*0.001,IF('Inputs and Totals'!C27 =3,'Solar Profiles'!$E$5*'Inputs and Totals'!$B$8*'Inputs and Totals'!$B$9*0.001,"Error"))) -> 0 | E42: =IF('Inputs and Totals'!C27 = 1,'Solar Profiles'!$F$3*'Inputs and Totals'!$B$9*'Inputs and Totals'!$B$8*0.001, IF('Inputs and Totals'!C27 =2,'Solar Profiles'!$F$4*'Inputs and Totals'!$B$8*'Inputs and Totals'!$B$9*0.001,IF('Inputs and Totals'!C27 =3,'Solar Profiles'!$F$5*'Inputs and Totals'!$B$8*'Inputs and Totals'!$B$9*0.001,"Error"))) -> 0 | F42: =IF('Inputs and Totals'!C27 = 1,'Solar Profiles'!$G$3*'Inputs and Totals'!$B$9*'Inputs and Totals'!$B$8*0.001, IF('Inputs and Totals'!C27 =2,'Solar Profiles'!$G$4*'Inputs and Totals'!$B$8*'Inputs and Totals'!$B$9*0.001,IF('Inputs and Totals'!C27 =3,'Solar Profiles'!$G$5*'Inputs and Totals'!$B$8*'Inputs and Totals'!$B$9*0.001,"Error"))) -> 0 | G42: =IF('Inputs and Totals'!C27 = 1,'Solar Profiles'!$H$3*'Inputs and Totals'!$B$9*'Inputs and Totals'!$B$8*0.001, IF('Inputs and Totals'!C27 =2,'Solar Profiles'!$H$4*'Inputs and Totals'!$B$8*'Inputs and Totals'!$B$9*0.001,IF('Inputs and Totals'!C27 =3,'Solar Profiles'!$H$5*'Inputs and Totals'!$B$8*'Inputs and Totals'!$B$9*0.001,"Error"))) -> 0 | H42: =IF('Inputs and Totals'!C27 = 1,'Solar Profiles'!$I$3*'Inputs and Totals'!$B$9*'Inputs and Totals'!$B$8*0.001, IF('Inputs and Totals'!C27 =2,'Solar Profiles'!$I$4*'Inputs and Totals'!$B$8*'Inputs and Totals'!$B$9*0.001,IF('Inputs and Totals'!C27 =3,'Solar Profiles'!$I$5*'Inputs and Totals'!$B$8*'Inputs and Totals'!$B$9*0.001,"Error"))) -> 0 | I42: =IF('Inputs and Totals'!C27 = 1,'Solar Profiles'!$J$3*'Inputs and Totals'!$B$9*'Inputs and Totals'!$B$8*0.001, IF('Inputs and Totals'!C27 =2,'Solar Profiles'!$J$4*'Inputs and Totals'!$B$8*'Inputs and Totals'!$B$9*0.001,IF('Inputs and Totals'!C27 =3,'Solar Profiles'!$J$5*'Inputs and Totals'!$B$8*'Inputs and Totals'!$B$9*0.001,"Error"))) -> 99.99 | J42: =IF('Inputs and Totals'!C27 = 1,'Solar Profiles'!$K$3*'Inputs and Totals'!$B$9*'Inputs and Totals'!$B$8*0.001, IF('Inputs and Totals'!C27 =2,'Solar Profiles'!$K$4*'Inputs and Totals'!$B$8*'Inputs and Totals'!$B$9*0.001,IF('Inputs and Totals'!C27 =3,'Solar Profiles'!$K$5*'Inputs and Totals'!$B$8*'Inputs and Totals'!$B$9*0.001,"Error"))) -> 199.98 | K42: =IF('Inputs and Totals'!C27 = 1,'Solar Profiles'!$L$3*'Inputs and Totals'!$B$9*'Inputs and Totals'!$B$8*0.001, IF('Inputs and Totals'!C27 =2,'Solar Profiles'!$L$4*'Inputs and Totals'!$B$8*'Inputs and Totals'!$B$9*0.001,IF('Inputs and Totals'!C27 =3,'Solar Profiles'!$L$5*'Inputs and Totals'!$B$8*'Inputs and Totals'!$B$9*0.001,"Error"))) -> 299.97 | L42: =IF('Inputs and Totals'!C27 = 1,'Solar Profiles'!$M$3*'Inputs and Totals'!$B$9*'Inputs and Totals'!$B$8*0.001, IF('Inputs and Totals'!C27 =2,'Solar Profiles'!$M$4*'Inputs and Totals'!$B$8*'Inputs and Totals'!$B$9*0.001,IF('Inputs and Totals'!C27 =3,'Solar Profiles'!$M$5*'Inputs and Totals'!$B$8*'Inputs and Totals'!$B$9*0.001,"Error"))) -> 399.96 | M42: =IF('Inputs and Totals'!C27 = 1,'Solar Profiles'!$N$3*'Inputs and Totals'!$B$9*'Inputs and Totals'!$B$8*0.001, IF('Inputs and Totals'!C27 =2,'Solar Profiles'!$N$4*'Inputs and Totals'!$B$8*'Inputs and Totals'!$B$9*0.001,IF('Inputs and Totals'!C27 =3,'Solar Profiles'!$N$5*'Inputs and Totals'!$B$8*'Inputs and Totals'!$B$9*0.001,"Error"))) -> 799.92 | N42: =IF('Inputs and Totals'!C27 = 1,'Solar Profiles'!$O$3*'Inputs and Totals'!$B$9*'Inputs and Totals'!$B$8*0.001, IF('Inputs and Totals'!C27 =2,'Solar Profiles'!$O$4*'Inputs and Totals'!$B$8*'Inputs and Totals'!$B$9*0.001,IF('Inputs and Totals'!C27 =3,'Solar Profiles'!$O$5*'Inputs and Totals'!$B$8*'Inputs and Totals'!$B$9*0.001,"Error"))) -> 999.9 | O42: =IF('Inputs and Totals'!C27 = 1,'Solar Profiles'!$P$3*'Inputs and Totals'!$B$9*'Inputs and Totals'!$B$8*0.001, IF('Inputs and Totals'!C27 =2,'Solar Profiles'!$P$4*'Inputs and Totals'!$B$8*'Inputs and Totals'!$B$9*0.001,IF('Inputs and Totals'!C27 =3,'Solar Profiles'!$P$5*'Inputs and Totals'!$B$8*'Inputs and Totals'!$B$9*0.001,"Error"))) -> 999.9 | P42: =IF('Inputs and Totals'!C27 = 1,'Solar Profiles'!$Q$3*'Inputs and Totals'!$B$9*'Inputs and Totals'!$B$8*0.001, IF('Inputs and Totals'!C27 =2,'Solar Profiles'!$Q$4*'Inputs and Totals'!$B$8*'Inputs and Totals'!$B$9*0.001,IF('Inputs and Totals'!C27 =3,'Solar Profiles'!$Q$5*'Inputs and Totals'!$B$8*'Inputs and Totals'!$B$9*0.001,"Error"))) -> 799.92 | Q42: =IF('Inputs and Totals'!C27 = 1,'Solar Profiles'!$R$3*'Inputs and Totals'!$B$9*'Inputs and Totals'!$B$8*0.001, IF('Inputs and Totals'!C27 =2,'Solar Profiles'!$R$4*'Inputs and Totals'!$B$8*'Inputs and Totals'!$B$9*0.001,IF('Inputs and Totals'!C27 =3,'Solar Profiles'!$R$5*'Inputs and Totals'!$B$8*'Inputs and Totals'!$B$9*0.001,"Error"))) -> 599.94 | R42: =IF('Inputs and Totals'!C27 = 1,'Solar Profiles'!$S$3*'Inputs and Totals'!$B$9*'Inputs and Totals'!$B$8*0.001, IF('Inputs and Totals'!C27 =2,'Solar Profiles'!$S$4*'Inputs and Totals'!$B$8*'Inputs and Totals'!$B$9*0.001,IF('Inputs and Totals'!C27 =3,'Solar Profiles'!$S$5*'Inputs and Totals'!$B$8*'Inputs and Totals'!$B$9*0.001,"Error"))) -> 399.96 | S42: =IF('Inputs and Totals'!C27 = 1,'Solar Profiles'!$T$3*'Inputs and Totals'!$B$9*'Inputs and Totals'!$B$8*0.001, IF('Inputs and Totals'!C27 =2,'Solar Profiles'!$T$4*'Inputs and Totals'!$B$8*'Inputs and Totals'!$B$9*0.001,IF('Inputs and Totals'!C27 =3,'Solar Profiles'!$T$5*'Inputs and Totals'!$B$8*'Inputs and Totals'!$B$9*0.001,"Error"))) -> 199.98 | T42: =IF('Inputs and Totals'!C27 = 1,'Solar Profiles'!$U$3*'Inputs and Totals'!$B$9*'Inputs and Totals'!$B$8*0.001, IF('Inputs and Totals'!C27 =2,'Solar Profiles'!$U$4*'Inputs and Totals'!$B$8*'Inputs and Totals'!$B$9*0.001,IF('Inputs and Totals'!C27 =3,'Solar Profiles'!$U$5*'Inputs and Totals'!$B$8*'Inputs and Totals'!$B$9*0.001,"Error"))) -> 0 | U42: =IF('Inputs and Totals'!C27 = 1,'Solar Profiles'!$V$3*'Inputs and Totals'!$B$9*'Inputs and Totals'!$B$8*0.001, IF('Inputs and Totals'!C27 =2,'Solar Profiles'!$V$4*'Inputs and Totals'!$B$8*'Inputs and Totals'!$B$9*0.001,IF('Inputs and Totals'!C27 =3,'Solar Profiles'!$V$5*'Inputs and Totals'!$B$8*'Inputs and Totals'!$B$9*0.001,"Error"))) -> 0 | V42: =IF('Inputs and Totals'!C27 = 1,'Solar Profiles'!$W$3*'Inputs and Totals'!$B$9*'Inputs and Totals'!$B$8*0.001, IF('Inputs and Totals'!C27 =2,'Solar Profiles'!$W$4*'Inputs and Totals'!$B$8*'Inputs and Totals'!$B$9*0.001,IF('Inputs and Totals'!C27 =3,'Solar Profiles'!$W$5*'Inputs and Totals'!$B$8*'Inputs and Totals'!$B$9*0.001,"Error"))) -> 0 | W42: =IF('Inputs and Totals'!C27 = 1,'Solar Profiles'!$X$3*'Inputs and Totals'!$B$9*'Inputs and Totals'!$B$8*0.001, IF('Inputs and Totals'!C27 =2,'Solar Profiles'!$X$4*'Inputs and Totals'!$B$8*'Inputs and Totals'!$B$9*0.001,IF('Inputs and Totals'!C27 =3,'Solar Profiles'!$X$5*'Inputs and Totals'!$B$8*'Inputs and Totals'!$B$9*0.001,"Error"))) -> 0 | X42: =IF('Inputs and Totals'!C27 = 1,'Solar Profiles'!$Y$3*'Inputs and Totals'!$B$9*'Inputs and Totals'!$B$8*0.001, IF('Inputs and Totals'!C27 =2,'Solar Profiles'!$Y$4*'Inputs and Totals'!$B$8*'Inputs and Totals'!$B$9*0.001,IF('Inputs and Totals'!C27 =3,'Solar Profiles'!$Y$5*'Inputs and Totals'!$B$8*'Inputs and Totals'!$B$9*0.001,"Error"))) -> 0 | Y42: =IF('Inputs and Totals'!C27 = 1,'Solar Profiles'!$Z$3*'Inputs and Totals'!$B$9*'Inputs and Totals'!$B$8*0.001, IF('Inputs and Totals'!C27 =2,'Solar Profiles'!$Z$4*'Inputs and Totals'!$B$8*'Inputs and Totals'!$B$9*0.001,IF('Inputs and Totals'!C27 =3,'Solar Profiles'!$Z$5*'Inputs and Totals'!$B$8*'Inputs and Totals'!$B$9*0.001,"Error"))) -> 0 | Z42: 5799.42
A43: Day 9 | B43: =IF('Inputs and Totals'!C28 = 1,'Solar Profiles'!$C$3*'Inputs and Totals'!$B$9*'Inputs and Totals'!$B$8*0.001, IF('Inputs and Totals'!C28 =2,'Solar Profiles'!$C$4*'Inputs and Totals'!$B$8*'Inputs and Totals'!$B$9*0.001,IF('Inputs and Totals'!C28 =3,'Solar Profiles'!$C$5*'Inputs and Totals'!$B$8*'Inputs and Totals'!$B$9*0.001,"Error"))) -> 0 | C43: =IF('Inputs and Totals'!C28 = 1,'Solar Profiles'!$D$3*'Inputs and Totals'!$B$9*'Inputs and Totals'!$B$8*0.001, IF('Inputs and Totals'!C28 =2,'Solar Profiles'!$D$4*'Inputs and Totals'!$B$8*'Inputs and Totals'!$B$9*0.001,IF('Inputs and Totals'!C28 =3,'Solar Profiles'!$D$5*'Inputs and Totals'!$B$8*'Inputs and Totals'!$B$9*0.001,"Error"))) -> 0 | D43: =IF('Inputs and Totals'!C28 = 1,'Solar Profiles'!$E$3*'Inputs and Totals'!$B$9*'Inputs and Totals'!$B$8*0.001, IF('Inputs and Totals'!C28 =2,'Solar Profiles'!$E$4*'Inputs and Totals'!$B$8*'Inputs and Totals'!$B$9*0.001,IF('Inputs and Totals'!C28 =3,'Solar Profiles'!$E$5*'Inputs and Totals'!$B$8*'Inputs and Totals'!$B$9*0.001,"Error"))) -> 0 | E43: =IF('Inputs and Totals'!C28 = 1,'Solar Profiles'!$F$3*'Inputs and Totals'!$B$9*'Inputs and Totals'!$B$8*0.001, IF('Inputs and Totals'!C28 =2,'Solar Profiles'!$F$4*'Inputs and Totals'!$B$8*'Inputs and Totals'!$B$9*0.001,IF('Inputs and Totals'!C28 =3,'Solar Profiles'!$F$5*'Inputs and Totals'!$B$8*'Inputs and Totals'!$B$9*0.001,"Error"))) -> 0 | F43: =IF('Inputs and Totals'!C28 = 1,'Solar Profiles'!$G$3*'Inputs and Totals'!$B$9*'Inputs and Totals'!$B$8*0.001, IF('Inputs and Totals'!C28 =2,'Solar Profiles'!$G$4*'Inputs and Totals'!$B$8*'Inputs and Totals'!$B$9*0.001,IF('Inputs and Totals'!C28 =3,'Solar Profiles'!$G$5*'Inputs and Totals'!$B$8*'Inputs and Totals'!$B$9*0.001,"Error"))) -> 0 | G43: =IF('Inputs and Totals'!C28 = 1,'Solar Profiles'!$H$3*'Inputs and Totals'!$B$9*'Inputs and Totals'!$B$8*0.001, IF('Inputs and Totals'!C28 =2,'Solar Profiles'!$H$4*'Inputs and Totals'!$B$8*'Inputs and Totals'!$B$9*0.001,IF('Inputs and Totals'!C28 =3,'Solar Profiles'!$H$5*'Inputs and Totals'!$B$8*'Inputs and Totals'!$B$9*0.001,"Error"))) -> 0 | H43: =IF('Inputs and Totals'!C28 = 1,'Solar Profiles'!$I$3*'Inputs and Totals'!$B$9*'Inputs and Totals'!$B$8*0.001, IF('Inputs and Totals'!C28 =2,'Solar Profiles'!$I$4*'Inputs and Totals'!$B$8*'Inputs and Totals'!$B$9*0.001,IF('Inputs and Totals'!C28 =3,'Solar Profiles'!$I$5*'Inputs and Totals'!$B$8*'Inputs and Totals'!$B$9*0.001,"Error"))) -> 0 | I43: =IF('Inputs and Totals'!C28 = 1,'Solar Profiles'!$J$3*'Inputs and Totals'!$B$9*'Inputs and Totals'!$B$8*0.001, IF('Inputs and Totals'!C28 =2,'Solar Profiles'!$J$4*'Inputs and Totals'!$B$8*'Inputs and Totals'!$B$9*0.001,IF('Inputs and Totals'!C28 =3,'Solar Profiles'!$J$5*'Inputs and Totals'!$B$8*'Inputs and Totals'!$B$9*0.001,"Error"))) -> 199.98 | J43: =IF('Inputs and Totals'!C28 = 1,'Solar Profiles'!$K$3*'Inputs and Totals'!$B$9*'Inputs and Totals'!$B$8*0.001, IF('Inputs and Totals'!C28 =2,'Solar Profiles'!$K$4*'Inputs and Totals'!$B$8*'Inputs and Totals'!$B$9*0.001,IF('Inputs and Totals'!C28 =3,'Solar Profiles'!$K$5*'Inputs and Totals'!$B$8*'Inputs and Totals'!$B$9*0.001,"Error"))) -> 399.96 | K43: =IF('Inputs and Totals'!C28 = 1,'Solar Profiles'!$L$3*'Inputs and Totals'!$B$9*'Inputs and Totals'!$B$8*0.001, IF('Inputs and Totals'!C28 =2,'Solar Profiles'!$L$4*'Inputs and Totals'!$B$8*'Inputs and Totals'!$B$9*0.001,IF('Inputs and Totals'!C28 =3,'Solar Profiles'!$L$5*'Inputs and Totals'!$B$8*'Inputs and Totals'!$B$9*0.001,"Error"))) -> 599.94 | L43: =IF('Inputs and Totals'!C28 = 1,'Solar Profiles'!$M$3*'Inputs and Totals'!$B$9*'Inputs and Totals'!$B$8*0.001, IF('Inputs and Totals'!C28 =2,'Solar Profiles'!$M$4*'Inputs and Totals'!$B$8*'Inputs and Totals'!$B$9*0.001,IF('Inputs and Totals'!C28 =3,'Solar Profiles'!$M$5*'Inputs and Totals'!$B$8*'Inputs and Totals'!$B$9*0.001,"Error"))) -> 799.92 | M43: =IF('Inputs and Totals'!C28 = 1,'Solar Profiles'!$N$3*'Inputs and Totals'!$B$9*'Inputs and Totals'!$B$8*0.001, IF('Inputs and Totals'!C28 =2,'Solar Profiles'!$N$4*'Inputs and Totals'!$B$8*'Inputs and Totals'!$B$9*0.001,IF('Inputs and Totals'!C28 =3,'Solar Profiles'!$N$5*'Inputs and Totals'!$B$8*'Inputs and Totals'!$B$9*0.001,"Error"))) -> 1599.84 | N43: =IF('Inputs and Totals'!C28 = 1,'Solar Profiles'!$O$3*'Inputs and Totals'!$B$9*'Inputs and Totals'!$B$8*0.001, IF('Inputs and Totals'!C28 =2,'Solar Profiles'!$O$4*'Inputs and Totals'!$B$8*'Inputs and Totals'!$B$9*0.001,IF('Inputs and Totals'!C28 =3,'Solar Profiles'!$O$5*'Inputs and Totals'!$B$8*'Inputs and Totals'!$B$9*0.001,"Error"))) -> 1999.8 | O43: =IF('Inputs and Totals'!C28 = 1,'Solar Profiles'!$P$3*'Inputs and Totals'!$B$9*'Inputs and Totals'!$B$8*0.001, IF('Inputs and Totals'!C28 =2,'Solar Profiles'!$P$4*'Inputs and Totals'!$B$8*'Inputs and Totals'!$B$9*0.001,IF('Inputs and Totals'!C28 =3,'Solar Profiles'!$P$5*'Inputs and Totals'!$B$8*'Inputs and Totals'!$B$9*0.001,"Error"))) -> 1999.8 | P43: =IF('Inputs and Totals'!C28 = 1,'Solar Profiles'!$Q$3*'Inputs and Totals'!$B$9*'Inputs and Totals'!$B$8*0.001, IF('Inputs and Totals'!C28 =2,'Solar Profiles'!$Q$4*'Inputs and Totals'!$B$8*'Inputs and Totals'!$B$9*0.001,IF('Inputs and Totals'!C28 =3,'Solar Profiles'!$Q$5*'Inputs and Totals'!$B$8*'Inputs and Totals'!$B$9*0.001,"Error"))) -> 1399.86 | Q43: =IF('Inputs and Totals'!C28 = 1,'Solar Profiles'!$R$3*'Inputs and Totals'!$B$9*'Inputs and Totals'!$B$8*0.001, IF('Inputs and Totals'!C28 =2,'Solar Profiles'!$R$4*'Inputs and Totals'!$B$8*'Inputs and Totals'!$B$9*0.001,IF('Inputs and Totals'!C28 =3,'Solar Profiles'!$R$5*'Inputs and Totals'!$B$8*'Inputs and Totals'!$B$9*0.001,"Error"))) -> 1199.88 | R43: =IF('Inputs and Totals'!C28 = 1,'Solar Profiles'!$S$3*'Inputs and Totals'!$B$9*'Inputs and Totals'!$B$8*0.001, IF('Inputs and Totals'!C28 =2,'Solar Profiles'!$S$4*'Inputs and Totals'!$B$8*'Inputs and Totals'!$B$9*0.001,IF('Inputs and Totals'!C28 =3,'Solar Profiles'!$S$5*'Inputs and Totals'!$B$8*'Inputs and Totals'!$B$9*0.001,"Error"))) -> 999.9 | S43: =IF('Inputs and Totals'!C28 = 1,'Solar Profiles'!$T$3*'Inputs and Totals'!$B$9*'Inputs and Totals'!$B$8*0.001, IF('Inputs and Totals'!C28 =2,'Solar Profiles'!$T$4*'Inputs and Totals'!$B$8*'Inputs and Totals'!$B$9*0.001,IF('Inputs and Totals'!C28 =3,'Solar Profiles'!$T$5*'Inputs and Totals'!$B$8*'Inputs and Totals'!$B$9*0.001,"Error"))) -> 399.96 | T43: =IF('Inputs and Totals'!C28 = 1,'Solar Profiles'!$U$3*'Inputs and Totals'!$B$9*'Inputs and Totals'!$B$8*0.001, IF('Inputs and Totals'!C28 =2,'Solar Profiles'!$U$4*'Inputs and Totals'!$B$8*'Inputs and Totals'!$B$9*0.001,IF('Inputs and Totals'!C28 =3,'Solar Profiles'!$U$5*'Inputs and Totals'!$B$8*'Inputs and Totals'!$B$9*0.001,"Error"))) -> 0 | U43: =IF('Inputs and Totals'!C28 = 1,'Solar Profiles'!$V$3*'Inputs and Totals'!$B$9*'Inputs and Totals'!$B$8*0.001, IF('Inputs and Totals'!C28 =2,'Solar Profiles'!$V$4*'Inputs and Totals'!$B$8*'Inputs and Totals'!$B$9*0.001,IF('Inputs and Totals'!C28 =3,'Solar Profiles'!$V$5*'Inputs and Totals'!$B$8*'Inputs and Totals'!$B$9*0.001,"Error"))) -> 0 | V43: =IF('Inputs and Totals'!C28 = 1,'Solar Profiles'!$W$3*'Inputs and Totals'!$B$9*'Inputs and Totals'!$B$8*0.001, IF('Inputs and Totals'!C28 =2,'Solar Profiles'!$W$4*'Inputs and Totals'!$B$8*'Inputs and Totals'!$B$9*0.001,IF('Inputs and Totals'!C28 =3,'Solar Profiles'!$W$5*'Inputs and Totals'!$B$8*'Inputs and Totals'!$B$9*0.001,"Error"))) -> 0 | W43: =IF('Inputs and Totals'!C28 = 1,'Solar Profiles'!$X$3*'Inputs and Totals'!$B$9*'Inputs and Totals'!$B$8*0.001, IF('Inputs and Totals'!C28 =2,'Solar Profiles'!$X$4*'Inputs and Totals'!$B$8*'Inputs and Totals'!$B$9*0.001,IF('Inputs and Totals'!C28 =3,'Solar Profiles'!$X$5*'Inputs and Totals'!$B$8*'Inputs and Totals'!$B$9*0.001,"Error"))) -> 0 | X43: =IF('Inputs and Totals'!C28 = 1,'Solar Profiles'!$Y$3*'Inputs and Totals'!$B$9*'Inputs and Totals'!$B$8*0.001, IF('Inputs and Totals'!C28 =2,'Solar Profiles'!$Y$4*'Inputs and Totals'!$B$8*'Inputs and Totals'!$B$9*0.001,IF('Inputs and Totals'!C28 =3,'Solar Profiles'!$Y$5*'Inputs and Totals'!$B$8*'Inputs and Totals'!$B$9*0.001,"Error"))) -> 0 | Y43: =IF('Inputs and Totals'!C28 = 1,'Solar Profiles'!$Z$3*'Inputs and Totals'!$B$9*'Inputs and Totals'!$B$8*0.001, IF('Inputs and Totals'!C28 =2,'Solar Profiles'!$Z$4*'Inputs and Totals'!$B$8*'Inputs and Totals'!$B$9*0.001,IF('Inputs and Totals'!C28 =3,'Solar Profiles'!$Z$5*'Inputs and Totals'!$B$8*'Inputs and Totals'!$B$9*0.001,"Error"))) -> 0 | Z43: 11598.84
A44: Day 10 | B44: =IF('Inputs and Totals'!C29 = 1,'Solar Profiles'!$C$3*'Inputs and Totals'!$B$9*'Inputs and Totals'!$B$8*0.001, IF('Inputs and Totals'!C29 =2,'Solar Profiles'!$C$4*'Inputs and Totals'!$B$8*'Inputs and Totals'!$B$9*0.001,IF('Inputs and Totals'!C29 =3,'Solar Profiles'!$C$5*'Inputs and Totals'!$B$8*'Inputs and Totals'!$B$9*0.001,"Error"))) -> 0 | C44: =IF('Inputs and Totals'!C29 = 1,'Solar Profiles'!$D$3*'Inputs and Totals'!$B$9*'Inputs and Totals'!$B$8*0.001, IF('Inputs and Totals'!C29 =2,'Solar Profiles'!$D$4*'Inputs and Totals'!$B$8*'Inputs and Totals'!$B$9*0.001,IF('Inputs and Totals'!C29 =3,'Solar Profiles'!$D$5*'Inputs and Totals'!$B$8*'Inputs and Totals'!$B$9*0.001,"Error"))) -> 0 | D44: =IF('Inputs and Totals'!C29 = 1,'Solar Profiles'!$E$3*'Inputs and Totals'!$B$9*'Inputs and Totals'!$B$8*0.001, IF('Inputs and Totals'!C29 =2,'Solar Profiles'!$E$4*'Inputs and Totals'!$B$8*'Inputs and Totals'!$B$9*0.001,IF('Inputs and Totals'!C29 =3,'Solar Profiles'!$E$5*'Inputs and Totals'!$B$8*'Inputs and Totals'!$B$9*0.001,"Error"))) -> 0 | E44: =IF('Inputs and Totals'!C29 = 1,'Solar Profiles'!$F$3*'Inputs and Totals'!$B$9*'Inputs and Totals'!$B$8*0.001, IF('Inputs and Totals'!C29 =2,'Solar Profiles'!$F$4*'Inputs and Totals'!$B$8*'Inputs and Totals'!$B$9*0.001,IF('Inputs and Totals'!C29 =3,'Solar Profiles'!$F$5*'Inputs and Totals'!$B$8*'Inputs and Totals'!$B$9*0.001,"Error"))) -> 0 | F44: =IF('Inputs and Totals'!C29 = 1,'Solar Profiles'!$G$3*'Inputs and Totals'!$B$9*'Inputs and Totals'!$B$8*0.001, IF('Inputs and Totals'!C29 =2,'Solar Profiles'!$G$4*'Inputs and Totals'!$B$8*'Inputs and Totals'!$B$9*0.001,IF('Inputs and Totals'!C29 =3,'Solar Profiles'!$G$5*'Inputs and Totals'!$B$8*'Inputs and Totals'!$B$9*0.001,"Error"))) -> 0 | G44: =IF('Inputs and Totals'!C29 = 1,'Solar Profiles'!$H$3*'Inputs and Totals'!$B$9*'Inputs and Totals'!$B$8*0.001, IF('Inputs and Totals'!C29 =2,'Solar Profiles'!$H$4*'Inputs and Totals'!$B$8*'Inputs and Totals'!$B$9*0.001,IF('Inputs and Totals'!C29 =3,'Solar Profiles'!$H$5*'Inputs and Totals'!$B$8*'Inputs and Totals'!$B$9*0.001,"Error"))) -> 0 | H44: =IF('Inputs and Totals'!C29 = 1,'Solar Profiles'!$I$3*'Inputs and Totals'!$B$9*'Inputs and Totals'!$B$8*0.001, IF('Inputs and Totals'!C29 =2,'Solar Profiles'!$I$4*'Inputs and Totals'!$B$8*'Inputs and Totals'!$B$9*0.001,IF('Inputs and Totals'!C29 =3,'Solar Profiles'!$I$5*'Inputs and Totals'!$B$8*'Inputs and Totals'!$B$9*0.001,"Error"))) -> 0 | I44: =IF('Inputs and Totals'!C29 = 1,'Solar Profiles'!$J$3*'Inputs and Totals'!$B$9*'Inputs and Totals'!$B$8*0.001, IF('Inputs and Totals'!C29 =2,'Solar Profiles'!$J$4*'Inputs and Totals'!$B$8*'Inputs and Totals'!$B$9*0.001,IF('Inputs and Totals'!C29 =3,'Solar Profiles'!$J$5*'Inputs and Totals'!$B$8*'Inputs and Totals'!$B$9*0.001,"Error"))) -> 199.98 | J44: =IF('Inputs and Totals'!C29 = 1,'Solar Profiles'!$K$3*'Inputs and Totals'!$B$9*'Inputs and Totals'!$B$8*0.001, IF('Inputs and Totals'!C29 =2,'Solar Profiles'!$K$4*'Inputs and Totals'!$B$8*'Inputs and Totals'!$B$9*0.001,IF('Inputs and Totals'!C29 =3,'Solar Profiles'!$K$5*'Inputs and Totals'!$B$8*'Inputs and Totals'!$B$9*0.001,"Error"))) -> 199.98 | K44: =IF('Inputs and Totals'!C29 = 1,'Solar Profiles'!$L$3*'Inputs and Totals'!$B$9*'Inputs and Totals'!$B$8*0.001, IF('Inputs and Totals'!C29 =2,'Solar Profiles'!$L$4*'Inputs and Totals'!$B$8*'Inputs and Totals'!$B$9*0.001,IF('Inputs and Totals'!C29 =3,'Solar Profiles'!$L$5*'Inputs and Totals'!$B$8*'Inputs and Totals'!$B$9*0.001,"Error"))) -> 399.96 | L44: =IF('Inputs and Totals'!C29 = 1,'Solar Profiles'!$M$3*'Inputs and Totals'!$B$9*'Inputs and Totals'!$B$8*0.001, IF('Inputs and Totals'!C29 =2,'Solar Profiles'!$M$4*'Inputs and Totals'!$B$8*'Inputs and Totals'!$B$9*0.001,IF('Inputs and Totals'!C29 =3,'Solar Profiles'!$M$5*'Inputs and Totals'!$B$8*'Inputs and Totals'!$B$9*0.001,"Error"))) -> 599.94 | M44: =IF('Inputs and Totals'!C29 = 1,'Solar Profiles'!$N$3*'Inputs and Totals'!$B$9*'Inputs and Totals'!$B$8*0.001, IF('Inputs and Totals'!C29 =2,'Solar Profiles'!$N$4*'Inputs and Totals'!$B$8*'Inputs and Totals'!$B$9*0.001,IF('Inputs and Totals'!C29 =3,'Solar Profiles'!$N$5*'Inputs and Totals'!$B$8*'Inputs and Totals'!$B$9*0.001,"Error"))) -> 999.9 | N44: =IF('Inputs and Totals'!C29 = 1,'Solar Profiles'!$O$3*'Inputs and Totals'!$B$9*'Inputs and Totals'!$B$8*0.001, IF('Inputs and Totals'!C29 =2,'Solar Profiles'!$O$4*'Inputs and Totals'!$B$8*'Inputs and Totals'!$B$9*0.001,IF('Inputs and Totals'!C29 =3,'Solar Profiles'!$O$5*'Inputs and Totals'!$B$8*'Inputs and Totals'!$B$9*0.001,"Error"))) -> 1799.82 | O44: =IF('Inputs and Totals'!C29 = 1,'Solar Profiles'!$P$3*'Inputs and Totals'!$B$9*'Inputs and Totals'!$B$8*0.001, IF('Inputs and Totals'!C29 =2,'Solar Profiles'!$P$4*'Inputs and Totals'!$B$8*'Inputs and Totals'!$B$9*0.001,IF('Inputs and Totals'!C29 =3,'Solar Profiles'!$P$5*'Inputs and Totals'!$B$8*'Inputs and Totals'!$B$9*0.001,"Error"))) -> 1999.8 | P44: =IF('Inputs and Totals'!C29 = 1,'Solar Profiles'!$Q$3*'Inputs and Totals'!$B$9*'Inputs and Totals'!$B$8*0.001, IF('Inputs and Totals'!C29 =2,'Solar Profiles'!$Q$4*'Inputs and Totals'!$B$8*'Inputs and Totals'!$B$9*0.001,IF('Inputs and Totals'!C29 =3,'Solar Profiles'!$Q$5*'Inputs and Totals'!$B$8*'Inputs and Totals'!$B$9*0.001,"Error"))) -> 1199.88 | Q44: =IF('Inputs and Totals'!C29 = 1,'Solar Profiles'!$R$3*'Inputs and Totals'!$B$9*'Inputs and Totals'!$B$8*0.001, IF('Inputs and Totals'!C29 =2,'Solar Profiles'!$R$4*'Inputs and Totals'!$B$8*'Inputs and Totals'!$B$9*0.001,IF('Inputs and Totals'!C29 =3,'Solar Profiles'!$R$5*'Inputs and Totals'!$B$8*'Inputs and Totals'!$B$9*0.001,"Error"))) -> 999.9 | R44: =IF('Inputs and Totals'!C29 = 1,'Solar Profiles'!$S$3*'Inputs and Totals'!$B$9*'Inputs and Totals'!$B$8*0.001, IF('Inputs and Totals'!C29 =2,'Solar Profiles'!$S$4*'Inputs and Totals'!$B$8*'Inputs and Totals'!$B$9*0.001,IF('Inputs and Totals'!C29 =3,'Solar Profiles'!$S$5*'Inputs and Totals'!$B$8*'Inputs and Totals'!$B$9*0.001,"Error"))) -> 599.94 | S44: =IF('Inputs and Totals'!C29 = 1,'Solar Profiles'!$T$3*'Inputs and Totals'!$B$9*'Inputs and Totals'!$B$8*0.001, IF('Inputs and Totals'!C29 =2,'Solar Profiles'!$T$4*'Inputs and Totals'!$B$8*'Inputs and Totals'!$B$9*0.001,IF('Inputs and Totals'!C29 =3,'Solar Profiles'!$T$5*'Inputs and Totals'!$B$8*'Inputs and Totals'!$B$9*0.001,"Error"))) -> 199.98 | T44: =IF('Inputs and Totals'!C29 = 1,'Solar Profiles'!$U$3*'Inputs and Totals'!$B$9*'Inputs and Totals'!$B$8*0.001, IF('Inputs and Totals'!C29 =2,'Solar Profiles'!$U$4*'Inputs and Totals'!$B$8*'Inputs and Totals'!$B$9*0.001,IF('Inputs and Totals'!C29 =3,'Solar Profiles'!$U$5*'Inputs and Totals'!$B$8*'Inputs and Totals'!$B$9*0.001,"Error"))) -> 0 | U44: =IF('Inputs and Totals'!C29 = 1,'Solar Profiles'!$V$3*'Inputs and Totals'!$B$9*'Inputs and Totals'!$B$8*0.001, IF('Inputs and Totals'!C29 =2,'Solar Profiles'!$V$4*'Inputs and Totals'!$B$8*'Inputs and Totals'!$B$9*0.001,IF('Inputs and Totals'!C29 =3,'Solar Profiles'!$V$5*'Inputs and Totals'!$B$8*'Inputs and Totals'!$B$9*0.001,"Error"))) -> 0 | V44: =IF('Inputs and Totals'!C29 = 1,'Solar Profiles'!$W$3*'Inputs and Totals'!$B$9*'Inputs and Totals'!$B$8*0.001, IF('Inputs and Totals'!C29 =2,'Solar Profiles'!$W$4*'Inputs and Totals'!$B$8*'Inputs and Totals'!$B$9*0.001,IF('Inputs and Totals'!C29 =3,'Solar Profiles'!$W$5*'Inputs and Totals'!$B$8*'Inputs and Totals'!$B$9*0.001,"Error"))) -> 0 | W44: =IF('Inputs and Totals'!C29 = 1,'Solar Profiles'!$X$3*'Inputs and Totals'!$B$9*'Inputs and Totals'!$B$8*0.001, IF('Inputs and Totals'!C29 =2,'Solar Profiles'!$X$4*'Inputs and Totals'!$B$8*'Inputs and Totals'!$B$9*0.001,IF('Inputs and Totals'!C29 =3,'Solar Profiles'!$X$5*'Inputs and Totals'!$B$8*'Inputs and Totals'!$B$9*0.001,"Error"))) -> 0 | X44: =IF('Inputs and Totals'!C29 = 1,'Solar Profiles'!$Y$3*'Inputs and Totals'!$B$9*'Inputs and Totals'!$B$8*0.001, IF('Inputs and Totals'!C29 =2,'Solar Profiles'!$Y$4*'Inputs and Totals'!$B$8*'Inputs and Totals'!$B$9*0.001,IF('Inputs and Totals'!C29 =3,'Solar Profiles'!$Y$5*'Inputs and Totals'!$B$8*'Inputs and Totals'!$B$9*0.001,"Error"))) -> 0 | Y44: =IF('Inputs and Totals'!C29 = 1,'Solar Profiles'!$Z$3*'Inputs and Totals'!$B$9*'Inputs and Totals'!$B$8*0.001, IF('Inputs and Totals'!C29 =2,'Solar Profiles'!$Z$4*'Inputs and Totals'!$B$8*'Inputs and Totals'!$B$9*0.001,IF('Inputs and Totals'!C29 =3,'Solar Profiles'!$Z$5*'Inputs and Totals'!$B$8*'Inputs and Totals'!$B$9*0.001,"Error"))) -> 0 | Z44: 9199.08
A45: Day 11 | B45: =IF('Inputs and Totals'!C30 = 1,'Solar Profiles'!$C$3*'Inputs and Totals'!$B$9*'Inputs and Totals'!$B$8*0.001, IF('Inputs and Totals'!C30 =2,'Solar Profiles'!$C$4*'Inputs and Totals'!$B$8*'Inputs and Totals'!$B$9*0.001,IF('Inputs and Totals'!C30 =3,'Solar Profiles'!$C$5*'Inputs and Totals'!$B$8*'Inputs and Totals'!$B$9*0.001,"Error"))) -> 0 | C45: =IF('Inputs and Totals'!C30 = 1,'Solar Profiles'!$D$3*'Inputs and Totals'!$B$9*'Inputs and Totals'!$B$8*0.001, IF('Inputs and Totals'!C30 =2,'Solar Profiles'!$D$4*'Inputs and Totals'!$B$8*'Inputs and Totals'!$B$9*0.001,IF('Inputs and Totals'!C30 =3,'Solar Profiles'!$D$5*'Inputs and Totals'!$B$8*'Inputs and Totals'!$B$9*0.001,"Error"))) -> 0 | D45: =IF('Inputs and Totals'!C30 = 1,'Solar Profiles'!$E$3*'Inputs and Totals'!$B$9*'Inputs and Totals'!$B$8*0.001, IF('Inputs and Totals'!C30 =2,'Solar Profiles'!$E$4*'Inputs and Totals'!$B$8*'Inputs and Totals'!$B$9*0.001,IF('Inputs and Totals'!C30 =3,'Solar Profiles'!$E$5*'Inputs and Totals'!$B$8*'Inputs and Totals'!$B$9*0.001,"Error"))) -> 0 | E45: =IF('Inputs and Totals'!C30 = 1,'Solar Profiles'!$F$3*'Inputs and Totals'!$B$9*'Inputs and Totals'!$B$8*0.001, IF('Inputs and Totals'!C30 =2,'Solar Profiles'!$F$4*'Inputs and Totals'!$B$8*'Inputs and Totals'!$B$9*0.001,IF('Inputs and Totals'!C30 =3,'Solar Profiles'!$F$5*'Inputs and Totals'!$B$8*'Inputs and Totals'!$B$9*0.001,"Error"))) -> 0 | F45: =IF('Inputs and Totals'!C30 = 1,'Solar Profiles'!$G$3*'Inputs and Totals'!$B$9*'Inputs and Totals'!$B$8*0.001, IF('Inputs and Totals'!C30 =2,'Solar Profiles'!$G$4*'Inputs and Totals'!$B$8*'Inputs and Totals'!$B$9*0.001,IF('Inputs and Totals'!C30 =3,'Solar Profiles'!$G$5*'Inputs and Totals'!$B$8*'Inputs and Totals'!$B$9*0.001,"Error"))) -> 0 | G45: =IF('Inputs and Totals'!C30 = 1,'Solar Profiles'!$H$3*'Inputs and Totals'!$B$9*'Inputs and Totals'!$B$8*0.001, IF('Inputs and Totals'!C30 =2,'Solar Profiles'!$H$4*'Inputs and Totals'!$B$8*'Inputs and Totals'!$B$9*0.001,IF('Inputs and Totals'!C30 =3,'Solar Profiles'!$H$5*'Inputs and Totals'!$B$8*'Inputs and Totals'!$B$9*0.001,"Error"))) -> 0 | H45: =IF('Inputs and Totals'!C30 = 1,'Solar Profiles'!$I$3*'Inputs and Totals'!$B$9*'Inputs and Totals'!$B$8*0.001, IF('Inputs and Totals'!C30 =2,'Solar Profiles'!$I$4*'Inputs and Totals'!$B$8*'Inputs and Totals'!$B$9*0.001,IF('Inputs and Totals'!C30 =3,'Solar Profiles'!$I$5*'Inputs and Totals'!$B$8*'Inputs and Totals'!$B$9*0.001,"Error"))) -> 0 | I45: =IF('Inputs and Totals'!C30 = 1,'Solar Profiles'!$J$3*'Inputs and Totals'!$B$9*'Inputs and Totals'!$B$8*0.001, IF('Inputs and Totals'!C30 =2,'Solar Profiles'!$J$4*'Inputs and Totals'!$B$8*'Inputs and Totals'!$B$9*0.001,IF('Inputs and Totals'!C30 =3,'Solar Profiles'!$J$5*'Inputs and Totals'!$B$8*'Inputs and Totals'!$B$9*0.001,"Error"))) -> 199.98 | J45: =IF('Inputs and Totals'!C30 = 1,'Solar Profiles'!$K$3*'Inputs and Totals'!$B$9*'Inputs and Totals'!$B$8*0.001, IF('Inputs and Totals'!C30 =2,'Solar Profiles'!$K$4*'Inputs and Totals'!$B$8*'Inputs and Totals'!$B$9*0.001,IF('Inputs and Totals'!C30 =3,'Solar Profiles'!$K$5*'Inputs and Totals'!$B$8*'Inputs and Totals'!$B$9*0.001,"Error"))) -> 199.98 | K45: =IF('Inputs and Totals'!C30 = 1,'Solar Profiles'!$L$3*'Inputs and Totals'!$B$9*'Inputs and Totals'!$B$8*0.001, IF('Inputs and Totals'!C30 =2,'Solar Profiles'!$L$4*'Inputs and Totals'!$B$8*'Inputs and Totals'!$B$9*0.001,IF('Inputs and Totals'!C30 =3,'Solar Profiles'!$L$5*'Inputs and Totals'!$B$8*'Inputs and Totals'!$B$9*0.001,"Error"))) -> 399.96 | L45: =IF('Inputs and Totals'!C30 = 1,'Solar Profiles'!$M$3*'Inputs and Totals'!$B$9*'Inputs and Totals'!$B$8*0.001, IF('Inputs and Totals'!C30 =2,'Solar Profiles'!$M$4*'Inputs and Totals'!$B$8*'Inputs and Totals'!$B$9*0.001,IF('Inputs and Totals'!C30 =3,'Solar Profiles'!$M$5*'Inputs and Totals'!$B$8*'Inputs and Totals'!$B$9*0.001,"Error"))) -> 599.94 | M45: =IF('Inputs and Totals'!C30 = 1,'Solar Profiles'!$N$3*'Inputs and Totals'!$B$9*'Inputs and Totals'!$B$8*0.001, IF('Inputs and Totals'!C30 =2,'Solar Profiles'!$N$4*'Inputs and Totals'!$B$8*'Inputs and Totals'!$B$9*0.001,IF('Inputs and Totals'!C30 =3,'Solar Profiles'!$N$5*'Inputs and Totals'!$B$8*'Inputs and Totals'!$B$9*0.001,"Error"))) -> 999.9 | N45: =IF('Inputs and Totals'!C30 = 1,'Solar Profiles'!$O$3*'Inputs and Totals'!$B$9*'Inputs and Totals'!$B$8*0.001, IF('Inputs and Totals'!C30 =2,'Solar Profiles'!$O$4*'Inputs and Totals'!$B$8*'Inputs and Totals'!$B$9*0.001,IF('Inputs and Totals'!C30 =3,'Solar Profiles'!$O$5*'Inputs and Totals'!$B$8*'Inputs and Totals'!$B$9*0.001,"Error"))) -> 1799.82 | O45: =IF('Inputs and Totals'!C30 = 1,'Solar Profiles'!$P$3*'Inputs and Totals'!$B$9*'Inputs and Totals'!$B$8*0.001, IF('Inputs and Totals'!C30 =2,'Solar Profiles'!$P$4*'Inputs and Totals'!$B$8*'Inputs and Totals'!$B$9*0.001,IF('Inputs and Totals'!C30 =3,'Solar Profiles'!$P$5*'Inputs and Totals'!$B$8*'Inputs and Totals'!$B$9*0.001,"Error"))) -> 1999.8 | P45: =IF('Inputs and Totals'!C30 = 1,'Solar Profiles'!$Q$3*'Inputs and Totals'!$B$9*'Inputs and Totals'!$B$8*0.001, IF('Inputs and Totals'!C30 =2,'Solar Profiles'!$Q$4*'Inputs and Totals'!$B$8*'Inputs and Totals'!$B$9*0.001,IF('Inputs and Totals'!C30 =3,'Solar Profiles'!$Q$5*'Inputs and Totals'!$B$8*'Inputs and Totals'!$B$9*0.001,"Error"))) -> 1199.88 | Q45: =IF('Inputs and Totals'!C30 = 1,'Solar Profiles'!$R$3*'Inputs and Totals'!$B$9*'Inputs and Totals'!$B$8*0.001, IF('Inputs and Totals'!C30 =2,'Solar Profiles'!$R$4*'Inputs and Totals'!$B$8*'Inputs and Totals'!$B$9*0.001,IF('Inputs and Totals'!C30 =3,'Solar Profiles'!$R$5*'Inputs and Totals'!$B$8*'Inputs and Totals'!$B$9*0.001,"Error"))) -> 999.9 | R45: =IF('Inputs and Totals'!C30 = 1,'Solar Profiles'!$S$3*'Inputs and Totals'!$B$9*'Inputs and Totals'!$B$8*0.001, IF('Inputs and Totals'!C30 =2,'Solar Profiles'!$S$4*'Inputs and Totals'!$B$8*'Inputs and Totals'!$B$9*0.001,IF('Inputs and Totals'!C30 =3,'Solar Profiles'!$S$5*'Inputs and Totals'!$B$8*'Inputs and Totals'!$B$9*0.001,"Error"))) -> 599.94 | S45: =IF('Inputs and Totals'!C30 = 1,'Solar Profiles'!$T$3*'Inputs and Totals'!$B$9*'Inputs and Totals'!$B$8*0.001, IF('Inputs and Totals'!C30 =2,'Solar Profiles'!$T$4*'Inputs and Totals'!$B$8*'Inputs and Totals'!$B$9*0.001,IF('Inputs and Totals'!C30 =3,'Solar Profiles'!$T$5*'Inputs and Totals'!$B$8*'Inputs and Totals'!$B$9*0.001,"Error"))) -> 199.98 | T45: =IF('Inputs and Totals'!C30 = 1,'Solar Profiles'!$U$3*'Inputs and Totals'!$B$9*'Inputs and Totals'!$B$8*0.001, IF('Inputs and Totals'!C30 =2,'Solar Profiles'!$U$4*'Inputs and Totals'!$B$8*'Inputs and Totals'!$B$9*0.001,IF('Inputs and Totals'!C30 =3,'Solar Profiles'!$U$5*'Inputs and Totals'!$B$8*'Inputs and Totals'!$B$9*0.001,"Error"))) -> 0 | U45: =IF('Inputs and Totals'!C30 = 1,'Solar Profiles'!$V$3*'Inputs and Totals'!$B$9*'Inputs and Totals'!$B$8*0.001, IF('Inputs and Totals'!C30 =2,'Solar Profiles'!$V$4*'Inputs and Totals'!$B$8*'Inputs and Totals'!$B$9*0.001,IF('Inputs and Totals'!C30 =3,'Solar Profiles'!$V$5*'Inputs and Totals'!$B$8*'Inputs and Totals'!$B$9*0.001,"Error"))) -> 0 | V45: =IF('Inputs and Totals'!C30 = 1,'Solar Profiles'!$W$3*'Inputs and Totals'!$B$9*'Inputs and Totals'!$B$8*0.001, IF('Inputs and Totals'!C30 =2,'Solar Profiles'!$W$4*'Inputs and Totals'!$B$8*'Inputs and Totals'!$B$9*0.001,IF('Inputs and Totals'!C30 =3,'Solar Profiles'!$W$5*'Inputs and Totals'!$B$8*'Inputs and Totals'!$B$9*0.001,"Error"))) -> 0 | W45: =IF('Inputs and Totals'!C30 = 1,'Solar Profiles'!$X$3*'Inputs and Totals'!$B$9*'Inputs and Totals'!$B$8*0.001, IF('Inputs and Totals'!C30 =2,'Solar Profiles'!$X$4*'Inputs and Totals'!$B$8*'Inputs and Totals'!$B$9*0.001,IF('Inputs and Totals'!C30 =3,'Solar Profiles'!$X$5*'Inputs and Totals'!$B$8*'Inputs and Totals'!$B$9*0.001,"Error"))) -> 0 | X45: =IF('Inputs and Totals'!C30 = 1,'Solar Profiles'!$Y$3*'Inputs and Totals'!$B$9*'Inputs and Totals'!$B$8*0.001, IF('Inputs and Totals'!C30 =2,'Solar Profiles'!$Y$4*'Inputs and Totals'!$B$8*'Inputs and Totals'!$B$9*0.001,IF('Inputs and Totals'!C30 =3,'Solar Profiles'!$Y$5*'Inputs and Totals'!$B$8*'Inputs and Totals'!$B$9*0.001,"Error"))) -> 0 | Y45: =IF('Inputs and Totals'!C30 = 1,'Solar Profiles'!$Z$3*'Inputs and Totals'!$B$9*'Inputs and Totals'!$B$8*0.001, IF('Inputs and Totals'!C30 =2,'Solar Profiles'!$Z$4*'Inputs and Totals'!$B$8*'Inputs and Totals'!$B$9*0.001,IF('Inputs and Totals'!C30 =3,'Solar Profiles'!$Z$5*'Inputs and Totals'!$B$8*'Inputs and Totals'!$B$9*0.001,"Error"))) -> 0 | Z45: 9199.08
A46: Day 12 | B46: =IF('Inputs and Totals'!C31 = 1,'Solar Profiles'!$C$3*'Inputs and Totals'!$B$9*'Inputs and Totals'!$B$8*0.001, IF('Inputs and Totals'!C31 =2,'Solar Profiles'!$C$4*'Inputs and Totals'!$B$8*'Inputs and Totals'!$B$9*0.001,IF('Inputs and Totals'!C31 =3,'Solar Profiles'!$C$5*'Inputs and Totals'!$B$8*'Inputs and Totals'!$B$9*0.001,"Error"))) -> 0 | C46: =IF('Inputs and Totals'!C31 = 1,'Solar Profiles'!$D$3*'Inputs and Totals'!$B$9*'Inputs and Totals'!$B$8*0.001, IF('Inputs and Totals'!C31 =2,'Solar Profiles'!$D$4*'Inputs and Totals'!$B$8*'Inputs and Totals'!$B$9*0.001,IF('Inputs and Totals'!C31 =3,'Solar Profiles'!$D$5*'Inputs and Totals'!$B$8*'Inputs and Totals'!$B$9*0.001,"Error"))) -> 0 | D46: =IF('Inputs and Totals'!C31 = 1,'Solar Profiles'!$E$3*'Inputs and Totals'!$B$9*'Inputs and Totals'!$B$8*0.001, IF('Inputs and Totals'!C31 =2,'Solar Profiles'!$E$4*'Inputs and Totals'!$B$8*'Inputs and Totals'!$B$9*0.001,IF('Inputs and Totals'!C31 =3,'Solar Profiles'!$E$5*'Inputs and Totals'!$B$8*'Inputs and Totals'!$B$9*0.001,"Error"))) -> 0 | E46: =IF('Inputs and Totals'!C31 = 1,'Solar Profiles'!$F$3*'Inputs and Totals'!$B$9*'Inputs and Totals'!$B$8*0.001, IF('Inputs and Totals'!C31 =2,'Solar Profiles'!$F$4*'Inputs and Totals'!$B$8*'Inputs and Totals'!$B$9*0.001,IF('Inputs and Totals'!C31 =3,'Solar Profiles'!$F$5*'Inputs and Totals'!$B$8*'Inputs and Totals'!$B$9*0.001,"Error"))) -> 0 | F46: =IF('Inputs and Totals'!C31 = 1,'Solar Profiles'!$G$3*'Inputs and Totals'!$B$9*'Inputs and Totals'!$B$8*0.001, IF('Inputs and Totals'!C31 =2,'Solar Profiles'!$G$4*'Inputs and Totals'!$B$8*'Inputs and Totals'!$B$9*0.001,IF('Inputs and Totals'!C31 =3,'Solar Profiles'!$G$5*'Inputs and Totals'!$B$8*'Inputs and Totals'!$B$9*0.001,"Error"))) -> 0 | G46: =IF('Inputs and Totals'!C31 = 1,'Solar Profiles'!$H$3*'Inputs and Totals'!$B$9*'Inputs and Totals'!$B$8*0.001, IF('Inputs and Totals'!C31 =2,'Solar Profiles'!$H$4*'Inputs and Totals'!$B$8*'Inputs and Totals'!$B$9*0.001,IF('Inputs and Totals'!C31 =3,'Solar Profiles'!$H$5*'Inputs and Totals'!$B$8*'Inputs and Totals'!$B$9*0.001,"Error"))) -> 0 | H46: =IF('Inputs and Totals'!C31 = 1,'Solar Profiles'!$I$3*'Inputs and Totals'!$B$9*'Inputs and Totals'!$B$8*0.001, IF('Inputs and Totals'!C31 =2,'Solar Profiles'!$I$4*'Inputs and Totals'!$B$8*'Inputs and Totals'!$B$9*0.001,IF('Inputs and Totals'!C31 =3,'Solar Profiles'!$I$5*'Inputs and Totals'!$B$8*'Inputs and Totals'!$B$9*0.001,"Error"))) -> 0 | I46: =IF('Inputs and Totals'!C31 = 1,'Solar Profiles'!$J$3*'Inputs and Totals'!$B$9*'Inputs and Totals'!$B$8*0.001, IF('Inputs and Totals'!C31 =2,'Solar Profiles'!$J$4*'Inputs and Totals'!$B$8*'Inputs and Totals'!$B$9*0.001,IF('Inputs and Totals'!C31 =3,'Solar Profiles'!$J$5*'Inputs and Totals'!$B$8*'Inputs and Totals'!$B$9*0.001,"Error"))) -> 199.98 | J46: =IF('Inputs and Totals'!C31 = 1,'Solar Profiles'!$K$3*'Inputs and Totals'!$B$9*'Inputs and Totals'!$B$8*0.001, IF('Inputs and Totals'!C31 =2,'Solar Profiles'!$K$4*'Inputs and Totals'!$B$8*'Inputs and Totals'!$B$9*0.001,IF('Inputs and Totals'!C31 =3,'Solar Profiles'!$K$5*'Inputs and Totals'!$B$8*'Inputs and Totals'!$B$9*0.001,"Error"))) -> 199.98 | K46: =IF('Inputs and Totals'!C31 = 1,'Solar Profiles'!$L$3*'Inputs and Totals'!$B$9*'Inputs and Totals'!$B$8*0.001, IF('Inputs and Totals'!C31 =2,'Solar Profiles'!$L$4*'Inputs and Totals'!$B$8*'Inputs and Totals'!$B$9*0.001,IF('Inputs and Totals'!C31 =3,'Solar Profiles'!$L$5*'Inputs and Totals'!$B$8*'Inputs and Totals'!$B$9*0.001,"Error"))) -> 399.96 | L46: =IF('Inputs and Totals'!C31 = 1,'Solar Profiles'!$M$3*'Inputs and Totals'!$B$9*'Inputs and Totals'!$B$8*0.001, IF('Inputs and Totals'!C31 =2,'Solar Profiles'!$M$4*'Inputs and Totals'!$B$8*'Inputs and Totals'!$B$9*0.001,IF('Inputs and Totals'!C31 =3,'Solar Profiles'!$M$5*'Inputs and Totals'!$B$8*'Inputs and Totals'!$B$9*0.001,"Error"))) -> 599.94 | M46: =IF('Inputs and Totals'!C31 = 1,'Solar Profiles'!$N$3*'Inputs and Totals'!$B$9*'Inputs and Totals'!$B$8*0.001, IF('Inputs and Totals'!C31 =2,'Solar Profiles'!$N$4*'Inputs and Totals'!$B$8*'Inputs and Totals'!$B$9*0.001,IF('Inputs and Totals'!C31 =3,'Solar Profiles'!$N$5*'Inputs and Totals'!$B$8*'Inputs and Totals'!$B$9*0.001,"Error"))) -> 999.9 | N46: =IF('Inputs and Totals'!C31 = 1,'Solar Profiles'!$O$3*'Inputs and Totals'!$B$9*'Inputs and Totals'!$B$8*0.001, IF('Inputs and Totals'!C31 =2,'Solar Profiles'!$O$4*'Inputs and Totals'!$B$8*'Inputs and Totals'!$B$9*0.001,IF('Inputs and Totals'!C31 =3,'Solar Profiles'!$O$5*'Inputs and Totals'!$B$8*'Inputs and Totals'!$B$9*0.001,"Error"))) -> 1799.82 | O46: =IF('Inputs and Totals'!C31 = 1,'Solar Profiles'!$P$3*'Inputs and Totals'!$B$9*'Inputs and Totals'!$B$8*0.001, IF('Inputs and Totals'!C31 =2,'Solar Profiles'!$P$4*'Inputs and Totals'!$B$8*'Inputs and Totals'!$B$9*0.001,IF('Inputs and Totals'!C31 =3,'Solar Profiles'!$P$5*'Inputs and Totals'!$B$8*'Inputs and Totals'!$B$9*0.001,"Error"))) -> 1999.8 | P46: =IF('Inputs and Totals'!C31 = 1,'Solar Profiles'!$Q$3*'Inputs and Totals'!$B$9*'Inputs and Totals'!$B$8*0.001, IF('Inputs and Totals'!C31 =2,'Solar Profiles'!$Q$4*'Inputs and Totals'!$B$8*'Inputs and Totals'!$B$9*0.001,IF('Inputs and Totals'!C31 =3,'Solar Profiles'!$Q$5*'Inputs and Totals'!$B$8*'Inputs and Totals'!$B$9*0.001,"Error"))) -> 1199.88 | Q46: =IF('Inputs and Totals'!C31 = 1,'Solar Profiles'!$R$3*'Inputs and Totals'!$B$9*'Inputs and Totals'!$B$8*0.001, IF('Inputs and Totals'!C31 =2,'Solar Profiles'!$R$4*'Inputs and Totals'!$B$8*'Inputs and Totals'!$B$9*0.001,IF('Inputs and Totals'!C31 =3,'Solar Profiles'!$R$5*'Inputs and Totals'!$B$8*'Inputs and Totals'!$B$9*0.001,"Error"))) -> 999.9 | R46: =IF('Inputs and Totals'!C31 = 1,'Solar Profiles'!$S$3*'Inputs and Totals'!$B$9*'Inputs and Totals'!$B$8*0.001, IF('Inputs and Totals'!C31 =2,'Solar Profiles'!$S$4*'Inputs and Totals'!$B$8*'Inputs and Totals'!$B$9*0.001,IF('Inputs and Totals'!C31 =3,'Solar Profiles'!$S$5*'Inputs and Totals'!$B$8*'Inputs and Totals'!$B$9*0.001,"Error"))) -> 599.94 | S46: =IF('Inputs and Totals'!C31 = 1,'Solar Profiles'!$T$3*'Inputs and Totals'!$B$9*'Inputs and Totals'!$B$8*0.001, IF('Inputs and Totals'!C31 =2,'Solar Profiles'!$T$4*'Inputs and Totals'!$B$8*'Inputs and Totals'!$B$9*0.001,IF('Inputs and Totals'!C31 =3,'Solar Profiles'!$T$5*'Inputs and Totals'!$B$8*'Inputs and Totals'!$B$9*0.001,"Error"))) -> 199.98 | T46: =IF('Inputs and Totals'!C31 = 1,'Solar Profiles'!$U$3*'Inputs and Totals'!$B$9*'Inputs and Totals'!$B$8*0.001, IF('Inputs and Totals'!C31 =2,'Solar Profiles'!$U$4*'Inputs and Totals'!$B$8*'Inputs and Totals'!$B$9*0.001,IF('Inputs and Totals'!C31 =3,'Solar Profiles'!$U$5*'Inputs and Totals'!$B$8*'Inputs and Totals'!$B$9*0.001,"Error"))) -> 0 | U46: =IF('Inputs and Totals'!C31 = 1,'Solar Profiles'!$V$3*'Inputs and Totals'!$B$9*'Inputs and Totals'!$B$8*0.001, IF('Inputs and Totals'!C31 =2,'Solar Profiles'!$V$4*'Inputs and Totals'!$B$8*'Inputs and Totals'!$B$9*0.001,IF('Inputs and Totals'!C31 =3,'Solar Profiles'!$V$5*'Inputs and Totals'!$B$8*'Inputs and Totals'!$B$9*0.001,"Error"))) -> 0 | V46: =IF('Inputs and Totals'!C31 = 1,'Solar Profiles'!$W$3*'Inputs and Totals'!$B$9*'Inputs and Totals'!$B$8*0.001, IF('Inputs and Totals'!C31 =2,'Solar Profiles'!$W$4*'Inputs and Totals'!$B$8*'Inputs and Totals'!$B$9*0.001,IF('Inputs and Totals'!C31 =3,'Solar Profiles'!$W$5*'Inputs and Totals'!$B$8*'Inputs and Totals'!$B$9*0.001,"Error"))) -> 0 | W46: =IF('Inputs and Totals'!C31 = 1,'Solar Profiles'!$X$3*'Inputs and Totals'!$B$9*'Inputs and Totals'!$B$8*0.001, IF('Inputs and Totals'!C31 =2,'Solar Profiles'!$X$4*'Inputs and Totals'!$B$8*'Inputs and Totals'!$B$9*0.001,IF('Inputs and Totals'!C31 =3,'Solar Profiles'!$X$5*'Inputs and Totals'!$B$8*'Inputs and Totals'!$B$9*0.001,"Error"))) -> 0 | X46: =IF('Inputs and Totals'!C31 = 1,'Solar Profiles'!$Y$3*'Inputs and Totals'!$B$9*'Inputs and Totals'!$B$8*0.001, IF('Inputs and Totals'!C31 =2,'Solar Profiles'!$Y$4*'Inputs and Totals'!$B$8*'Inputs and Totals'!$B$9*0.001,IF('Inputs and Totals'!C31 =3,'Solar Profiles'!$Y$5*'Inputs and Totals'!$B$8*'Inputs and Totals'!$B$9*0.001,"Error"))) -> 0 | Y46: =IF('Inputs and Totals'!C31 = 1,'Solar Profiles'!$Z$3*'Inputs and Totals'!$B$9*'Inputs and Totals'!$B$8*0.001, IF('Inputs and Totals'!C31 =2,'Solar Profiles'!$Z$4*'Inputs and Totals'!$B$8*'Inputs and Totals'!$B$9*0.001,IF('Inputs and Totals'!C31 =3,'Solar Profiles'!$Z$5*'Inputs and Totals'!$B$8*'Inputs and Totals'!$B$9*0.001,"Error"))) -> 0 | Z46: 9199.08
A47: Day 13 | B47: =IF('Inputs and Totals'!C32 = 1,'Solar Profiles'!$C$3*'Inputs and Totals'!$B$9*'Inputs and Totals'!$B$8*0.001, IF('Inputs and Totals'!C32 =2,'Solar Profiles'!$C$4*'Inputs and Totals'!$B$8*'Inputs and Totals'!$B$9*0.001,IF('Inputs and Totals'!C32 =3,'Solar Profiles'!$C$5*'Inputs and Totals'!$B$8*'Inputs and Totals'!$B$9*0.001,"Error"))) -> 0 | C47: =IF('Inputs and Totals'!C32 = 1,'Solar Profiles'!$D$3*'Inputs and Totals'!$B$9*'Inputs and Totals'!$B$8*0.001, IF('Inputs and Totals'!C32 =2,'Solar Profiles'!$D$4*'Inputs and Totals'!$B$8*'Inputs and Totals'!$B$9*0.001,IF('Inputs and Totals'!C32 =3,'Solar Profiles'!$D$5*'Inputs and Totals'!$B$8*'Inputs and Totals'!$B$9*0.001,"Error"))) -> 0 | D47: =IF('Inputs and Totals'!C32 = 1,'Solar Profiles'!$E$3*'Inputs and Totals'!$B$9*'Inputs and Totals'!$B$8*0.001, IF('Inputs and Totals'!C32 =2,'Solar Profiles'!$E$4*'Inputs and Totals'!$B$8*'Inputs and Totals'!$B$9*0.001,IF('Inputs and Totals'!C32 =3,'Solar Profiles'!$E$5*'Inputs and Totals'!$B$8*'Inputs and Totals'!$B$9*0.001,"Error"))) -> 0 | E47: =IF('Inputs and Totals'!C32 = 1,'Solar Profiles'!$F$3*'Inputs and Totals'!$B$9*'Inputs and Totals'!$B$8*0.001, IF('Inputs and Totals'!C32 =2,'Solar Profiles'!$F$4*'Inputs and Totals'!$B$8*'Inputs and Totals'!$B$9*0.001,IF('Inputs and Totals'!C32 =3,'Solar Profiles'!$F$5*'Inputs and Totals'!$B$8*'Inputs and Totals'!$B$9*0.001,"Error"))) -> 0 | F47: =IF('Inputs and Totals'!C32 = 1,'Solar Profiles'!$G$3*'Inputs and Totals'!$B$9*'Inputs and Totals'!$B$8*0.001, IF('Inputs and Totals'!C32 =2,'Solar Profiles'!$G$4*'Inputs and Totals'!$B$8*'Inputs and Totals'!$B$9*0.001,IF('Inputs and Totals'!C32 =3,'Solar Profiles'!$G$5*'Inputs and Totals'!$B$8*'Inputs and Totals'!$B$9*0.001,"Error"))) -> 0 | G47: =IF('Inputs and Totals'!C32 = 1,'Solar Profiles'!$H$3*'Inputs and Totals'!$B$9*'Inputs and Totals'!$B$8*0.001, IF('Inputs and Totals'!C32 =2,'Solar Profiles'!$H$4*'Inputs and Totals'!$B$8*'Inputs and Totals'!$B$9*0.001,IF('Inputs and Totals'!C32 =3,'Solar Profiles'!$H$5*'Inputs and Totals'!$B$8*'Inputs and Totals'!$B$9*0.001,"Error"))) -> 0 | H47: =IF('Inputs and Totals'!C32 = 1,'Solar Profiles'!$I$3*'Inputs and Totals'!$B$9*'Inputs and Totals'!$B$8*0.001, IF('Inputs and Totals'!C32 =2,'Solar Profiles'!$I$4*'Inputs and Totals'!$B$8*'Inputs and Totals'!$B$9*0.001,IF('Inputs and Totals'!C32 =3,'Solar Profiles'!$I$5*'Inputs and Totals'!$B$8*'Inputs and Totals'!$B$9*0.001,"Error"))) -> 0 | I47: =IF('Inputs and Totals'!C32 = 1,'Solar Profiles'!$J$3*'Inputs and Totals'!$B$9*'Inputs and Totals'!$B$8*0.001, IF('Inputs and Totals'!C32 =2,'Solar Profiles'!$J$4*'Inputs and Totals'!$B$8*'Inputs and Totals'!$B$9*0.001,IF('Inputs and Totals'!C32 =3,'Solar Profiles'!$J$5*'Inputs and Totals'!$B$8*'Inputs and Totals'!$B$9*0.001,"Error"))) -> 199.98 | J47: =IF('Inputs and Totals'!C32 = 1,'Solar Profiles'!$K$3*'Inputs and Totals'!$B$9*'Inputs and Totals'!$B$8*0.001, IF('Inputs and Totals'!C32 =2,'Solar Profiles'!$K$4*'Inputs and Totals'!$B$8*'Inputs and Totals'!$B$9*0.001,IF('Inputs and Totals'!C32 =3,'Solar Profiles'!$K$5*'Inputs and Totals'!$B$8*'Inputs and Totals'!$B$9*0.001,"Error"))) -> 399.96 | K47: =IF('Inputs and Totals'!C32 = 1,'Solar Profiles'!$L$3*'Inputs and Totals'!$B$9*'Inputs and Totals'!$B$8*0.001, IF('Inputs and Totals'!C32 =2,'Solar Profiles'!$L$4*'Inputs and Totals'!$B$8*'Inputs and Totals'!$B$9*0.001,IF('Inputs and Totals'!C32 =3,'Solar Profiles'!$L$5*'Inputs and Totals'!$B$8*'Inputs and Totals'!$B$9*0.001,"Error"))) -> 599.94 | L47: =IF('Inputs and Totals'!C32 = 1,'Solar Profiles'!$M$3*'Inputs and Totals'!$B$9*'Inputs and Totals'!$B$8*0.001, IF('Inputs and Totals'!C32 =2,'Solar Profiles'!$M$4*'Inputs and Totals'!$B$8*'Inputs and Totals'!$B$9*0.001,IF('Inputs and Totals'!C32 =3,'Solar Profiles'!$M$5*'Inputs and Totals'!$B$8*'Inputs and Totals'!$B$9*0.001,"Error"))) -> 799.92 | M47: =IF('Inputs and Totals'!C32 = 1,'Solar Profiles'!$N$3*'Inputs and Totals'!$B$9*'Inputs and Totals'!$B$8*0.001, IF('Inputs and Totals'!C32 =2,'Solar Profiles'!$N$4*'Inputs and Totals'!$B$8*'Inputs and Totals'!$B$9*0.001,IF('Inputs and Totals'!C32 =3,'Solar Profiles'!$N$5*'Inputs and Totals'!$B$8*'Inputs and Totals'!$B$9*0.001,"Error"))) -> 1599.84 | N47: =IF('Inputs and Totals'!C32 = 1,'Solar Profiles'!$O$3*'Inputs and Totals'!$B$9*'Inputs and Totals'!$B$8*0.001, IF('Inputs and Totals'!C32 =2,'Solar Profiles'!$O$4*'Inputs and Totals'!$B$8*'Inputs and Totals'!$B$9*0.001,IF('Inputs and Totals'!C32 =3,'Solar Profiles'!$O$5*'Inputs and Totals'!$B$8*'Inputs and Totals'!$B$9*0.001,"Error"))) -> 1999.8 | O47: =IF('Inputs and Totals'!C32 = 1,'Solar Profiles'!$P$3*'Inputs and Totals'!$B$9*'Inputs and Totals'!$B$8*0.001, IF('Inputs and Totals'!C32 =2,'Solar Profiles'!$P$4*'Inputs and Totals'!$B$8*'Inputs and Totals'!$B$9*0.001,IF('Inputs and Totals'!C32 =3,'Solar Profiles'!$P$5*'Inputs and Totals'!$B$8*'Inputs and Totals'!$B$9*0.001,"Error"))) -> 1999.8 | P47: =IF('Inputs and Totals'!C32 = 1,'Solar Profiles'!$Q$3*'Inputs and Totals'!$B$9*'Inputs and Totals'!$B$8*0.001, IF('Inputs and Totals'!C32 =2,'Solar Profiles'!$Q$4*'Inputs and Totals'!$B$8*'Inputs and Totals'!$B$9*0.001,IF('Inputs and Totals'!C32 =3,'Solar Profiles'!$Q$5*'Inputs and Totals'!$B$8*'Inputs and Totals'!$B$9*0.001,"Error"))) -> 1399.86 | Q47: =IF('Inputs and Totals'!C32 = 1,'Solar Profiles'!$R$3*'Inputs and Totals'!$B$9*'Inputs and Totals'!$B$8*0.001, IF('Inputs and Totals'!C32 =2,'Solar Profiles'!$R$4*'Inputs and Totals'!$B$8*'Inputs and Totals'!$B$9*0.001,IF('Inputs and Totals'!C32 =3,'Solar Profiles'!$R$5*'Inputs and Totals'!$B$8*'Inputs and Totals'!$B$9*0.001,"Error"))) -> 1199.88 | R47: =IF('Inputs and Totals'!C32 = 1,'Solar Profiles'!$S$3*'Inputs and Totals'!$B$9*'Inputs and Totals'!$B$8*0.001, IF('Inputs and Totals'!C32 =2,'Solar Profiles'!$S$4*'Inputs and Totals'!$B$8*'Inputs and Totals'!$B$9*0.001,IF('Inputs and Totals'!C32 =3,'Solar Profiles'!$S$5*'Inputs and Totals'!$B$8*'Inputs and Totals'!$B$9*0.001,"Error"))) -> 999.9 | S47: =IF('Inputs and Totals'!C32 = 1,'Solar Profiles'!$T$3*'Inputs and Totals'!$B$9*'Inputs and Totals'!$B$8*0.001, IF('Inputs and Totals'!C32 =2,'Solar Profiles'!$T$4*'Inputs and Totals'!$B$8*'Inputs and Totals'!$B$9*0.001,IF('Inputs and Totals'!C32 =3,'Solar Profiles'!$T$5*'Inputs and Totals'!$B$8*'Inputs and Totals'!$B$9*0.001,"Error"))) -> 399.96 | T47: =IF('Inputs and Totals'!C32 = 1,'Solar Profiles'!$U$3*'Inputs and Totals'!$B$9*'Inputs and Totals'!$B$8*0.001, IF('Inputs and Totals'!C32 =2,'Solar Profiles'!$U$4*'Inputs and Totals'!$B$8*'Inputs and Totals'!$B$9*0.001,IF('Inputs and Totals'!C32 =3,'Solar Profiles'!$U$5*'Inputs and Totals'!$B$8*'Inputs and Totals'!$B$9*0.001,"Error"))) -> 0 | U47: =IF('Inputs and Totals'!C32 = 1,'Solar Profiles'!$V$3*'Inputs and Totals'!$B$9*'Inputs and Totals'!$B$8*0.001, IF('Inputs and Totals'!C32 =2,'Solar Profiles'!$V$4*'Inputs and Totals'!$B$8*'Inputs and Totals'!$B$9*0.001,IF('Inputs and Totals'!C32 =3,'Solar Profiles'!$V$5*'Inputs and Totals'!$B$8*'Inputs and Totals'!$B$9*0.001,"Error"))) -> 0 | V47: =IF('Inputs and Totals'!C32 = 1,'Solar Profiles'!$W$3*'Inputs and Totals'!$B$9*'Inputs and Totals'!$B$8*0.001, IF('Inputs and Totals'!C32 =2,'Solar Profiles'!$W$4*'Inputs and Totals'!$B$8*'Inputs and Totals'!$B$9*0.001,IF('Inputs and Totals'!C32 =3,'Solar Profiles'!$W$5*'Inputs and Totals'!$B$8*'Inputs and Totals'!$B$9*0.001,"Error"))) -> 0 | W47: =IF('Inputs and Totals'!C32 = 1,'Solar Profiles'!$X$3*'Inputs and Totals'!$B$9*'Inputs and Totals'!$B$8*0.001, IF('Inputs and Totals'!C32 =2,'Solar Profiles'!$X$4*'Inputs and Totals'!$B$8*'Inputs and Totals'!$B$9*0.001,IF('Inputs and Totals'!C32 =3,'Solar Profiles'!$X$5*'Inputs and Totals'!$B$8*'Inputs and Totals'!$B$9*0.001,"Error"))) -> 0 | X47: =IF('Inputs and Totals'!C32 = 1,'Solar Profiles'!$Y$3*'Inputs and Totals'!$B$9*'Inputs and Totals'!$B$8*0.001, IF('Inputs and Totals'!C32 =2,'Solar Profiles'!$Y$4*'Inputs and Totals'!$B$8*'Inputs and Totals'!$B$9*0.001,IF('Inputs and Totals'!C32 =3,'Solar Profiles'!$Y$5*'Inputs and Totals'!$B$8*'Inputs and Totals'!$B$9*0.001,"Error"))) -> 0 | Y47: =IF('Inputs and Totals'!C32 = 1,'Solar Profiles'!$Z$3*'Inputs and Totals'!$B$9*'Inputs and Totals'!$B$8*0.001, IF('Inputs and Totals'!C32 =2,'Solar Profiles'!$Z$4*'Inputs and Totals'!$B$8*'Inputs and Totals'!$B$9*0.001,IF('Inputs and Totals'!C32 =3,'Solar Profiles'!$Z$5*'Inputs and Totals'!$B$8*'Inputs and Totals'!$B$9*0.001,"Error"))) -> 0 | Z47: 11598.84
A48: Day 14 | B48: =IF('Inputs and Totals'!C33 = 1,'Solar Profiles'!$C$3*'Inputs and Totals'!$B$9*'Inputs and Totals'!$B$8*0.001, IF('Inputs and Totals'!C33 =2,'Solar Profiles'!$C$4*'Inputs and Totals'!$B$8*'Inputs and Totals'!$B$9*0.001,IF('Inputs and Totals'!C33 =3,'Solar Profiles'!$C$5*'Inputs and Totals'!$B$8*'Inputs and Totals'!$B$9*0.001,"Error"))) -> 0 | C48: =IF('Inputs and Totals'!C33 = 1,'Solar Profiles'!$D$3*'Inputs and Totals'!$B$9*'Inputs and Totals'!$B$8*0.001, IF('Inputs and Totals'!C33 =2,'Solar Profiles'!$D$4*'Inputs and Totals'!$B$8*'Inputs and Totals'!$B$9*0.001,IF('Inputs and Totals'!C33 =3,'Solar Profiles'!$D$5*'Inputs and Totals'!$B$8*'Inputs and Totals'!$B$9*0.001,"Error"))) -> 0 | D48: =IF('Inputs and Totals'!C33 = 1,'Solar Profiles'!$E$3*'Inputs and Totals'!$B$9*'Inputs and Totals'!$B$8*0.001, IF('Inputs and Totals'!C33 =2,'Solar Profiles'!$E$4*'Inputs and Totals'!$B$8*'Inputs and Totals'!$B$9*0.001,IF('Inputs and Totals'!C33 =3,'Solar Profiles'!$E$5*'Inputs and Totals'!$B$8*'Inputs and Totals'!$B$9*0.001,"Error"))) -> 0 | E48: =IF('Inputs and Totals'!C33 = 1,'Solar Profiles'!$F$3*'Inputs and Totals'!$B$9*'Inputs and Totals'!$B$8*0.001, IF('Inputs and Totals'!C33 =2,'Solar Profiles'!$F$4*'Inputs and Totals'!$B$8*'Inputs and Totals'!$B$9*0.001,IF('Inputs and Totals'!C33 =3,'Solar Profiles'!$F$5*'Inputs and Totals'!$B$8*'Inputs and Totals'!$B$9*0.001,"Error"))) -> 0 | F48: =IF('Inputs and Totals'!C33 = 1,'Solar Profiles'!$G$3*'Inputs and Totals'!$B$9*'Inputs and Totals'!$B$8*0.001, IF('Inputs and Totals'!C33 =2,'Solar Profiles'!$G$4*'Inputs and Totals'!$B$8*'Inputs and Totals'!$B$9*0.001,IF('Inputs and Totals'!C33 =3,'Solar Profiles'!$G$5*'Inputs and Totals'!$B$8*'Inputs and Totals'!$B$9*0.001,"Error"))) -> 0 | G48: =IF('Inputs and Totals'!C33 = 1,'Solar Profiles'!$H$3*'Inputs and Totals'!$B$9*'Inputs and Totals'!$B$8*0.001, IF('Inputs and Totals'!C33 =2,'Solar Profiles'!$H$4*'Inputs and Totals'!$B$8*'Inputs and Totals'!$B$9*0.001,IF('Inputs and Totals'!C33 =3,'Solar Profiles'!$H$5*'Inputs and Totals'!$B$8*'Inputs and Totals'!$B$9*0.001,"Error"))) -> 0 | H48: =IF('Inputs and Totals'!C33 = 1,'Solar Profiles'!$I$3*'Inputs and Totals'!$B$9*'Inputs and Totals'!$B$8*0.001, IF('Inputs and Totals'!C33 =2,'Solar Profiles'!$I$4*'Inputs and Totals'!$B$8*'Inputs and Totals'!$B$9*0.001,IF('Inputs and Totals'!C33 =3,'Solar Profiles'!$I$5*'Inputs and Totals'!$B$8*'Inputs and Totals'!$B$9*0.001,"Error"))) -> 0 | I48: =IF('Inputs and Totals'!C33 = 1,'Solar Profiles'!$J$3*'Inputs and Totals'!$B$9*'Inputs and Totals'!$B$8*0.001, IF('Inputs and Totals'!C33 =2,'Solar Profiles'!$J$4*'Inputs and Totals'!$B$8*'Inputs and Totals'!$B$9*0.001,IF('Inputs and Totals'!C33 =3,'Solar Profiles'!$J$5*'Inputs and Totals'!$B$8*'Inputs and Totals'!$B$9*0.001,"Error"))) -> 199.98 | J48: =IF('Inputs and Totals'!C33 = 1,'Solar Profiles'!$K$3*'Inputs and Totals'!$B$9*'Inputs and Totals'!$B$8*0.001, IF('Inputs and Totals'!C33 =2,'Solar Profiles'!$K$4*'Inputs and Totals'!$B$8*'Inputs and Totals'!$B$9*0.001,IF('Inputs and Totals'!C33 =3,'Solar Profiles'!$K$5*'Inputs and Totals'!$B$8*'Inputs and Totals'!$B$9*0.001,"Error"))) -> 199.98 | K48: =IF('Inputs and Totals'!C33 = 1,'Solar Profiles'!$L$3*'Inputs and Totals'!$B$9*'Inputs and Totals'!$B$8*0.001, IF('Inputs and Totals'!C33 =2,'Solar Profiles'!$L$4*'Inputs and Totals'!$B$8*'Inputs and Totals'!$B$9*0.001,IF('Inputs and Totals'!C33 =3,'Solar Profiles'!$L$5*'Inputs and Totals'!$B$8*'Inputs and Totals'!$B$9*0.001,"Error"))) -> 399.96 | L48: =IF('Inputs and Totals'!C33 = 1,'Solar Profiles'!$M$3*'Inputs and Totals'!$B$9*'Inputs and Totals'!$B$8*0.001, IF('Inputs and Totals'!C33 =2,'Solar Profiles'!$M$4*'Inputs and Totals'!$B$8*'Inputs and Totals'!$B$9*0.001,IF('Inputs and Totals'!C33 =3,'Solar Profiles'!$M$5*'Inputs and Totals'!$B$8*'Inputs and Totals'!$B$9*0.001,"Error"))) -> 599.94 | M48: =IF('Inputs and Totals'!C33 = 1,'Solar Profiles'!$N$3*'Inputs and Totals'!$B$9*'Inputs and Totals'!$B$8*0.001, IF('Inputs and Totals'!C33 =2,'Solar Profiles'!$N$4*'Inputs and Totals'!$B$8*'Inputs and Totals'!$B$9*0.001,IF('Inputs and Totals'!C33 =3,'Solar Profiles'!$N$5*'Inputs and Totals'!$B$8*'Inputs and Totals'!$B$9*0.001,"Error"))) -> 999.9 | N48: =IF('Inputs and Totals'!C33 = 1,'Solar Profiles'!$O$3*'Inputs and Totals'!$B$9*'Inputs and Totals'!$B$8*0.001, IF('Inputs and Totals'!C33 =2,'Solar Profiles'!$O$4*'Inputs and Totals'!$B$8*'Inputs and Totals'!$B$9*0.001,IF('Inputs and Totals'!C33 =3,'Solar Profiles'!$O$5*'Inputs and Totals'!$B$8*'Inputs and Totals'!$B$9*0.001,"Error"))) -> 1799.82 | O48: =IF('Inputs and Totals'!C33 = 1,'Solar Profiles'!$P$3*'Inputs and Totals'!$B$9*'Inputs and Totals'!$B$8*0.001, IF('Inputs and Totals'!C33 =2,'Solar Profiles'!$P$4*'Inputs and Totals'!$B$8*'Inputs and Totals'!$B$9*0.001,IF('Inputs and Totals'!C33 =3,'Solar Profiles'!$P$5*'Inputs and Totals'!$B$8*'Inputs and Totals'!$B$9*0.001,"Error"))) -> 1999.8 | P48: =IF('Inputs and Totals'!C33 = 1,'Solar Profiles'!$Q$3*'Inputs and Totals'!$B$9*'Inputs and Totals'!$B$8*0.001, IF('Inputs and Totals'!C33 =2,'Solar Profiles'!$Q$4*'Inputs and Totals'!$B$8*'Inputs and Totals'!$B$9*0.001,IF('Inputs and Totals'!C33 =3,'Solar Profiles'!$Q$5*'Inputs and Totals'!$B$8*'Inputs and Totals'!$B$9*0.001,"Error"))) -> 1199.88 | Q48: =IF('Inputs and Totals'!C33 = 1,'Solar Profiles'!$R$3*'Inputs and Totals'!$B$9*'Inputs and Totals'!$B$8*0.001, IF('Inputs and Totals'!C33 =2,'Solar Profiles'!$R$4*'Inputs and Totals'!$B$8*'Inputs and Totals'!$B$9*0.001,IF('Inputs and Totals'!C33 =3,'Solar Profiles'!$R$5*'Inputs and Totals'!$B$8*'Inputs and Totals'!$B$9*0.001,"Error"))) -> 999.9 | R48: =IF('Inputs and Totals'!C33 = 1,'Solar Profiles'!$S$3*'Inputs and Totals'!$B$9*'Inputs and Totals'!$B$8*0.001, IF('Inputs and Totals'!C33 =2,'Solar Profiles'!$S$4*'Inputs and Totals'!$B$8*'Inputs and Totals'!$B$9*0.001,IF('Inputs and Totals'!C33 =3,'Solar Profiles'!$S$5*'Inputs and Totals'!$B$8*'Inputs and Totals'!$B$9*0.001,"Error"))) -> 599.94 | S48: =IF('Inputs and Totals'!C33 = 1,'Solar Profiles'!$T$3*'Inputs and Totals'!$B$9*'Inputs and Totals'!$B$8*0.001, IF('Inputs and Totals'!C33 =2,'Solar Profiles'!$T$4*'Inputs and Totals'!$B$8*'Inputs and Totals'!$B$9*0.001,IF('Inputs and Totals'!C33 =3,'Solar Profiles'!$T$5*'Inputs and Totals'!$B$8*'Inputs and Totals'!$B$9*0.001,"Error"))) -> 199.98 | T48: =IF('Inputs and Totals'!C33 = 1,'Solar Profiles'!$U$3*'Inputs and Totals'!$B$9*'Inputs and Totals'!$B$8*0.001, IF('Inputs and Totals'!C33 =2,'Solar Profiles'!$U$4*'Inputs and Totals'!$B$8*'Inputs and Totals'!$B$9*0.001,IF('Inputs and Totals'!C33 =3,'Solar Profiles'!$U$5*'Inputs and Totals'!$B$8*'Inputs and Totals'!$B$9*0.001,"Error"))) -> 0 | U48: =IF('Inputs and Totals'!C33 = 1,'Solar Profiles'!$V$3*'Inputs and Totals'!$B$9*'Inputs and Totals'!$B$8*0.001, IF('Inputs and Totals'!C33 =2,'Solar Profiles'!$V$4*'Inputs and Totals'!$B$8*'Inputs and Totals'!$B$9*0.001,IF('Inputs and Totals'!C33 =3,'Solar Profiles'!$V$5*'Inputs and Totals'!$B$8*'Inputs and Totals'!$B$9*0.001,"Error"))) -> 0 | V48: =IF('Inputs and Totals'!C33 = 1,'Solar Profiles'!$W$3*'Inputs and Totals'!$B$9*'Inputs and Totals'!$B$8*0.001, IF('Inputs and Totals'!C33 =2,'Solar Profiles'!$W$4*'Inputs and Totals'!$B$8*'Inputs and Totals'!$B$9*0.001,IF('Inputs and Totals'!C33 =3,'Solar Profiles'!$W$5*'Inputs and Totals'!$B$8*'Inputs and Totals'!$B$9*0.001,"Error"))) -> 0 | W48: =IF('Inputs and Totals'!C33 = 1,'Solar Profiles'!$X$3*'Inputs and Totals'!$B$9*'Inputs and Totals'!$B$8*0.001, IF('Inputs and Totals'!C33 =2,'Solar Profiles'!$X$4*'Inputs and Totals'!$B$8*'Inputs and Totals'!$B$9*0.001,IF('Inputs and Totals'!C33 =3,'Solar Profiles'!$X$5*'Inputs and Totals'!$B$8*'Inputs and Totals'!$B$9*0.001,"Error"))) -> 0 | X48: =IF('Inputs and Totals'!C33 = 1,'Solar Profiles'!$Y$3*'Inputs and Totals'!$B$9*'Inputs and Totals'!$B$8*0.001, IF('Inputs and Totals'!C33 =2,'Solar Profiles'!$Y$4*'Inputs and Totals'!$B$8*'Inputs and Totals'!$B$9*0.001,IF('Inputs and Totals'!C33 =3,'Solar Profiles'!$Y$5*'Inputs and Totals'!$B$8*'Inputs and Totals'!$B$9*0.001,"Error"))) -> 0 | Y48: =IF('Inputs and Totals'!C33 = 1,'Solar Profiles'!$Z$3*'Inputs and Totals'!$B$9*'Inputs and Totals'!$B$8*0.001, IF('Inputs and Totals'!C33 =2,'Solar Profiles'!$Z$4*'Inputs and Totals'!$B$8*'Inputs and Totals'!$B$9*0.001,IF('Inputs and Totals'!C33 =3,'Solar Profiles'!$Z$5*'Inputs and Totals'!$B$8*'Inputs and Totals'!$B$9*0.001,"Error"))) -> 0 | Z48: 9199.08
A49: Day 15 | B49: =IF('Inputs and Totals'!C34 = 1,'Solar Profiles'!$C$3*'Inputs and Totals'!$B$9*'Inputs and Totals'!$B$8*0.001, IF('Inputs and Totals'!C34 =2,'Solar Profiles'!$C$4*'Inputs and Totals'!$B$8*'Inputs and Totals'!$B$9*0.001,IF('Inputs and Totals'!C34 =3,'Solar Profiles'!$C$5*'Inputs and Totals'!$B$8*'Inputs and Totals'!$B$9*0.001,"Error"))) -> 0 | C49: =IF('Inputs and Totals'!C34 = 1,'Solar Profiles'!$D$3*'Inputs and Totals'!$B$9*'Inputs and Totals'!$B$8*0.001, IF('Inputs and Totals'!C34 =2,'Solar Profiles'!$D$4*'Inputs and Totals'!$B$8*'Inputs and Totals'!$B$9*0.001,IF('Inputs and Totals'!C34 =3,'Solar Profiles'!$D$5*'Inputs and Totals'!$B$8*'Inputs and Totals'!$B$9*0.001,"Error"))) -> 0 | D49: =IF('Inputs and Totals'!C34 = 1,'Solar Profiles'!$E$3*'Inputs and Totals'!$B$9*'Inputs and Totals'!$B$8*0.001, IF('Inputs and Totals'!C34 =2,'Solar Profiles'!$E$4*'Inputs and Totals'!$B$8*'Inputs and Totals'!$B$9*0.001,IF('Inputs and Totals'!C34 =3,'Solar Profiles'!$E$5*'Inputs and Totals'!$B$8*'Inputs and Totals'!$B$9*0.001,"Error"))) -> 0 | E49: =IF('Inputs and Totals'!C34 = 1,'Solar Profiles'!$F$3*'Inputs and Totals'!$B$9*'Inputs and Totals'!$B$8*0.001, IF('Inputs and Totals'!C34 =2,'Solar Profiles'!$F$4*'Inputs and Totals'!$B$8*'Inputs and Totals'!$B$9*0.001,IF('Inputs and Totals'!C34 =3,'Solar Profiles'!$F$5*'Inputs and Totals'!$B$8*'Inputs and Totals'!$B$9*0.001,"Error"))) -> 0 | F49: =IF('Inputs and Totals'!C34 = 1,'Solar Profiles'!$G$3*'Inputs and Totals'!$B$9*'Inputs and Totals'!$B$8*0.001, IF('Inputs and Totals'!C34 =2,'Solar Profiles'!$G$4*'Inputs and Totals'!$B$8*'Inputs and Totals'!$B$9*0.001,IF('Inputs and Totals'!C34 =3,'Solar Profiles'!$G$5*'Inputs and Totals'!$B$8*'Inputs and Totals'!$B$9*0.001,"Error"))) -> 0 | G49: =IF('Inputs and Totals'!C34 = 1,'Solar Profiles'!$H$3*'Inputs and Totals'!$B$9*'Inputs and Totals'!$B$8*0.001, IF('Inputs and Totals'!C34 =2,'Solar Profiles'!$H$4*'Inputs and Totals'!$B$8*'Inputs and Totals'!$B$9*0.001,IF('Inputs and Totals'!C34 =3,'Solar Profiles'!$H$5*'Inputs and Totals'!$B$8*'Inputs and Totals'!$B$9*0.001,"Error"))) -> 0 | H49: =IF('Inputs and Totals'!C34 = 1,'Solar Profiles'!$I$3*'Inputs and Totals'!$B$9*'Inputs and Totals'!$B$8*0.001, IF('Inputs and Totals'!C34 =2,'Solar Profiles'!$I$4*'Inputs and Totals'!$B$8*'Inputs and Totals'!$B$9*0.001,IF('Inputs and Totals'!C34 =3,'Solar Profiles'!$I$5*'Inputs and Totals'!$B$8*'Inputs and Totals'!$B$9*0.001,"Error"))) -> 0 | I49: =IF('Inputs and Totals'!C34 = 1,'Solar Profiles'!$J$3*'Inputs and Totals'!$B$9*'Inputs and Totals'!$B$8*0.001, IF('Inputs and Totals'!C34 =2,'Solar Profiles'!$J$4*'Inputs and Totals'!$B$8*'Inputs and Totals'!$B$9*0.001,IF('Inputs and Totals'!C34 =3,'Solar Profiles'!$J$5*'Inputs and Totals'!$B$8*'Inputs and Totals'!$B$9*0.001,"Error"))) -> 199.98 | J49: =IF('Inputs and Totals'!C34 = 1,'Solar Profiles'!$K$3*'Inputs and Totals'!$B$9*'Inputs and Totals'!$B$8*0.001, IF('Inputs and Totals'!C34 =2,'Solar Profiles'!$K$4*'Inputs and Totals'!$B$8*'Inputs and Totals'!$B$9*0.001,IF('Inputs and Totals'!C34 =3,'Solar Profiles'!$K$5*'Inputs and Totals'!$B$8*'Inputs and Totals'!$B$9*0.001,"Error"))) -> 399.96 | K49: =IF('Inputs and Totals'!C34 = 1,'Solar Profiles'!$L$3*'Inputs and Totals'!$B$9*'Inputs and Totals'!$B$8*0.001, IF('Inputs and Totals'!C34 =2,'Solar Profiles'!$L$4*'Inputs and Totals'!$B$8*'Inputs and Totals'!$B$9*0.001,IF('Inputs and Totals'!C34 =3,'Solar Profiles'!$L$5*'Inputs and Totals'!$B$8*'Inputs and Totals'!$B$9*0.001,"Error"))) -> 599.94 | L49: =IF('Inputs and Totals'!C34 = 1,'Solar Profiles'!$M$3*'Inputs and Totals'!$B$9*'Inputs and Totals'!$B$8*0.001, IF('Inputs and Totals'!C34 =2,'Solar Profiles'!$M$4*'Inputs and Totals'!$B$8*'Inputs and Totals'!$B$9*0.001,IF('Inputs and Totals'!C34 =3,'Solar Profiles'!$M$5*'Inputs and Totals'!$B$8*'Inputs and Totals'!$B$9*0.001,"Error"))) -> 799.92 | M49: =IF('Inputs and Totals'!C34 = 1,'Solar Profiles'!$N$3*'Inputs and Totals'!$B$9*'Inputs and Totals'!$B$8*0.001, IF('Inputs and Totals'!C34 =2,'Solar Profiles'!$N$4*'Inputs and Totals'!$B$8*'Inputs and Totals'!$B$9*0.001,IF('Inputs and Totals'!C34 =3,'Solar Profiles'!$N$5*'Inputs and Totals'!$B$8*'Inputs and Totals'!$B$9*0.001,"Error"))) -> 1599.84 | N49: =IF('Inputs and Totals'!C34 = 1,'Solar Profiles'!$O$3*'Inputs and Totals'!$B$9*'Inputs and Totals'!$B$8*0.001, IF('Inputs and Totals'!C34 =2,'Solar Profiles'!$O$4*'Inputs and Totals'!$B$8*'Inputs and Totals'!$B$9*0.001,IF('Inputs and Totals'!C34 =3,'Solar Profiles'!$O$5*'Inputs and Totals'!$B$8*'Inputs and Totals'!$B$9*0.001,"Error"))) -> 1999.8 | O49: =IF('Inputs and Totals'!C34 = 1,'Solar Profiles'!$P$3*'Inputs and Totals'!$B$9*'Inputs and Totals'!$B$8*0.001, IF('Inputs and Totals'!C34 =2,'Solar Profiles'!$P$4*'Inputs and Totals'!$B$8*'Inputs and Totals'!$B$9*0.001,IF('Inputs and Totals'!C34 =3,'Solar Profiles'!$P$5*'Inputs and Totals'!$B$8*'Inputs and Totals'!$B$9*0.001,"Error"))) -> 1999.8 | P49: =IF('Inputs and Totals'!C34 = 1,'Solar Profiles'!$Q$3*'Inputs and Totals'!$B$9*'Inputs and Totals'!$B$8*0.001, IF('Inputs and Totals'!C34 =2,'Solar Profiles'!$Q$4*'Inputs and Totals'!$B$8*'Inputs and Totals'!$B$9*0.001,IF('Inputs and Totals'!C34 =3,'Solar Profiles'!$Q$5*'Inputs and Totals'!$B$8*'Inputs and Totals'!$B$9*0.001,"Error"))) -> 1399.86 | Q49: =IF('Inputs and Totals'!C34 = 1,'Solar Profiles'!$R$3*'Inputs and Totals'!$B$9*'Inputs and Totals'!$B$8*0.001, IF('Inputs and Totals'!C34 =2,'Solar Profiles'!$R$4*'Inputs and Totals'!$B$8*'Inputs and Totals'!$B$9*0.001,IF('Inputs and Totals'!C34 =3,'Solar Profiles'!$R$5*'Inputs and Totals'!$B$8*'Inputs and Totals'!$B$9*0.001,"Error"))) -> 1199.88 | R49: =IF('Inputs and Totals'!C34 = 1,'Solar Profiles'!$S$3*'Inputs and Totals'!$B$9*'Inputs and Totals'!$B$8*0.001, IF('Inputs and Totals'!C34 =2,'Solar Profiles'!$S$4*'Inputs and Totals'!$B$8*'Inputs and Totals'!$B$9*0.001,IF('Inputs and Totals'!C34 =3,'Solar Profiles'!$S$5*'Inputs and Totals'!$B$8*'Inputs and Totals'!$B$9*0.001,"Error"))) -> 999.9 | S49: =IF('Inputs and Totals'!C34 = 1,'Solar Profiles'!$T$3*'Inputs and Totals'!$B$9*'Inputs and Totals'!$B$8*0.001, IF('Inputs and Totals'!C34 =2,'Solar Profiles'!$T$4*'Inputs and Totals'!$B$8*'Inputs and Totals'!$B$9*0.001,IF('Inputs and Totals'!C34 =3,'Solar Profiles'!$T$5*'Inputs and Totals'!$B$8*'Inputs and Totals'!$B$9*0.001,"Error"))) -> 399.96 | T49: =IF('Inputs and Totals'!C34 = 1,'Solar Profiles'!$U$3*'Inputs and Totals'!$B$9*'Inputs and Totals'!$B$8*0.001, IF('Inputs and Totals'!C34 =2,'Solar Profiles'!$U$4*'Inputs and Totals'!$B$8*'Inputs and Totals'!$B$9*0.001,IF('Inputs and Totals'!C34 =3,'Solar Profiles'!$U$5*'Inputs and Totals'!$B$8*'Inputs and Totals'!$B$9*0.001,"Error"))) -> 0 | U49: =IF('Inputs and Totals'!C34 = 1,'Solar Profiles'!$V$3*'Inputs and Totals'!$B$9*'Inputs and Totals'!$B$8*0.001, IF('Inputs and Totals'!C34 =2,'Solar Profiles'!$V$4*'Inputs and Totals'!$B$8*'Inputs and Totals'!$B$9*0.001,IF('Inputs and Totals'!C34 =3,'Solar Profiles'!$V$5*'Inputs and Totals'!$B$8*'Inputs and Totals'!$B$9*0.001,"Error"))) -> 0 | V49: =IF('Inputs and Totals'!C34 = 1,'Solar Profiles'!$W$3*'Inputs and Totals'!$B$9*'Inputs and Totals'!$B$8*0.001, IF('Inputs and Totals'!C34 =2,'Solar Profiles'!$W$4*'Inputs and Totals'!$B$8*'Inputs and Totals'!$B$9*0.001,IF('Inputs and Totals'!C34 =3,'Solar Profiles'!$W$5*'Inputs and Totals'!$B$8*'Inputs and Totals'!$B$9*0.001,"Error"))) -> 0 | W49: =IF('Inputs and Totals'!C34 = 1,'Solar Profiles'!$X$3*'Inputs and Totals'!$B$9*'Inputs and Totals'!$B$8*0.001, IF('Inputs and Totals'!C34 =2,'Solar Profiles'!$X$4*'Inputs and Totals'!$B$8*'Inputs and Totals'!$B$9*0.001,IF('Inputs and Totals'!C34 =3,'Solar Profiles'!$X$5*'Inputs and Totals'!$B$8*'Inputs and Totals'!$B$9*0.001,"Error"))) -> 0 | X49: =IF('Inputs and Totals'!C34 = 1,'Solar Profiles'!$Y$3*'Inputs and Totals'!$B$9*'Inputs and Totals'!$B$8*0.001, IF('Inputs and Totals'!C34 =2,'Solar Profiles'!$Y$4*'Inputs and Totals'!$B$8*'Inputs and Totals'!$B$9*0.001,IF('Inputs and Totals'!C34 =3,'Solar Profiles'!$Y$5*'Inputs and Totals'!$B$8*'Inputs and Totals'!$B$9*0.001,"Error"))) -> 0 | Y49: =IF('Inputs and Totals'!C34 = 1,'Solar Profiles'!$Z$3*'Inputs and Totals'!$B$9*'Inputs and Totals'!$B$8*0.001, IF('Inputs and Totals'!C34 =2,'Solar Profiles'!$Z$4*'Inputs and Totals'!$B$8*'Inputs and Totals'!$B$9*0.001,IF('Inputs and Totals'!C34 =3,'Solar Profiles'!$Z$5*'Inputs and Totals'!$B$8*'Inputs and Totals'!$B$9*0.001,"Error"))) -> 0 | Z49: 11598.84
A50: Day 16 | B50: =IF('Inputs and Totals'!C35 = 1,'Solar Profiles'!$C$3*'Inputs and Totals'!$B$9*'Inputs and Totals'!$B$8*0.001, IF('Inputs and Totals'!C35 =2,'Solar Profiles'!$C$4*'Inputs and Totals'!$B$8*'Inputs and Totals'!$B$9*0.001,IF('Inputs and Totals'!C35 =3,'Solar Profiles'!$C$5*'Inputs and Totals'!$B$8*'Inputs and Totals'!$B$9*0.001,"Error"))) -> 0 | C50: =IF('Inputs and Totals'!C35 = 1,'Solar Profiles'!$D$3*'Inputs and Totals'!$B$9*'Inputs and Totals'!$B$8*0.001, IF('Inputs and Totals'!C35 =2,'Solar Profiles'!$D$4*'Inputs and Totals'!$B$8*'Inputs and Totals'!$B$9*0.001,IF('Inputs and Totals'!C35 =3,'Solar Profiles'!$D$5*'Inputs and Totals'!$B$8*'Inputs and Totals'!$B$9*0.001,"Error"))) -> 0 | D50: =IF('Inputs and Totals'!C35 = 1,'Solar Profiles'!$E$3*'Inputs and Totals'!$B$9*'Inputs and Totals'!$B$8*0.001, IF('Inputs and Totals'!C35 =2,'Solar Profiles'!$E$4*'Inputs and Totals'!$B$8*'Inputs and Totals'!$B$9*0.001,IF('Inputs and Totals'!C35 =3,'Solar Profiles'!$E$5*'Inputs and Totals'!$B$8*'Inputs and Totals'!$B$9*0.001,"Error"))) -> 0 | E50: =IF('Inputs and Totals'!C35 = 1,'Solar Profiles'!$F$3*'Inputs and Totals'!$B$9*'Inputs and Totals'!$B$8*0.001, IF('Inputs and Totals'!C35 =2,'Solar Profiles'!$F$4*'Inputs and Totals'!$B$8*'Inputs and Totals'!$B$9*0.001,IF('Inputs and Totals'!C35 =3,'Solar Profiles'!$F$5*'Inputs and Totals'!$B$8*'Inputs and Totals'!$B$9*0.001,"Error"))) -> 0 | F50: =IF('Inputs and Totals'!C35 = 1,'Solar Profiles'!$G$3*'Inputs and Totals'!$B$9*'Inputs and Totals'!$B$8*0.001, IF('Inputs and Totals'!C35 =2,'Solar Profiles'!$G$4*'Inputs and Totals'!$B$8*'Inputs and Totals'!$B$9*0.001,IF('Inputs and Totals'!C35 =3,'Solar Profiles'!$G$5*'Inputs and Totals'!$B$8*'Inputs and Totals'!$B$9*0.001,"Error"))) -> 0 | G50: =IF('Inputs and Totals'!C35 = 1,'Solar Profiles'!$H$3*'Inputs and Totals'!$B$9*'Inputs and Totals'!$B$8*0.001, IF('Inputs and Totals'!C35 =2,'Solar Profiles'!$H$4*'Inputs and Totals'!$B$8*'Inputs and Totals'!$B$9*0.001,IF('Inputs and Totals'!C35 =3,'Solar Profiles'!$H$5*'Inputs and Totals'!$B$8*'Inputs and Totals'!$B$9*0.001,"Error"))) -> 0 | H50: =IF('Inputs and Totals'!C35 = 1,'Solar Profiles'!$I$3*'Inputs and Totals'!$B$9*'Inputs and Totals'!$B$8*0.001, IF('Inputs and Totals'!C35 =2,'Solar Profiles'!$I$4*'Inputs and Totals'!$B$8*'Inputs and Totals'!$B$9*0.001,IF('Inputs and Totals'!C35 =3,'Solar Profiles'!$I$5*'Inputs and Totals'!$B$8*'Inputs and Totals'!$B$9*0.001,"Error"))) -> 0 | I50: =IF('Inputs and Totals'!C35 = 1,'Solar Profiles'!$J$3*'Inputs and Totals'!$B$9*'Inputs and Totals'!$B$8*0.001, IF('Inputs and Totals'!C35 =2,'Solar Profiles'!$J$4*'Inputs and Totals'!$B$8*'Inputs and Totals'!$B$9*0.001,IF('Inputs and Totals'!C35 =3,'Solar Profiles'!$J$5*'Inputs and Totals'!$B$8*'Inputs and Totals'!$B$9*0.001,"Error"))) -> 199.98 | J50: =IF('Inputs and Totals'!C35 = 1,'Solar Profiles'!$K$3*'Inputs and Totals'!$B$9*'Inputs and Totals'!$B$8*0.001, IF('Inputs and Totals'!C35 =2,'Solar Profiles'!$K$4*'Inputs and Totals'!$B$8*'Inputs and Totals'!$B$9*0.001,IF('Inputs and Totals'!C35 =3,'Solar Profiles'!$K$5*'Inputs and Totals'!$B$8*'Inputs and Totals'!$B$9*0.001,"Error"))) -> 399.96 | K50: =IF('Inputs and Totals'!C35 = 1,'Solar Profiles'!$L$3*'Inputs and Totals'!$B$9*'Inputs and Totals'!$B$8*0.001, IF('Inputs and Totals'!C35 =2,'Solar Profiles'!$L$4*'Inputs and Totals'!$B$8*'Inputs and Totals'!$B$9*0.001,IF('Inputs and Totals'!C35 =3,'Solar Profiles'!$L$5*'Inputs and Totals'!$B$8*'Inputs and Totals'!$B$9*0.001,"Error"))) -> 599.94 | L50: =IF('Inputs and Totals'!C35 = 1,'Solar Profiles'!$M$3*'Inputs and Totals'!$B$9*'Inputs and Totals'!$B$8*0.001, IF('Inputs and Totals'!C35 =2,'Solar Profiles'!$M$4*'Inputs and Totals'!$B$8*'Inputs and Totals'!$B$9*0.001,IF('Inputs and Totals'!C35 =3,'Solar Profiles'!$M$5*'Inputs and Totals'!$B$8*'Inputs and Totals'!$B$9*0.001,"Error"))) -> 799.92 | M50: =IF('Inputs and Totals'!C35 = 1,'Solar Profiles'!$N$3*'Inputs and Totals'!$B$9*'Inputs and Totals'!$B$8*0.001, IF('Inputs and Totals'!C35 =2,'Solar Profiles'!$N$4*'Inputs and Totals'!$B$8*'Inputs and Totals'!$B$9*0.001,IF('Inputs and Totals'!C35 =3,'Solar Profiles'!$N$5*'Inputs and Totals'!$B$8*'Inputs and Totals'!$B$9*0.001,"Error"))) -> 1599.84 | N50: =IF('Inputs and Totals'!C35 = 1,'Solar Profiles'!$O$3*'Inputs and Totals'!$B$9*'Inputs and Totals'!$B$8*0.001, IF('Inputs and Totals'!C35 =2,'Solar Profiles'!$O$4*'Inputs and Totals'!$B$8*'Inputs and Totals'!$B$9*0.001,IF('Inputs and Totals'!C35 =3,'Solar Profiles'!$O$5*'Inputs and Totals'!$B$8*'Inputs and Totals'!$B$9*0.001,"Error"))) -> 1999.8 | O50: =IF('Inputs and Totals'!C35 = 1,'Solar Profiles'!$P$3*'Inputs and Totals'!$B$9*'Inputs and Totals'!$B$8*0.001, IF('Inputs and Totals'!C35 =2,'Solar Profiles'!$P$4*'Inputs and Totals'!$B$8*'Inputs and Totals'!$B$9*0.001,IF('Inputs and Totals'!C35 =3,'Solar Profiles'!$P$5*'Inputs and Totals'!$B$8*'Inputs and Totals'!$B$9*0.001,"Error"))) -> 1999.8 | P50: =IF('Inputs and Totals'!C35 = 1,'Solar Profiles'!$Q$3*'Inputs and Totals'!$B$9*'Inputs and Totals'!$B$8*0.001, IF('Inputs and Totals'!C35 =2,'Solar Profiles'!$Q$4*'Inputs and Totals'!$B$8*'Inputs and Totals'!$B$9*0.001,IF('Inputs and Totals'!C35 =3,'Solar Profiles'!$Q$5*'Inputs and Totals'!$B$8*'Inputs and Totals'!$B$9*0.001,"Error"))) -> 1399.86 | Q50: =IF('Inputs and Totals'!C35 = 1,'Solar Profiles'!$R$3*'Inputs and Totals'!$B$9*'Inputs and Totals'!$B$8*0.001, IF('Inputs and Totals'!C35 =2,'Solar Profiles'!$R$4*'Inputs and Totals'!$B$8*'Inputs and Totals'!$B$9*0.001,IF('Inputs and Totals'!C35 =3,'Solar Profiles'!$R$5*'Inputs and Totals'!$B$8*'Inputs and Totals'!$B$9*0.001,"Error"))) -> 1199.88 | R50: =IF('Inputs and Totals'!C35 = 1,'Solar Profiles'!$S$3*'Inputs and Totals'!$B$9*'Inputs and Totals'!$B$8*0.001, IF('Inputs and Totals'!C35 =2,'Solar Profiles'!$S$4*'Inputs and Totals'!$B$8*'Inputs and Totals'!$B$9*0.001,IF('Inputs and Totals'!C35 =3,'Solar Profiles'!$S$5*'Inputs and Totals'!$B$8*'Inputs and Totals'!$B$9*0.001,"Error"))) -> 999.9 | S50: =IF('Inputs and Totals'!C35 = 1,'Solar Profiles'!$T$3*'Inputs and Totals'!$B$9*'Inputs and Totals'!$B$8*0.001, IF('Inputs and Totals'!C35 =2,'Solar Profiles'!$T$4*'Inputs and Totals'!$B$8*'Inputs and Totals'!$B$9*0.001,IF('Inputs and Totals'!C35 =3,'Solar Profiles'!$T$5*'Inputs and Totals'!$B$8*'Inputs and Totals'!$B$9*0.001,"Error"))) -> 399.96 | T50: =IF('Inputs and Totals'!C35 = 1,'Solar Profiles'!$U$3*'Inputs and Totals'!$B$9*'Inputs and Totals'!$B$8*0.001, IF('Inputs and Totals'!C35 =2,'Solar Profiles'!$U$4*'Inputs and Totals'!$B$8*'Inputs and Totals'!$B$9*0.001,IF('Inputs and Totals'!C35 =3,'Solar Profiles'!$U$5*'Inputs and Totals'!$B$8*'Inputs and Totals'!$B$9*0.001,"Error"))) -> 0 | U50: =IF('Inputs and Totals'!C35 = 1,'Solar Profiles'!$V$3*'Inputs and Totals'!$B$9*'Inputs and Totals'!$B$8*0.001, IF('Inputs and Totals'!C35 =2,'Solar Profiles'!$V$4*'Inputs and Totals'!$B$8*'Inputs and Totals'!$B$9*0.001,IF('Inputs and Totals'!C35 =3,'Solar Profiles'!$V$5*'Inputs and Totals'!$B$8*'Inputs and Totals'!$B$9*0.001,"Error"))) -> 0 | V50: =IF('Inputs and Totals'!C35 = 1,'Solar Profiles'!$W$3*'Inputs and Totals'!$B$9*'Inputs and Totals'!$B$8*0.001, IF('Inputs and Totals'!C35 =2,'Solar Profiles'!$W$4*'Inputs and Totals'!$B$8*'Inputs and Totals'!$B$9*0.001,IF('Inputs and Totals'!C35 =3,'Solar Profiles'!$W$5*'Inputs and Totals'!$B$8*'Inputs and Totals'!$B$9*0.001,"Error"))) -> 0 | W50: =IF('Inputs and Totals'!C35 = 1,'Solar Profiles'!$X$3*'Inputs and Totals'!$B$9*'Inputs and Totals'!$B$8*0.001, IF('Inputs and Totals'!C35 =2,'Solar Profiles'!$X$4*'Inputs and Totals'!$B$8*'Inputs and Totals'!$B$9*0.001,IF('Inputs and Totals'!C35 =3,'Solar Profiles'!$X$5*'Inputs and Totals'!$B$8*'Inputs and Totals'!$B$9*0.001,"Error"))) -> 0 | X50: =IF('Inputs and Totals'!C35 = 1,'Solar Profiles'!$Y$3*'Inputs and Totals'!$B$9*'Inputs and Totals'!$B$8*0.001, IF('Inputs and Totals'!C35 =2,'Solar Profiles'!$Y$4*'Inputs and Totals'!$B$8*'Inputs and Totals'!$B$9*0.001,IF('Inputs and Totals'!C35 =3,'Solar Profiles'!$Y$5*'Inputs and Totals'!$B$8*'Inputs and Totals'!$B$9*0.001,"Error"))) -> 0 | Y50: =IF('Inputs and Totals'!C35 = 1,'Solar Profiles'!$Z$3*'Inputs and Totals'!$B$9*'Inputs and Totals'!$B$8*0.001, IF('Inputs and Totals'!C35 =2,'Solar Profiles'!$Z$4*'Inputs and Totals'!$B$8*'Inputs and Totals'!$B$9*0.001,IF('Inputs and Totals'!C35 =3,'Solar Profiles'!$Z$5*'Inputs and Totals'!$B$8*'Inputs and Totals'!$B$9*0.001,"Error"))) -> 0 | Z50: 11598.84
A51: Day 17 | B51: =IF('Inputs and Totals'!C36 = 1,'Solar Profiles'!$C$3*'Inputs and Totals'!$B$9*'Inputs and Totals'!$B$8*0.001, IF('Inputs and Totals'!C36 =2,'Solar Profiles'!$C$4*'Inputs and Totals'!$B$8*'Inputs and Totals'!$B$9*0.001,IF('Inputs and Totals'!C36 =3,'Solar Profiles'!$C$5*'Inputs and Totals'!$B$8*'Inputs and Totals'!$B$9*0.001,"Error"))) -> 0 | C51: =IF('Inputs and Totals'!C36 = 1,'Solar Profiles'!$D$3*'Inputs and Totals'!$B$9*'Inputs and Totals'!$B$8*0.001, IF('Inputs and Totals'!C36 =2,'Solar Profiles'!$D$4*'Inputs and Totals'!$B$8*'Inputs and Totals'!$B$9*0.001,IF('Inputs and Totals'!C36 =3,'Solar Profiles'!$D$5*'Inputs and Totals'!$B$8*'Inputs and Totals'!$B$9*0.001,"Error"))) -> 0 | D51: =IF('Inputs and Totals'!C36 = 1,'Solar Profiles'!$E$3*'Inputs and Totals'!$B$9*'Inputs and Totals'!$B$8*0.001, IF('Inputs and Totals'!C36 =2,'Solar Profiles'!$E$4*'Inputs and Totals'!$B$8*'Inputs and Totals'!$B$9*0.001,IF('Inputs and Totals'!C36 =3,'Solar Profiles'!$E$5*'Inputs and Totals'!$B$8*'Inputs and Totals'!$B$9*0.001,"Error"))) -> 0 | E51: =IF('Inputs and Totals'!C36 = 1,'Solar Profiles'!$F$3*'Inputs and Totals'!$B$9*'Inputs and Totals'!$B$8*0.001, IF('Inputs and Totals'!C36 =2,'Solar Profiles'!$F$4*'Inputs and Totals'!$B$8*'Inputs and Totals'!$B$9*0.001,IF('Inputs and Totals'!C36 =3,'Solar Profiles'!$F$5*'Inputs and Totals'!$B$8*'Inputs and Totals'!$B$9*0.001,"Error"))) -> 0 | F51: =IF('Inputs and Totals'!C36 = 1,'Solar Profiles'!$G$3*'Inputs and Totals'!$B$9*'Inputs and Totals'!$B$8*0.001, IF('Inputs and Totals'!C36 =2,'Solar Profiles'!$G$4*'Inputs and Totals'!$B$8*'Inputs and Totals'!$B$9*0.001,IF('Inputs and Totals'!C36 =3,'Solar Profiles'!$G$5*'Inputs and Totals'!$B$8*'Inputs and Totals'!$B$9*0.001,"Error"))) -> 0 | G51: =IF('Inputs and Totals'!C36 = 1,'Solar Profiles'!$H$3*'Inputs and Totals'!$B$9*'Inputs and Totals'!$B$8*0.001, IF('Inputs and Totals'!C36 =2,'Solar Profiles'!$H$4*'Inputs and Totals'!$B$8*'Inputs and Totals'!$B$9*0.001,IF('Inputs and Totals'!C36 =3,'Solar Profiles'!$H$5*'Inputs and Totals'!$B$8*'Inputs and Totals'!$B$9*0.001,"Error"))) -> 0 | H51: =IF('Inputs and Totals'!C36 = 1,'Solar Profiles'!$I$3*'Inputs and Totals'!$B$9*'Inputs and Totals'!$B$8*0.001, IF('Inputs and Totals'!C36 =2,'Solar Profiles'!$I$4*'Inputs and Totals'!$B$8*'Inputs and Totals'!$B$9*0.001,IF('Inputs and Totals'!C36 =3,'Solar Profiles'!$I$5*'Inputs and Totals'!$B$8*'Inputs and Totals'!$B$9*0.001,"Error"))) -> 0 | I51: =IF('Inputs and Totals'!C36 = 1,'Solar Profiles'!$J$3*'Inputs and Totals'!$B$9*'Inputs and Totals'!$B$8*0.001, IF('Inputs and Totals'!C36 =2,'Solar Profiles'!$J$4*'Inputs and Totals'!$B$8*'Inputs and Totals'!$B$9*0.001,IF('Inputs and Totals'!C36 =3,'Solar Profiles'!$J$5*'Inputs and Totals'!$B$8*'Inputs and Totals'!$B$9*0.001,"Error"))) -> 99.99 | J51: =IF('Inputs and Totals'!C36 = 1,'Solar Profiles'!$K$3*'Inputs and Totals'!$B$9*'Inputs and Totals'!$B$8*0.001, IF('Inputs and Totals'!C36 =2,'Solar Profiles'!$K$4*'Inputs and Totals'!$B$8*'Inputs and Totals'!$B$9*0.001,IF('Inputs and Totals'!C36 =3,'Solar Profiles'!$K$5*'Inputs and Totals'!$B$8*'Inputs and Totals'!$B$9*0.001,"Error"))) -> 199.98 | K51: =IF('Inputs and Totals'!C36 = 1,'Solar Profiles'!$L$3*'Inputs and Totals'!$B$9*'Inputs and Totals'!$B$8*0.001, IF('Inputs and Totals'!C36 =2,'Solar Profiles'!$L$4*'Inputs and Totals'!$B$8*'Inputs and Totals'!$B$9*0.001,IF('Inputs and Totals'!C36 =3,'Solar Profiles'!$L$5*'Inputs and Totals'!$B$8*'Inputs and Totals'!$B$9*0.001,"Error"))) -> 299.97 | L51: =IF('Inputs and Totals'!C36 = 1,'Solar Profiles'!$M$3*'Inputs and Totals'!$B$9*'Inputs and Totals'!$B$8*0.001, IF('Inputs and Totals'!C36 =2,'Solar Profiles'!$M$4*'Inputs and Totals'!$B$8*'Inputs and Totals'!$B$9*0.001,IF('Inputs and Totals'!C36 =3,'Solar Profiles'!$M$5*'Inputs and Totals'!$B$8*'Inputs and Totals'!$B$9*0.001,"Error"))) -> 399.96 | M51: =IF('Inputs and Totals'!C36 = 1,'Solar Profiles'!$N$3*'Inputs and Totals'!$B$9*'Inputs and Totals'!$B$8*0.001, IF('Inputs and Totals'!C36 =2,'Solar Profiles'!$N$4*'Inputs and Totals'!$B$8*'Inputs and Totals'!$B$9*0.001,IF('Inputs and Totals'!C36 =3,'Solar Profiles'!$N$5*'Inputs and Totals'!$B$8*'Inputs and Totals'!$B$9*0.001,"Error"))) -> 799.92 | N51: =IF('Inputs and Totals'!C36 = 1,'Solar Profiles'!$O$3*'Inputs and Totals'!$B$9*'Inputs and Totals'!$B$8*0.001, IF('Inputs and Totals'!C36 =2,'Solar Profiles'!$O$4*'Inputs and Totals'!$B$8*'Inputs and Totals'!$B$9*0.001,IF('Inputs and Totals'!C36 =3,'Solar Profiles'!$O$5*'Inputs and Totals'!$B$8*'Inputs and Totals'!$B$9*0.001,"Error"))) -> 999.9 | O51: =IF('Inputs and Totals'!C36 = 1,'Solar Profiles'!$P$3*'Inputs and Totals'!$B$9*'Inputs and Totals'!$B$8*0.001, IF('Inputs and Totals'!C36 =2,'Solar Profiles'!$P$4*'Inputs and Totals'!$B$8*'Inputs and Totals'!$B$9*0.001,IF('Inputs and Totals'!C36 =3,'Solar Profiles'!$P$5*'Inputs and Totals'!$B$8*'Inputs and Totals'!$B$9*0.001,"Error"))) -> 999.9 | P51: =IF('Inputs and Totals'!C36 = 1,'Solar Profiles'!$Q$3*'Inputs and Totals'!$B$9*'Inputs and Totals'!$B$8*0.001, IF('Inputs and Totals'!C36 =2,'Solar Profiles'!$Q$4*'Inputs and Totals'!$B$8*'Inputs and Totals'!$B$9*0.001,IF('Inputs and Totals'!C36 =3,'Solar Profiles'!$Q$5*'Inputs and Totals'!$B$8*'Inputs and Totals'!$B$9*0.001,"Error"))) -> 799.92 | Q51: =IF('Inputs and Totals'!C36 = 1,'Solar Profiles'!$R$3*'Inputs and Totals'!$B$9*'Inputs and Totals'!$B$8*0.001, IF('Inputs and Totals'!C36 =2,'Solar Profiles'!$R$4*'Inputs and Totals'!$B$8*'Inputs and Totals'!$B$9*0.001,IF('Inputs and Totals'!C36 =3,'Solar Profiles'!$R$5*'Inputs and Totals'!$B$8*'Inputs and Totals'!$B$9*0.001,"Error"))) -> 599.94 | R51: =IF('Inputs and Totals'!C36 = 1,'Solar Profiles'!$S$3*'Inputs and Totals'!$B$9*'Inputs and Totals'!$B$8*0.001, IF('Inputs and Totals'!C36 =2,'Solar Profiles'!$S$4*'Inputs and Totals'!$B$8*'Inputs and Totals'!$B$9*0.001,IF('Inputs and Totals'!C36 =3,'Solar Profiles'!$S$5*'Inputs and Totals'!$B$8*'Inputs and Totals'!$B$9*0.001,"Error"))) -> 399.96 | S51: =IF('Inputs and Totals'!C36 = 1,'Solar Profiles'!$T$3*'Inputs and Totals'!$B$9*'Inputs and Totals'!$B$8*0.001, IF('Inputs and Totals'!C36 =2,'Solar Profiles'!$T$4*'Inputs and Totals'!$B$8*'Inputs and Totals'!$B$9*0.001,IF('Inputs and Totals'!C36 =3,'Solar Profiles'!$T$5*'Inputs and Totals'!$B$8*'Inputs and Totals'!$B$9*0.001,"Error"))) -> 199.98 | T51: =IF('Inputs and Totals'!C36 = 1,'Solar Profiles'!$U$3*'Inputs and Totals'!$B$9*'Inputs and Totals'!$B$8*0.001, IF('Inputs and Totals'!C36 =2,'Solar Profiles'!$U$4*'Inputs and Totals'!$B$8*'Inputs and Totals'!$B$9*0.001,IF('Inputs and Totals'!C36 =3,'Solar Profiles'!$U$5*'Inputs and Totals'!$B$8*'Inputs and Totals'!$B$9*0.001,"Error"))) -> 0 | U51: =IF('Inputs and Totals'!C36 = 1,'Solar Profiles'!$V$3*'Inputs and Totals'!$B$9*'Inputs and Totals'!$B$8*0.001, IF('Inputs and Totals'!C36 =2,'Solar Profiles'!$V$4*'Inputs and Totals'!$B$8*'Inputs and Totals'!$B$9*0.001,IF('Inputs and Totals'!C36 =3,'Solar Profiles'!$V$5*'Inputs and Totals'!$B$8*'Inputs and Totals'!$B$9*0.001,"Error"))) -> 0 | V51: =IF('Inputs and Totals'!C36 = 1,'Solar Profiles'!$W$3*'Inputs and Totals'!$B$9*'Inputs and Totals'!$B$8*0.001, IF('Inputs and Totals'!C36 =2,'Solar Profiles'!$W$4*'Inputs and Totals'!$B$8*'Inputs and Totals'!$B$9*0.001,IF('Inputs and Totals'!C36 =3,'Solar Profiles'!$W$5*'Inputs and Totals'!$B$8*'Inputs and Totals'!$B$9*0.001,"Error"))) -> 0 | W51: =IF('Inputs and Totals'!C36 = 1,'Solar Profiles'!$X$3*'Inputs and Totals'!$B$9*'Inputs and Totals'!$B$8*0.001, IF('Inputs and Totals'!C36 =2,'Solar Profiles'!$X$4*'Inputs and Totals'!$B$8*'Inputs and Totals'!$B$9*0.001,IF('Inputs and Totals'!C36 =3,'Solar Profiles'!$X$5*'Inputs and Totals'!$B$8*'Inputs and Totals'!$B$9*0.001,"Error"))) -> 0 | X51: =IF('Inputs and Totals'!C36 = 1,'Solar Profiles'!$Y$3*'Inputs and Totals'!$B$9*'Inputs and Totals'!$B$8*0.001, IF('Inputs and Totals'!C36 =2,'Solar Profiles'!$Y$4*'Inputs and Totals'!$B$8*'Inputs and Totals'!$B$9*0.001,IF('Inputs and Totals'!C36 =3,'Solar Profiles'!$Y$5*'Inputs and Totals'!$B$8*'Inputs and Totals'!$B$9*0.001,"Error"))) -> 0 | Y51: =IF('Inputs and Totals'!C36 = 1,'Solar Profiles'!$Z$3*'Inputs and Totals'!$B$9*'Inputs and Totals'!$B$8*0.001, IF('Inputs and Totals'!C36 =2,'Solar Profiles'!$Z$4*'Inputs and Totals'!$B$8*'Inputs and Totals'!$B$9*0.001,IF('Inputs and Totals'!C36 =3,'Solar Profiles'!$Z$5*'Inputs and Totals'!$B$8*'Inputs and Totals'!$B$9*0.001,"Error"))) -> 0 | Z51: 5799.42
A52: Day 18 | B52: =IF('Inputs and Totals'!C37 = 1,'Solar Profiles'!$C$3*'Inputs and Totals'!$B$9*'Inputs and Totals'!$B$8*0.001, IF('Inputs and Totals'!C37 =2,'Solar Profiles'!$C$4*'Inputs and Totals'!$B$8*'Inputs and Totals'!$B$9*0.001,IF('Inputs and Totals'!C37 =3,'Solar Profiles'!$C$5*'Inputs and Totals'!$B$8*'Inputs and Totals'!$B$9*0.001,"Error"))) -> 0 | C52: =IF('Inputs and Totals'!C37 = 1,'Solar Profiles'!$D$3*'Inputs and Totals'!$B$9*'Inputs and Totals'!$B$8*0.001, IF('Inputs and Totals'!C37 =2,'Solar Profiles'!$D$4*'Inputs and Totals'!$B$8*'Inputs and Totals'!$B$9*0.001,IF('Inputs and Totals'!C37 =3,'Solar Profiles'!$D$5*'Inputs and Totals'!$B$8*'Inputs and Totals'!$B$9*0.001,"Error"))) -> 0 | D52: =IF('Inputs and Totals'!C37 = 1,'Solar Profiles'!$E$3*'Inputs and Totals'!$B$9*'Inputs and Totals'!$B$8*0.001, IF('Inputs and Totals'!C37 =2,'Solar Profiles'!$E$4*'Inputs and Totals'!$B$8*'Inputs and Totals'!$B$9*0.001,IF('Inputs and Totals'!C37 =3,'Solar Profiles'!$E$5*'Inputs and Totals'!$B$8*'Inputs and Totals'!$B$9*0.001,"Error"))) -> 0 | E52: =IF('Inputs and Totals'!C37 = 1,'Solar Profiles'!$F$3*'Inputs and Totals'!$B$9*'Inputs and Totals'!$B$8*0.001, IF('Inputs and Totals'!C37 =2,'Solar Profiles'!$F$4*'Inputs and Totals'!$B$8*'Inputs and Totals'!$B$9*0.001,IF('Inputs and Totals'!C37 =3,'Solar Profiles'!$F$5*'Inputs and Totals'!$B$8*'Inputs and Totals'!$B$9*0.001,"Error"))) -> 0 | F52: =IF('Inputs and Totals'!C37 = 1,'Solar Profiles'!$G$3*'Inputs and Totals'!$B$9*'Inputs and Totals'!$B$8*0.001, IF('Inputs and Totals'!C37 =2,'Solar Profiles'!$G$4*'Inputs and Totals'!$B$8*'Inputs and Totals'!$B$9*0.001,IF('Inputs and Totals'!C37 =3,'Solar Profiles'!$G$5*'Inputs and Totals'!$B$8*'Inputs and Totals'!$B$9*0.001,"Error"))) -> 0 | G52: =IF('Inputs and Totals'!C37 = 1,'Solar Profiles'!$H$3*'Inputs and Totals'!$B$9*'Inputs and Totals'!$B$8*0.001, IF('Inputs and Totals'!C37 =2,'Solar Profiles'!$H$4*'Inputs and Totals'!$B$8*'Inputs and Totals'!$B$9*0.001,IF('Inputs and Totals'!C37 =3,'Solar Profiles'!$H$5*'Inputs and Totals'!$B$8*'Inputs and Totals'!$B$9*0.001,"Error"))) -> 0 | H52: =IF('Inputs and Totals'!C37 = 1,'Solar Profiles'!$I$3*'Inputs and Totals'!$B$9*'Inputs and Totals'!$B$8*0.001, IF('Inputs and Totals'!C37 =2,'Solar Profiles'!$I$4*'Inputs and Totals'!$B$8*'Inputs and Totals'!$B$9*0.001,IF('Inputs and Totals'!C37 =3,'Solar Profiles'!$I$5*'Inputs and Totals'!$B$8*'Inputs and Totals'!$B$9*0.001,"Error"))) -> 0 | I52: =IF('Inputs and Totals'!C37 = 1,'Solar Profiles'!$J$3*'Inputs and Totals'!$B$9*'Inputs and Totals'!$B$8*0.001, IF('Inputs and Totals'!C37 =2,'Solar Profiles'!$J$4*'Inputs and Totals'!$B$8*'Inputs and Totals'!$B$9*0.001,IF('Inputs and Totals'!C37 =3,'Solar Profiles'!$J$5*'Inputs and Totals'!$B$8*'Inputs and Totals'!$B$9*0.001,"Error"))) -> 199.98 | J52: =IF('Inputs and Totals'!C37 = 1,'Solar Profiles'!$K$3*'Inputs and Totals'!$B$9*'Inputs and Totals'!$B$8*0.001, IF('Inputs and Totals'!C37 =2,'Solar Profiles'!$K$4*'Inputs and Totals'!$B$8*'Inputs and Totals'!$B$9*0.001,IF('Inputs and Totals'!C37 =3,'Solar Profiles'!$K$5*'Inputs and Totals'!$B$8*'Inputs and Totals'!$B$9*0.001,"Error"))) -> 399.96 | K52: =IF('Inputs and Totals'!C37 = 1,'Solar Profiles'!$L$3*'Inputs and Totals'!$B$9*'Inputs and Totals'!$B$8*0.001, IF('Inputs and Totals'!C37 =2,'Solar Profiles'!$L$4*'Inputs and Totals'!$B$8*'Inputs and Totals'!$B$9*0.001,IF('Inputs and Totals'!C37 =3,'Solar Profiles'!$L$5*'Inputs and Totals'!$B$8*'Inputs and Totals'!$B$9*0.001,"Error"))) -> 599.94 | L52: =IF('Inputs and Totals'!C37 = 1,'Solar Profiles'!$M$3*'Inputs and Totals'!$B$9*'Inputs and Totals'!$B$8*0.001, IF('Inputs and Totals'!C37 =2,'Solar Profiles'!$M$4*'Inputs and Totals'!$B$8*'Inputs and Totals'!$B$9*0.001,IF('Inputs and Totals'!C37 =3,'Solar Profiles'!$M$5*'Inputs and Totals'!$B$8*'Inputs and Totals'!$B$9*0.001,"Error"))) -> 799.92 | M52: =IF('Inputs and Totals'!C37 = 1,'Solar Profiles'!$N$3*'Inputs and Totals'!$B$9*'Inputs and Totals'!$B$8*0.001, IF('Inputs and Totals'!C37 =2,'Solar Profiles'!$N$4*'Inputs and Totals'!$B$8*'Inputs and Totals'!$B$9*0.001,IF('Inputs and Totals'!C37 =3,'Solar Profiles'!$N$5*'Inputs and Totals'!$B$8*'Inputs and Totals'!$B$9*0.001,"Error"))) -> 1599.84 | N52: =IF('Inputs and Totals'!C37 = 1,'Solar Profiles'!$O$3*'Inputs and Totals'!$B$9*'Inputs and Totals'!$B$8*0.001, IF('Inputs and Totals'!C37 =2,'Solar Profiles'!$O$4*'Inputs and Totals'!$B$8*'Inputs and Totals'!$B$9*0.001,IF('Inputs and Totals'!C37 =3,'Solar Profiles'!$O$5*'Inputs and Totals'!$B$8*'Inputs and Totals'!$B$9*0.001,"Error"))) -> 1999.8 | O52: =IF('Inputs and Totals'!C37 = 1,'Solar Profiles'!$P$3*'Inputs and Totals'!$B$9*'Inputs and Totals'!$B$8*0.001, IF('Inputs and Totals'!C37 =2,'Solar Profiles'!$P$4*'Inputs and Totals'!$B$8*'Inputs and Totals'!$B$9*0.001,IF('Inputs and Totals'!C37 =3,'Solar Profiles'!$P$5*'Inputs and Totals'!$B$8*'Inputs and Totals'!$B$9*0.001,"Error"))) -> 1999.8 | P52: =IF('Inputs and Totals'!C37 = 1,'Solar Profiles'!$Q$3*'Inputs and Totals'!$B$9*'Inputs and Totals'!$B$8*0.001, IF('Inputs and Totals'!C37 =2,'Solar Profiles'!$Q$4*'Inputs and Totals'!$B$8*'Inputs and Totals'!$B$9*0.001,IF('Inputs and Totals'!C37 =3,'Solar Profiles'!$Q$5*'Inputs and Totals'!$B$8*'Inputs and Totals'!$B$9*0.001,"Error"))) -> 1399.86 | Q52: =IF('Inputs and Totals'!C37 = 1,'Solar Profiles'!$R$3*'Inputs and Totals'!$B$9*'Inputs and Totals'!$B$8*0.001, IF('Inputs and Totals'!C37 =2,'Solar Profiles'!$R$4*'Inputs and Totals'!$B$8*'Inputs and Totals'!$B$9*0.001,IF('Inputs and Totals'!C37 =3,'Solar Profiles'!$R$5*'Inputs and Totals'!$B$8*'Inputs and Totals'!$B$9*0.001,"Error"))) -> 1199.88 | R52: =IF('Inputs and Totals'!C37 = 1,'Solar Profiles'!$S$3*'Inputs and Totals'!$B$9*'Inputs and Totals'!$B$8*0.001, IF('Inputs and Totals'!C37 =2,'Solar Profiles'!$S$4*'Inputs and Totals'!$B$8*'Inputs and Totals'!$B$9*0.001,IF('Inputs and Totals'!C37 =3,'Solar Profiles'!$S$5*'Inputs and Totals'!$B$8*'Inputs and Totals'!$B$9*0.001,"Error"))) -> 999.9 | S52: =IF('Inputs and Totals'!C37 = 1,'Solar Profiles'!$T$3*'Inputs and Totals'!$B$9*'Inputs and Totals'!$B$8*0.001, IF('Inputs and Totals'!C37 =2,'Solar Profiles'!$T$4*'Inputs and Totals'!$B$8*'Inputs and Totals'!$B$9*0.001,IF('Inputs and Totals'!C37 =3,'Solar Profiles'!$T$5*'Inputs and Totals'!$B$8*'Inputs and Totals'!$B$9*0.001,"Error"))) -> 399.96 | T52: =IF('Inputs and Totals'!C37 = 1,'Solar Profiles'!$U$3*'Inputs and Totals'!$B$9*'Inputs and Totals'!$B$8*0.001, IF('Inputs and Totals'!C37 =2,'Solar Profiles'!$U$4*'Inputs and Totals'!$B$8*'Inputs and Totals'!$B$9*0.001,IF('Inputs and Totals'!C37 =3,'Solar Profiles'!$U$5*'Inputs and Totals'!$B$8*'Inputs and Totals'!$B$9*0.001,"Error"))) -> 0 | U52: =IF('Inputs and Totals'!C37 = 1,'Solar Profiles'!$V$3*'Inputs and Totals'!$B$9*'Inputs and Totals'!$B$8*0.001, IF('Inputs and Totals'!C37 =2,'Solar Profiles'!$V$4*'Inputs and Totals'!$B$8*'Inputs and Totals'!$B$9*0.001,IF('Inputs and Totals'!C37 =3,'Solar Profiles'!$V$5*'Inputs and Totals'!$B$8*'Inputs and Totals'!$B$9*0.001,"Error"))) -> 0 | V52: =IF('Inputs and Totals'!C37 = 1,'Solar Profiles'!$W$3*'Inputs and Totals'!$B$9*'Inputs and Totals'!$B$8*0.001, IF('Inputs and Totals'!C37 =2,'Solar Profiles'!$W$4*'Inputs and Totals'!$B$8*'Inputs and Totals'!$B$9*0.001,IF('Inputs and Totals'!C37 =3,'Solar Profiles'!$W$5*'Inputs and Totals'!$B$8*'Inputs and Totals'!$B$9*0.001,"Error"))) -> 0 | W52: =IF('Inputs and Totals'!C37 = 1,'Solar Profiles'!$X$3*'Inputs and Totals'!$B$9*'Inputs and Totals'!$B$8*0.001, IF('Inputs and Totals'!C37 =2,'Solar Profiles'!$X$4*'Inputs and Totals'!$B$8*'Inputs and Totals'!$B$9*0.001,IF('Inputs and Totals'!C37 =3,'Solar Profiles'!$X$5*'Inputs and Totals'!$B$8*'Inputs and Totals'!$B$9*0.001,"Error"))) -> 0 | X52: =IF('Inputs and Totals'!C37 = 1,'Solar Profiles'!$Y$3*'Inputs and Totals'!$B$9*'Inputs and Totals'!$B$8*0.001, IF('Inputs and Totals'!C37 =2,'Solar Profiles'!$Y$4*'Inputs and Totals'!$B$8*'Inputs and Totals'!$B$9*0.001,IF('Inputs and Totals'!C37 =3,'Solar Profiles'!$Y$5*'Inputs and Totals'!$B$8*'Inputs and Totals'!$B$9*0.001,"Error"))) -> 0 | Y52: =IF('Inputs and Totals'!C37 = 1,'Solar Profiles'!$Z$3*'Inputs and Totals'!$B$9*'Inputs and Totals'!$B$8*0.001, IF('Inputs and Totals'!C37 =2,'Solar Profiles'!$Z$4*'Inputs and Totals'!$B$8*'Inputs and Totals'!$B$9*0.001,IF('Inputs and Totals'!C37 =3,'Solar Profiles'!$Z$5*'Inputs and Totals'!$B$8*'Inputs and Totals'!$B$9*0.001,"Error"))) -> 0 | Z52: 11598.84
A53: Day 19 | B53: =IF('Inputs and Totals'!C38 = 1,'Solar Profiles'!$C$3*'Inputs and Totals'!$B$9*'Inputs and Totals'!$B$8*0.001, IF('Inputs and Totals'!C38 =2,'Solar Profiles'!$C$4*'Inputs and Totals'!$B$8*'Inputs and Totals'!$B$9*0.001,IF('Inputs and Totals'!C38 =3,'Solar Profiles'!$C$5*'Inputs and Totals'!$B$8*'Inputs and Totals'!$B$9*0.001,"Error"))) -> 0 | C53: =IF('Inputs and Totals'!C38 = 1,'Solar Profiles'!$D$3*'Inputs and Totals'!$B$9*'Inputs and Totals'!$B$8*0.001, IF('Inputs and Totals'!C38 =2,'Solar Profiles'!$D$4*'Inputs and Totals'!$B$8*'Inputs and Totals'!$B$9*0.001,IF('Inputs and Totals'!C38 =3,'Solar Profiles'!$D$5*'Inputs and Totals'!$B$8*'Inputs and Totals'!$B$9*0.001,"Error"))) -> 0 | D53: =IF('Inputs and Totals'!C38 = 1,'Solar Profiles'!$E$3*'Inputs and Totals'!$B$9*'Inputs and Totals'!$B$8*0.001, IF('Inputs and Totals'!C38 =2,'Solar Profiles'!$E$4*'Inputs and Totals'!$B$8*'Inputs and Totals'!$B$9*0.001,IF('Inputs and Totals'!C38 =3,'Solar Profiles'!$E$5*'Inputs and Totals'!$B$8*'Inputs and Totals'!$B$9*0.001,"Error"))) -> 0 | E53: =IF('Inputs and Totals'!C38 = 1,'Solar Profiles'!$F$3*'Inputs and Totals'!$B$9*'Inputs and Totals'!$B$8*0.001, IF('Inputs and Totals'!C38 =2,'Solar Profiles'!$F$4*'Inputs and Totals'!$B$8*'Inputs and Totals'!$B$9*0.001,IF('Inputs and Totals'!C38 =3,'Solar Profiles'!$F$5*'Inputs and Totals'!$B$8*'Inputs and Totals'!$B$9*0.001,"Error"))) -> 0 | F53: =IF('Inputs and Totals'!C38 = 1,'Solar Profiles'!$G$3*'Inputs and Totals'!$B$9*'Inputs and Totals'!$B$8*0.001, IF('Inputs and Totals'!C38 =2,'Solar Profiles'!$G$4*'Inputs and Totals'!$B$8*'Inputs and Totals'!$B$9*0.001,IF('Inputs and Totals'!C38 =3,'Solar Profiles'!$G$5*'Inputs and Totals'!$B$8*'Inputs and Totals'!$B$9*0.001,"Error"))) -> 0 | G53: =IF('Inputs and Totals'!C38 = 1,'Solar Profiles'!$H$3*'Inputs and Totals'!$B$9*'Inputs and Totals'!$B$8*0.001, IF('Inputs and Totals'!C38 =2,'Solar Profiles'!$H$4*'Inputs and Totals'!$B$8*'Inputs and Totals'!$B$9*0.001,IF('Inputs and Totals'!C38 =3,'Solar Profiles'!$H$5*'Inputs and Totals'!$B$8*'Inputs and Totals'!$B$9*0.001,"Error"))) -> 0 | H53: =IF('Inputs and Totals'!C38 = 1,'Solar Profiles'!$I$3*'Inputs and Totals'!$B$9*'Inputs and Totals'!$B$8*0.001, IF('Inputs and Totals'!C38 =2,'Solar Profiles'!$I$4*'Inputs and Totals'!$B$8*'Inputs and Totals'!$B$9*0.001,IF('Inputs and Totals'!C38 =3,'Solar Profiles'!$I$5*'Inputs and Totals'!$B$8*'Inputs and Totals'!$B$9*0.001,"Error"))) -> 0 | I53: =IF('Inputs and Totals'!C38 = 1,'Solar Profiles'!$J$3*'Inputs and Totals'!$B$9*'Inputs and Totals'!$B$8*0.001, IF('Inputs and Totals'!C38 =2,'Solar Profiles'!$J$4*'Inputs and Totals'!$B$8*'Inputs and Totals'!$B$9*0.001,IF('Inputs and Totals'!C38 =3,'Solar Profiles'!$J$5*'Inputs and Totals'!$B$8*'Inputs and Totals'!$B$9*0.001,"Error"))) -> 199.98 | J53: =IF('Inputs and Totals'!C38 = 1,'Solar Profiles'!$K$3*'Inputs and Totals'!$B$9*'Inputs and Totals'!$B$8*0.001, IF('Inputs and Totals'!C38 =2,'Solar Profiles'!$K$4*'Inputs and Totals'!$B$8*'Inputs and Totals'!$B$9*0.001,IF('Inputs and Totals'!C38 =3,'Solar Profiles'!$K$5*'Inputs and Totals'!$B$8*'Inputs and Totals'!$B$9*0.001,"Error"))) -> 199.98 | K53: =IF('Inputs and Totals'!C38 = 1,'Solar Profiles'!$L$3*'Inputs and Totals'!$B$9*'Inputs and Totals'!$B$8*0.001, IF('Inputs and Totals'!C38 =2,'Solar Profiles'!$L$4*'Inputs and Totals'!$B$8*'Inputs and Totals'!$B$9*0.001,IF('Inputs and Totals'!C38 =3,'Solar Profiles'!$L$5*'Inputs and Totals'!$B$8*'Inputs and Totals'!$B$9*0.001,"Error"))) -> 399.96 | L53: =IF('Inputs and Totals'!C38 = 1,'Solar Profiles'!$M$3*'Inputs and Totals'!$B$9*'Inputs and Totals'!$B$8*0.001, IF('Inputs and Totals'!C38 =2,'Solar Profiles'!$M$4*'Inputs and Totals'!$B$8*'Inputs and Totals'!$B$9*0.001,IF('Inputs and Totals'!C38 =3,'Solar Profiles'!$M$5*'Inputs and Totals'!$B$8*'Inputs and Totals'!$B$9*0.001,"Error"))) -> 599.94 | M53: =IF('Inputs and Totals'!C38 = 1,'Solar Profiles'!$N$3*'Inputs and Totals'!$B$9*'Inputs and Totals'!$B$8*0.001, IF('Inputs and Totals'!C38 =2,'Solar Profiles'!$N$4*'Inputs and Totals'!$B$8*'Inputs and Totals'!$B$9*0.001,IF('Inputs and Totals'!C38 =3,'Solar Profiles'!$N$5*'Inputs and Totals'!$B$8*'Inputs and Totals'!$B$9*0.001,"Error"))) -> 999.9 | N53: =IF('Inputs and Totals'!C38 = 1,'Solar Profiles'!$O$3*'Inputs and Totals'!$B$9*'Inputs and Totals'!$B$8*0.001, IF('Inputs and Totals'!C38 =2,'Solar Profiles'!$O$4*'Inputs and Totals'!$B$8*'Inputs and Totals'!$B$9*0.001,IF('Inputs and Totals'!C38 =3,'Solar Profiles'!$O$5*'Inputs and Totals'!$B$8*'Inputs and Totals'!$B$9*0.001,"Error"))) -> 1799.82 | O53: =IF('Inputs and Totals'!C38 = 1,'Solar Profiles'!$P$3*'Inputs and Totals'!$B$9*'Inputs and Totals'!$B$8*0.001, IF('Inputs and Totals'!C38 =2,'Solar Profiles'!$P$4*'Inputs and Totals'!$B$8*'Inputs and Totals'!$B$9*0.001,IF('Inputs and Totals'!C38 =3,'Solar Profiles'!$P$5*'Inputs and Totals'!$B$8*'Inputs and Totals'!$B$9*0.001,"Error"))) -> 1999.8 | P53: =IF('Inputs and Totals'!C38 = 1,'Solar Profiles'!$Q$3*'Inputs and Totals'!$B$9*'Inputs and Totals'!$B$8*0.001, IF('Inputs and Totals'!C38 =2,'Solar Profiles'!$Q$4*'Inputs and Totals'!$B$8*'Inputs and Totals'!$B$9*0.001,IF('Inputs and Totals'!C38 =3,'Solar Profiles'!$Q$5*'Inputs and Totals'!$B$8*'Inputs and Totals'!$B$9*0.001,"Error"))) -> 1199.88 | Q53: =IF('Inputs and Totals'!C38 = 1,'Solar Profiles'!$R$3*'Inputs and Totals'!$B$9*'Inputs and Totals'!$B$8*0.001, IF('Inputs and Totals'!C38 =2,'Solar Profiles'!$R$4*'Inputs and Totals'!$B$8*'Inputs and Totals'!$B$9*0.001,IF('Inputs and Totals'!C38 =3,'Solar Profiles'!$R$5*'Inputs and Totals'!$B$8*'Inputs and Totals'!$B$9*0.001,"Error"))) -> 999.9 | R53: =IF('Inputs and Totals'!C38 = 1,'Solar Profiles'!$S$3*'Inputs and Totals'!$B$9*'Inputs and Totals'!$B$8*0.001, IF('Inputs and Totals'!C38 =2,'Solar Profiles'!$S$4*'Inputs and Totals'!$B$8*'Inputs and Totals'!$B$9*0.001,IF('Inputs and Totals'!C38 =3,'Solar Profiles'!$S$5*'Inputs and Totals'!$B$8*'Inputs and Totals'!$B$9*0.001,"Error"))) -> 599.94 | S53: =IF('Inputs and Totals'!C38 = 1,'Solar Profiles'!$T$3*'Inputs and Totals'!$B$9*'Inputs and Totals'!$B$8*0.001, IF('Inputs and Totals'!C38 =2,'Solar Profiles'!$T$4*'Inputs and Totals'!$B$8*'Inputs and Totals'!$B$9*0.001,IF('Inputs and Totals'!C38 =3,'Solar Profiles'!$T$5*'Inputs and Totals'!$B$8*'Inputs and Totals'!$B$9*0.001,"Error"))) -> 199.98 | T53: =IF('Inputs and Totals'!C38 = 1,'Solar Profiles'!$U$3*'Inputs and Totals'!$B$9*'Inputs and Totals'!$B$8*0.001, IF('Inputs and Totals'!C38 =2,'Solar Profiles'!$U$4*'Inputs and Totals'!$B$8*'Inputs and Totals'!$B$9*0.001,IF('Inputs and Totals'!C38 =3,'Solar Profiles'!$U$5*'Inputs and Totals'!$B$8*'Inputs and Totals'!$B$9*0.001,"Error"))) -> 0 | U53: =IF('Inputs and Totals'!C38 = 1,'Solar Profiles'!$V$3*'Inputs and Totals'!$B$9*'Inputs and Totals'!$B$8*0.001, IF('Inputs and Totals'!C38 =2,'Solar Profiles'!$V$4*'Inputs and Totals'!$B$8*'Inputs and Totals'!$B$9*0.001,IF('Inputs and Totals'!C38 =3,'Solar Profiles'!$V$5*'Inputs and Totals'!$B$8*'Inputs and Totals'!$B$9*0.001,"Error"))) -> 0 | V53: =IF('Inputs and Totals'!C38 = 1,'Solar Profiles'!$W$3*'Inputs and Totals'!$B$9*'Inputs and Totals'!$B$8*0.001, IF('Inputs and Totals'!C38 =2,'Solar Profiles'!$W$4*'Inputs and Totals'!$B$8*'Inputs and Totals'!$B$9*0.001,IF('Inputs and Totals'!C38 =3,'Solar Profiles'!$W$5*'Inputs and Totals'!$B$8*'Inputs and Totals'!$B$9*0.001,"Error"))) -> 0 | W53: =IF('Inputs and Totals'!C38 = 1,'Solar Profiles'!$X$3*'Inputs and Totals'!$B$9*'Inputs and Totals'!$B$8*0.001, IF('Inputs and Totals'!C38 =2,'Solar Profiles'!$X$4*'Inputs and Totals'!$B$8*'Inputs and Totals'!$B$9*0.001,IF('Inputs and Totals'!C38 =3,'Solar Profiles'!$X$5*'Inputs and Totals'!$B$8*'Inputs and Totals'!$B$9*0.001,"Error"))) -> 0 | X53: =IF('Inputs and Totals'!C38 = 1,'Solar Profiles'!$Y$3*'Inputs and Totals'!$B$9*'Inputs and Totals'!$B$8*0.001, IF('Inputs and Totals'!C38 =2,'Solar Profiles'!$Y$4*'Inputs and Totals'!$B$8*'Inputs and Totals'!$B$9*0.001,IF('Inputs and Totals'!C38 =3,'Solar Profiles'!$Y$5*'Inputs and Totals'!$B$8*'Inputs and Totals'!$B$9*0.001,"Error"))) -> 0 | Y53: =IF('Inputs and Totals'!C38 = 1,'Solar Profiles'!$Z$3*'Inputs and Totals'!$B$9*'Inputs and Totals'!$B$8*0.001, IF('Inputs and Totals'!C38 =2,'Solar Profiles'!$Z$4*'Inputs and Totals'!$B$8*'Inputs and Totals'!$B$9*0.001,IF('Inputs and Totals'!C38 =3,'Solar Profiles'!$Z$5*'Inputs and Totals'!$B$8*'Inputs and Totals'!$B$9*0.001,"Error"))) -> 0 | Z53: 9199.08
A54: Day 20 | B54: =IF('Inputs and Totals'!C39 = 1,'Solar Profiles'!$C$3*'Inputs and Totals'!$B$9*'Inputs and Totals'!$B$8*0.001, IF('Inputs and Totals'!C39 =2,'Solar Profiles'!$C$4*'Inputs and Totals'!$B$8*'Inputs and Totals'!$B$9*0.001,IF('Inputs and Totals'!C39 =3,'Solar Profiles'!$C$5*'Inputs and Totals'!$B$8*'Inputs and Totals'!$B$9*0.001,"Error"))) -> 0 | C54: =IF('Inputs and Totals'!C39 = 1,'Solar Profiles'!$D$3*'Inputs and Totals'!$B$9*'Inputs and Totals'!$B$8*0.001, IF('Inputs and Totals'!C39 =2,'Solar Profiles'!$D$4*'Inputs and Totals'!$B$8*'Inputs and Totals'!$B$9*0.001,IF('Inputs and Totals'!C39 =3,'Solar Profiles'!$D$5*'Inputs and Totals'!$B$8*'Inputs and Totals'!$B$9*0.001,"Error"))) -> 0 | D54: =IF('Inputs and Totals'!C39 = 1,'Solar Profiles'!$E$3*'Inputs and Totals'!$B$9*'Inputs and Totals'!$B$8*0.001, IF('Inputs and Totals'!C39 =2,'Solar Profiles'!$E$4*'Inputs and Totals'!$B$8*'Inputs and Totals'!$B$9*0.001,IF('Inputs and Totals'!C39 =3,'Solar Profiles'!$E$5*'Inputs and Totals'!$B$8*'Inputs and Totals'!$B$9*0.001,"Error"))) -> 0 | E54: =IF('Inputs and Totals'!C39 = 1,'Solar Profiles'!$F$3*'Inputs and Totals'!$B$9*'Inputs and Totals'!$B$8*0.001, IF('Inputs and Totals'!C39 =2,'Solar Profiles'!$F$4*'Inputs and Totals'!$B$8*'Inputs and Totals'!$B$9*0.001,IF('Inputs and Totals'!C39 =3,'Solar Profiles'!$F$5*'Inputs and Totals'!$B$8*'Inputs and Totals'!$B$9*0.001,"Error"))) -> 0 | F54: =IF('Inputs and Totals'!C39 = 1,'Solar Profiles'!$G$3*'Inputs and Totals'!$B$9*'Inputs and Totals'!$B$8*0.001, IF('Inputs and Totals'!C39 =2,'Solar Profiles'!$G$4*'Inputs and Totals'!$B$8*'Inputs and Totals'!$B$9*0.001,IF('Inputs and Totals'!C39 =3,'Solar Profiles'!$G$5*'Inputs and Totals'!$B$8*'Inputs and Totals'!$B$9*0.001,"Error"))) -> 0 | G54: =IF('Inputs and Totals'!C39 = 1,'Solar Profiles'!$H$3*'Inputs and Totals'!$B$9*'Inputs and Totals'!$B$8*0.001, IF('Inputs and Totals'!C39 =2,'Solar Profiles'!$H$4*'Inputs and Totals'!$B$8*'Inputs and Totals'!$B$9*0.001,IF('Inputs and Totals'!C39 =3,'Solar Profiles'!$H$5*'Inputs and Totals'!$B$8*'Inputs and Totals'!$B$9*0.001,"Error"))) -> 0 | H54: =IF('Inputs and Totals'!C39 = 1,'Solar Profiles'!$I$3*'Inputs and Totals'!$B$9*'Inputs and Totals'!$B$8*0.001, IF('Inputs and Totals'!C39 =2,'Solar Profiles'!$I$4*'Inputs and Totals'!$B$8*'Inputs and Totals'!$B$9*0.001,IF('Inputs and Totals'!C39 =3,'Solar Profiles'!$I$5*'Inputs and Totals'!$B$8*'Inputs and Totals'!$B$9*0.001,"Error"))) -> 0 | I54: =IF('Inputs and Totals'!C39 = 1,'Solar Profiles'!$J$3*'Inputs and Totals'!$B$9*'Inputs and Totals'!$B$8*0.001, IF('Inputs and Totals'!C39 =2,'Solar Profiles'!$J$4*'Inputs and Totals'!$B$8*'Inputs and Totals'!$B$9*0.001,IF('Inputs and Totals'!C39 =3,'Solar Profiles'!$J$5*'Inputs and Totals'!$B$8*'Inputs and Totals'!$B$9*0.001,"Error"))) -> 199.98 | J54: =IF('Inputs and Totals'!C39 = 1,'Solar Profiles'!$K$3*'Inputs and Totals'!$B$9*'Inputs and Totals'!$B$8*0.001, IF('Inputs and Totals'!C39 =2,'Solar Profiles'!$K$4*'Inputs and Totals'!$B$8*'Inputs and Totals'!$B$9*0.001,IF('Inputs and Totals'!C39 =3,'Solar Profiles'!$K$5*'Inputs and Totals'!$B$8*'Inputs and Totals'!$B$9*0.001,"Error"))) -> 199.98 | K54: =IF('Inputs and Totals'!C39 = 1,'Solar Profiles'!$L$3*'Inputs and Totals'!$B$9*'Inputs and Totals'!$B$8*0.001, IF('Inputs and Totals'!C39 =2,'Solar Profiles'!$L$4*'Inputs and Totals'!$B$8*'Inputs and Totals'!$B$9*0.001,IF('Inputs and Totals'!C39 =3,'Solar Profiles'!$L$5*'Inputs and Totals'!$B$8*'Inputs and Totals'!$B$9*0.001,"Error"))) -> 399.96 | L54: =IF('Inputs and Totals'!C39 = 1,'Solar Profiles'!$M$3*'Inputs and Totals'!$B$9*'Inputs and Totals'!$B$8*0.001, IF('Inputs and Totals'!C39 =2,'Solar Profiles'!$M$4*'Inputs and Totals'!$B$8*'Inputs and Totals'!$B$9*0.001,IF('Inputs and Totals'!C39 =3,'Solar Profiles'!$M$5*'Inputs and Totals'!$B$8*'Inputs and Totals'!$B$9*0.001,"Error"))) -> 599.94 | M54: =IF('Inputs and Totals'!C39 = 1,'Solar Profiles'!$N$3*'Inputs and Totals'!$B$9*'Inputs and Totals'!$B$8*0.001, IF('Inputs and Totals'!C39 =2,'Solar Profiles'!$N$4*'Inputs and Totals'!$B$8*'Inputs and Totals'!$B$9*0.001,IF('Inputs and Totals'!C39 =3,'Solar Profiles'!$N$5*'Inputs and Totals'!$B$8*'Inputs and Totals'!$B$9*0.001,"Error"))) -> 999.9 | N54: =IF('Inputs and Totals'!C39 = 1,'Solar Profiles'!$O$3*'Inputs and Totals'!$B$9*'Inputs and Totals'!$B$8*0.001, IF('Inputs and Totals'!C39 =2,'Solar Profiles'!$O$4*'Inputs and Totals'!$B$8*'Inputs and Totals'!$B$9*0.001,IF('Inputs and Totals'!C39 =3,'Solar Profiles'!$O$5*'Inputs and Totals'!$B$8*'Inputs and Totals'!$B$9*0.001,"Error"))) -> 1799.82 | O54: =IF('Inputs and Totals'!C39 = 1,'Solar Profiles'!$P$3*'Inputs and Totals'!$B$9*'Inputs and Totals'!$B$8*0.001, IF('Inputs and Totals'!C39 =2,'Solar Profiles'!$P$4*'Inputs and Totals'!$B$8*'Inputs and Totals'!$B$9*0.001,IF('Inputs and Totals'!C39 =3,'Solar Profiles'!$P$5*'Inputs and Totals'!$B$8*'Inputs and Totals'!$B$9*0.001,"Error"))) -> 1999.8 | P54: =IF('Inputs and Totals'!C39 = 1,'Solar Profiles'!$Q$3*'Inputs and Totals'!$B$9*'Inputs and Totals'!$B$8*0.001, IF('Inputs and Totals'!C39 =2,'Solar Profiles'!$Q$4*'Inputs and Totals'!$B$8*'Inputs and Totals'!$B$9*0.001,IF('Inputs and Totals'!C39 =3,'Solar Profiles'!$Q$5*'Inputs and Totals'!$B$8*'Inputs and Totals'!$B$9*0.001,"Error"))) -> 1199.88 | Q54: =IF('Inputs and Totals'!C39 = 1,'Solar Profiles'!$R$3*'Inputs and Totals'!$B$9*'Inputs and Totals'!$B$8*0.001, IF('Inputs and Totals'!C39 =2,'Solar Profiles'!$R$4*'Inputs and Totals'!$B$8*'Inputs and Totals'!$B$9*0.001,IF('Inputs and Totals'!C39 =3,'Solar Profiles'!$R$5*'Inputs and Totals'!$B$8*'Inputs and Totals'!$B$9*0.001,"Error"))) -> 999.9 | R54: =IF('Inputs and Totals'!C39 = 1,'Solar Profiles'!$S$3*'Inputs and Totals'!$B$9*'Inputs and Totals'!$B$8*0.001, IF('Inputs and Totals'!C39 =2,'Solar Profiles'!$S$4*'Inputs and Totals'!$B$8*'Inputs and Totals'!$B$9*0.001,IF('Inputs and Totals'!C39 =3,'Solar Profiles'!$S$5*'Inputs and Totals'!$B$8*'Inputs and Totals'!$B$9*0.001,"Error"))) -> 599.94 | S54: =IF('Inputs and Totals'!C39 = 1,'Solar Profiles'!$T$3*'Inputs and Totals'!$B$9*'Inputs and Totals'!$B$8*0.001, IF('Inputs and Totals'!C39 =2,'Solar Profiles'!$T$4*'Inputs and Totals'!$B$8*'Inputs and Totals'!$B$9*0.001,IF('Inputs and Totals'!C39 =3,'Solar Profiles'!$T$5*'Inputs and Totals'!$B$8*'Inputs and Totals'!$B$9*0.001,"Error"))) -> 199.98 | T54: =IF('Inputs and Totals'!C39 = 1,'Solar Profiles'!$U$3*'Inputs and Totals'!$B$9*'Inputs and Totals'!$B$8*0.001, IF('Inputs and Totals'!C39 =2,'Solar Profiles'!$U$4*'Inputs and Totals'!$B$8*'Inputs and Totals'!$B$9*0.001,IF('Inputs and Totals'!C39 =3,'Solar Profiles'!$U$5*'Inputs and Totals'!$B$8*'Inputs and Totals'!$B$9*0.001,"Error"))) -> 0 | U54: =IF('Inputs and Totals'!C39 = 1,'Solar Profiles'!$V$3*'Inputs and Totals'!$B$9*'Inputs and Totals'!$B$8*0.001, IF('Inputs and Totals'!C39 =2,'Solar Profiles'!$V$4*'Inputs and Totals'!$B$8*'Inputs and Totals'!$B$9*0.001,IF('Inputs and Totals'!C39 =3,'Solar Profiles'!$V$5*'Inputs and Totals'!$B$8*'Inputs and Totals'!$B$9*0.001,"Error"))) -> 0 | V54: =IF('Inputs and Totals'!C39 = 1,'Solar Profiles'!$W$3*'Inputs and Totals'!$B$9*'Inputs and Totals'!$B$8*0.001, IF('Inputs and Totals'!C39 =2,'Solar Profiles'!$W$4*'Inputs and Totals'!$B$8*'Inputs and Totals'!$B$9*0.001,IF('Inputs and Totals'!C39 =3,'Solar Profiles'!$W$5*'Inputs and Totals'!$B$8*'Inputs and Totals'!$B$9*0.001,"Error"))) -> 0 | W54: =IF('Inputs and Totals'!C39 = 1,'Solar Profiles'!$X$3*'Inputs and Totals'!$B$9*'Inputs and Totals'!$B$8*0.001, IF('Inputs and Totals'!C39 =2,'Solar Profiles'!$X$4*'Inputs and Totals'!$B$8*'Inputs and Totals'!$B$9*0.001,IF('Inputs and Totals'!C39 =3,'Solar Profiles'!$X$5*'Inputs and Totals'!$B$8*'Inputs and Totals'!$B$9*0.001,"Error"))) -> 0 | X54: =IF('Inputs and Totals'!C39 = 1,'Solar Profiles'!$Y$3*'Inputs and Totals'!$B$9*'Inputs and Totals'!$B$8*0.001, IF('Inputs and Totals'!C39 =2,'Solar Profiles'!$Y$4*'Inputs and Totals'!$B$8*'Inputs and Totals'!$B$9*0.001,IF('Inputs and Totals'!C39 =3,'Solar Profiles'!$Y$5*'Inputs and Totals'!$B$8*'Inputs and Totals'!$B$9*0.001,"Error"))) -> 0 | Y54: =IF('Inputs and Totals'!C39 = 1,'Solar Profiles'!$Z$3*'Inputs and Totals'!$B$9*'Inputs and Totals'!$B$8*0.001, IF('Inputs and Totals'!C39 =2,'Solar Profiles'!$Z$4*'Inputs and Totals'!$B$8*'Inputs and Totals'!$B$9*0.001,IF('Inputs and Totals'!C39 =3,'Solar Profiles'!$Z$5*'Inputs and Totals'!$B$8*'Inputs and Totals'!$B$9*0.001,"Error"))) -> 0 | Z54: 9199.08
A55: Day 21 | B55: =IF('Inputs and Totals'!C40 = 1,'Solar Profiles'!$C$3*'Inputs and Totals'!$B$9*'Inputs and Totals'!$B$8*0.001, IF('Inputs and Totals'!C40 =2,'Solar Profiles'!$C$4*'Inputs and Totals'!$B$8*'Inputs and Totals'!$B$9*0.001,IF('Inputs and Totals'!C40 =3,'Solar Profiles'!$C$5*'Inputs and Totals'!$B$8*'Inputs and Totals'!$B$9*0.001,"Error"))) -> 0 | C55: =IF('Inputs and Totals'!C40 = 1,'Solar Profiles'!$D$3*'Inputs and Totals'!$B$9*'Inputs and Totals'!$B$8*0.001, IF('Inputs and Totals'!C40 =2,'Solar Profiles'!$D$4*'Inputs and Totals'!$B$8*'Inputs and Totals'!$B$9*0.001,IF('Inputs and Totals'!C40 =3,'Solar Profiles'!$D$5*'Inputs and Totals'!$B$8*'Inputs and Totals'!$B$9*0.001,"Error"))) -> 0 | D55: =IF('Inputs and Totals'!C40 = 1,'Solar Profiles'!$E$3*'Inputs and Totals'!$B$9*'Inputs and Totals'!$B$8*0.001, IF('Inputs and Totals'!C40 =2,'Solar Profiles'!$E$4*'Inputs and Totals'!$B$8*'Inputs and Totals'!$B$9*0.001,IF('Inputs and Totals'!C40 =3,'Solar Profiles'!$E$5*'Inputs and Totals'!$B$8*'Inputs and Totals'!$B$9*0.001,"Error"))) -> 0 | E55: =IF('Inputs and Totals'!C40 = 1,'Solar Profiles'!$F$3*'Inputs and Totals'!$B$9*'Inputs and Totals'!$B$8*0.001, IF('Inputs and Totals'!C40 =2,'Solar Profiles'!$F$4*'Inputs and Totals'!$B$8*'Inputs and Totals'!$B$9*0.001,IF('Inputs and Totals'!C40 =3,'Solar Profiles'!$F$5*'Inputs and Totals'!$B$8*'Inputs and Totals'!$B$9*0.001,"Error"))) -> 0 | F55: =IF('Inputs and Totals'!C40 = 1,'Solar Profiles'!$G$3*'Inputs and Totals'!$B$9*'Inputs and Totals'!$B$8*0.001, IF('Inputs and Totals'!C40 =2,'Solar Profiles'!$G$4*'Inputs and Totals'!$B$8*'Inputs and Totals'!$B$9*0.001,IF('Inputs and Totals'!C40 =3,'Solar Profiles'!$G$5*'Inputs and Totals'!$B$8*'Inputs and Totals'!$B$9*0.001,"Error"))) -> 0 | G55: =IF('Inputs and Totals'!C40 = 1,'Solar Profiles'!$H$3*'Inputs and Totals'!$B$9*'Inputs and Totals'!$B$8*0.001, IF('Inputs and Totals'!C40 =2,'Solar Profiles'!$H$4*'Inputs and Totals'!$B$8*'Inputs and Totals'!$B$9*0.001,IF('Inputs and Totals'!C40 =3,'Solar Profiles'!$H$5*'Inputs and Totals'!$B$8*'Inputs and Totals'!$B$9*0.001,"Error"))) -> 0 | H55: =IF('Inputs and Totals'!C40 = 1,'Solar Profiles'!$I$3*'Inputs and Totals'!$B$9*'Inputs and Totals'!$B$8*0.001, IF('Inputs and Totals'!C40 =2,'Solar Profiles'!$I$4*'Inputs and Totals'!$B$8*'Inputs and Totals'!$B$9*0.001,IF('Inputs and Totals'!C40 =3,'Solar Profiles'!$I$5*'Inputs and Totals'!$B$8*'Inputs and Totals'!$B$9*0.001,"Error"))) -> 0 | I55: =IF('Inputs and Totals'!C40 = 1,'Solar Profiles'!$J$3*'Inputs and Totals'!$B$9*'Inputs and Totals'!$B$8*0.001, IF('Inputs and Totals'!C40 =2,'Solar Profiles'!$J$4*'Inputs and Totals'!$B$8*'Inputs and Totals'!$B$9*0.001,IF('Inputs and Totals'!C40 =3,'Solar Profiles'!$J$5*'Inputs and Totals'!$B$8*'Inputs and Totals'!$B$9*0.001,"Error"))) -> 199.98 | J55: =IF('Inputs and Totals'!C40 = 1,'Solar Profiles'!$K$3*'Inputs and Totals'!$B$9*'Inputs and Totals'!$B$8*0.001, IF('Inputs and Totals'!C40 =2,'Solar Profiles'!$K$4*'Inputs and Totals'!$B$8*'Inputs and Totals'!$B$9*0.001,IF('Inputs and Totals'!C40 =3,'Solar Profiles'!$K$5*'Inputs and Totals'!$B$8*'Inputs and Totals'!$B$9*0.001,"Error"))) -> 399.96 | K55: =IF('Inputs and Totals'!C40 = 1,'Solar Profiles'!$L$3*'Inputs and Totals'!$B$9*'Inputs and Totals'!$B$8*0.001, IF('Inputs and Totals'!C40 =2,'Solar Profiles'!$L$4*'Inputs and Totals'!$B$8*'Inputs and Totals'!$B$9*0.001,IF('Inputs and Totals'!C40 =3,'Solar Profiles'!$L$5*'Inputs and Totals'!$B$8*'Inputs and Totals'!$B$9*0.001,"Error"))) -> 599.94 | L55: =IF('Inputs and Totals'!C40 = 1,'Solar Profiles'!$M$3*'Inputs and Totals'!$B$9*'Inputs and Totals'!$B$8*0.001, IF('Inputs and Totals'!C40 =2,'Solar Profiles'!$M$4*'Inputs and Totals'!$B$8*'Inputs and Totals'!$B$9*0.001,IF('Inputs and Totals'!C40 =3,'Solar Profiles'!$M$5*'Inputs and Totals'!$B$8*'Inputs and Totals'!$B$9*0.001,"Error"))) -> 799.92 | M55: =IF('Inputs and Totals'!C40 = 1,'Solar Profiles'!$N$3*'Inputs and Totals'!$B$9*'Inputs and Totals'!$B$8*0.001, IF('Inputs and Totals'!C40 =2,'Solar Profiles'!$N$4*'Inputs and Totals'!$B$8*'Inputs and Totals'!$B$9*0.001,IF('Inputs and Totals'!C40 =3,'Solar Profiles'!$N$5*'Inputs and Totals'!$B$8*'Inputs and Totals'!$B$9*0.001,"Error"))) -> 1599.84 | N55: =IF('Inputs and Totals'!C40 = 1,'Solar Profiles'!$O$3*'Inputs and Totals'!$B$9*'Inputs and Totals'!$B$8*0.001, IF('Inputs and Totals'!C40 =2,'Solar Profiles'!$O$4*'Inputs and Totals'!$B$8*'Inputs and Totals'!$B$9*0.001,IF('Inputs and Totals'!C40 =3,'Solar Profiles'!$O$5*'Inputs and Totals'!$B$8*'Inputs and Totals'!$B$9*0.001,"Error"))) -> 1999.8 | O55: =IF('Inputs and Totals'!C40 = 1,'Solar Profiles'!$P$3*'Inputs and Totals'!$B$9*'Inputs and Totals'!$B$8*0.001, IF('Inputs and Totals'!C40 =2,'Solar Profiles'!$P$4*'Inputs and Totals'!$B$8*'Inputs and Totals'!$B$9*0.001,IF('Inputs and Totals'!C40 =3,'Solar Profiles'!$P$5*'Inputs and Totals'!$B$8*'Inputs and Totals'!$B$9*0.001,"Error"))) -> 1999.8 | P55: =IF('Inputs and Totals'!C40 = 1,'Solar Profiles'!$Q$3*'Inputs and Totals'!$B$9*'Inputs and Totals'!$B$8*0.001, IF('Inputs and Totals'!C40 =2,'Solar Profiles'!$Q$4*'Inputs and Totals'!$B$8*'Inputs and Totals'!$B$9*0.001,IF('Inputs and Totals'!C40 =3,'Solar Profiles'!$Q$5*'Inputs and Totals'!$B$8*'Inputs and Totals'!$B$9*0.001,"Error"))) -> 1399.86 | Q55: =IF('Inputs and Totals'!C40 = 1,'Solar Profiles'!$R$3*'Inputs and Totals'!$B$9*'Inputs and Totals'!$B$8*0.001, IF('Inputs and Totals'!C40 =2,'Solar Profiles'!$R$4*'Inputs and Totals'!$B$8*'Inputs and Totals'!$B$9*0.001,IF('Inputs and Totals'!C40 =3,'Solar Profiles'!$R$5*'Inputs and Totals'!$B$8*'Inputs and Totals'!$B$9*0.001,"Error"))) -> 1199.88 | R55: =IF('Inputs and Totals'!C40 = 1,'Solar Profiles'!$S$3*'Inputs and Totals'!$B$9*'Inputs and Totals'!$B$8*0.001, IF('Inputs and Totals'!C40 =2,'Solar Profiles'!$S$4*'Inputs and Totals'!$B$8*'Inputs and Totals'!$B$9*0.001,IF('Inputs and Totals'!C40 =3,'Solar Profiles'!$S$5*'Inputs and Totals'!$B$8*'Inputs and Totals'!$B$9*0.001,"Error"))) -> 999.9 | S55: =IF('Inputs and Totals'!C40 = 1,'Solar Profiles'!$T$3*'Inputs and Totals'!$B$9*'Inputs and Totals'!$B$8*0.001, IF('Inputs and Totals'!C40 =2,'Solar Profiles'!$T$4*'Inputs and Totals'!$B$8*'Inputs and Totals'!$B$9*0.001,IF('Inputs and Totals'!C40 =3,'Solar Profiles'!$T$5*'Inputs and Totals'!$B$8*'Inputs and Totals'!$B$9*0.001,"Error"))) -> 399.96 | T55: =IF('Inputs and Totals'!C40 = 1,'Solar Profiles'!$U$3*'Inputs and Totals'!$B$9*'Inputs and Totals'!$B$8*0.001, IF('Inputs and Totals'!C40 =2,'Solar Profiles'!$U$4*'Inputs and Totals'!$B$8*'Inputs and Totals'!$B$9*0.001,IF('Inputs and Totals'!C40 =3,'Solar Profiles'!$U$5*'Inputs and Totals'!$B$8*'Inputs and Totals'!$B$9*0.001,"Error"))) -> 0 | U55: =IF('Inputs and Totals'!C40 = 1,'Solar Profiles'!$V$3*'Inputs and Totals'!$B$9*'Inputs and Totals'!$B$8*0.001, IF('Inputs and Totals'!C40 =2,'Solar Profiles'!$V$4*'Inputs and Totals'!$B$8*'Inputs and Totals'!$B$9*0.001,IF('Inputs and Totals'!C40 =3,'Solar Profiles'!$V$5*'Inputs and Totals'!$B$8*'Inputs and Totals'!$B$9*0.001,"Error"))) -> 0 | V55: =IF('Inputs and Totals'!C40 = 1,'Solar Profiles'!$W$3*'Inputs and Totals'!$B$9*'Inputs and Totals'!$B$8*0.001, IF('Inputs and Totals'!C40 =2,'Solar Profiles'!$W$4*'Inputs and Totals'!$B$8*'Inputs and Totals'!$B$9*0.001,IF('Inputs and Totals'!C40 =3,'Solar Profiles'!$W$5*'Inputs and Totals'!$B$8*'Inputs and Totals'!$B$9*0.001,"Error"))) -> 0 | W55: =IF('Inputs and Totals'!C40 = 1,'Solar Profiles'!$X$3*'Inputs and Totals'!$B$9*'Inputs and Totals'!$B$8*0.001, IF('Inputs and Totals'!C40 =2,'Solar Profiles'!$X$4*'Inputs and Totals'!$B$8*'Inputs and Totals'!$B$9*0.001,IF('Inputs and Totals'!C40 =3,'Solar Profiles'!$X$5*'Inputs and Totals'!$B$8*'Inputs and Totals'!$B$9*0.001,"Error"))) -> 0 | X55: =IF('Inputs and Totals'!C40 = 1,'Solar Profiles'!$Y$3*'Inputs and Totals'!$B$9*'Inputs and Totals'!$B$8*0.001, IF('Inputs and Totals'!C40 =2,'Solar Profiles'!$Y$4*'Inputs and Totals'!$B$8*'Inputs and Totals'!$B$9*0.001,IF('Inputs and Totals'!C40 =3,'Solar Profiles'!$Y$5*'Inputs and Totals'!$B$8*'Inputs and Totals'!$B$9*0.001,"Error"))) -> 0 | Y55: =IF('Inputs and Totals'!C40 = 1,'Solar Profiles'!$Z$3*'Inputs and Totals'!$B$9*'Inputs and Totals'!$B$8*0.001, IF('Inputs and Totals'!C40 =2,'Solar Profiles'!$Z$4*'Inputs and Totals'!$B$8*'Inputs and Totals'!$B$9*0.001,IF('Inputs and Totals'!C40 =3,'Solar Profiles'!$Z$5*'Inputs and Totals'!$B$8*'Inputs and Totals'!$B$9*0.001,"Error"))) -> 0 | Z55: 11598.84
A56: Day 22 | B56: =IF('Inputs and Totals'!C41 = 1,'Solar Profiles'!$C$3*'Inputs and Totals'!$B$9*'Inputs and Totals'!$B$8*0.001, IF('Inputs and Totals'!C41 =2,'Solar Profiles'!$C$4*'Inputs and Totals'!$B$8*'Inputs and Totals'!$B$9*0.001,IF('Inputs and Totals'!C41 =3,'Solar Profiles'!$C$5*'Inputs and Totals'!$B$8*'Inputs and Totals'!$B$9*0.001,"Error"))) -> 0 | C56: =IF('Inputs and Totals'!C41 = 1,'Solar Profiles'!$D$3*'Inputs and Totals'!$B$9*'Inputs and Totals'!$B$8*0.001, IF('Inputs and Totals'!C41 =2,'Solar Profiles'!$D$4*'Inputs and Totals'!$B$8*'Inputs and Totals'!$B$9*0.001,IF('Inputs and Totals'!C41 =3,'Solar Profiles'!$D$5*'Inputs and Totals'!$B$8*'Inputs and Totals'!$B$9*0.001,"Error"))) -> 0 | D56: =IF('Inputs and Totals'!C41 = 1,'Solar Profiles'!$E$3*'Inputs and Totals'!$B$9*'Inputs and Totals'!$B$8*0.001, IF('Inputs and Totals'!C41 =2,'Solar Profiles'!$E$4*'Inputs and Totals'!$B$8*'Inputs and Totals'!$B$9*0.001,IF('Inputs and Totals'!C41 =3,'Solar Profiles'!$E$5*'Inputs and Totals'!$B$8*'Inputs and Totals'!$B$9*0.001,"Error"))) -> 0 | E56: =IF('Inputs and Totals'!C41 = 1,'Solar Profiles'!$F$3*'Inputs and Totals'!$B$9*'Inputs and Totals'!$B$8*0.001, IF('Inputs and Totals'!C41 =2,'Solar Profiles'!$F$4*'Inputs and Totals'!$B$8*'Inputs and Totals'!$B$9*0.001,IF('Inputs and Totals'!C41 =3,'Solar Profiles'!$F$5*'Inputs and Totals'!$B$8*'Inputs and Totals'!$B$9*0.001,"Error"))) -> 0 | F56: =IF('Inputs and Totals'!C41 = 1,'Solar Profiles'!$G$3*'Inputs and Totals'!$B$9*'Inputs and Totals'!$B$8*0.001, IF('Inputs and Totals'!C41 =2,'Solar Profiles'!$G$4*'Inputs and Totals'!$B$8*'Inputs and Totals'!$B$9*0.001,IF('Inputs and Totals'!C41 =3,'Solar Profiles'!$G$5*'Inputs and Totals'!$B$8*'Inputs and Totals'!$B$9*0.001,"Error"))) -> 0 | G56: =IF('Inputs and Totals'!C41 = 1,'Solar Profiles'!$H$3*'Inputs and Totals'!$B$9*'Inputs and Totals'!$B$8*0.001, IF('Inputs and Totals'!C41 =2,'Solar Profiles'!$H$4*'Inputs and Totals'!$B$8*'Inputs and Totals'!$B$9*0.001,IF('Inputs and Totals'!C41 =3,'Solar Profiles'!$H$5*'Inputs and Totals'!$B$8*'Inputs and Totals'!$B$9*0.001,"Error"))) -> 0 | H56: =IF('Inputs and Totals'!C41 = 1,'Solar Profiles'!$I$3*'Inputs and Totals'!$B$9*'Inputs and Totals'!$B$8*0.001, IF('Inputs and Totals'!C41 =2,'Solar Profiles'!$I$4*'Inputs and Totals'!$B$8*'Inputs and Totals'!$B$9*0.001,IF('Inputs and Totals'!C41 =3,'Solar Profiles'!$I$5*'Inputs and Totals'!$B$8*'Inputs and Totals'!$B$9*0.001,"Error"))) -> 0 | I56: =IF('Inputs and Totals'!C41 = 1,'Solar Profiles'!$J$3*'Inputs and Totals'!$B$9*'Inputs and Totals'!$B$8*0.001, IF('Inputs and Totals'!C41 =2,'Solar Profiles'!$J$4*'Inputs and Totals'!$B$8*'Inputs and Totals'!$B$9*0.001,IF('Inputs and Totals'!C41 =3,'Solar Profiles'!$J$5*'Inputs and Totals'!$B$8*'Inputs and Totals'!$B$9*0.001,"Error"))) -> 199.98 | J56: =IF('Inputs and Totals'!C41 = 1,'Solar Profiles'!$K$3*'Inputs and Totals'!$B$9*'Inputs and Totals'!$B$8*0.001, IF('Inputs and Totals'!C41 =2,'Solar Profiles'!$K$4*'Inputs and Totals'!$B$8*'Inputs and Totals'!$B$9*0.001,IF('Inputs and Totals'!C41 =3,'Solar Profiles'!$K$5*'Inputs and Totals'!$B$8*'Inputs and Totals'!$B$9*0.001,"Error"))) -> 199.98 | K56: =IF('Inputs and Totals'!C41 = 1,'Solar Profiles'!$L$3*'Inputs and Totals'!$B$9*'Inputs and Totals'!$B$8*0.001, IF('Inputs and Totals'!C41 =2,'Solar Profiles'!$L$4*'Inputs and Totals'!$B$8*'Inputs and Totals'!$B$9*0.001,IF('Inputs and Totals'!C41 =3,'Solar Profiles'!$L$5*'Inputs and Totals'!$B$8*'Inputs and Totals'!$B$9*0.001,"Error"))) -> 399.96 | L56: =IF('Inputs and Totals'!C41 = 1,'Solar Profiles'!$M$3*'Inputs and Totals'!$B$9*'Inputs and Totals'!$B$8*0.001, IF('Inputs and Totals'!C41 =2,'Solar Profiles'!$M$4*'Inputs and Totals'!$B$8*'Inputs and Totals'!$B$9*0.001,IF('Inputs and Totals'!C41 =3,'Solar Profiles'!$M$5*'Inputs and Totals'!$B$8*'Inputs and Totals'!$B$9*0.001,"Error"))) -> 599.94 | M56: =IF('Inputs and Totals'!C41 = 1,'Solar Profiles'!$N$3*'Inputs and Totals'!$B$9*'Inputs and Totals'!$B$8*0.001, IF('Inputs and Totals'!C41 =2,'Solar Profiles'!$N$4*'Inputs and Totals'!$B$8*'Inputs and Totals'!$B$9*0.001,IF('Inputs and Totals'!C41 =3,'Solar Profiles'!$N$5*'Inputs and Totals'!$B$8*'Inputs and Totals'!$B$9*0.001,"Error"))) -> 999.9 | N56: =IF('Inputs and Totals'!C41 = 1,'Solar Profiles'!$O$3*'Inputs and Totals'!$B$9*'Inputs and Totals'!$B$8*0.001, IF('Inputs and Totals'!C41 =2,'Solar Profiles'!$O$4*'Inputs and Totals'!$B$8*'Inputs and Totals'!$B$9*0.001,IF('Inputs and Totals'!C41 =3,'Solar Profiles'!$O$5*'Inputs and Totals'!$B$8*'Inputs and Totals'!$B$9*0.001,"Error"))) -> 1799.82 | O56: =IF('Inputs and Totals'!C41 = 1,'Solar Profiles'!$P$3*'Inputs and Totals'!$B$9*'Inputs and Totals'!$B$8*0.001, IF('Inputs and Totals'!C41 =2,'Solar Profiles'!$P$4*'Inputs and Totals'!$B$8*'Inputs and Totals'!$B$9*0.001,IF('Inputs and Totals'!C41 =3,'Solar Profiles'!$P$5*'Inputs and Totals'!$B$8*'Inputs and Totals'!$B$9*0.001,"Error"))) -> 1999.8 | P56: =IF('Inputs and Totals'!C41 = 1,'Solar Profiles'!$Q$3*'Inputs and Totals'!$B$9*'Inputs and Totals'!$B$8*0.001, IF('Inputs and Totals'!C41 =2,'Solar Profiles'!$Q$4*'Inputs and Totals'!$B$8*'Inputs and Totals'!$B$9*0.001,IF('Inputs and Totals'!C41 =3,'Solar Profiles'!$Q$5*'Inputs and Totals'!$B$8*'Inputs and Totals'!$B$9*0.001,"Error"))) -> 1199.88 | Q56: =IF('Inputs and Totals'!C41 = 1,'Solar Profiles'!$R$3*'Inputs and Totals'!$B$9*'Inputs and Totals'!$B$8*0.001, IF('Inputs and Totals'!C41 =2,'Solar Profiles'!$R$4*'Inputs and Totals'!$B$8*'Inputs and Totals'!$B$9*0.001,IF('Inputs and Totals'!C41 =3,'Solar Profiles'!$R$5*'Inputs and Totals'!$B$8*'Inputs and Totals'!$B$9*0.001,"Error"))) -> 999.9 | R56: =IF('Inputs and Totals'!C41 = 1,'Solar Profiles'!$S$3*'Inputs and Totals'!$B$9*'Inputs and Totals'!$B$8*0.001, IF('Inputs and Totals'!C41 =2,'Solar Profiles'!$S$4*'Inputs and Totals'!$B$8*'Inputs and Totals'!$B$9*0.001,IF('Inputs and Totals'!C41 =3,'Solar Profiles'!$S$5*'Inputs and Totals'!$B$8*'Inputs and Totals'!$B$9*0.001,"Error"))) -> 599.94 | S56: =IF('Inputs and Totals'!C41 = 1,'Solar Profiles'!$T$3*'Inputs and Totals'!$B$9*'Inputs and Totals'!$B$8*0.001, IF('Inputs and Totals'!C41 =2,'Solar Profiles'!$T$4*'Inputs and Totals'!$B$8*'Inputs and Totals'!$B$9*0.001,IF('Inputs and Totals'!C41 =3,'Solar Profiles'!$T$5*'Inputs and Totals'!$B$8*'Inputs and Totals'!$B$9*0.001,"Error"))) -> 199.98 | T56: =IF('Inputs and Totals'!C41 = 1,'Solar Profiles'!$U$3*'Inputs and Totals'!$B$9*'Inputs and Totals'!$B$8*0.001, IF('Inputs and Totals'!C41 =2,'Solar Profiles'!$U$4*'Inputs and Totals'!$B$8*'Inputs and Totals'!$B$9*0.001,IF('Inputs and Totals'!C41 =3,'Solar Profiles'!$U$5*'Inputs and Totals'!$B$8*'Inputs and Totals'!$B$9*0.001,"Error"))) -> 0 | U56: =IF('Inputs and Totals'!C41 = 1,'Solar Profiles'!$V$3*'Inputs and Totals'!$B$9*'Inputs and Totals'!$B$8*0.001, IF('Inputs and Totals'!C41 =2,'Solar Profiles'!$V$4*'Inputs and Totals'!$B$8*'Inputs and Totals'!$B$9*0.001,IF('Inputs and Totals'!C41 =3,'Solar Profiles'!$V$5*'Inputs and Totals'!$B$8*'Inputs and Totals'!$B$9*0.001,"Error"))) -> 0 | V56: =IF('Inputs and Totals'!C41 = 1,'Solar Profiles'!$W$3*'Inputs and Totals'!$B$9*'Inputs and Totals'!$B$8*0.001, IF('Inputs and Totals'!C41 =2,'Solar Profiles'!$W$4*'Inputs and Totals'!$B$8*'Inputs and Totals'!$B$9*0.001,IF('Inputs and Totals'!C41 =3,'Solar Profiles'!$W$5*'Inputs and Totals'!$B$8*'Inputs and Totals'!$B$9*0.001,"Error"))) -> 0 | W56: =IF('Inputs and Totals'!C41 = 1,'Solar Profiles'!$X$3*'Inputs and Totals'!$B$9*'Inputs and Totals'!$B$8*0.001, IF('Inputs and Totals'!C41 =2,'Solar Profiles'!$X$4*'Inputs and Totals'!$B$8*'Inputs and Totals'!$B$9*0.001,IF('Inputs and Totals'!C41 =3,'Solar Profiles'!$X$5*'Inputs and Totals'!$B$8*'Inputs and Totals'!$B$9*0.001,"Error"))) -> 0 | X56: =IF('Inputs and Totals'!C41 = 1,'Solar Profiles'!$Y$3*'Inputs and Totals'!$B$9*'Inputs and Totals'!$B$8*0.001, IF('Inputs and Totals'!C41 =2,'Solar Profiles'!$Y$4*'Inputs and Totals'!$B$8*'Inputs and Totals'!$B$9*0.001,IF('Inputs and Totals'!C41 =3,'Solar Profiles'!$Y$5*'Inputs and Totals'!$B$8*'Inputs and Totals'!$B$9*0.001,"Error"))) -> 0 | Y56: =IF('Inputs and Totals'!C41 = 1,'Solar Profiles'!$Z$3*'Inputs and Totals'!$B$9*'Inputs and Totals'!$B$8*0.001, IF('Inputs and Totals'!C41 =2,'Solar Profiles'!$Z$4*'Inputs and Totals'!$B$8*'Inputs and Totals'!$B$9*0.001,IF('Inputs and Totals'!C41 =3,'Solar Profiles'!$Z$5*'Inputs and Totals'!$B$8*'Inputs and Totals'!$B$9*0.001,"Error"))) -> 0 | Z56: 9199.08
A57: Day 23 | B57: =IF('Inputs and Totals'!C42 = 1,'Solar Profiles'!$C$3*'Inputs and Totals'!$B$9*'Inputs and Totals'!$B$8*0.001, IF('Inputs and Totals'!C42 =2,'Solar Profiles'!$C$4*'Inputs and Totals'!$B$8*'Inputs and Totals'!$B$9*0.001,IF('Inputs and Totals'!C42 =3,'Solar Profiles'!$C$5*'Inputs and Totals'!$B$8*'Inputs and Totals'!$B$9*0.001,"Error"))) -> 0 | C57: =IF('Inputs and Totals'!C42 = 1,'Solar Profiles'!$D$3*'Inputs and Totals'!$B$9*'Inputs and Totals'!$B$8*0.001, IF('Inputs and Totals'!C42 =2,'Solar Profiles'!$D$4*'Inputs and Totals'!$B$8*'Inputs and Totals'!$B$9*0.001,IF('Inputs and Totals'!C42 =3,'Solar Profiles'!$D$5*'Inputs and Totals'!$B$8*'Inputs and Totals'!$B$9*0.001,"Error"))) -> 0 | D57: =IF('Inputs and Totals'!C42 = 1,'Solar Profiles'!$E$3*'Inputs and Totals'!$B$9*'Inputs and Totals'!$B$8*0.001, IF('Inputs and Totals'!C42 =2,'Solar Profiles'!$E$4*'Inputs and Totals'!$B$8*'Inputs and Totals'!$B$9*0.001,IF('Inputs and Totals'!C42 =3,'Solar Profiles'!$E$5*'Inputs and Totals'!$B$8*'Inputs and Totals'!$B$9*0.001,"Error"))) -> 0 | E57: =IF('Inputs and Totals'!C42 = 1,'Solar Profiles'!$F$3*'Inputs and Totals'!$B$9*'Inputs and Totals'!$B$8*0.001, IF('Inputs and Totals'!C42 =2,'Solar Profiles'!$F$4*'Inputs and Totals'!$B$8*'Inputs and Totals'!$B$9*0.001,IF('Inputs and Totals'!C42 =3,'Solar Profiles'!$F$5*'Inputs and Totals'!$B$8*'Inputs and Totals'!$B$9*0.001,"Error"))) -> 0 | F57: =IF('Inputs and Totals'!C42 = 1,'Solar Profiles'!$G$3*'Inputs and Totals'!$B$9*'Inputs and Totals'!$B$8*0.001, IF('Inputs and Totals'!C42 =2,'Solar Profiles'!$G$4*'Inputs and Totals'!$B$8*'Inputs and Totals'!$B$9*0.001,IF('Inputs and Totals'!C42 =3,'Solar Profiles'!$G$5*'Inputs and Totals'!$B$8*'Inputs and Totals'!$B$9*0.001,"Error"))) -> 0 | G57: =IF('Inputs and Totals'!C42 = 1,'Solar Profiles'!$H$3*'Inputs and Totals'!$B$9*'Inputs and Totals'!$B$8*0.001, IF('Inputs and Totals'!C42 =2,'Solar Profiles'!$H$4*'Inputs and Totals'!$B$8*'Inputs and Totals'!$B$9*0.001,IF('Inputs and Totals'!C42 =3,'Solar Profiles'!$H$5*'Inputs and Totals'!$B$8*'Inputs and Totals'!$B$9*0.001,"Error"))) -> 0 | H57: =IF('Inputs and Totals'!C42 = 1,'Solar Profiles'!$I$3*'Inputs and Totals'!$B$9*'Inputs and Totals'!$B$8*0.001, IF('Inputs and Totals'!C42 =2,'Solar Profiles'!$I$4*'Inputs and Totals'!$B$8*'Inputs and Totals'!$B$9*0.001,IF('Inputs and Totals'!C42 =3,'Solar Profiles'!$I$5*'Inputs and Totals'!$B$8*'Inputs and Totals'!$B$9*0.001,"Error"))) -> 0 | I57: =IF('Inputs and Totals'!C42 = 1,'Solar Profiles'!$J$3*'Inputs and Totals'!$B$9*'Inputs and Totals'!$B$8*0.001, IF('Inputs and Totals'!C42 =2,'Solar Profiles'!$J$4*'Inputs and Totals'!$B$8*'Inputs and Totals'!$B$9*0.001,IF('Inputs and Totals'!C42 =3,'Solar Profiles'!$J$5*'Inputs and Totals'!$B$8*'Inputs and Totals'!$B$9*0.001,"Error"))) -> 99.99 | J57: =IF('Inputs and Totals'!C42 = 1,'Solar Profiles'!$K$3*'Inputs and Totals'!$B$9*'Inputs and Totals'!$B$8*0.001, IF('Inputs and Totals'!C42 =2,'Solar Profiles'!$K$4*'Inputs and Totals'!$B$8*'Inputs and Totals'!$B$9*0.001,IF('Inputs and Totals'!C42 =3,'Solar Profiles'!$K$5*'Inputs and Totals'!$B$8*'Inputs and Totals'!$B$9*0.001,"Error"))) -> 199.98 | K57: =IF('Inputs and Totals'!C42 = 1,'Solar Profiles'!$L$3*'Inputs and Totals'!$B$9*'Inputs and Totals'!$B$8*0.001, IF('Inputs and Totals'!C42 =2,'Solar Profiles'!$L$4*'Inputs and Totals'!$B$8*'Inputs and Totals'!$B$9*0.001,IF('Inputs and Totals'!C42 =3,'Solar Profiles'!$L$5*'Inputs and Totals'!$B$8*'Inputs and Totals'!$B$9*0.001,"Error"))) -> 299.97 | L57: =IF('Inputs and Totals'!C42 = 1,'Solar Profiles'!$M$3*'Inputs and Totals'!$B$9*'Inputs and Totals'!$B$8*0.001, IF('Inputs and Totals'!C42 =2,'Solar Profiles'!$M$4*'Inputs and Totals'!$B$8*'Inputs and Totals'!$B$9*0.001,IF('Inputs and Totals'!C42 =3,'Solar Profiles'!$M$5*'Inputs and Totals'!$B$8*'Inputs and Totals'!$B$9*0.001,"Error"))) -> 399.96 | M57: =IF('Inputs and Totals'!C42 = 1,'Solar Profiles'!$N$3*'Inputs and Totals'!$B$9*'Inputs and Totals'!$B$8*0.001, IF('Inputs and Totals'!C42 =2,'Solar Profiles'!$N$4*'Inputs and Totals'!$B$8*'Inputs and Totals'!$B$9*0.001,IF('Inputs and Totals'!C42 =3,'Solar Profiles'!$N$5*'Inputs and Totals'!$B$8*'Inputs and Totals'!$B$9*0.001,"Error"))) -> 799.92 | N57: =IF('Inputs and Totals'!C42 = 1,'Solar Profiles'!$O$3*'Inputs and Totals'!$B$9*'Inputs and Totals'!$B$8*0.001, IF('Inputs and Totals'!C42 =2,'Solar Profiles'!$O$4*'Inputs and Totals'!$B$8*'Inputs and Totals'!$B$9*0.001,IF('Inputs and Totals'!C42 =3,'Solar Profiles'!$O$5*'Inputs and Totals'!$B$8*'Inputs and Totals'!$B$9*0.001,"Error"))) -> 999.9 | O57: =IF('Inputs and Totals'!C42 = 1,'Solar Profiles'!$P$3*'Inputs and Totals'!$B$9*'Inputs and Totals'!$B$8*0.001, IF('Inputs and Totals'!C42 =2,'Solar Profiles'!$P$4*'Inputs and Totals'!$B$8*'Inputs and Totals'!$B$9*0.001,IF('Inputs and Totals'!C42 =3,'Solar Profiles'!$P$5*'Inputs and Totals'!$B$8*'Inputs and Totals'!$B$9*0.001,"Error"))) -> 999.9 | P57: =IF('Inputs and Totals'!C42 = 1,'Solar Profiles'!$Q$3*'Inputs and Totals'!$B$9*'Inputs and Totals'!$B$8*0.001, IF('Inputs and Totals'!C42 =2,'Solar Profiles'!$Q$4*'Inputs and Totals'!$B$8*'Inputs and Totals'!$B$9*0.001,IF('Inputs and Totals'!C42 =3,'Solar Profiles'!$Q$5*'Inputs and Totals'!$B$8*'Inputs and Totals'!$B$9*0.001,"Error"))) -> 799.92 | Q57: =IF('Inputs and Totals'!C42 = 1,'Solar Profiles'!$R$3*'Inputs and Totals'!$B$9*'Inputs and Totals'!$B$8*0.001, IF('Inputs and Totals'!C42 =2,'Solar Profiles'!$R$4*'Inputs and Totals'!$B$8*'Inputs and Totals'!$B$9*0.001,IF('Inputs and Totals'!C42 =3,'Solar Profiles'!$R$5*'Inputs and Totals'!$B$8*'Inputs and Totals'!$B$9*0.001,"Error"))) -> 599.94 | R57: =IF('Inputs and Totals'!C42 = 1,'Solar Profiles'!$S$3*'Inputs and Totals'!$B$9*'Inputs and Totals'!$B$8*0.001, IF('Inputs and Totals'!C42 =2,'Solar Profiles'!$S$4*'Inputs and Totals'!$B$8*'Inputs and Totals'!$B$9*0.001,IF('Inputs and Totals'!C42 =3,'Solar Profiles'!$S$5*'Inputs and Totals'!$B$8*'Inputs and Totals'!$B$9*0.001,"Error"))) -> 399.96 | S57: =IF('Inputs and Totals'!C42 = 1,'Solar Profiles'!$T$3*'Inputs and Totals'!$B$9*'Inputs and Totals'!$B$8*0.001, IF('Inputs and Totals'!C42 =2,'Solar Profiles'!$T$4*'Inputs and Totals'!$B$8*'Inputs and Totals'!$B$9*0.001,IF('Inputs and Totals'!C42 =3,'Solar Profiles'!$T$5*'Inputs and Totals'!$B$8*'Inputs and Totals'!$B$9*0.001,"Error"))) -> 199.98 | T57: =IF('Inputs and Totals'!C42 = 1,'Solar Profiles'!$U$3*'Inputs and Totals'!$B$9*'Inputs and Totals'!$B$8*0.001, IF('Inputs and Totals'!C42 =2,'Solar Profiles'!$U$4*'Inputs and Totals'!$B$8*'Inputs and Totals'!$B$9*0.001,IF('Inputs and Totals'!C42 =3,'Solar Profiles'!$U$5*'Inputs and Totals'!$B$8*'Inputs and Totals'!$B$9*0.001,"Error"))) -> 0 | U57: =IF('Inputs and Totals'!C42 = 1,'Solar Profiles'!$V$3*'Inputs and Totals'!$B$9*'Inputs and Totals'!$B$8*0.001, IF('Inputs and Totals'!C42 =2,'Solar Profiles'!$V$4*'Inputs and Totals'!$B$8*'Inputs and Totals'!$B$9*0.001,IF('Inputs and Totals'!C42 =3,'Solar Profiles'!$V$5*'Inputs and Totals'!$B$8*'Inputs and Totals'!$B$9*0.001,"Error"))) -> 0 | V57: =IF('Inputs and Totals'!C42 = 1,'Solar Profiles'!$W$3*'Inputs and Totals'!$B$9*'Inputs and Totals'!$B$8*0.001, IF('Inputs and Totals'!C42 =2,'Solar Profiles'!$W$4*'Inputs and Totals'!$B$8*'Inputs and Totals'!$B$9*0.001,IF('Inputs and Totals'!C42 =3,'Solar Profiles'!$W$5*'Inputs and Totals'!$B$8*'Inputs and Totals'!$B$9*0.001,"Error"))) -> 0 | W57: =IF('Inputs and Totals'!C42 = 1,'Solar Profiles'!$X$3*'Inputs and Totals'!$B$9*'Inputs and Totals'!$B$8*0.001, IF('Inputs and Totals'!C42 =2,'Solar Profiles'!$X$4*'Inputs and Totals'!$B$8*'Inputs and Totals'!$B$9*0.001,IF('Inputs and Totals'!C42 =3,'Solar Profiles'!$X$5*'Inputs and Totals'!$B$8*'Inputs and Totals'!$B$9*0.001,"Error"))) -> 0 | X57: =IF('Inputs and Totals'!C42 = 1,'Solar Profiles'!$Y$3*'Inputs and Totals'!$B$9*'Inputs and Totals'!$B$8*0.001, IF('Inputs and Totals'!C42 =2,'Solar Profiles'!$Y$4*'Inputs and Totals'!$B$8*'Inputs and Totals'!$B$9*0.001,IF('Inputs and Totals'!C42 =3,'Solar Profiles'!$Y$5*'Inputs and Totals'!$B$8*'Inputs and Totals'!$B$9*0.001,"Error"))) -> 0 | Y57: =IF('Inputs and Totals'!C42 = 1,'Solar Profiles'!$Z$3*'Inputs and Totals'!$B$9*'Inputs and Totals'!$B$8*0.001, IF('Inputs and Totals'!C42 =2,'Solar Profiles'!$Z$4*'Inputs and Totals'!$B$8*'Inputs and Totals'!$B$9*0.001,IF('Inputs and Totals'!C42 =3,'Solar Profiles'!$Z$5*'Inputs and Totals'!$B$8*'Inputs and Totals'!$B$9*0.001,"Error"))) -> 0 | Z57: 5799.42
A58: Day 24 | B58: =IF('Inputs and Totals'!C43 = 1,'Solar Profiles'!$C$3*'Inputs and Totals'!$B$9*'Inputs and Totals'!$B$8*0.001, IF('Inputs and Totals'!C43 =2,'Solar Profiles'!$C$4*'Inputs and Totals'!$B$8*'Inputs and Totals'!$B$9*0.001,IF('Inputs and Totals'!C43 =3,'Solar Profiles'!$C$5*'Inputs and Totals'!$B$8*'Inputs and Totals'!$B$9*0.001,"Error"))) -> 0 | C58: =IF('Inputs and Totals'!C43 = 1,'Solar Profiles'!$D$3*'Inputs and Totals'!$B$9*'Inputs and Totals'!$B$8*0.001, IF('Inputs and Totals'!C43 =2,'Solar Profiles'!$D$4*'Inputs and Totals'!$B$8*'Inputs and Totals'!$B$9*0.001,IF('Inputs and Totals'!C43 =3,'Solar Profiles'!$D$5*'Inputs and Totals'!$B$8*'Inputs and Totals'!$B$9*0.001,"Error"))) -> 0 | D58: =IF('Inputs and Totals'!C43 = 1,'Solar Profiles'!$E$3*'Inputs and Totals'!$B$9*'Inputs and Totals'!$B$8*0.001, IF('Inputs and Totals'!C43 =2,'Solar Profiles'!$E$4*'Inputs and Totals'!$B$8*'Inputs and Totals'!$B$9*0.001,IF('Inputs and Totals'!C43 =3,'Solar Profiles'!$E$5*'Inputs and Totals'!$B$8*'Inputs and Totals'!$B$9*0.001,"Error"))) -> 0 | E58: =IF('Inputs and Totals'!C43 = 1,'Solar Profiles'!$F$3*'Inputs and Totals'!$B$9*'Inputs and Totals'!$B$8*0.001, IF('Inputs and Totals'!C43 =2,'Solar Profiles'!$F$4*'Inputs and Totals'!$B$8*'Inputs and Totals'!$B$9*0.001,IF('Inputs and Totals'!C43 =3,'Solar Profiles'!$F$5*'Inputs and Totals'!$B$8*'Inputs and Totals'!$B$9*0.001,"Error"))) -> 0 | F58: =IF('Inputs and Totals'!C43 = 1,'Solar Profiles'!$G$3*'Inputs and Totals'!$B$9*'Inputs and Totals'!$B$8*0.001, IF('Inputs and Totals'!C43 =2,'Solar Profiles'!$G$4*'Inputs and Totals'!$B$8*'Inputs and Totals'!$B$9*0.001,IF('Inputs and Totals'!C43 =3,'Solar Profiles'!$G$5*'Inputs and Totals'!$B$8*'Inputs and Totals'!$B$9*0.001,"Error"))) -> 0 | G58: =IF('Inputs and Totals'!C43 = 1,'Solar Profiles'!$H$3*'Inputs and Totals'!$B$9*'Inputs and Totals'!$B$8*0.001, IF('Inputs and Totals'!C43 =2,'Solar Profiles'!$H$4*'Inputs and Totals'!$B$8*'Inputs and Totals'!$B$9*0.001,IF('Inputs and Totals'!C43 =3,'Solar Profiles'!$H$5*'Inputs and Totals'!$B$8*'Inputs and Totals'!$B$9*0.001,"Error"))) -> 0 | H58: =IF('Inputs and Totals'!C43 = 1,'Solar Profiles'!$I$3*'Inputs and Totals'!$B$9*'Inputs and Totals'!$B$8*0.001, IF('Inputs and Totals'!C43 =2,'Solar Profiles'!$I$4*'Inputs and Totals'!$B$8*'Inputs and Totals'!$B$9*0.001,IF('Inputs and Totals'!C43 =3,'Solar Profiles'!$I$5*'Inputs and Totals'!$B$8*'Inputs and Totals'!$B$9*0.001,"Error"))) -> 0 | I58: =IF('Inputs and Totals'!C43 = 1,'Solar Profiles'!$J$3*'Inputs and Totals'!$B$9*'Inputs and Totals'!$B$8*0.001, IF('Inputs and Totals'!C43 =2,'Solar Profiles'!$J$4*'Inputs and Totals'!$B$8*'Inputs and Totals'!$B$9*0.001,IF('Inputs and Totals'!C43 =3,'Solar Profiles'!$J$5*'Inputs and Totals'!$B$8*'Inputs and Totals'!$B$9*0.001,"Error"))) -> 199.98 | J58: =IF('Inputs and Totals'!C43 = 1,'Solar Profiles'!$K$3*'Inputs and Totals'!$B$9*'Inputs and Totals'!$B$8*0.001, IF('Inputs and Totals'!C43 =2,'Solar Profiles'!$K$4*'Inputs and Totals'!$B$8*'Inputs and Totals'!$B$9*0.001,IF('Inputs and Totals'!C43 =3,'Solar Profiles'!$K$5*'Inputs and Totals'!$B$8*'Inputs and Totals'!$B$9*0.001,"Error"))) -> 399.96 | K58: =IF('Inputs and Totals'!C43 = 1,'Solar Profiles'!$L$3*'Inputs and Totals'!$B$9*'Inputs and Totals'!$B$8*0.001, IF('Inputs and Totals'!C43 =2,'Solar Profiles'!$L$4*'Inputs and Totals'!$B$8*'Inputs and Totals'!$B$9*0.001,IF('Inputs and Totals'!C43 =3,'Solar Profiles'!$L$5*'Inputs and Totals'!$B$8*'Inputs and Totals'!$B$9*0.001,"Error"))) -> 599.94 | L58: =IF('Inputs and Totals'!C43 = 1,'Solar Profiles'!$M$3*'Inputs and Totals'!$B$9*'Inputs and Totals'!$B$8*0.001, IF('Inputs and Totals'!C43 =2,'Solar Profiles'!$M$4*'Inputs and Totals'!$B$8*'Inputs and Totals'!$B$9*0.001,IF('Inputs and Totals'!C43 =3,'Solar Profiles'!$M$5*'Inputs and Totals'!$B$8*'Inputs and Totals'!$B$9*0.001,"Error"))) -> 799.92 | M58: =IF('Inputs and Totals'!C43 = 1,'Solar Profiles'!$N$3*'Inputs and Totals'!$B$9*'Inputs and Totals'!$B$8*0.001, IF('Inputs and Totals'!C43 =2,'Solar Profiles'!$N$4*'Inputs and Totals'!$B$8*'Inputs and Totals'!$B$9*0.001,IF('Inputs and Totals'!C43 =3,'Solar Profiles'!$N$5*'Inputs and Totals'!$B$8*'Inputs and Totals'!$B$9*0.001,"Error"))) -> 1599.84 | N58: =IF('Inputs and Totals'!C43 = 1,'Solar Profiles'!$O$3*'Inputs and Totals'!$B$9*'Inputs and Totals'!$B$8*0.001, IF('Inputs and Totals'!C43 =2,'Solar Profiles'!$O$4*'Inputs and Totals'!$B$8*'Inputs and Totals'!$B$9*0.001,IF('Inputs and Totals'!C43 =3,'Solar Profiles'!$O$5*'Inputs and Totals'!$B$8*'Inputs and Totals'!$B$9*0.001,"Error"))) -> 1999.8 | O58: =IF('Inputs and Totals'!C43 = 1,'Solar Profiles'!$P$3*'Inputs and Totals'!$B$9*'Inputs and Totals'!$B$8*0.001, IF('Inputs and Totals'!C43 =2,'Solar Profiles'!$P$4*'Inputs and Totals'!$B$8*'Inputs and Totals'!$B$9*0.001,IF('Inputs and Totals'!C43 =3,'Solar Profiles'!$P$5*'Inputs and Totals'!$B$8*'Inputs and Totals'!$B$9*0.001,"Error"))) -> 1999.8 | P58: =IF('Inputs and Totals'!C43 = 1,'Solar Profiles'!$Q$3*'Inputs and Totals'!$B$9*'Inputs and Totals'!$B$8*0.001, IF('Inputs and Totals'!C43 =2,'Solar Profiles'!$Q$4*'Inputs and Totals'!$B$8*'Inputs and Totals'!$B$9*0.001,IF('Inputs and Totals'!C43 =3,'Solar Profiles'!$Q$5*'Inputs and Totals'!$B$8*'Inputs and Totals'!$B$9*0.001,"Error"))) -> 1399.86 | Q58: =IF('Inputs and Totals'!C43 = 1,'Solar Profiles'!$R$3*'Inputs and Totals'!$B$9*'Inputs and Totals'!$B$8*0.001, IF('Inputs and Totals'!C43 =2,'Solar Profiles'!$R$4*'Inputs and Totals'!$B$8*'Inputs and Totals'!$B$9*0.001,IF('Inputs and Totals'!C43 =3,'Solar Profiles'!$R$5*'Inputs and Totals'!$B$8*'Inputs and Totals'!$B$9*0.001,"Error"))) -> 1199.88 | R58: =IF('Inputs and Totals'!C43 = 1,'Solar Profiles'!$S$3*'Inputs and Totals'!$B$9*'Inputs and Totals'!$B$8*0.001, IF('Inputs and Totals'!C43 =2,'Solar Profiles'!$S$4*'Inputs and Totals'!$B$8*'Inputs and Totals'!$B$9*0.001,IF('Inputs and Totals'!C43 =3,'Solar Profiles'!$S$5*'Inputs and Totals'!$B$8*'Inputs and Totals'!$B$9*0.001,"Error"))) -> 999.9 | S58: =IF('Inputs and Totals'!C43 = 1,'Solar Profiles'!$T$3*'Inputs and Totals'!$B$9*'Inputs and Totals'!$B$8*0.001, IF('Inputs and Totals'!C43 =2,'Solar Profiles'!$T$4*'Inputs and Totals'!$B$8*'Inputs and Totals'!$B$9*0.001,IF('Inputs and Totals'!C43 =3,'Solar Profiles'!$T$5*'Inputs and Totals'!$B$8*'Inputs and Totals'!$B$9*0.001,"Error"))) -> 399.96 | T58: =IF('Inputs and Totals'!C43 = 1,'Solar Profiles'!$U$3*'Inputs and Totals'!$B$9*'Inputs and Totals'!$B$8*0.001, IF('Inputs and Totals'!C43 =2,'Solar Profiles'!$U$4*'Inputs and Totals'!$B$8*'Inputs and Totals'!$B$9*0.001,IF('Inputs and Totals'!C43 =3,'Solar Profiles'!$U$5*'Inputs and Totals'!$B$8*'Inputs and Totals'!$B$9*0.001,"Error"))) -> 0 | U58: =IF('Inputs and Totals'!C43 = 1,'Solar Profiles'!$V$3*'Inputs and Totals'!$B$9*'Inputs and Totals'!$B$8*0.001, IF('Inputs and Totals'!C43 =2,'Solar Profiles'!$V$4*'Inputs and Totals'!$B$8*'Inputs and Totals'!$B$9*0.001,IF('Inputs and Totals'!C43 =3,'Solar Profiles'!$V$5*'Inputs and Totals'!$B$8*'Inputs and Totals'!$B$9*0.001,"Error"))) -> 0 | V58: =IF('Inputs and Totals'!C43 = 1,'Solar Profiles'!$W$3*'Inputs and Totals'!$B$9*'Inputs and Totals'!$B$8*0.001, IF('Inputs and Totals'!C43 =2,'Solar Profiles'!$W$4*'Inputs and Totals'!$B$8*'Inputs and Totals'!$B$9*0.001,IF('Inputs and Totals'!C43 =3,'Solar Profiles'!$W$5*'Inputs and Totals'!$B$8*'Inputs and Totals'!$B$9*0.001,"Error"))) -> 0 | W58: =IF('Inputs and Totals'!C43 = 1,'Solar Profiles'!$X$3*'Inputs and Totals'!$B$9*'Inputs and Totals'!$B$8*0.001, IF('Inputs and Totals'!C43 =2,'Solar Profiles'!$X$4*'Inputs and Totals'!$B$8*'Inputs and Totals'!$B$9*0.001,IF('Inputs and Totals'!C43 =3,'Solar Profiles'!$X$5*'Inputs and Totals'!$B$8*'Inputs and Totals'!$B$9*0.001,"Error"))) -> 0 | X58: =IF('Inputs and Totals'!C43 = 1,'Solar Profiles'!$Y$3*'Inputs and Totals'!$B$9*'Inputs and Totals'!$B$8*0.001, IF('Inputs and Totals'!C43 =2,'Solar Profiles'!$Y$4*'Inputs and Totals'!$B$8*'Inputs and Totals'!$B$9*0.001,IF('Inputs and Totals'!C43 =3,'Solar Profiles'!$Y$5*'Inputs and Totals'!$B$8*'Inputs and Totals'!$B$9*0.001,"Error"))) -> 0 | Y58: =IF('Inputs and Totals'!C43 = 1,'Solar Profiles'!$Z$3*'Inputs and Totals'!$B$9*'Inputs and Totals'!$B$8*0.001, IF('Inputs and Totals'!C43 =2,'Solar Profiles'!$Z$4*'Inputs and Totals'!$B$8*'Inputs and Totals'!$B$9*0.001,IF('Inputs and Totals'!C43 =3,'Solar Profiles'!$Z$5*'Inputs and Totals'!$B$8*'Inputs and Totals'!$B$9*0.001,"Error"))) -> 0 | Z58: 11598.84
A59: Day 25 | B59: =IF('Inputs and Totals'!C44 = 1,'Solar Profiles'!$C$3*'Inputs and Totals'!$B$9*'Inputs and Totals'!$B$8*0.001, IF('Inputs and Totals'!C44 =2,'Solar Profiles'!$C$4*'Inputs and Totals'!$B$8*'Inputs and Totals'!$B$9*0.001,IF('Inputs and Totals'!C44 =3,'Solar Profiles'!$C$5*'Inputs and Totals'!$B$8*'Inputs and Totals'!$B$9*0.001,"Error"))) -> 0 | C59: =IF('Inputs and Totals'!C44 = 1,'Solar Profiles'!$D$3*'Inputs and Totals'!$B$9*'Inputs and Totals'!$B$8*0.001, IF('Inputs and Totals'!C44 =2,'Solar Profiles'!$D$4*'Inputs and Totals'!$B$8*'Inputs and Totals'!$B$9*0.001,IF('Inputs and Totals'!C44 =3,'Solar Profiles'!$D$5*'Inputs and Totals'!$B$8*'Inputs and Totals'!$B$9*0.001,"Error"))) -> 0 | D59: =IF('Inputs and Totals'!C44 = 1,'Solar Profiles'!$E$3*'Inputs and Totals'!$B$9*'Inputs and Totals'!$B$8*0.001, IF('Inputs and Totals'!C44 =2,'Solar Profiles'!$E$4*'Inputs and Totals'!$B$8*'Inputs and Totals'!$B$9*0.001,IF('Inputs and Totals'!C44 =3,'Solar Profiles'!$E$5*'Inputs and Totals'!$B$8*'Inputs and Totals'!$B$9*0.001,"Error"))) -> 0 | E59: =IF('Inputs and Totals'!C44 = 1,'Solar Profiles'!$F$3*'Inputs and Totals'!$B$9*'Inputs and Totals'!$B$8*0.001, IF('Inputs and Totals'!C44 =2,'Solar Profiles'!$F$4*'Inputs and Totals'!$B$8*'Inputs and Totals'!$B$9*0.001,IF('Inputs and Totals'!C44 =3,'Solar Profiles'!$F$5*'Inputs and Totals'!$B$8*'Inputs and Totals'!$B$9*0.001,"Error"))) -> 0 | F59: =IF('Inputs and Totals'!C44 = 1,'Solar Profiles'!$G$3*'Inputs and Totals'!$B$9*'Inputs and Totals'!$B$8*0.001, IF('Inputs and Totals'!C44 =2,'Solar Profiles'!$G$4*'Inputs and Totals'!$B$8*'Inputs and Totals'!$B$9*0.001,IF('Inputs and Totals'!C44 =3,'Solar Profiles'!$G$5*'Inputs and Totals'!$B$8*'Inputs and Totals'!$B$9*0.001,"Error"))) -> 0 | G59: =IF('Inputs and Totals'!C44 = 1,'Solar Profiles'!$H$3*'Inputs and Totals'!$B$9*'Inputs and Totals'!$B$8*0.001, IF('Inputs and Totals'!C44 =2,'Solar Profiles'!$H$4*'Inputs and Totals'!$B$8*'Inputs and Totals'!$B$9*0.001,IF('Inputs and Totals'!C44 =3,'Solar Profiles'!$H$5*'Inputs and Totals'!$B$8*'Inputs and Totals'!$B$9*0.001,"Error"))) -> 0 | H59: =IF('Inputs and Totals'!C44 = 1,'Solar Profiles'!$I$3*'Inputs and Totals'!$B$9*'Inputs and Totals'!$B$8*0.001, IF('Inputs and Totals'!C44 =2,'Solar Profiles'!$I$4*'Inputs and Totals'!$B$8*'Inputs and Totals'!$B$9*0.001,IF('Inputs and Totals'!C44 =3,'Solar Profiles'!$I$5*'Inputs and Totals'!$B$8*'Inputs and Totals'!$B$9*0.001,"Error"))) -> 0 | I59: =IF('Inputs and Totals'!C44 = 1,'Solar Profiles'!$J$3*'Inputs and Totals'!$B$9*'Inputs and Totals'!$B$8*0.001, IF('Inputs and Totals'!C44 =2,'Solar Profiles'!$J$4*'Inputs and Totals'!$B$8*'Inputs and Totals'!$B$9*0.001,IF('Inputs and Totals'!C44 =3,'Solar Profiles'!$J$5*'Inputs and Totals'!$B$8*'Inputs and Totals'!$B$9*0.001,"Error"))) -> 199.98 | J59: =IF('Inputs and Totals'!C44 = 1,'Solar Profiles'!$K$3*'Inputs and Totals'!$B$9*'Inputs and Totals'!$B$8*0.001, IF('Inputs and Totals'!C44 =2,'Solar Profiles'!$K$4*'Inputs and Totals'!$B$8*'Inputs and Totals'!$B$9*0.001,IF('Inputs and Totals'!C44 =3,'Solar Profiles'!$K$5*'Inputs and Totals'!$B$8*'Inputs and Totals'!$B$9*0.001,"Error"))) -> 199.98 | K59: =IF('Inputs and Totals'!C44 = 1,'Solar Profiles'!$L$3*'Inputs and Totals'!$B$9*'Inputs and Totals'!$B$8*0.001, IF('Inputs and Totals'!C44 =2,'Solar Profiles'!$L$4*'Inputs and Totals'!$B$8*'Inputs and Totals'!$B$9*0.001,IF('Inputs and Totals'!C44 =3,'Solar Profiles'!$L$5*'Inputs and Totals'!$B$8*'Inputs and Totals'!$B$9*0.001,"Error"))) -> 399.96 | L59: =IF('Inputs and Totals'!C44 = 1,'Solar Profiles'!$M$3*'Inputs and Totals'!$B$9*'Inputs and Totals'!$B$8*0.001, IF('Inputs and Totals'!C44 =2,'Solar Profiles'!$M$4*'Inputs and Totals'!$B$8*'Inputs and Totals'!$B$9*0.001,IF('Inputs and Totals'!C44 =3,'Solar Profiles'!$M$5*'Inputs and Totals'!$B$8*'Inputs and Totals'!$B$9*0.001,"Error"))) -> 599.94 | M59: =IF('Inputs and Totals'!C44 = 1,'Solar Profiles'!$N$3*'Inputs and Totals'!$B$9*'Inputs and Totals'!$B$8*0.001, IF('Inputs and Totals'!C44 =2,'Solar Profiles'!$N$4*'Inputs and Totals'!$B$8*'Inputs and Totals'!$B$9*0.001,IF('Inputs and Totals'!C44 =3,'Solar Profiles'!$N$5*'Inputs and Totals'!$B$8*'Inputs and Totals'!$B$9*0.001,"Error"))) -> 999.9 | N59: =IF('Inputs and Totals'!C44 = 1,'Solar Profiles'!$O$3*'Inputs and Totals'!$B$9*'Inputs and Totals'!$B$8*0.001, IF('Inputs and Totals'!C44 =2,'Solar Profiles'!$O$4*'Inputs and Totals'!$B$8*'Inputs and Totals'!$B$9*0.001,IF('Inputs and Totals'!C44 =3,'Solar Profiles'!$O$5*'Inputs and Totals'!$B$8*'Inputs and Totals'!$B$9*0.001,"Error"))) -> 1799.82 | O59: =IF('Inputs and Totals'!C44 = 1,'Solar Profiles'!$P$3*'Inputs and Totals'!$B$9*'Inputs and Totals'!$B$8*0.001, IF('Inputs and Totals'!C44 =2,'Solar Profiles'!$P$4*'Inputs and Totals'!$B$8*'Inputs and Totals'!$B$9*0.001,IF('Inputs and Totals'!C44 =3,'Solar Profiles'!$P$5*'Inputs and Totals'!$B$8*'Inputs and Totals'!$B$9*0.001,"Error"))) -> 1999.8 | P59: =IF('Inputs and Totals'!C44 = 1,'Solar Profiles'!$Q$3*'Inputs and Totals'!$B$9*'Inputs and Totals'!$B$8*0.001, IF('Inputs and Totals'!C44 =2,'Solar Profiles'!$Q$4*'Inputs and Totals'!$B$8*'Inputs and Totals'!$B$9*0.001,IF('Inputs and Totals'!C44 =3,'Solar Profiles'!$Q$5*'Inputs and Totals'!$B$8*'Inputs and Totals'!$B$9*0.001,"Error"))) -> 1199.88 | Q59: =IF('Inputs and Totals'!C44 = 1,'Solar Profiles'!$R$3*'Inputs and Totals'!$B$9*'Inputs and Totals'!$B$8*0.001, IF('Inputs and Totals'!C44 =2,'Solar Profiles'!$R$4*'Inputs and Totals'!$B$8*'Inputs and Totals'!$B$9*0.001,IF('Inputs and Totals'!C44 =3,'Solar Profiles'!$R$5*'Inputs and Totals'!$B$8*'Inputs and Totals'!$B$9*0.001,"Error"))) -> 999.9 | R59: =IF('Inputs and Totals'!C44 = 1,'Solar Profiles'!$S$3*'Inputs and Totals'!$B$9*'Inputs and Totals'!$B$8*0.001, IF('Inputs and Totals'!C44 =2,'Solar Profiles'!$S$4*'Inputs and Totals'!$B$8*'Inputs and Totals'!$B$9*0.001,IF('Inputs and Totals'!C44 =3,'Solar Profiles'!$S$5*'Inputs and Totals'!$B$8*'Inputs and Totals'!$B$9*0.001,"Error"))) -> 599.94 | S59: =IF('Inputs and Totals'!C44 = 1,'Solar Profiles'!$T$3*'Inputs and Totals'!$B$9*'Inputs and Totals'!$B$8*0.001, IF('Inputs and Totals'!C44 =2,'Solar Profiles'!$T$4*'Inputs and Totals'!$B$8*'Inputs and Totals'!$B$9*0.001,IF('Inputs and Totals'!C44 =3,'Solar Profiles'!$T$5*'Inputs and Totals'!$B$8*'Inputs and Totals'!$B$9*0.001,"Error"))) -> 199.98 | T59: =IF('Inputs and Totals'!C44 = 1,'Solar Profiles'!$U$3*'Inputs and Totals'!$B$9*'Inputs and Totals'!$B$8*0.001, IF('Inputs and Totals'!C44 =2,'Solar Profiles'!$U$4*'Inputs and Totals'!$B$8*'Inputs and Totals'!$B$9*0.001,IF('Inputs and Totals'!C44 =3,'Solar Profiles'!$U$5*'Inputs and Totals'!$B$8*'Inputs and Totals'!$B$9*0.001,"Error"))) -> 0 | U59: =IF('Inputs and Totals'!C44 = 1,'Solar Profiles'!$V$3*'Inputs and Totals'!$B$9*'Inputs and Totals'!$B$8*0.001, IF('Inputs and Totals'!C44 =2,'Solar Profiles'!$V$4*'Inputs and Totals'!$B$8*'Inputs and Totals'!$B$9*0.001,IF('Inputs and Totals'!C44 =3,'Solar Profiles'!$V$5*'Inputs and Totals'!$B$8*'Inputs and Totals'!$B$9*0.001,"Error"))) -> 0 | V59: =IF('Inputs and Totals'!C44 = 1,'Solar Profiles'!$W$3*'Inputs and Totals'!$B$9*'Inputs and Totals'!$B$8*0.001, IF('Inputs and Totals'!C44 =2,'Solar Profiles'!$W$4*'Inputs and Totals'!$B$8*'Inputs and Totals'!$B$9*0.001,IF('Inputs and Totals'!C44 =3,'Solar Profiles'!$W$5*'Inputs and Totals'!$B$8*'Inputs and Totals'!$B$9*0.001,"Error"))) -> 0 | W59: =IF('Inputs and Totals'!C44 = 1,'Solar Profiles'!$X$3*'Inputs and Totals'!$B$9*'Inputs and Totals'!$B$8*0.001, IF('Inputs and Totals'!C44 =2,'Solar Profiles'!$X$4*'Inputs and Totals'!$B$8*'Inputs and Totals'!$B$9*0.001,IF('Inputs and Totals'!C44 =3,'Solar Profiles'!$X$5*'Inputs and Totals'!$B$8*'Inputs and Totals'!$B$9*0.001,"Error"))) -> 0 | X59: =IF('Inputs and Totals'!C44 = 1,'Solar Profiles'!$Y$3*'Inputs and Totals'!$B$9*'Inputs and Totals'!$B$8*0.001, IF('Inputs and Totals'!C44 =2,'Solar Profiles'!$Y$4*'Inputs and Totals'!$B$8*'Inputs and Totals'!$B$9*0.001,IF('Inputs and Totals'!C44 =3,'Solar Profiles'!$Y$5*'Inputs and Totals'!$B$8*'Inputs and Totals'!$B$9*0.001,"Error"))) -> 0 | Y59: =IF('Inputs and Totals'!C44 = 1,'Solar Profiles'!$Z$3*'Inputs and Totals'!$B$9*'Inputs and Totals'!$B$8*0.001, IF('Inputs and Totals'!C44 =2,'Solar Profiles'!$Z$4*'Inputs and Totals'!$B$8*'Inputs and Totals'!$B$9*0.001,IF('Inputs and Totals'!C44 =3,'Solar Profiles'!$Z$5*'Inputs and Totals'!$B$8*'Inputs and Totals'!$B$9*0.001,"Error"))) -> 0 | Z59: 9199.08
A60: Day 26 | B60: =IF('Inputs and Totals'!C45 = 1,'Solar Profiles'!$C$3*'Inputs and Totals'!$B$9*'Inputs and Totals'!$B$8*0.001, IF('Inputs and Totals'!C45 =2,'Solar Profiles'!$C$4*'Inputs and Totals'!$B$8*'Inputs and Totals'!$B$9*0.001,IF('Inputs and Totals'!C45 =3,'Solar Profiles'!$C$5*'Inputs and Totals'!$B$8*'Inputs and Totals'!$B$9*0.001,"Error"))) -> 0 | C60: =IF('Inputs and Totals'!C45 = 1,'Solar Profiles'!$D$3*'Inputs and Totals'!$B$9*'Inputs and Totals'!$B$8*0.001, IF('Inputs and Totals'!C45 =2,'Solar Profiles'!$D$4*'Inputs and Totals'!$B$8*'Inputs and Totals'!$B$9*0.001,IF('Inputs and Totals'!C45 =3,'Solar Profiles'!$D$5*'Inputs and Totals'!$B$8*'Inputs and Totals'!$B$9*0.001,"Error"))) -> 0 | D60: =IF('Inputs and Totals'!C45 = 1,'Solar Profiles'!$E$3*'Inputs and Totals'!$B$9*'Inputs and Totals'!$B$8*0.001, IF('Inputs and Totals'!C45 =2,'Solar Profiles'!$E$4*'Inputs and Totals'!$B$8*'Inputs and Totals'!$B$9*0.001,IF('Inputs and Totals'!C45 =3,'Solar Profiles'!$E$5*'Inputs and Totals'!$B$8*'Inputs and Totals'!$B$9*0.001,"Error"))) -> 0 | E60: =IF('Inputs and Totals'!C45 = 1,'Solar Profiles'!$F$3*'Inputs and Totals'!$B$9*'Inputs and Totals'!$B$8*0.001, IF('Inputs and Totals'!C45 =2,'Solar Profiles'!$F$4*'Inputs and Totals'!$B$8*'Inputs and Totals'!$B$9*0.001,IF('Inputs and Totals'!C45 =3,'Solar Profiles'!$F$5*'Inputs and Totals'!$B$8*'Inputs and Totals'!$B$9*0.001,"Error"))) -> 0 | F60: =IF('Inputs and Totals'!C45 = 1,'Solar Profiles'!$G$3*'Inputs and Totals'!$B$9*'Inputs and Totals'!$B$8*0.001, IF('Inputs and Totals'!C45 =2,'Solar Profiles'!$G$4*'Inputs and Totals'!$B$8*'Inputs and Totals'!$B$9*0.001,IF('Inputs and Totals'!C45 =3,'Solar Profiles'!$G$5*'Inputs and Totals'!$B$8*'Inputs and Totals'!$B$9*0.001,"Error"))) -> 0 | G60: =IF('Inputs and Totals'!C45 = 1,'Solar Profiles'!$H$3*'Inputs and Totals'!$B$9*'Inputs and Totals'!$B$8*0.001, IF('Inputs and Totals'!C45 =2,'Solar Profiles'!$H$4*'Inputs and Totals'!$B$8*'Inputs and Totals'!$B$9*0.001,IF('Inputs and Totals'!C45 =3,'Solar Profiles'!$H$5*'Inputs and Totals'!$B$8*'Inputs and Totals'!$B$9*0.001,"Error"))) -> 0 | H60: =IF('Inputs and Totals'!C45 = 1,'Solar Profiles'!$I$3*'Inputs and Totals'!$B$9*'Inputs and Totals'!$B$8*0.001, IF('Inputs and Totals'!C45 =2,'Solar Profiles'!$I$4*'Inputs and Totals'!$B$8*'Inputs and Totals'!$B$9*0.001,IF('Inputs and Totals'!C45 =3,'Solar Profiles'!$I$5*'Inputs and Totals'!$B$8*'Inputs and Totals'!$B$9*0.001,"Error"))) -> 0 | I60: =IF('Inputs and Totals'!C45 = 1,'Solar Profiles'!$J$3*'Inputs and Totals'!$B$9*'Inputs and Totals'!$B$8*0.001, IF('Inputs and Totals'!C45 =2,'Solar Profiles'!$J$4*'Inputs and Totals'!$B$8*'Inputs and Totals'!$B$9*0.001,IF('Inputs and Totals'!C45 =3,'Solar Profiles'!$J$5*'Inputs and Totals'!$B$8*'Inputs and Totals'!$B$9*0.001,"Error"))) -> 99.99 | J60: =IF('Inputs and Totals'!C45 = 1,'Solar Profiles'!$K$3*'Inputs and Totals'!$B$9*'Inputs and Totals'!$B$8*0.001, IF('Inputs and Totals'!C45 =2,'Solar Profiles'!$K$4*'Inputs and Totals'!$B$8*'Inputs and Totals'!$B$9*0.001,IF('Inputs and Totals'!C45 =3,'Solar Profiles'!$K$5*'Inputs and Totals'!$B$8*'Inputs and Totals'!$B$9*0.001,"Error"))) -> 199.98 | K60: =IF('Inputs and Totals'!C45 = 1,'Solar Profiles'!$L$3*'Inputs and Totals'!$B$9*'Inputs and Totals'!$B$8*0.001, IF('Inputs and Totals'!C45 =2,'Solar Profiles'!$L$4*'Inputs and Totals'!$B$8*'Inputs and Totals'!$B$9*0.001,IF('Inputs and Totals'!C45 =3,'Solar Profiles'!$L$5*'Inputs and Totals'!$B$8*'Inputs and Totals'!$B$9*0.001,"Error"))) -> 299.97 | L60: =IF('Inputs and Totals'!C45 = 1,'Solar Profiles'!$M$3*'Inputs and Totals'!$B$9*'Inputs and Totals'!$B$8*0.001, IF('Inputs and Totals'!C45 =2,'Solar Profiles'!$M$4*'Inputs and Totals'!$B$8*'Inputs and Totals'!$B$9*0.001,IF('Inputs and Totals'!C45 =3,'Solar Profiles'!$M$5*'Inputs and Totals'!$B$8*'Inputs and Totals'!$B$9*0.001,"Error"))) -> 399.96 | M60: =IF('Inputs and Totals'!C45 = 1,'Solar Profiles'!$N$3*'Inputs and Totals'!$B$9*'Inputs and Totals'!$B$8*0.001, IF('Inputs and Totals'!C45 =2,'Solar Profiles'!$N$4*'Inputs and Totals'!$B$8*'Inputs and Totals'!$B$9*0.001,IF('Inputs and Totals'!C45 =3,'Solar Profiles'!$N$5*'Inputs and Totals'!$B$8*'Inputs and Totals'!$B$9*0.001,"Error"))) -> 799.92 | N60: =IF('Inputs and Totals'!C45 = 1,'Solar Profiles'!$O$3*'Inputs and Totals'!$B$9*'Inputs and Totals'!$B$8*0.001, IF('Inputs and Totals'!C45 =2,'Solar Profiles'!$O$4*'Inputs and Totals'!$B$8*'Inputs and Totals'!$B$9*0.001,IF('Inputs and Totals'!C45 =3,'Solar Profiles'!$O$5*'Inputs and Totals'!$B$8*'Inputs and Totals'!$B$9*0.001,"Error"))) -> 999.9 | O60: =IF('Inputs and Totals'!C45 = 1,'Solar Profiles'!$P$3*'Inputs and Totals'!$B$9*'Inputs and Totals'!$B$8*0.001, IF('Inputs and Totals'!C45 =2,'Solar Profiles'!$P$4*'Inputs and Totals'!$B$8*'Inputs and Totals'!$B$9*0.001,IF('Inputs and Totals'!C45 =3,'Solar Profiles'!$P$5*'Inputs and Totals'!$B$8*'Inputs and Totals'!$B$9*0.001,"Error"))) -> 999.9 | P60: =IF('Inputs and Totals'!C45 = 1,'Solar Profiles'!$Q$3*'Inputs and Totals'!$B$9*'Inputs and Totals'!$B$8*0.001, IF('Inputs and Totals'!C45 =2,'Solar Profiles'!$Q$4*'Inputs and Totals'!$B$8*'Inputs and Totals'!$B$9*0.001,IF('Inputs and Totals'!C45 =3,'Solar Profiles'!$Q$5*'Inputs and Totals'!$B$8*'Inputs and Totals'!$B$9*0.001,"Error"))) -> 799.92 | Q60: =IF('Inputs and Totals'!C45 = 1,'Solar Profiles'!$R$3*'Inputs and Totals'!$B$9*'Inputs and Totals'!$B$8*0.001, IF('Inputs and Totals'!C45 =2,'Solar Profiles'!$R$4*'Inputs and Totals'!$B$8*'Inputs and Totals'!$B$9*0.001,IF('Inputs and Totals'!C45 =3,'Solar Profiles'!$R$5*'Inputs and Totals'!$B$8*'Inputs and Totals'!$B$9*0.001,"Error"))) -> 599.94 | R60: =IF('Inputs and Totals'!C45 = 1,'Solar Profiles'!$S$3*'Inputs and Totals'!$B$9*'Inputs and Totals'!$B$8*0.001, IF('Inputs and Totals'!C45 =2,'Solar Profiles'!$S$4*'Inputs and Totals'!$B$8*'Inputs and Totals'!$B$9*0.001,IF('Inputs and Totals'!C45 =3,'Solar Profiles'!$S$5*'Inputs and Totals'!$B$8*'Inputs and Totals'!$B$9*0.001,"Error"))) -> 399.96 | S60: =IF('Inputs and Totals'!C45 = 1,'Solar Profiles'!$T$3*'Inputs and Totals'!$B$9*'Inputs and Totals'!$B$8*0.001, IF('Inputs and Totals'!C45 =2,'Solar Profiles'!$T$4*'Inputs and Totals'!$B$8*'Inputs and Totals'!$B$9*0.001,IF('Inputs and Totals'!C45 =3,'Solar Profiles'!$T$5*'Inputs and Totals'!$B$8*'Inputs and Totals'!$B$9*0.001,"Error"))) -> 199.98 | T60: =IF('Inputs and Totals'!C45 = 1,'Solar Profiles'!$U$3*'Inputs and Totals'!$B$9*'Inputs and Totals'!$B$8*0.001, IF('Inputs and Totals'!C45 =2,'Solar Profiles'!$U$4*'Inputs and Totals'!$B$8*'Inputs and Totals'!$B$9*0.001,IF('Inputs and Totals'!C45 =3,'Solar Profiles'!$U$5*'Inputs and Totals'!$B$8*'Inputs and Totals'!$B$9*0.001,"Error"))) -> 0 | U60: =IF('Inputs and Totals'!C45 = 1,'Solar Profiles'!$V$3*'Inputs and Totals'!$B$9*'Inputs and Totals'!$B$8*0.001, IF('Inputs and Totals'!C45 =2,'Solar Profiles'!$V$4*'Inputs and Totals'!$B$8*'Inputs and Totals'!$B$9*0.001,IF('Inputs and Totals'!C45 =3,'Solar Profiles'!$V$5*'Inputs and Totals'!$B$8*'Inputs and Totals'!$B$9*0.001,"Error"))) -> 0 | V60: =IF('Inputs and Totals'!C45 = 1,'Solar Profiles'!$W$3*'Inputs and Totals'!$B$9*'Inputs and Totals'!$B$8*0.001, IF('Inputs and Totals'!C45 =2,'Solar Profiles'!$W$4*'Inputs and Totals'!$B$8*'Inputs and Totals'!$B$9*0.001,IF('Inputs and Totals'!C45 =3,'Solar Profiles'!$W$5*'Inputs and Totals'!$B$8*'Inputs and Totals'!$B$9*0.001,"Error"))) -> 0 | W60: =IF('Inputs and Totals'!C45 = 1,'Solar Profiles'!$X$3*'Inputs and Totals'!$B$9*'Inputs and Totals'!$B$8*0.001, IF('Inputs and Totals'!C45 =2,'Solar Profiles'!$X$4*'Inputs and Totals'!$B$8*'Inputs and Totals'!$B$9*0.001,IF('Inputs and Totals'!C45 =3,'Solar Profiles'!$X$5*'Inputs and Totals'!$B$8*'Inputs and Totals'!$B$9*0.001,"Error"))) -> 0 | X60: =IF('Inputs and Totals'!C45 = 1,'Solar Profiles'!$Y$3*'Inputs and Totals'!$B$9*'Inputs and Totals'!$B$8*0.001, IF('Inputs and Totals'!C45 =2,'Solar Profiles'!$Y$4*'Inputs and Totals'!$B$8*'Inputs and Totals'!$B$9*0.001,IF('Inputs and Totals'!C45 =3,'Solar Profiles'!$Y$5*'Inputs and Totals'!$B$8*'Inputs and Totals'!$B$9*0.001,"Error"))) -> 0 | Y60: =IF('Inputs and Totals'!C45 = 1,'Solar Profiles'!$Z$3*'Inputs and Totals'!$B$9*'Inputs and Totals'!$B$8*0.001, IF('Inputs and Totals'!C45 =2,'Solar Profiles'!$Z$4*'Inputs and Totals'!$B$8*'Inputs and Totals'!$B$9*0.001,IF('Inputs and Totals'!C45 =3,'Solar Profiles'!$Z$5*'Inputs and Totals'!$B$8*'Inputs and Totals'!$B$9*0.001,"Error"))) -> 0 | Z60: 5799.42
A61: Day 27 | B61: =IF('Inputs and Totals'!C46 = 1,'Solar Profiles'!$C$3*'Inputs and Totals'!$B$9*'Inputs and Totals'!$B$8*0.001, IF('Inputs and Totals'!C46 =2,'Solar Profiles'!$C$4*'Inputs and Totals'!$B$8*'Inputs and Totals'!$B$9*0.001,IF('Inputs and Totals'!C46 =3,'Solar Profiles'!$C$5*'Inputs and Totals'!$B$8*'Inputs and Totals'!$B$9*0.001,"Error"))) -> 0 | C61: =IF('Inputs and Totals'!C46 = 1,'Solar Profiles'!$D$3*'Inputs and Totals'!$B$9*'Inputs and Totals'!$B$8*0.001, IF('Inputs and Totals'!C46 =2,'Solar Profiles'!$D$4*'Inputs and Totals'!$B$8*'Inputs and Totals'!$B$9*0.001,IF('Inputs and Totals'!C46 =3,'Solar Profiles'!$D$5*'Inputs and Totals'!$B$8*'Inputs and Totals'!$B$9*0.001,"Error"))) -> 0 | D61: =IF('Inputs and Totals'!C46 = 1,'Solar Profiles'!$E$3*'Inputs and Totals'!$B$9*'Inputs and Totals'!$B$8*0.001, IF('Inputs and Totals'!C46 =2,'Solar Profiles'!$E$4*'Inputs and Totals'!$B$8*'Inputs and Totals'!$B$9*0.001,IF('Inputs and Totals'!C46 =3,'Solar Profiles'!$E$5*'Inputs and Totals'!$B$8*'Inputs and Totals'!$B$9*0.001,"Error"))) -> 0 | E61: =IF('Inputs and Totals'!C46 = 1,'Solar Profiles'!$F$3*'Inputs and Totals'!$B$9*'Inputs and Totals'!$B$8*0.001, IF('Inputs and Totals'!C46 =2,'Solar Profiles'!$F$4*'Inputs and Totals'!$B$8*'Inputs and Totals'!$B$9*0.001,IF('Inputs and Totals'!C46 =3,'Solar Profiles'!$F$5*'Inputs and Totals'!$B$8*'Inputs and Totals'!$B$9*0.001,"Error"))) -> 0 | F61: =IF('Inputs and Totals'!C46 = 1,'Solar Profiles'!$G$3*'Inputs and Totals'!$B$9*'Inputs and Totals'!$B$8*0.001, IF('Inputs and Totals'!C46 =2,'Solar Profiles'!$G$4*'Inputs and Totals'!$B$8*'Inputs and Totals'!$B$9*0.001,IF('Inputs and Totals'!C46 =3,'Solar Profiles'!$G$5*'Inputs and Totals'!$B$8*'Inputs and Totals'!$B$9*0.001,"Error"))) -> 0 | G61: =IF('Inputs and Totals'!C46 = 1,'Solar Profiles'!$H$3*'Inputs and Totals'!$B$9*'Inputs and Totals'!$B$8*0.001, IF('Inputs and Totals'!C46 =2,'Solar Profiles'!$H$4*'Inputs and Totals'!$B$8*'Inputs and Totals'!$B$9*0.001,IF('Inputs and Totals'!C46 =3,'Solar Profiles'!$H$5*'Inputs and Totals'!$B$8*'Inputs and Totals'!$B$9*0.001,"Error"))) -> 0 | H61: =IF('Inputs and Totals'!C46 = 1,'Solar Profiles'!$I$3*'Inputs and Totals'!$B$9*'Inputs and Totals'!$B$8*0.001, IF('Inputs and Totals'!C46 =2,'Solar Profiles'!$I$4*'Inputs and Totals'!$B$8*'Inputs and Totals'!$B$9*0.001,IF('Inputs and Totals'!C46 =3,'Solar Profiles'!$I$5*'Inputs and Totals'!$B$8*'Inputs and Totals'!$B$9*0.001,"Error"))) -> 0 | I61: =IF('Inputs and Totals'!C46 = 1,'Solar Profiles'!$J$3*'Inputs and Totals'!$B$9*'Inputs and Totals'!$B$8*0.001, IF('Inputs and Totals'!C46 =2,'Solar Profiles'!$J$4*'Inputs and Totals'!$B$8*'Inputs and Totals'!$B$9*0.001,IF('Inputs and Totals'!C46 =3,'Solar Profiles'!$J$5*'Inputs and Totals'!$B$8*'Inputs and Totals'!$B$9*0.001,"Error"))) -> 99.99 | J61: =IF('Inputs and Totals'!C46 = 1,'Solar Profiles'!$K$3*'Inputs and Totals'!$B$9*'Inputs and Totals'!$B$8*0.001, IF('Inputs and Totals'!C46 =2,'Solar Profiles'!$K$4*'Inputs and Totals'!$B$8*'Inputs and Totals'!$B$9*0.001,IF('Inputs and Totals'!C46 =3,'Solar Profiles'!$K$5*'Inputs and Totals'!$B$8*'Inputs and Totals'!$B$9*0.001,"Error"))) -> 199.98 | K61: =IF('Inputs and Totals'!C46 = 1,'Solar Profiles'!$L$3*'Inputs and Totals'!$B$9*'Inputs and Totals'!$B$8*0.001, IF('Inputs and Totals'!C46 =2,'Solar Profiles'!$L$4*'Inputs and Totals'!$B$8*'Inputs and Totals'!$B$9*0.001,IF('Inputs and Totals'!C46 =3,'Solar Profiles'!$L$5*'Inputs and Totals'!$B$8*'Inputs and Totals'!$B$9*0.001,"Error"))) -> 299.97 | L61: =IF('Inputs and Totals'!C46 = 1,'Solar Profiles'!$M$3*'Inputs and Totals'!$B$9*'Inputs and Totals'!$B$8*0.001, IF('Inputs and Totals'!C46 =2,'Solar Profiles'!$M$4*'Inputs and Totals'!$B$8*'Inputs and Totals'!$B$9*0.001,IF('Inputs and Totals'!C46 =3,'Solar Profiles'!$M$5*'Inputs and Totals'!$B$8*'Inputs and Totals'!$B$9*0.001,"Error"))) -> 399.96 | M61: =IF('Inputs and Totals'!C46 = 1,'Solar Profiles'!$N$3*'Inputs and Totals'!$B$9*'Inputs and Totals'!$B$8*0.001, IF('Inputs and Totals'!C46 =2,'Solar Profiles'!$N$4*'Inputs and Totals'!$B$8*'Inputs and Totals'!$B$9*0.001,IF('Inputs and Totals'!C46 =3,'Solar Profiles'!$N$5*'Inputs and Totals'!$B$8*'Inputs and Totals'!$B$9*0.001,"Error"))) -> 799.92 | N61: =IF('Inputs and Totals'!C46 = 1,'Solar Profiles'!$O$3*'Inputs and Totals'!$B$9*'Inputs and Totals'!$B$8*0.001, IF('Inputs and Totals'!C46 =2,'Solar Profiles'!$O$4*'Inputs and Totals'!$B$8*'Inputs and Totals'!$B$9*0.001,IF('Inputs and Totals'!C46 =3,'Solar Profiles'!$O$5*'Inputs and Totals'!$B$8*'Inputs and Totals'!$B$9*0.001,"Error"))) -> 999.9 | O61: =IF('Inputs and Totals'!C46 = 1,'Solar Profiles'!$P$3*'Inputs and Totals'!$B$9*'Inputs and Totals'!$B$8*0.001, IF('Inputs and Totals'!C46 =2,'Solar Profiles'!$P$4*'Inputs and Totals'!$B$8*'Inputs and Totals'!$B$9*0.001,IF('Inputs and Totals'!C46 =3,'Solar Profiles'!$P$5*'Inputs and Totals'!$B$8*'Inputs and Totals'!$B$9*0.001,"Error"))) -> 999.9 | P61: =IF('Inputs and Totals'!C46 = 1,'Solar Profiles'!$Q$3*'Inputs and Totals'!$B$9*'Inputs and Totals'!$B$8*0.001, IF('Inputs and Totals'!C46 =2,'Solar Profiles'!$Q$4*'Inputs and Totals'!$B$8*'Inputs and Totals'!$B$9*0.001,IF('Inputs and Totals'!C46 =3,'Solar Profiles'!$Q$5*'Inputs and Totals'!$B$8*'Inputs and Totals'!$B$9*0.001,"Error"))) -> 799.92 | Q61: =IF('Inputs and Totals'!C46 = 1,'Solar Profiles'!$R$3*'Inputs and Totals'!$B$9*'Inputs and Totals'!$B$8*0.001, IF('Inputs and Totals'!C46 =2,'Solar Profiles'!$R$4*'Inputs and Totals'!$B$8*'Inputs and Totals'!$B$9*0.001,IF('Inputs and Totals'!C46 =3,'Solar Profiles'!$R$5*'Inputs and Totals'!$B$8*'Inputs and Totals'!$B$9*0.001,"Error"))) -> 599.94 | R61: =IF('Inputs and Totals'!C46 = 1,'Solar Profiles'!$S$3*'Inputs and Totals'!$B$9*'Inputs and Totals'!$B$8*0.001, IF('Inputs and Totals'!C46 =2,'Solar Profiles'!$S$4*'Inputs and Totals'!$B$8*'Inputs and Totals'!$B$9*0.001,IF('Inputs and Totals'!C46 =3,'Solar Profiles'!$S$5*'Inputs and Totals'!$B$8*'Inputs and Totals'!$B$9*0.001,"Error"))) -> 399.96 | S61: =IF('Inputs and Totals'!C46 = 1,'Solar Profiles'!$T$3*'Inputs and Totals'!$B$9*'Inputs and Totals'!$B$8*0.001, IF('Inputs and Totals'!C46 =2,'Solar Profiles'!$T$4*'Inputs and Totals'!$B$8*'Inputs and Totals'!$B$9*0.001,IF('Inputs and Totals'!C46 =3,'Solar Profiles'!$T$5*'Inputs and Totals'!$B$8*'Inputs and Totals'!$B$9*0.001,"Error"))) -> 199.98 | T61: =IF('Inputs and Totals'!C46 = 1,'Solar Profiles'!$U$3*'Inputs and Totals'!$B$9*'Inputs and Totals'!$B$8*0.001, IF('Inputs and Totals'!C46 =2,'Solar Profiles'!$U$4*'Inputs and Totals'!$B$8*'Inputs and Totals'!$B$9*0.001,IF('Inputs and Totals'!C46 =3,'Solar Profiles'!$U$5*'Inputs and Totals'!$B$8*'Inputs and Totals'!$B$9*0.001,"Error"))) -> 0 | U61: =IF('Inputs and Totals'!C46 = 1,'Solar Profiles'!$V$3*'Inputs and Totals'!$B$9*'Inputs and Totals'!$B$8*0.001, IF('Inputs and Totals'!C46 =2,'Solar Profiles'!$V$4*'Inputs and Totals'!$B$8*'Inputs and Totals'!$B$9*0.001,IF('Inputs and Totals'!C46 =3,'Solar Profiles'!$V$5*'Inputs and Totals'!$B$8*'Inputs and Totals'!$B$9*0.001,"Error"))) -> 0 | V61: =IF('Inputs and Totals'!C46 = 1,'Solar Profiles'!$W$3*'Inputs and Totals'!$B$9*'Inputs and Totals'!$B$8*0.001, IF('Inputs and Totals'!C46 =2,'Solar Profiles'!$W$4*'Inputs and Totals'!$B$8*'Inputs and Totals'!$B$9*0.001,IF('Inputs and Totals'!C46 =3,'Solar Profiles'!$W$5*'Inputs and Totals'!$B$8*'Inputs and Totals'!$B$9*0.001,"Error"))) -> 0 | W61: =IF('Inputs and Totals'!C46 = 1,'Solar Profiles'!$X$3*'Inputs and Totals'!$B$9*'Inputs and Totals'!$B$8*0.001, IF('Inputs and Totals'!C46 =2,'Solar Profiles'!$X$4*'Inputs and Totals'!$B$8*'Inputs and Totals'!$B$9*0.001,IF('Inputs and Totals'!C46 =3,'Solar Profiles'!$X$5*'Inputs and Totals'!$B$8*'Inputs and Totals'!$B$9*0.001,"Error"))) -> 0 | X61: =IF('Inputs and Totals'!C46 = 1,'Solar Profiles'!$Y$3*'Inputs and Totals'!$B$9*'Inputs and Totals'!$B$8*0.001, IF('Inputs and Totals'!C46 =2,'Solar Profiles'!$Y$4*'Inputs and Totals'!$B$8*'Inputs and Totals'!$B$9*0.001,IF('Inputs and Totals'!C46 =3,'Solar Profiles'!$Y$5*'Inputs and Totals'!$B$8*'Inputs and Totals'!$B$9*0.001,"Error"))) -> 0 | Y61: =IF('Inputs and Totals'!C46 = 1,'Solar Profiles'!$Z$3*'Inputs and Totals'!$B$9*'Inputs and Totals'!$B$8*0.001, IF('Inputs and Totals'!C46 =2,'Solar Profiles'!$Z$4*'Inputs and Totals'!$B$8*'Inputs and Totals'!$B$9*0.001,IF('Inputs and Totals'!C46 =3,'Solar Profiles'!$Z$5*'Inputs and Totals'!$B$8*'Inputs and Totals'!$B$9*0.001,"Error"))) -> 0 | Z61: 5799.42
A62: Day 28 | B62: =IF('Inputs and Totals'!C47 = 1,'Solar Profiles'!$C$3*'Inputs and Totals'!$B$9*'Inputs and Totals'!$B$8*0.001, IF('Inputs and Totals'!C47 =2,'Solar Profiles'!$C$4*'Inputs and Totals'!$B$8*'Inputs and Totals'!$B$9*0.001,IF('Inputs and Totals'!C47 =3,'Solar Profiles'!$C$5*'Inputs and Totals'!$B$8*'Inputs and Totals'!$B$9*0.001,"Error"))) -> 0 | C62: =IF('Inputs and Totals'!C47 = 1,'Solar Profiles'!$D$3*'Inputs and Totals'!$B$9*'Inputs and Totals'!$B$8*0.001, IF('Inputs and Totals'!C47 =2,'Solar Profiles'!$D$4*'Inputs and Totals'!$B$8*'Inputs and Totals'!$B$9*0.001,IF('Inputs and Totals'!C47 =3,'Solar Profiles'!$D$5*'Inputs and Totals'!$B$8*'Inputs and Totals'!$B$9*0.001,"Error"))) -> 0 | D62: =IF('Inputs and Totals'!C47 = 1,'Solar Profiles'!$E$3*'Inputs and Totals'!$B$9*'Inputs and Totals'!$B$8*0.001, IF('Inputs and Totals'!C47 =2,'Solar Profiles'!$E$4*'Inputs and Totals'!$B$8*'Inputs and Totals'!$B$9*0.001,IF('Inputs and Totals'!C47 =3,'Solar Profiles'!$E$5*'Inputs and Totals'!$B$8*'Inputs and Totals'!$B$9*0.001,"Error"))) -> 0 | E62: =IF('Inputs and Totals'!C47 = 1,'Solar Profiles'!$F$3*'Inputs and Totals'!$B$9*'Inputs and Totals'!$B$8*0.001, IF('Inputs and Totals'!C47 =2,'Solar Profiles'!$F$4*'Inputs and Totals'!$B$8*'Inputs and Totals'!$B$9*0.001,IF('Inputs and Totals'!C47 =3,'Solar Profiles'!$F$5*'Inputs and Totals'!$B$8*'Inputs and Totals'!$B$9*0.001,"Error"))) -> 0 | F62: =IF('Inputs and Totals'!C47 = 1,'Solar Profiles'!$G$3*'Inputs and Totals'!$B$9*'Inputs and Totals'!$B$8*0.001, IF('Inputs and Totals'!C47 =2,'Solar Profiles'!$G$4*'Inputs and Totals'!$B$8*'Inputs and Totals'!$B$9*0.001,IF('Inputs and Totals'!C47 =3,'Solar Profiles'!$G$5*'Inputs and Totals'!$B$8*'Inputs and Totals'!$B$9*0.001,"Error"))) -> 0 | G62: =IF('Inputs and Totals'!C47 = 1,'Solar Profiles'!$H$3*'Inputs and Totals'!$B$9*'Inputs and Totals'!$B$8*0.001, IF('Inputs and Totals'!C47 =2,'Solar Profiles'!$H$4*'Inputs and Totals'!$B$8*'Inputs and Totals'!$B$9*0.001,IF('Inputs and Totals'!C47 =3,'Solar Profiles'!$H$5*'Inputs and Totals'!$B$8*'Inputs and Totals'!$B$9*0.001,"Error"))) -> 0 | H62: =IF('Inputs and Totals'!C47 = 1,'Solar Profiles'!$I$3*'Inputs and Totals'!$B$9*'Inputs and Totals'!$B$8*0.001, IF('Inputs and Totals'!C47 =2,'Solar Profiles'!$I$4*'Inputs and Totals'!$B$8*'Inputs and Totals'!$B$9*0.001,IF('Inputs and Totals'!C47 =3,'Solar Profiles'!$I$5*'Inputs and Totals'!$B$8*'Inputs and Totals'!$B$9*0.001,"Error"))) -> 0 | I62: =IF('Inputs and Totals'!C47 = 1,'Solar Profiles'!$J$3*'Inputs and Totals'!$B$9*'Inputs and Totals'!$B$8*0.001, IF('Inputs and Totals'!C47 =2,'Solar Profiles'!$J$4*'Inputs and Totals'!$B$8*'Inputs and Totals'!$B$9*0.001,IF('Inputs and Totals'!C47 =3,'Solar Profiles'!$J$5*'Inputs and Totals'!$B$8*'Inputs and Totals'!$B$9*0.001,"Error"))) -> 199.98 | J62: =IF('Inputs and Totals'!C47 = 1,'Solar Profiles'!$K$3*'Inputs and Totals'!$B$9*'Inputs and Totals'!$B$8*0.001, IF('Inputs and Totals'!C47 =2,'Solar Profiles'!$K$4*'Inputs and Totals'!$B$8*'Inputs and Totals'!$B$9*0.001,IF('Inputs and Totals'!C47 =3,'Solar Profiles'!$K$5*'Inputs and Totals'!$B$8*'Inputs and Totals'!$B$9*0.001,"Error"))) -> 199.98 | K62: =IF('Inputs and Totals'!C47 = 1,'Solar Profiles'!$L$3*'Inputs and Totals'!$B$9*'Inputs and Totals'!$B$8*0.001, IF('Inputs and Totals'!C47 =2,'Solar Profiles'!$L$4*'Inputs and Totals'!$B$8*'Inputs and Totals'!$B$9*0.001,IF('Inputs and Totals'!C47 =3,'Solar Profiles'!$L$5*'Inputs and Totals'!$B$8*'Inputs and Totals'!$B$9*0.001,"Error"))) -> 399.96 | L62: =IF('Inputs and Totals'!C47 = 1,'Solar Profiles'!$M$3*'Inputs and Totals'!$B$9*'Inputs and Totals'!$B$8*0.001, IF('Inputs and Totals'!C47 =2,'Solar Profiles'!$M$4*'Inputs and Totals'!$B$8*'Inputs and Totals'!$B$9*0.001,IF('Inputs and Totals'!C47 =3,'Solar Profiles'!$M$5*'Inputs and Totals'!$B$8*'Inputs and Totals'!$B$9*0.001,"Error"))) -> 599.94 | M62: =IF('Inputs and Totals'!C47 = 1,'Solar Profiles'!$N$3*'Inputs and Totals'!$B$9*'Inputs and Totals'!$B$8*0.001, IF('Inputs and Totals'!C47 =2,'Solar Profiles'!$N$4*'Inputs and Totals'!$B$8*'Inputs and Totals'!$B$9*0.001,IF('Inputs and Totals'!C47 =3,'Solar Profiles'!$N$5*'Inputs and Totals'!$B$8*'Inputs and Totals'!$B$9*0.001,"Error"))) -> 999.9 | N62: =IF('Inputs and Totals'!C47 = 1,'Solar Profiles'!$O$3*'Inputs and Totals'!$B$9*'Inputs and Totals'!$B$8*0.001, IF('Inputs and Totals'!C47 =2,'Solar Profiles'!$O$4*'Inputs and Totals'!$B$8*'Inputs and Totals'!$B$9*0.001,IF('Inputs and Totals'!C47 =3,'Solar Profiles'!$O$5*'Inputs and Totals'!$B$8*'Inputs and Totals'!$B$9*0.001,"Error"))) -> 1799.82 | O62: =IF('Inputs and Totals'!C47 = 1,'Solar Profiles'!$P$3*'Inputs and Totals'!$B$9*'Inputs and Totals'!$B$8*0.001, IF('Inputs and Totals'!C47 =2,'Solar Profiles'!$P$4*'Inputs and Totals'!$B$8*'Inputs and Totals'!$B$9*0.001,IF('Inputs and Totals'!C47 =3,'Solar Profiles'!$P$5*'Inputs and Totals'!$B$8*'Inputs and Totals'!$B$9*0.001,"Error"))) -> 1999.8 | P62: =IF('Inputs and Totals'!C47 = 1,'Solar Profiles'!$Q$3*'Inputs and Totals'!$B$9*'Inputs and Totals'!$B$8*0.001, IF('Inputs and Totals'!C47 =2,'Solar Profiles'!$Q$4*'Inputs and Totals'!$B$8*'Inputs and Totals'!$B$9*0.001,IF('Inputs and Totals'!C47 =3,'Solar Profiles'!$Q$5*'Inputs and Totals'!$B$8*'Inputs and Totals'!$B$9*0.001,"Error"))) -> 1199.88 | Q62: =IF('Inputs and Totals'!C47 = 1,'Solar Profiles'!$R$3*'Inputs and Totals'!$B$9*'Inputs and Totals'!$B$8*0.001, IF('Inputs and Totals'!C47 =2,'Solar Profiles'!$R$4*'Inputs and Totals'!$B$8*'Inputs and Totals'!$B$9*0.001,IF('Inputs and Totals'!C47 =3,'Solar Profiles'!$R$5*'Inputs and Totals'!$B$8*'Inputs and Totals'!$B$9*0.001,"Error"))) -> 999.9 | R62: =IF('Inputs and Totals'!C47 = 1,'Solar Profiles'!$S$3*'Inputs and Totals'!$B$9*'Inputs and Totals'!$B$8*0.001, IF('Inputs and Totals'!C47 =2,'Solar Profiles'!$S$4*'Inputs and Totals'!$B$8*'Inputs and Totals'!$B$9*0.001,IF('Inputs and Totals'!C47 =3,'Solar Profiles'!$S$5*'Inputs and Totals'!$B$8*'Inputs and Totals'!$B$9*0.001,"Error"))) -> 599.94 | S62: =IF('Inputs and Totals'!C47 = 1,'Solar Profiles'!$T$3*'Inputs and Totals'!$B$9*'Inputs and Totals'!$B$8*0.001, IF('Inputs and Totals'!C47 =2,'Solar Profiles'!$T$4*'Inputs and Totals'!$B$8*'Inputs and Totals'!$B$9*0.001,IF('Inputs and Totals'!C47 =3,'Solar Profiles'!$T$5*'Inputs and Totals'!$B$8*'Inputs and Totals'!$B$9*0.001,"Error"))) -> 199.98 | T62: =IF('Inputs and Totals'!C47 = 1,'Solar Profiles'!$U$3*'Inputs and Totals'!$B$9*'Inputs and Totals'!$B$8*0.001, IF('Inputs and Totals'!C47 =2,'Solar Profiles'!$U$4*'Inputs and Totals'!$B$8*'Inputs and Totals'!$B$9*0.001,IF('Inputs and Totals'!C47 =3,'Solar Profiles'!$U$5*'Inputs and Totals'!$B$8*'Inputs and Totals'!$B$9*0.001,"Error"))) -> 0 | U62: =IF('Inputs and Totals'!C47 = 1,'Solar Profiles'!$V$3*'Inputs and Totals'!$B$9*'Inputs and Totals'!$B$8*0.001, IF('Inputs and Totals'!C47 =2,'Solar Profiles'!$V$4*'Inputs and Totals'!$B$8*'Inputs and Totals'!$B$9*0.001,IF('Inputs and Totals'!C47 =3,'Solar Profiles'!$V$5*'Inputs and Totals'!$B$8*'Inputs and Totals'!$B$9*0.001,"Error"))) -> 0 | V62: =IF('Inputs and Totals'!C47 = 1,'Solar Profiles'!$W$3*'Inputs and Totals'!$B$9*'Inputs and Totals'!$B$8*0.001, IF('Inputs and Totals'!C47 =2,'Solar Profiles'!$W$4*'Inputs and Totals'!$B$8*'Inputs and Totals'!$B$9*0.001,IF('Inputs and Totals'!C47 =3,'Solar Profiles'!$W$5*'Inputs and Totals'!$B$8*'Inputs and Totals'!$B$9*0.001,"Error"))) -> 0 | W62: =IF('Inputs and Totals'!C47 = 1,'Solar Profiles'!$X$3*'Inputs and Totals'!$B$9*'Inputs and Totals'!$B$8*0.001, IF('Inputs and Totals'!C47 =2,'Solar Profiles'!$X$4*'Inputs and Totals'!$B$8*'Inputs and Totals'!$B$9*0.001,IF('Inputs and Totals'!C47 =3,'Solar Profiles'!$X$5*'Inputs and Totals'!$B$8*'Inputs and Totals'!$B$9*0.001,"Error"))) -> 0 | X62: =IF('Inputs and Totals'!C47 = 1,'Solar Profiles'!$Y$3*'Inputs and Totals'!$B$9*'Inputs and Totals'!$B$8*0.001, IF('Inputs and Totals'!C47 =2,'Solar Profiles'!$Y$4*'Inputs and Totals'!$B$8*'Inputs and Totals'!$B$9*0.001,IF('Inputs and Totals'!C47 =3,'Solar Profiles'!$Y$5*'Inputs and Totals'!$B$8*'Inputs and Totals'!$B$9*0.001,"Error"))) -> 0 | Y62: =IF('Inputs and Totals'!C47 = 1,'Solar Profiles'!$Z$3*'Inputs and Totals'!$B$9*'Inputs and Totals'!$B$8*0.001, IF('Inputs and Totals'!C47 =2,'Solar Profiles'!$Z$4*'Inputs and Totals'!$B$8*'Inputs and Totals'!$B$9*0.001,IF('Inputs and Totals'!C47 =3,'Solar Profiles'!$Z$5*'Inputs and Totals'!$B$8*'Inputs and Totals'!$B$9*0.001,"Error"))) -> 0 | Z62: 9199.08
